Workbook

Sheet Overview
A2: CDCM Annual Review Pack (incorporating DCP 179)
A4: Company: | B4: ='CDCM Forecast Data'!E3 -> WPD South West
A5: Date of Issue: | B5: ='CDCM Forecast Data'!E4 -> 2014-12-31
A7: ="Although every effort has been made to ensure the accuracy of the information provided in this annual review pack, " & 'CDCM Forecast Data'!E3 & " does not accept any liability for the accuracy of the information contained herein and, in particular, " & 'CDCM Forecast Data'!E3 & " or any of its employees, shall not be held liable for any misstatement or opinion on which the recipient of this statement relies or seeks to rely." -> Although every effort has been made to ensure the accuracy of the information provided in this annual review pack, WPD South West does not accept any liability for the accuracy of the information contained herein and, in particular, WPD South West or any of its employees, shall not be held liable for any misstatement or opinion on which the recipient of this statement relies or seeks to rely.
A12: Contents:
A14: Sheet Name | B14: Detail
A15: Commentary | B15: This sheet contains the DNO's commentary on the forecast input CDCM data for the forecast over the 5 year period.
A16: CDCM Forecast Data | B16: This sheet contains historical and forecast data for all CDCM inputs except for volume data (table 1053) and matrix of applicability data (table 1025 - 1028). The RPI forecast is seperated out and listed as a standalone assumption. Any forecasts that relate to RPI will be linked to this row. Comments are provided alongside each forecast explaining any assumptions made by the DNO.
A17: Table 1 | B17: This sheet contains the DNO's table 1 produced in accordance with DCUSA Schedule 15 "cost information table".
A18: Mat of App | B18: This sheet contains the forecast CDCM matrix of applicability data (table 1025 - 1028). The default value is that the same matrix will be used for each of the five years.
A19: CDCM Volume Forecasts | B19: This sheet contains forecast CDCM volume data (table 1053). The matrix at the top can be used to apply different growth rates to groups of customers.
A20: CDCM Timebands | B20: Contains the time bands that the DNO plans to use for the coming year and advance warning of any changes.
A21: CDCM Input Sheet (Y) | B21: This sheet contains the CDCM input sheet for base year 0 (Y) in a format that can be copy and pasted (paste-value) into the CDCM spreadsheet model.
A22: CDCM Input Sheet (Y + 1) | B22: This sheet contains the CDCM input sheet for base year +1 (Y+1) in a format that can be copy and pasted (paste-value) into the CDCM spreadsheet model.
A23: CDCM Input Sheet (Y + 2) | B23: This sheet contains the CDCM input sheet for base year +2 (Y+2) in a format that can be copy and pasted (paste-value) into the CDCM spreadsheet model.
A24: CDCM Input Sheet (Y + 3) | B24: This sheet contains the CDCM input sheet for base year +3 (Y+3) in a format that can be copy and pasted (paste-value) into the CDCM spreadsheet model.
A25: CDCM Input Sheet (Y + 4) | B25: This sheet contains the CDCM input sheet for base year +4 (Y+4) in a format that can be copy and pasted (paste-value) into the CDCM spreadsheet model.
A26: Tariffs ARP | B26: This sheet contains the CDCM tariffs that are produced from the CDCM input data, after the Macro on this sheet has been run. It contains the tariffs for each of the 5 years.
A29: This document, model or dataset has been prepared by Reckon LLP on the instructions of the DCUSA Panel or
A30: one of its working groups. Only the DCUSA Panel and its working groups have authority to approve this
A31: material as meeting their requirements. Reckon LLP makes no representation about the suitability of this
A32: material for the purposes of complying with any licence conditions or furthering any relevant objective.

Sheet Commentary
B3: ='CDCM Forecast Data'!E3 -> WPD South West

Sheet CDCM Forecast Data
D3: Company: | E3: WPD South West
D4: Date of Issue: | E4: 2014-12-31
D5: Status | E5: DCP179
C9: Historical CDCM Input Data (Actuals) | E9: ="CDCM Values - "&E5 -> CDCM Values - DCP179 | F9: Forecast CDCM Values
B10: Year Ref -> | C10: Y-2 | D10: Y-1 | E10: Y | F10: Y+1 | G10: Y+2 | H10: Y+3 | I10: Y+4
B11: Charging Year -> | C11: 2013/14 | D11: 2014/15 | E11: 2015/16 | F11: 2016/17 | G11: 2017/18 | H11: 2018/19 | I11: 2019/20
B12: DPCR -> | C12: DPCR5 | D12: DPCR5 | E12: RIIO - ED1 | F12: RIIO - ED1 | G12: RIIO - ED1 | H12: RIIO - ED1 | I12: RIIO - ED1 | J12: Assumptions
B13: RPI Forecast: | F13: ='Table 1'!G9/'Table 1'!F9-1 -> 0.03234750462 | G13: ='Table 1'!H9/'Table 1'!G9-1 -> 0.03222918532 | H13: ='Table 1'!I9/'Table 1'!H9-1 -> 0.03 | I13: ='Table 1'!J9/'Table 1'!I9-1 -> 0.03
A14: 1 | B14: 1000 Company name, charging year and model version
A15: 2 | B15: Company | D15: WPD South West
A16: 3 | B16: Year
A17: 4 | B17: Version | D17: 102
A18: 5 | B18: 1010 Financial and general assumptions
A19: 6 | B19: Rate of return | C19: 0.056 | D19: 0.056 | E19: 0.056 | F19: 0.056 | G19: 0.056 | H19: 0.056 | I19: 0.056
A20: 7 | B20: Annualisation period (years) | C20: 40 | D20: 40 | E20: 40 | F20: 40 | G20: 40 | H20: 40 | I20: 40
A21: 8 | B21: Power factor | C21: 0.95 | D21: 0.95 | E21: 0.95 | F21: 0.95 | G21: 0.95 | H21: 0.95 | I21: 0.95
A22: 9 | B22: Days in the charging period | C22: 365 | D22: 365 | E22: 366 | F22: 365 | G22: 365 | H22: 365 | I22: 366
A23: 10 | B23: 1017 Diversity allowance between top and bottom of network level
A24: 11 | B24: GSPs | C24: 0.022 | D24: 0.022 | E24: 0.022 | F24: 0.022 | G24: 0.022 | H24: 0.022 | I24: 0.022
A25: 12 | B25: 132kV | C25: 0.031 | D25: 0.031 | E25: 0.031 | F25: 0.031 | G25: 0.031 | H25: 0.031 | I25: 0.031
A26: 13 | B26: EHV | C26: 0.075 | D26: 0.075 | E26: 0.075 | F26: 0.075 | G26: 0.075 | H26: 0.075 | I26: 0.075
A27: 14 | B27: HV | C27: 0.37 | D27: 0.37 | E27: 0.37 | F27: 0.37 | G27: 0.37 | H27: 0.37 | I27: 0.37
A28: 15 | B28: 1018 Proportion of relevant load going through 132kV/HV direct transformation | D28: 0 | E28: 0 | F28: 0 | G28: 0 | H28: 0 | I28: 0
A29: 16 | B29: 1019 Network model GSP demand (MW) | C29: 500 | D29: 500 | E29: 500 | F29: 500 | G29: 500 | H29: 500 | I29: 500
A30: 17 | B30: 1020 Gross asset cost by network level (£)
A31: 18 | B31: 132kV | C31: 103585529.4 | D31: 105833335.4 | E31: 108796668.7 | F31: 111419930.2 | G31: =F31*(1+G$13) -> 115010903.8 | H31: =G31*(1+H$13) -> 118461230.9 | I31: 122015067.8
A32: 19 | B32: 132kV/EHV | C32: 15428415.49 | D32: 15763212.11 | E32: 16204582.05 | F32: 15781435.27 | G32: =F32*(1+G$13) -> 16290058.07 | H32: 16778759.81 | I32: 17282122.61
A33: 20 | B33: EHV | C33: 45522370.03 | D33: 46510205.46 | E33: 47812491.21 | F33: 39840185.59 | G33: 41124202.32 | H33: 42357928.39 | I33: 43628666.24
A34: 21 | B34: EHV/HV | C34: 36390100.11 | D34: 37179765.28 | E34: 38220798.71 | F34: 40041227.15 | G34: 41331723.28 | H34: 42571674.98 | I34: 43848825.23
A35: 22 | B35: 132kV/HV | D35: 0 | E35: 0 | F35: 0 | G35: 0 | H35: 0 | I35: 0
A36: 23 | B36: HV | C36: 152121207.2 | D36: 155422237.4 | E36: 159774060 | F36: 142603119.3 | G36: 147199101.6 | H36: 151615074.7 | I36: 156163526.9
A37: 24 | B37: HV/LV | C37: 59367391.63 | D37: 60655664.03 | E37: 62354022.62 | F37: 60769296.66 | G37: 62727841.58 | H37: 64609676.83 | I37: 66547967.13
A38: 25 | B38: LV circuits | C38: 132391580.6 | D38: 135264477.9 | E38: 139051883.3 | F38: 130516403.4 | G38: 134722840.8 | H38: 138764526 | I38: 142927461.8
A39: 26 | B39: 1022 LV service model asset cost (£)
A40: 27 | B40: LV service model 1 | C40: 4553.43 | D40: 4689.776689 | E40: 4818.312533 | F40: 5105.17672 | G40: =F40*(1+G$13) -> 5269.712407 | H40: 5427.803779 | I40: 5590.637892
A41: 28 | B41: LV service model 2 | C41: 543.4733333 | D41: 578.9437507 | E41: 588.8475667 | F41: 574.28134 | G41: =F41*(1+G$13) -> 592.7899597 | H41: 610.5736585 | I41: 628.8908683
A42: 29 | B42: LV service model 3 | C42: 618.9708333 | D42: 683.874895 | E42: 688.3550083 | F42: 699.18344 | G42: =F42*(1+G$13) -> 721.7175527 | H42: 743.3690792 | I42: 765.6701516
A43: 30 | B43: LV service model 4 | C43: 471.8933333 | D43: 509.4741107 | E43: 508.3187333 | F43: 518.5284 | G43: =F43*(1+G$13) -> 535.2401479 | H43: 551.2973523 | I43: 567.8362729
A44: 31 | B44: LV service model 5 | C44: 1214.751333 | D44: 1169.036632 | E44: 1179.954953 | F44: 1178.730448 | G44: =F44*(1+G$13) -> 1216.71997 | H44: 1253.221569 | I44: 1290.818216
A45: 32 | B45: LV service model 6 | C45: 877.825 | D45: 858.6034748 | E45: 892.507875 | F45: 907.87362 | G45: =F45*(1+G$13) -> 937.1336471 | H45: 965.2476566 | I45: 994.2050863
A46: 33 | B46: LV service model 7 | C46: 0 | D46: 0 | E46: 0 | F46: 0 | G46: =F46*(1+G$13) -> 0 | H46: 0 | I46: 0
A47: 34 | B47: LV service model 8 | C47: 532 | D47: 450.314275 | E47: 468.8148 | F47: 474.8232 | G47: =F47*(1+G$13) -> 490.1263649 | H47: 504.8301559 | I47: 519.9750605
A48: 35 | B48: 1023 HV service model asset cost (£)
A49: 36 | B49: HV service model 1 | C49: 9790.194 | D49: 8748.377769 | E49: 8971.25056 | F49: 9007.159776 | G49: =F49*(1+G$13) -> 9297.453198 | H49: 9576.376794 | I49: 9863.668097
A50: 37 | B50: HV service model 2 | C50: 4208 | D50: 4299.3136 | E50: 4334.24 | F50: 4342.656 | G50: =F50*(1+G$13) -> 4482.616265 | H50: 4617.094753 | I50: 4755.607596
A51: 38 | B51: HV service model 3 | G51: =F51*(1+G$13) -> 0 | H51: 0 | I51: 0
A52: 39 | B52: HV service model 4 | G52: =F52*(1+G$13) -> 0 | H52: 0 | I52: 0
A53: 40 | B53: HV service model 5 | G53: =F53*(1+G$13) -> 0 | H53: 0 | I53: 0
A54: 41 | B54: 1025 Matrix of applicability of LV service models to tariffs with fixed charges
A55: 42 | B55: 1026 Matrix of applicability of LV service models to unmetered tariffs
A56: 43 | B56: 1028 Matrix of applicability of HV service models to tariffs with fixed charges
A57: 44 | B57: 1032 Loss adjustment factors to transmission
A58: 45 | B58: 132kV | C58: 1.013 | D58: 1.013 | E58: 1.008 | F58: 1.008 | G58: 1.008 | H58: 1.008 | I58: 1.008
A59: 46 | B59: 132kV/EHV | C59: 1.017 | D59: 1.017 | E59: 1.011 | F59: 1.011 | G59: 1.011 | H59: 1.011 | I59: 1.011
A60: 47 | B60: EHV | C60: 1.032 | D60: 1.032 | E60: 1.024 | F60: 1.024 | G60: 1.024 | H60: 1.024 | I60: 1.024
A61: 48 | B61: EHV/HV | C61: 1.042 | D61: 1.042 | E61: 1.034 | F61: 1.034 | G61: 1.034 | H61: 1.034 | I61: 1.034
A62: 49 | B62: HV | C62: 1.065 | D62: 1.065 | E62: 1.057 | F62: 1.057 | G62: 1.057 | H62: 1.057 | I62: 1.057
A63: 50 | B63: HV/LV | C63: 1.078 | D63: 1.078 | E63: 1.07 | F63: 1.07 | G63: 1.07 | H63: 1.07 | I63: 1.07
A64: 51 | B64: LV circuits | C64: 1.087 | D64: 1.087 | E64: 1.085 | F64: 1.085 | G64: 1.085 | H64: 1.085 | I64: 1.085
A65: 52 | B65: 1037 Embedded network (LDNO) discounts
A66: 53 | B66: LDNO LV: LV user | C66: 0.3580021725 | D66: 0.3638819159 | E66: 0.3656937215 | F66: 0.3656937215 | G66: 0.3656937215 | H66: 0.3656937215 | I66: 0.3656937215
A67: 54 | B67: LDNO HV: LV user | C67: 0.6121303874 | D67: 0.6480544246 | E67: 0.6245521397 | F67: 0.6245521397 | G67: 0.6245521397 | H67: 0.6245521397 | I67: 0.6245521397
A68: 55 | B68: LDNO HV: LV sub user | C68: 0.3773090501 | D68: 0.4293849812 | E68: 0.3894166697 | F68: 0.3894166697 | G68: 0.3894166697 | H68: 0.3894166697 | I68: 0.3894166697
A69: 56 | B69: LDNO HV: HV user | C69: 0.2678469175 | D69: 0.3258389015 | E69: 0.2775282659 | F69: 0.2775282659 | G69: 0.2775282659 | H69: 0.2775282659 | I69: 0.2775282659
A70: 57 | B70: 1041 Load profile data for demand users: coincidence factor
A71: 58 | B71: Domestic Unrestricted | C71: 0.9110931172 | D71: 0.9124027293 | E71: ='Smoothed Input Details'!E15 -> 0.9179184292 | F71: =E71 -> 0.9179184292 | G71: =F71 -> 0.9179184292 | H71: 0.9179184292 | I71: 0.9179184292
A72: 59 | B72: Domestic Two Rate | C72: 0.3144256013 | D72: 0.3208182826 | E72: ='Smoothed Input Details'!E16 -> 0.3200962015 | F72: =E72 -> 0.3200962015 | G72: 0.3200962015 | H72: 0.3200962015 | I72: 0.3200962015
A73: 60 | B73: Domestic Off Peak (related MPAN)
A74: 61 | B74: Small Non Domestic Unrestricted | C74: 0.6277145101 | D74: 0.6264889466 | E74: ='Smoothed Input Details'!E18 -> 0.616785984 | F74: =E74 -> 0.616785984 | G74: =F74 -> 0.616785984 | H74: 0.616785984 | I74: 0.616785984
A75: 62 | B75: Small Non Domestic Two Rate | C75: 0.5306730516 | D75: 0.5475229275 | E75: ='Smoothed Input Details'!E19 -> 0.565932477 | F75: =E75 -> 0.565932477 | G75: 0.565932477 | H75: 0.565932477 | I75: 0.565932477
A76: 63 | B76: Small Non Domestic Off Peak (related MPAN) | D76: 0
A77: 64 | B77: LV Medium Non-Domestic | C77: 0.8006161179 | D77: 0.8281065872 | E77: ='Smoothed Input Details'!E21 -> 0.8402833019 | F77: =E77 -> 0.8402833019 | G77: =F77 -> 0.8402833019 | H77: 0.8402833019 | I77: 0.8402833019
A78: 65 | B78: LV Sub Medium Non-Domestic | C78: 0.7829460721 | D78: 0.8114934939 | E78: ='Smoothed Input Details'!E22 -> 0.816438164 | F78: =E78 -> 0.816438164 | G78: 0.816438164 | H78: 0.816438164 | I78: 0.816438164
A79: 66 | B79: HV Medium Non-Domestic | C79: 0.7512811282 | D79: 0.7271724872 | E79: ='Smoothed Input Details'!E23 -> 0.7355089477 | F79: =E79 -> 0.7355089477 | G79: 0.7355089477 | H79: 0.7355089477 | I79: 0.7355089477
A80: 67 | B80: LV Network Domestic | E80: ='Smoothed Input Details'!E24 -> 0.8239834604 | F80: =E80 -> 0.8239834604 | G80: 0.8239834604 | H80: 0.8239834604 | I80: 0.8239834604
A81: 68 | B81: LV Network Non-Domestic Non-CT | E81: ='Smoothed Input Details'!E25 -> 0.6065619843 | F81: =E81 -> 0.6065619843 | G81: 0.6065619843 | H81: 0.6065619843 | I81: 0.6065619843
A82: 69 | B82: LV HH Metered | C82: 0.8145064582 | D82: 0.8151293809 | E82: ='Smoothed Input Details'!E26 -> 0.8048097412 | F82: =E82 -> 0.8048097412 | G82: =F82 -> 0.8048097412 | H82: 0.8048097412 | I82: 0.8048097412
A83: 70 | B83: LV Sub HH Metered | C83: 0.782726117 | D83: 0.7804057711 | E83: ='Smoothed Input Details'!E27 -> 0.7678104713 | F83: =E83 -> 0.7678104713 | G83: 0.7678104713 | H83: 0.7678104713 | I83: 0.7678104713
A84: 71 | B84: HV HH Metered | C84: 0.8113670182 | D84: 0.8103395257 | E84: ='Smoothed Input Details'!E28 -> 0.7982801564 | F84: =E84 -> 0.7982801564 | G84: 0.7982801564 | H84: 0.7982801564 | I84: 0.7982801564
A85: 72 | B85: NHH UMS category A | C85: 1 | D85: 1 | E85: ='Smoothed Input Details'!E29 -> 1 | F85: =E85 -> 1 | G85: =F85 -> 1 | H85: 1 | I85: 1
A86: 73 | B86: NHH UMS category B | C86: 1 | D86: 1 | E86: ='Smoothed Input Details'!E30 -> 1 | F86: =E86 -> 1 | G86: 1 | H86: 1 | I86: 1
A87: 74 | B87: NHH UMS category C | C87: 1 | D87: 1 | E87: ='Smoothed Input Details'!E31 -> 1 | F87: =E87 -> 1 | G87: 1 | H87: 1 | I87: 1
A88: 75 | B88: NHH UMS category D | C88: 0.02906666667 | D88: 0 | E88: ='Smoothed Input Details'!E32 -> 0 | F88: =E88 -> 0 | G88: 0 | H88: 0 | I88: 0
A89: 76 | B89: LV UMS (Pseudo HH Metered) | C89: 0.9230565392 | D89: 0.9666653359 | E89: ='Smoothed Input Details'!E33 -> 0.9767133458 | F89: =E89 -> 0.9767133458 | G89: 0.9767133458 | H89: 0.9767133458 | I89: 0.9767133458
A90: 77 | B90: 1041 Load profile data for demand users: load factor
A91: 78 | B91: Domestic Unrestricted | C91: 0.3992113024 | D91: 0.4043359815 | E91: ='Smoothed Input Details'!E42 -> 0.415665058 | F91: =E91 -> 0.415665058 | G91: =F91 -> 0.415665058 | H91: 0.415665058 | I91: 0.415665058
A92: 79 | B92: Domestic Two Rate | C92: 0.2187041838 | D92: 0.2317584732 | E92: ='Smoothed Input Details'!E43 -> 0.2450956802 | F92: =E92 -> 0.2450956802 | G92: 0.2450956802 | H92: 0.2450956802 | I92: 0.2450956802
A93: 80 | B93: Domestic Off Peak (related MPAN) | C93: 0.1367858009 | D93: 0.1316674385 | E93: ='Smoothed Input Details'!E44 -> 0.136867915 | F93: =E93 -> 0.136867915 | G93: 0.136867915 | H93: 0.136867915 | I93: 0.136867915
A94: 81 | B94: Small Non Domestic Unrestricted | C94: 0.3620931243 | D94: 0.3788508434 | E94: ='Smoothed Input Details'!E45 -> 0.395190376 | F94: =E94 -> 0.395190376 | G94: 0.395190376 | H94: 0.395190376 | I94: 0.395190376
A95: 82 | B95: Small Non Domestic Two Rate | C95: 0.3950566623 | D95: 0.4084310363 | E95: ='Smoothed Input Details'!E46 -> 0.4330374222 | F95: =E95 -> 0.4330374222 | G95: 0.4330374222 | H95: 0.4330374222 | I95: 0.4330374222
A96: 83 | B96: Small Non Domestic Off Peak (related MPAN) | C96: 0.2258067728 | D96: 0.2069595547 | E96: ='Smoothed Input Details'!E47 -> 0.1971252058 | F96: =E96 -> 0.1971252058 | G96: =F96 -> 0.1971252058 | H96: 0.1971252058 | I96: 0.1971252058
A97: 84 | B97: LV Medium Non-Domestic | C97: 0.5594720869 | D97: 0.5775470348 | E97: ='Smoothed Input Details'!E48 -> 0.5917167714 | F97: =E97 -> 0.5917167714 | G97: 0.5917167714 | H97: 0.5917167714 | I97: 0.5917167714
A98: 85 | B98: LV Sub Medium Non-Domestic | C98: 0.5684359804 | D98: 0.5916572991 | E98: ='Smoothed Input Details'!E49 -> 0.5994378117 | F98: =E98 -> 0.5994378117 | G98: 0.5994378117 | H98: 0.5994378117 | I98: 0.5994378117
A99: 86 | B99: HV Medium Non-Domestic | C99: 0.409929049 | D99: 0.436588492 | E99: ='Smoothed Input Details'!E50 -> 0.4659507287 | F99: =E99 -> 0.4659507287 | G99: 0.4659507287 | H99: 0.4659507287 | I99: 0.4659507287
A100: 87 | B100: LV Network Domestic | E100: ='Smoothed Input Details'!E51 -> 0.3860236334 | F100: =E100 -> 0.3860236334 | G100: 0.3860236334 | H100: 0.3860236334 | I100: 0.3860236334
A101: 88 | B101: LV Network Non-Domestic Non-CT | E101: ='Smoothed Input Details'!E52 -> 0.3977278379 | F101: =E101 -> 0.3977278379 | G101: =F101 -> 0.3977278379 | H101: 0.3977278379 | I101: 0.3977278379
A102: 89 | B102: LV HH Metered | C102: 0.580821256 | D102: 0.5818304761 | E102: ='Smoothed Input Details'!E53 -> 0.5859730553 | F102: =E102 -> 0.5859730553 | G102: 0.5859730553 | H102: 0.5859730553 | I102: 0.5859730553
A103: 90 | B103: LV Sub HH Metered | C103: 0.6075756983 | D103: 0.6112249107 | E103: ='Smoothed Input Details'!E54 -> 0.6124288461 | F103: =E103 -> 0.6124288461 | G103: 0.6124288461 | H103: 0.6124288461 | I103: 0.6124288461
A104: 91 | B104: HV HH Metered | C104: 0.7201136334 | D104: 0.7257928171 | E104: ='Smoothed Input Details'!E55 -> 0.720897537 | F104: =E104 -> 0.720897537 | G104: 0.720897537 | H104: 0.720897537 | I104: 0.720897537
A105: 92 | B105: NHH UMS category A | C105: 1 | D105: 1 | E105: ='Smoothed Input Details'!E56 -> 1 | F105: =E105 -> 1 | G105: =F105 -> 1 | H105: 1 | I105: 1
A106: 93 | B106: NHH UMS category B | C106: 0.4743289155 | D106: 0.4736053246 | E106: ='Smoothed Input Details'!E57 -> 0.4728817338 | F106: =E106 -> 0.4728817338 | G106: 0.4728817338 | H106: 0.4728817338 | I106: 0.4728817338
A107: 94 | B107: NHH UMS category C | C107: 0.2537152397 | D107: 0.2508762432 | E107: ='Smoothed Input Details'!E58 -> 0.2480372467 | F107: =E107 -> 0.2480372467 | G107: 0.2480372467 | H107: 0.2480372467 | I107: 0.2480372467
A108: 95 | B108: NHH UMS category D | C108: 0.553 | D108: 0.5124673054 | E108: ='Smoothed Input Details'!E59 -> 0.5138551701 | F108: =E108 -> 0.5138551701 | G108: 0.5138551701 | H108: 0.5138551701 | I108: 0.5138551701
A109: 96 | B109: LV UMS (Pseudo HH Metered) | C109: 0.4774652203 | D109: 0.4821715491 | E109: ='Smoothed Input Details'!E60 -> 0.4699498049 | F109: =E109 -> 0.4699498049 | G109: 0.4699498049 | H109: 0.4699498049 | I109: 0.4699498049
A110: 97 | B110: 1053. Volume forecasts for the charging year
A111: 98 | B111: 1055 Transmission exit charges (£/year) | C111: 8248563.971 | D111: 8730786.371 | E111: 8546468.419 | F111: =E111*(1+F$13) -> 8822925.346 | G111: =F111*(1+G$13) -> 9107281.042 | H111: 9380499.473 | I111: 9661914.457
A112: 99 | B112: 1059 Other Expenditure (£/year)
A113: 100 | B113: Direct cost (£/year) | C113: 24134794.83 | D113: 28113013.82 | E113: 27455199.84 | F113: =E113*(1+F$13) -> 28343307.04 | G113: =F113*(1+G$13) -> 29256788.74 | H113: 30134492.4 | I113: 31038527.17
A114: 101 | B114: Indirect cost (£/year) | C114: 86359159.44 | D114: 86065425.92 | E114: 95880661.46 | F114: =E114*(1+F$13) -> 98982161.6 | G114: =F114*(1+G$13) -> 102172276 | H114: 105237444.3 | I114: 108394567.6
A115: 102 | B115: Indirect cost proportion | C115: 0.6 | D115: 0.6 | E115: 0.6 | F115: 0.6 | G115: 0.6 | H115: 0.6 | I115: 0.6
A116: 103 | B116: Network rates (£/year) | C116: 16264338.93 | D116: 15183274 | E116: 15553031 | F116: =E116*(1+F$13) -> 16056132.74 | G116: =F116*(1+G$13) -> 16573608.82 | H116: 17070817.08 | I116: 17582941.6
A117: 104 | B117: 1060 Customer contributions under current connection charging policy
A118: 105 | B118: LV network
A119: 106 | B119: Assets 132kV | D119: 0 | E119: =D119 -> 0 | F119: =E119 -> 0 | G119: 0 | H119: 0 | I119: 0
A120: 107 | B120: Assets 132kV/EHV | E120: =D120 -> 0 | F120: 0 | G120: 0 | H120: 0 | I120: 0
A121: 108 | B121: Assets EHV | E121: 0 | F121: 0 | G121: 0 | H121: 0 | I121: 0
A122: 109 | B122: Assets EHV/HV | C122: 0.81 | D122: 0.81 | E122: 0.81 | F122: 0.81 | G122: 0.81 | H122: 0.81 | I122: 0.81
A123: 110 | B123: Assets 132kV/HV | E123: 0 | F123: 0 | G123: 0 | H123: 0 | I123: 0
A124: 111 | B124: Assets HV | C124: 0.81 | D124: 0.81 | E124: 0.81 | F124: 0.81 | G124: 0.81 | H124: 0.81 | I124: 0.81
A125: 112 | B125: Assets HV/LV | C125: 0.95 | D125: 0.95 | E125: 0.95 | F125: 0.95 | G125: 0.95 | H125: 0.95 | I125: 0.95
A126: 113 | B126: Assets LV circuits | C126: 0.95 | D126: 0.95 | E126: 0.95 | F126: 0.95 | G126: 0.95 | H126: 0.95 | I126: 0.95
A127: 114 | B127: LV substation
A128: 115 | B128: Assets 132kV | C128: 0 | D128: 0 | E128: 0 | F128: 0 | G128: 0 | H128: 0 | I128: 0
A129: 116 | B129: Assets 132kV/EHV | C129: 0 | D129: 0 | E129: 0 | F129: 0 | G129: 0 | H129: 0 | I129: 0
A130: 117 | B130: Assets EHV | E130: 0 | F130: 0 | G130: 0 | H130: 0 | I130: 0
A131: 118 | B131: Assets EHV/HV | C131: 0.81 | D131: 0.81 | E131: 0.81 | F131: 0.81 | G131: 0.81 | H131: 0.81 | I131: 0.81
A132: 119 | B132: Assets 132kV/HV | E132: 0 | F132: 0 | G132: 0 | H132: 0 | I132: 0
A133: 120 | B133: Assets HV | C133: 0.81 | D133: 0.81 | E133: 0.81 | F133: 0.81 | G133: 0.81 | H133: 0.81 | I133: 0.81
A134: 121 | B134: Assets HV/LV | C134: 0.95 | D134: 0.95 | E134: 0.95 | F134: 0.95 | G134: 0.95 | H134: 0.95 | I134: 0.95
A135: 122 | B135: HV network
A136: 123 | B136: Assets 132kV | C136: 0 | D136: 0 | E136: =D136 -> 0 | F136: =E136 -> 0 | G136: 0 | H136: 0 | I136: 0
A137: 124 | B137: Assets 132kV/EHV | C137: 0.67 | D137: 0.67 | E137: =D137 -> 0.67 | F137: 0.67 | G137: 0.67 | H137: 0.67 | I137: 0.67
A138: 125 | B138: Assets EHV | C138: 0.67 | D138: 0.67 | E138: 0.67 | F138: 0.67 | G138: 0.67 | H138: 0.67 | I138: 0.67
A139: 126 | B139: Assets EHV/HV | C139: 1 | D139: 1 | E139: 1 | F139: 1 | G139: 1 | H139: 1 | I139: 1
A140: 127 | B140: Assets 132kV/HV | E140: 0 | F140: 0 | G140: 0 | H140: 0 | I140: 0
A141: 128 | B141: Assets HV | C141: 1 | D141: 1 | E141: 1 | F141: 1 | G141: 1 | H141: 1 | I141: 1
A142: 129 | B142: HV substation
A143: 130 | B143: Assets 132kV | C143: 0 | D143: 0 | E143: =D143 -> 0 | F143: =E143 -> 0 | G143: 0 | H143: 0 | I143: 0
A144: 131 | B144: Assets 132kV/EHV | C144: 0.67 | D144: 0.67 | E144: =D144 -> 0.67 | F144: 0.67 | G144: 0.67 | H144: 0.67 | I144: 0.67
A145: 132 | B145: Assets EHV | C145: 0.67 | D145: 0.67 | E145: 0.67 | F145: 0.67 | G145: 0.67 | H145: 0.67 | I145: 0.67
A146: 133 | B146: Assets EHV/HV | C146: 1 | D146: 1 | E146: 1 | F146: 1 | G146: 1 | H146: 1 | I146: 1
A147: 134 | B147: 1061 Average split of rate 1 units by distribution time band
A148: 135 | B148: RED
A149: 136 | B149: Domestic Unrestricted | E149: ='Smoothed Input Details'!K70 -> 0.08872787752 | F149: =E149 -> 0.08872787752 | G149: =F149 -> 0.08872787752 | H149: 0.08872787752 | I149: 0.08872787752
A150: 137 | B150: Domestic Two Rate | C150: 0.1098233476 | D150: 0.1077737597 | E150: ='Smoothed Input Details'!K71 -> 0.1071195799 | F150: =E150 -> 0.1071195799 | G150: 0.1071195799 | H150: 0.1071195799 | I150: 0.1071195799
A151: 138 | B151: Domestic Off Peak (related MPAN) | C151: 0.001990705194 | D151: 0.000832463346 | E151: ='Smoothed Input Details'!K72 -> 0.001276727612 | F151: =E151 -> 0.001276727612 | G151: 0.001276727612 | H151: 0.001276727612 | I151: 0.001276727612
A152: 139 | B152: Small Non Domestic Unrestricted | E152: ='Smoothed Input Details'!K73 -> 0.06236379117 | F152: =E152 -> 0.06236379117 | G152: 0.06236379117 | H152: 0.06236379117 | I152: 0.06236379117
A153: 140 | B153: Small Non Domestic Two Rate | C153: 0.08109302625 | D153: 0.08061492162 | E153: ='Smoothed Input Details'!K74 -> 0.08006171754 | F153: =E153 -> 0.08006171754 | G153: =F153 -> 0.08006171754 | H153: 0.08006171754 | I153: 0.08006171754
A154: 141 | B154: Small Non Domestic Off Peak (related MPAN) | C154: 0.002353569747 | D154: 0.001633052214 | E154: ='Smoothed Input Details'!K75 -> 0.001778241286 | F154: =E154 -> 0.001778241286 | G154: 0.001778241286 | H154: 0.001778241286 | I154: 0.001778241286
A155: 142 | B155: LV Medium Non-Domestic | C155: 0.07379037515 | D155: 0.07679385909 | E155: ='Smoothed Input Details'!K76 -> 0.07995867499 | F155: =E155 -> 0.07995867499 | G155: 0.07995867499 | H155: 0.07995867499 | I155: 0.07995867499
A156: 143 | B156: LV Sub Medium Non-Domestic | C156: 0.07365694399 | D156: 0.07655212161 | E156: ='Smoothed Input Details'!K77 -> 0.07926226088 | F156: =E156 -> 0.07926226088 | G156: 0.07926226088 | H156: 0.07926226088 | I156: 0.07926226088
A157: 144 | B157: HV Medium Non-Domestic | C157: 0.0701899199 | D157: 0.07450516482 | E157: ='Smoothed Input Details'!K78 -> 0.0791290924 | F157: =E157 -> 0.0791290924 | G157: 0.0791290924 | H157: 0.0791290924 | I157: 0.0791290924
A158: 145 | B158: AMBER
A159: 146 | B159: Domestic Unrestricted | E159: ='Smoothed Input Details'!L70 -> 0.4598567477 | F159: =E159 -> 0.4598567477 | G159: =F159 -> 0.4598567477 | H159: 0.4598567477 | I159: 0.4598567477
A160: 147 | B160: Domestic Two Rate | C160: 0.5339844331 | D160: 0.5306064341 | E160: ='Smoothed Input Details'!L71 -> 0.5328350889 | F160: =E160 -> 0.5328350889 | G160: 0.5328350889 | H160: 0.5328350889 | I160: 0.5328350889
A161: 148 | B161: Domestic Off Peak (related MPAN) | C161: 0.1119200542 | D161: 0.08172606403 | E161: ='Smoothed Input Details'!L72 -> 0.1100727177 | F161: =E161 -> 0.1100727177 | G161: 0.1100727177 | H161: 0.1100727177 | I161: 0.1100727177
A162: 149 | B162: Small Non Domestic Unrestricted | E162: ='Smoothed Input Details'!L73 -> 0.5726403361 | F162: =E162 -> 0.5726403361 | G162: 0.5726403361 | H162: 0.5726403361 | I162: 0.5726403361
A163: 150 | B163: Small Non Domestic Two Rate | C163: 0.6337868666 | D163: 0.6315714253 | E163: ='Smoothed Input Details'!L74 -> 0.6310101032 | F163: =E163 -> 0.6310101032 | G163: =F163 -> 0.6310101032 | H163: 0.6310101032 | I163: 0.6310101032
A164: 151 | B164: Small Non Domestic Off Peak (related MPAN) | C164: 0.1434744498 | D164: 0.110827891 | E164: ='Smoothed Input Details'!L75 -> 0.1132330784 | F164: =E164 -> 0.1132330784 | G164: 0.1132330784 | H164: 0.1132330784 | I164: 0.1132330784
A165: 152 | B165: LV Medium Non-Domestic | C165: 0.5519844496 | D165: 0.5721290447 | E165: ='Smoothed Input Details'!L76 -> 0.5981846093 | F165: =E165 -> 0.5981846093 | G165: 0.5981846093 | H165: 0.5981846093 | I165: 0.5981846093
A166: 153 | B166: LV Sub Medium Non-Domestic | C166: 0.5606688669 | D166: 0.5781638997 | E166: ='Smoothed Input Details'!L77 -> 0.6010073056 | F166: =E166 -> 0.6010073056 | G166: 0.6010073056 | H166: 0.6010073056 | I166: 0.6010073056
A167: 154 | B167: HV Medium Non-Domestic | C167: 0.5374986505 | D167: 0.5613652832 | E167: ='Smoothed Input Details'!L78 -> 0.5989116964 | F167: =E167 -> 0.5989116964 | G167: 0.5989116964 | H167: 0.5989116964 | I167: 0.5989116964
A168: 155 | B168: GREEN
A169: 156 | B169: Domestic Unrestricted | E169: ='Smoothed Input Details'!M70 -> 0.4514153748 | F169: =E169 -> 0.4514153748 | G169: =F169 -> 0.4514153748 | H169: 0.4514153748 | I169: 0.4514153748
A170: 157 | B170: Domestic Two Rate | C170: 0.3561922193 | D170: 0.3616198063 | E170: ='Smoothed Input Details'!M71 -> 0.3600453312 | F170: =E170 -> 0.3600453312 | G170: 0.3600453312 | H170: 0.3600453312 | I170: 0.3600453312
A171: 158 | B171: Domestic Off Peak (related MPAN) | C171: 0.8860894882 | D171: 0.9174417202 | E171: ='Smoothed Input Details'!M72 -> 0.8886505547 | F171: =E171 -> 0.8886505547 | G171: 0.8886505547 | H171: 0.8886505547 | I171: 0.8886505547
A172: 159 | B172: Small Non Domestic Unrestricted | E172: ='Smoothed Input Details'!M73 -> 0.3649958727 | F172: =E172 -> 0.3649958727 | G172: 0.3649958727 | H172: 0.3649958727 | I172: 0.3649958727
A173: 160 | B173: Small Non Domestic Two Rate | C173: 0.2851201071 | D173: 0.2878136531 | E173: ='Smoothed Input Details'!M74 -> 0.2889281793 | F173: =E173 -> 0.2889281793 | G173: =F173 -> 0.2889281793 | H173: 0.2889281793 | I173: 0.2889281793
A174: 161 | B174: Small Non Domestic Off Peak (related MPAN) | C174: 0.8541719805 | D174: 0.8875390568 | E174: ='Smoothed Input Details'!M75 -> 0.8849886803 | F174: =E174 -> 0.8849886803 | G174: 0.8849886803 | H174: 0.8849886803 | I174: 0.8849886803
A175: 162 | B175: LV Medium Non-Domestic | C175: 0.3742251752 | D175: 0.3510770962 | E175: ='Smoothed Input Details'!M76 -> 0.3218567157 | F175: =E175 -> 0.3218567157 | G175: 0.3218567157 | H175: 0.3218567157 | I175: 0.3218567157
A176: 163 | B176: LV Sub Medium Non-Domestic | C176: 0.3656741891 | D176: 0.3452839787 | E176: ='Smoothed Input Details'!M77 -> 0.3197304336 | F176: =E176 -> 0.3197304336 | G176: 0.3197304336 | H176: 0.3197304336 | I176: 0.3197304336
A177: 164 | B177: HV Medium Non-Domestic | C177: 0.3923114296 | D177: 0.3641295519 | E177: ='Smoothed Input Details'!M78 -> 0.3219592112 | F177: =E177 -> 0.3219592112 | G177: 0.3219592112 | H177: 0.3219592112 | I177: 0.3219592112
A178: 165 | B178: 1062 Average split of rate 2 units by distribution time band
A179: 166 | B179: RED
A180: 167 | B180: Domestic Two Rate | C180: 0 | D180: 0 | E180: ='Smoothed Input Details'!K88 -> 0 | F180: =E180 -> 0 | G180: =F180 -> 0 | H180: 0 | I180: 0
A181: 168 | B181: Small Non Domestic Two Rate | C181: 0 | D181: 0 | E181: ='Smoothed Input Details'!K89 -> 0 | F181: =E181 -> 0 | G181: 0 | H181: 0 | I181: 0
A182: 169 | B182: LV Medium Non-Domestic | C182: 0 | D182: 0 | E182: ='Smoothed Input Details'!K90 -> 0 | F182: =E182 -> 0 | G182: 0 | H182: 0 | I182: 0
A183: 170 | B183: LV Sub Medium Non-Domestic | C183: 0 | D183: 0 | E183: ='Smoothed Input Details'!K91 -> 0 | F183: =E183 -> 0 | G183: 0 | H183: 0 | I183: 0
A184: 171 | B184: HV Medium Non-Domestic | C184: 0 | D184: 0 | E184: ='Smoothed Input Details'!K92 -> 0 | F184: =E184 -> 0 | G184: 0 | H184: 0 | I184: 0
A185: 172 | B185: AMBER
A186: 173 | B186: Domestic Two Rate | C186: 0.02923184764 | D186: 0.02260665877 | E186: ='Smoothed Input Details'!L88 -> 0.02219031778 | F186: =E186 -> 0.02219031778 | G186: =F186 -> 0.02219031778 | H186: 0.02219031778 | I186: 0.02219031778
A187: 174 | B187: Small Non Domestic Two Rate | C187: 0.0199181275 | D187: 0.02060751155 | E187: ='Smoothed Input Details'!L89 -> 0.02263653093 | F187: =E187 -> 0.02263653093 | G187: 0.02263653093 | H187: 0.02263653093 | I187: 0.02263653093
A188: 175 | B188: LV Medium Non-Domestic | C188: 0.001146654964 | D188: 0.0009444376373 | E188: ='Smoothed Input Details'!L90 -> 0.000623507765 | F188: =E188 -> 0.000623507765 | G188: 0.000623507765 | H188: 0.000623507765 | I188: 0.000623507765
A189: 176 | B189: LV Sub Medium Non-Domestic | C189: 0.002131893811 | D189: 0.00164368014 | E189: ='Smoothed Input Details'!L91 -> 0.0008535768747 | F189: =E189 -> 0.0008535768747 | G189: 0.0008535768747 | H189: 0.0008535768747 | I189: 0.0008535768747
A190: 177 | B190: HV Medium Non-Domestic | C190: 0.0004919749133 | D190: 0.0004919749133 | E190: ='Smoothed Input Details'!L92 -> 0 | F190: =E190 -> 0 | G190: 0 | H190: 0 | I190: 0
A191: 178 | B191: GREEN
A192: 179 | B192: Domestic Two Rate | C192: 0.9707681524 | D192: 0.9773933412 | E192: ='Smoothed Input Details'!M88 -> 0.9778096822 | F192: =E192 -> 0.9778096822 | G192: =F192 -> 0.9778096822 | H192: 0.9778096822 | I192: 0.9778096822
A193: 180 | B193: Small Non Domestic Two Rate | C193: 0.9800818725 | D193: 0.9793924885 | E193: ='Smoothed Input Details'!M89 -> 0.9773634691 | F193: =E193 -> 0.9773634691 | G193: 0.9773634691 | H193: 0.9773634691 | I193: 0.9773634691
A194: 181 | B194: LV Medium Non-Domestic | C194: 0.998853345 | D194: 0.9990555624 | E194: ='Smoothed Input Details'!M90 -> 0.9993764922 | F194: 0.9993764922 | G194: 0.9993764922 | H194: 0.9993764922 | I194: 0.9993764922
A195: 182 | B195: LV Sub Medium Non-Domestic | C195: 0.9978681062 | D195: 0.9983563199 | E195: ='Smoothed Input Details'!M91 -> 0.9991464231 | F195: 0.9991464231 | G195: 0.9991464231 | H195: 0.9991464231 | I195: 0.9991464231
A196: 183 | B196: HV Medium Non-Domestic | C196: 0.9995080251 | D196: 0.9995080251 | E196: ='Smoothed Input Details'!M92 -> 1 | F196: 1 | G196: 1 | H196: 1 | I196: 1
A197: 184 | B197: 1064. Average split of rate 1 units by special distribution time band
A198: 185 | B198: BLACK
A199: 186 | B199: NHH UMS category A | C199: 0.01750380518 | D199: 0.01765601218 | E199: ='Smoothed Input Details'!K102 -> 0.01765601218 | F199: =E199 -> 0.01765601218 | G199: =F199 -> 0.01765601218 | H199: 0.01765601218 | I199: 0.01765601218
A200: 187 | B200: NHH UMS category B | C200: 0.03329825014 | D200: 0.03366836829 | E200: ='Smoothed Input Details'!K103 -> 0.0337187417 | F200: =E200 -> 0.0337187417 | G200: 0.0337187417 | H200: 0.0337187417 | I200: 0.0337187417
A201: 188 | B201: NHH UMS category C | C201: 0.0640174592 | D201: 0.0635480253 | E201: ='Smoothed Input Details'!K104 -> 0.0624687066 | F201: =E201 -> 0.0624687066 | G201: 0.0624687066 | H201: 0.0624687066 | I201: 0.0624687066
A202: 189 | B202: NHH UMS category D | C202: 0.005237402553 | D202: 0.004387944475 | E202: ='Smoothed Input Details'!K105 -> 0.00351020556 | F202: =E202 -> 0.00351020556 | G202: 0.00351020556 | H202: 0.00351020556 | I202: 0.00351020556
A203: 190 | B203: YELLOW
A204: 191 | B204: NHH UMS category A | C204: 0.4352359209 | D204: 0.4346651446 | E204: ='Smoothed Input Details'!L102 -> 0.4346651446 | F204: =E204 -> 0.4346651446 | G204: =F204 -> 0.4346651446 | H204: 0.4346651446 | I204: 0.4346651446
A205: 192 | B205: NHH UMS category B | C205: 0.1490267059 | D205: 0.1478764345 | E205: ='Smoothed Input Details'!L103 -> 0.1475470827 | F205: =E205 -> 0.1475470827 | G205: 0.1475470827 | H205: 0.1475470827 | I205: 0.1475470827
... 66 more rows

Sheet Table 1
A1: Schedule 15 table 1
A2: ="Company Name: "&'CDCM Forecast Data'!E3 -> Company Name: WPD South West
A3: Date:
A5: Description | B5: Licence Term | C5: CRC | K5: Assumptions
A6: Regulatory Year | D6: t-2 | E6: t-1 | F6: t | G6: t+1 | H6: t+2 | I6: t+3 | J6: t+4
A7: Regulatory Year | D7: ='CDCM Forecast Data'!C11 -> 2013/14 | E7: ='CDCM Forecast Data'!D11 -> 2014/15 | F7: ='CDCM Forecast Data'!E11 -> 2015/16 | G7: ='CDCM Forecast Data'!F11 -> 2016/17 | H7: ='CDCM Forecast Data'!G11 -> 2017/18 | I7: ='CDCM Forecast Data'!H11 -> 2018/19 | J7: ='CDCM Forecast Data'!I11 -> 2019/20
A8: Base Demand Before Inflation (A1) | B8: PUt | C8: CRC3 | D8: 305 | E8: 327.9 | F8: 286.9 | G8: 289.6 | H8: 292.4 | I8: 295.4 | J8: 298.4
A9: RPI Effective % (A2) | B9: PIADt | C9: CRC3 | D9: 1.134163303 | E9: 1.167167455 | F9: 1.082 | G9: 1.117 | H9: 1.153 | I9: 1.18759 | J9: 1.2232177
A10: Merger adjustment (A3) | B10: MGt | C10: CRC3
A11: Base Demand Revenue (A): [A = A1 * A2 - A3] | B11: BRt | C11: CRC3 | D11: =D8*D9-D10 -> 345.9198073 | E11: 382.7142084 | F11: 310.4258 | G11: 323.4832 | H11: 337.1372 | I11: 350.814086 | J11: 365.0081617 | K11: A = A1 * A2 - A3
A12: Pass-Through Business Rates (B1) | B12: RBt | C12: CRC4 | D12: -1.206792028 | E12: -1.171094584 | G12: 0 | H12: 0 | I12: 0 | J12: 0
A13: Pass-Through Licence Fees (B2) | B13: LFt | C13: CRC4 | D13: 0.03065689372 | E13: 0.03154900932 | G13: 0 | H13: 0 | I13: 0 | J13: 0
A14: Pass-Through Transmission Exit (B3) | B14: TBt | C14: CRC4 | D14: -0.2852302392 | E14: -0.04315467478 | G14: 0 | H14: 0 | I14: 0 | J14: 0
A15: Price Control Reopener (B4) | B15: UNCt | C15: CRC4 | D15: 0 | E15: 0 | G15: 0 | H15: 0 | I15: 0 | J15: 0
A16: Pass-Through Others (B5) | B16: MPTt, HBt, IEDt | C16: CRC4 | D16: 0 | E16: 0 | G16: 0 | H16: 0 | I16: 0 | J16: 0
A17: Allowed Pass-Through Items (B): [B = B1 + B2 + B3 +B4 + B5] | B17: PTt | C17: CRC3 | D17: =SUM(D12:D16) -> -1.461365374 | E17: -1.182700249 | F17: 0 | G17: 0 | H17: 0 | I17: 0 | J17: 0 | K17: B = B1 + B2 + B3 +B4 + B5
A18: Losses Incentive (C1) | B18: UILt | C18: CRC7 | D18: 0 | E18: 0 | G18: 0 | H18: 0 | I18: 0 | J18: 0
B19: PCOLt | C19: CRC7 | D19: 0 | E19: 0 | G19: 0 | H19: 0 | I19: 0 | J19: 0
B20: -COLt | C20: CRC7 | D20: 0 | E20: 0 | G20: 0 | H20: 0 | I20: 0 | J20: 0
B21: PPLt | C21: CRC7 | D21: 0 | E21: 0 | F21: -9.402303 | G21: -1.905080602 | H21: 0 | I21: 0 | J21: 0
A22: Quality of service incentive adjustment (C2) | B22: IQt | C22: CRC8 | D22: 4.909257116 | E22: 4.821031129 | F22: 7.276859541 | G22: 6.558129241 | H22: 0 | I22: 0 | J22: 0
A23: Transmission connection point charges incentive adjustment (C3) | B23: ITt | C23: CRC9 | D23: -0.5859038443 | E23: -0.6029536462 | F23: 0 | G23: 0 | H23: 0 | I23: 0 | J23: 0
A24: Innovation funding incentive adjustment (C4) | B24: IFIt | C24: CRC10 | D24: 0.103336008 | E24: 0.24 | F24: 1.1475 | G24: 1.617416 | H24: 1.685686 | I24: 1.75407043 | J24: 1.825040808
A25: Incentive revenue for Distributed Generation (C5) | B25: IGt | C25: CRC11 | D25: 2.063674457 | E25: 2.975663821 | F25: 0 | G25: 0 | H25: 0 | I25: 0 | J25: 0
A26: Connection Guaranteed Standards Systems & Processes penalty (C6) | B26: CGSRAt,CGSSPt & AUMt | C26: CRC12 | D26: 0 | E26: 0 | F26: 0 | G26: 0 | H26: 0 | I26: 0 | J26: 0
A27: Low Carbon Networks Fund (C7) | B27: LCN1t | C27: CRC13 | D27: 0.24410563 | E27: 0.52869439 | G27: 0 | H27: 0 | I27: 0 | J27: 0
B28: LCN2t | C28: CRC13 | D28: 2.228 | E28: 1.38661657 | F28: 1.167597431 | G28: 0 | H28: 0 | I28: 0 | J28: 0
B29: LCN3t | C29: CRC13 | D29: 0 | E29: 0 | G29: 0 | H29: 0 | I29: 0 | J29: 0
A30: Incentive Revenue and Other Adjustments (C): [C = C1 + C2 + C3 + C4 + C5 + C6 + C7] | D30: =SUM(D18:D29) -> 8.962469367 | E30: =SUM(E18:E29) -> 9.349052265 | F30: 0.1896539722 | G30: 6.270464639 | H30: 1.685686 | I30: 1.75407043 | J30: 1.825040808 | K30: C = C1 + C2 + C3 + C4 + C5 + C6 + C7
A31: Correction Factor (D) | B31: -Kt | C31: CRC3 | G31: 18.72237409 | H31: 0 | I31: 0 | J31: 0
A32: Tax Trigger Mechanism Adjustment (E) | B32: CTRAt | C32: CRC3 | G32: 0 | H32: 0 | I32: 0 | J32: 0
A33: Total allowed Revenue (F): [F= A + B + C + D + E] | B33: ARt | D33: =D11+D17+D30+D31+D32 -> 353.4209113 | E33: =E11+E17+E30+E31+E32 -> 390.8805604 | F33: 310.615454 | G33: 348.4760387 | H33: 338.822886 | I33: 352.5681564 | J33: 366.8332025 | K33: F= A + B + C + D + E
A34: Other 1. Excluded services - Top-up, standby, and enhanced system security (G1) | B34: ES4 | C34: CRC15 | D34: 1.867678763 | E34: 1.922028215 | G34: 0 | H34: 0 | I34: 0 | J34: 0
A35: Other 2. Excluded services - Revenue protection services (G2) | B35: ES5 | C35: CRC15 | D35: 0 | E35: 0 | G35: 0 | H35: 0 | I35: 0 | J35: 0
A36: Other 3. Excluded services - Miscellaneous (G3) | B36: ES7 | C36: CRC15 | D36: 0 | E36: 0 | G36: 0 | H36: 0 | I36: 0 | J36: 0
A37: Other 4. - blank or if required please provide description (G4) | D37: 0 | E37: 0 | G37: 0 | H37: 0 | I37: 0 | J37: 0
A38: Other 5. - blank or if required please provide description (G5) | D38: 0 | E38: 0 | G38: 0 | H38: 0 | I38: 0 | J38: 0
A39: Total Other Revenue to be recovered by Use of System Charges (G): [G = G1 + G2 + G3 + G4 +G5] | D39: =SUM(D34:D38) -> 1.867678763 | E39: =SUM(E34:E38) -> 1.922028215 | F39: 0 | G39: 0 | H39: 0 | I39: 0 | J39: 0 | K39: G = G1 + G2 + G3 + G4 +G5
A40: Total Revenue for Use of System Charges (H): [H =F + G] | D40: =D39+D33 -> 355.28859 | E40: =E39+E33 -> 392.8025886 | F40: 310.615454 | G40: 348.4760387 | H40: 338.822886 | I40: 352.5681564 | J40: 366.8332025 | K40: H = F + G
A41: 1. Revenue raised outside CDCM - EDCM and interconnector charges (I1) | D41: 4.556681 | E41: 5.177196861 | F41: 5.152027912 | G41: 5.780002654 | H41: 5.619890502 | I41: 5.847876621 | J41: 6.084484005
A42: 2. Revenue raised outside CDCM - Voluntary under-recovery (I2) | D42: 0 | E42: 0 | G42: 0 | H42: 0 | I42: 0 | J42: 0
A43: 3. Revenue raised outside CDCM - blank or if required please provide description (I3) | D43: 0 | E43: -7.084713401 | G43: 7.55265886 | H43: 0 | I43: 0 | J43: 0
A44: 4. Revenue raised outside CDCM - blank or if required please provide description (I4) | D44: 0 | E44: 0
A45: Total Revenue to be raised outside the CDCM (I): [I = I1 + I2 + I3 + I4] | D45: =D41+D42+D43+D44 -> 4.556681 | E45: =E41+E42+E43+E44 -> -1.90751654 | F45: 5.152027912 | G45: 13.33266151 | H45: 5.619890502 | I45: 5.847876621 | J45: 6.084484005 | K45: I = I1 + I2 + I3 + I4
A46: Latest forecast of CDCM Collected Revenue (J): [J = H - I] | D46: =D40-D45 -> 350.731909 | E46: =E40-E45 -> 394.7101052 | F46: 305.4634261 | G46: 335.1433772 | H46: 333.2029955 | I46: 346.7202798 | J46: 360.7487185 | K46: J = H - I
A47: CDCM Revenue Used in Charging Model | D47: 343.5115825 | E47: 358.9068533 | F47: =F46 -> 305.4634261 | G47: =G46 -> 335.1433772 | H47: =H46 -> 333.2029955 | I47: 346.7202798 | J47: 360.7487185
A48: Final Collected Revenue Forecast (K) | D48: 353.5786959 | E48: 354.9642502 | F48: =F40 -> 310.615454 | G48: =G40 -> 348.4760387 | H48: =H40 -> 338.822886 | I48: 352.5681564 | J48: 366.8332025
A49: Forecast Over / (Under) Recovery [being (K - G - F + I2] | D49: =D48-D39-D33+D42 -> -1.709894109 | E49: =E48-E39-E33+E42 -> -37.83833846 | F49: 0 | G49: 0 | H49: 0 | I49: 0 | J49: 0 | K49: being K - G - F + I2
A50: Forecast overall percentage change to Allowed Revenue (L) | D50: =D33/C33-1 ->  | E50: 0.1059916036 | F50: -0.2053443291 | G50: 0.1218889282 | H50: -0.02770105161 | I50: 0.04056771546 | J50: 0.04046039269 | K50: Ft / Ft-1
A51: Overall % change to Use of System Charges effective 1st April of Regulatory Year to balance (M) | D51: =D48/C48-1 ->  | E51: 0.003918658684 | F51: -0.1249387683 | G51: 0.1218889282 | H51: -0.02770105161 | I51: 0.04056771546 | J51: 0.04046039269

Sheet Smoothed Input Details
A1: DNO | B1: =+'CDCM Forecast Data'!E3 -> WPD South West
A2: Charges for (year Y) | B2: =+'CDCM Forecast Data'!E11 -> 2015/16
A4: Year charges are set (year Y-1) | B4: =+'CDCM Forecast Data'!D11 -> 2014/15
A6: Year to which input data relates
A7: Year Y-2 | B7: 2013/14
A8: Year Y - 3 | B8: 2012/13
A9: Year Y - 4 | B9: 2011/12
A11: 1041 - load profile for demand users - coincidence factors
A12: 2012/13 charges are set in 2011/12 using historical dats for the previous three years
B14: Y - 4 | C14: Y - 3 | D14: Y - 2 | E14: Information to be used calculating tariffs in year t
A15: Domestic Unrestricted | B15: 0.9866779271 | C15: 0.8698016847 | D15: 0.8972756757 | E15: =AVERAGE(B15:D15) -> 0.9179184292
A16: Domestic Two Rate | B16: 0.3222861295 | C16: 0.3150406756 | D16: 0.3229617993 | E16: =AVERAGE(B16:D16) -> 0.3200962015
A17: Domestic Off Peak (related MPAN)
A18: Small Non Domestic Unrestricted | B18: 0.5100781583 | C18: 0.6778698103 | D18: 0.6624099834 | E18: =AVERAGE(B18:D18) -> 0.616785984
A19: Small Non Domestic Two Rate | B19: 0.4772505709 | C19: 0.6044432339 | D19: 0.6161036261 | E19: =AVERAGE(B19:D19) -> 0.565932477
A20: Small Non Domestic Off Peak (related MPAN)
A21: LV Medium Non-Domestic | B21: 0.7723440899 | C21: 0.8908131366 | D21: 0.8576926793 | E21: =AVERAGE(B21:D21) -> 0.8402833019
A22: LV Sub Medium Non-Domestic | B22: 0.7693016588 | C22: 0.8580773602 | D22: 0.8219354729 | E22: 0.816438164
A23: HV Medium Non-Domestic | B23: 0.7674418605 | C23: 0.6561808642 | D23: 0.7829041186 | E23: 0.7355089477
A24: LV Network Domestic | B24: 0.882282975 | C24: 0.7826328648 | D24: 0.8070345412 | E24: =AVERAGE(B24:D24) -> 0.8239834604
A25: LV Network Non-Domestic Non-CT | B25: 0.503478235 | C25: 0.6631075384 | D25: 0.6531001794 | E25: 0.6065619843
A26: LV HH Metered | B26: 0.7629600702 | C26: 0.8342609582 | D26: 0.8172081953 | E26: 0.8048097412
A27: LV Sub HH Metered | B27: 0.739554602 | C27: 0.7932458704 | D27: 0.7706309414 | E27: 0.7678104713
A28: HV HH Metered | B28: 0.7836258577 | C28: 0.8199641873 | D28: 0.7912504243 | E28: 0.7982801564
A29: NHH UMS category A | B29: 1 | C29: 1 | D29: 1 | E29: =AVERAGE(B29:D29) -> 1
A30: NHH UMS category B | B30: 1 | C30: 1 | D30: 1 | E30: 1
A31: NHH UMS category C | B31: 1 | C31: 1 | D31: 1 | E31: =AVERAGE(B31:D31) -> 1
A32: NHH UMS category D | B32: 0 | C32: 0 | D32: 0 | E32: 0
A33: LV UMS (Pseudo HH Metered) | B33: 0.9659393142 | C33: 0.9815033843 | D33: 0.9826973387 | E33: 0.9767133458
A37: 1041 - load profile for demand users - load factors
A38: 2012/13 charges are set in 2011/12 using historical data for the previous three years
B41: Y - 4 | C41: Y - 3 | D41: Y - 2 | E41: Information to be used calculating tariffs in year t
A42: Domestic Unrestricted | B42: 0.4116771439 | C42: 0.4071425781 | D42: 0.428175452 | E42: =AVERAGE(B42:D42) -> 0.415665058
A43: Domestic Two Rate | B43: 0.2209511823 | C43: 0.2527510206 | D43: 0.2615848376 | E43: 0.2450956802
A44: Domestic Off Peak (related MPAN) | B44: 0.1121855142 | C44: 0.1492367474 | D44: 0.1491814834 | E44: 0.136867915
A45: Small Non Domestic Unrestricted | B45: 0.3935546422 | C45: 0.3959394949 | D45: 0.3960769909 | E45: 0.395190376
A46: Small Non Domestic Two Rate | B46: 0.40367525 | C46: 0.4397617651 | D46: 0.4556752515 | E46: 0.4330374222
A47: Small Non Domestic Off Peak (related MPAN) | B47: 0.2818194745 | C47: 0.1568365209 | D47: 0.1527196221 | E47: 0.1971252058
A48: LV Medium Non-Domestic | B48: 0.5842397666 | C48: 0.5999569069 | D48: 0.5909536406 | E48: 0.5917167714
A49: LV Sub Medium Non-Domestic | B49: 0.5948702434 | C49: 0.6107756036 | D49: 0.5926675879 | E49: 0.5994378117
A50: HV Medium Non-Domestic | B50: 0.4009471852 | C50: 0.4901655232 | D50: 0.5067394777 | E50: 0.4659507287
A51: LV Network Domestic | B51: 0.3786710035 | C51: 0.3802499561 | D51: 0.3991499406 | E51: =AVERAGE(B51:D51) -> 0.3860236334
A52: LV Network Non-Domestic Non-CT | B52: 0.3927839784 | C52: 0.3986367119 | D52: 0.4017628234 | E52: 0.3977278379
A53: LV HH Metered | B53: 0.580191156 | C53: 0.5889982613 | D53: 0.5887297487 | E53: 0.5859730553
A54: LV Sub HH Metered | B54: 0.6085614001 | C54: 0.6233557223 | D54: 0.6053694158 | E54: 0.6124288461
A55: HV HH Metered | B55: 0.7267134521 | C55: 0.7246664565 | D55: 0.7113127025 | E55: 0.720897537
A56: NHH UMS category A | B56: 1 | C56: 1 | D56: 1 | E56: 1
A57: NHH UMS category B | B57: 0.4743289155 | C57: 0.4721581429 | D57: 0.4721581429 | E57: 0.4728817338
A58: NHH UMS category C | B58: 0.2537152397 | C58: 0.2451982501 | D58: 0.2451982501 | E58: 0.2480372467
A59: NHH UMS category D | B59: 0.5110794406 | C59: 0.5152430348 | D59: 0.5152430348 | E59: 0.5138551701
A60: LV UMS (Pseudo HH Metered) | B60: 0.483243933 | C60: 0.4671202217 | D60: 0.4594852599 | E60: 0.4699498049
A64: 1061 - Average split of rate 1 units by distribution time band
A65: 2012/13 charges are set in 2011/12 using historical data for the previous three years
B68: Y - 4 | E68: Y - 3 | H68: Y - 2 | K68: Information to be used calculating tariffs in year t
B69: Red | C69: Amber | D69: Green | E69: Red | F69: Amber | G69: Green | H69: Red | I69: Amber | J69: Green | K69: Red | L69: Amber | M69: Green
A70: Domestic Unrestricted | B70: 0.08897393061 | C70: 0.4559227484 | D70: 0.4551033209 | E70: 0.08857604342 | F70: 0.4610599153 | G70: 0.4503640413 | H70: 0.08863365853 | I70: 0.4625875793 | J70: 0.4487787622 | K70: =AVERAGE(B70,E70,H70) -> 0.08872787752 | L70: 0.4598567477 | M70: 0.4514153748
A71: Domestic Two Rate | B71: 0.1081713205 | C71: 0.5304042099 | D71: 0.3614244695 | E71: 0.1059880914 | F71: 0.5329520424 | G71: 0.3610598662 | H71: 0.1071993276 | I71: 0.5351490143 | J71: 0.357651658 | K71: =AVERAGE(B71,E71,H71) -> 0.1071195799 | L71: =AVERAGE(C71,F71,I71) -> 0.5328350889 | M71: =AVERAGE(D71,G71,J71) -> 0.3600453312
A72: Domestic Off Peak (related MPAN) | B72: 0.001250703377 | C72: 0.1125816311 | D72: 0.8861676656 | E72: 0.001246686661 | F72: 0.1081918198 | G72: 0.8905614936 | H72: 0.001332792799 | I72: 0.1094447023 | J72: 0.8892225049 | K72: 0.001276727612 | L72: 0.1100727177 | M72: 0.8886505547
A73: Small Non Domestic Unrestricted | B73: 0.06326171563 | C73: 0.5763942195 | D73: 0.3603440649 | E73: 0.0615116913 | F73: 0.570556674 | G73: 0.3679316347 | H73: 0.0623179666 | I73: 0.5709701149 | J73: 0.3667119185 | K73: 0.06236379117 | L73: 0.5726403361 | M73: 0.3649958727
A74: Small Non Domestic Two Rate | B74: 0.08094924744 | C74: 0.6297233695 | D74: 0.2893273831 | E74: 0.07947070657 | F74: 0.6309769722 | G74: 0.2895523212 | H74: 0.07976519861 | I74: 0.6323299679 | J74: 0.2879048335 | K74: 0.08006171754 | L74: 0.6310101032 | M74: 0.2889281793
A75: Small Non Domestic Off Peak (related MPAN) | B75: 0.001563164892 | C75: 0.1098891726 | D75: 0.8885476626 | E75: 0.00180632482 | F75: 0.1130639112 | G75: 0.885129764 | H75: 0.001965234146 | I75: 0.1167461515 | J75: 0.8812886144 | K75: 0.001778241286 | L75: 0.1132330784 | M75: 0.8849886803
A76: LV Medium Non-Domestic | B76: 0.07521768165 | C76: 0.5555050185 | D76: 0.3692772998 | E76: 0.08188191371 | F76: 0.6189704852 | G76: 0.2991476011 | H76: 0.08277642962 | I76: 0.6200783242 | J76: 0.2971452462 | K76: 0.07995867499 | L76: 0.5981846093 | M76: 0.3218567157
A77: LV Sub Medium Non-Domestic | B77: 0.07527175842 | C77: 0.5649594933 | D77: 0.3597687482 | E77: 0.08116682312 | F77: 0.6188882253 | G77: 0.2999449516 | H77: 0.08134820108 | I77: 0.6191741981 | J77: 0.2994776008 | K77: 0.07926226088 | L77: 0.6010073056 | M77: 0.3197304336
A78: HV Medium Non-Domestic | B78: 0.07046036564 | C78: 0.5331327418 | D78: 0.3964068926 | E78: 0.08333142666 | F78: 0.6288993324 | G78: 0.287769241 | H78: 0.0835954849 | I78: 0.6347030151 | J78: 0.2817015 | K78: 0.0791290924 | L78: 0.5989116964 | M78: 0.3219592112
A82: 1062 - Average split of rate 2 units by distribution time band
A83: 2012/13 charges are set in 2011/12 using historical data for the previous three years
B86: Y - 4 | E86: Y - 3 | H86: Y - 2 | K86: Information to be used calculating tariffs in year t
B87: Red | C87: Amber | D87: Green | E87: Red | F87: Amber | G87: Green | H87: Red | I87: Amber | J87: Green | K87: Red | L87: Amber | M87: Green
A88: Domestic Two Rate | B88: 0 | C88: 0.02648771889 | D88: 0.9735122811 | E88: 0 | F88: 0.0194332213 | G88: 0.9805667787 | H88: 0 | I88: 0.02065001315 | J88: 0.9793499869 | K88: =AVERAGE(B88,E88,H88) -> 0 | L88: 0.02219031778 | M88: 0.9778096822
A89: Small Non Domestic Two Rate | B89: 0 | C89: 0.02006341002 | D89: 0.97993659 | E89: 0 | F89: 0.02284986261 | G89: 0.9771501374 | H89: 0 | I89: 0.02499632017 | J89: 0.9750036798 | K89: 0 | L89: 0.02263653093 | M89: 0.9773634691
A90: LV Medium Non-Domestic | B90: 0 | C90: 0.001870523295 | D90: 0.9981294767 | E90: 0 | F90: 0 | G90: 1 | H90: 0 | I90: 0 | J90: 1 | K90: 0 | L90: 0.000623507765 | M90: 0.9993764922
A91: LV Sub Medium Non-Domestic | B91: 0 | C91: 0.002560730624 | D91: 0.9974392694 | E91: 0 | F91: 0 | G91: 1 | H91: 0 | I91: 0 | J91: 1 | K91: 0 | L91: 0.0008535768747 | M91: 0.9991464231
A92: HV Medium Non-Domestic | B92: 0 | C92: 0 | D92: 1 | E92: 0 | F92: 0 | G92: 1 | H92: 0 | I92: 0 | J92: 1 | K92: 0 | L92: 0 | M92: 1
A96: 1064. Average split of rate 1 units by special distribution time band
B100: Y - 4 | E100: Y - 3 | H100: Y - 2 | K100: Information to be used calculating tariffs in year t
B101: Black | C101: Yellow | D101: Green | E101: Black | F101: Yellow | G101: Green | H101: Black | I101: Yellow | J101: Green | K101: Black | L101: Yellow | M101: Green
A102: NHH UMS category A | B102: 0.01757990868 | C102: 0.4351598174 | D102: 0.547260274 | E102: 0.01780821918 | F102: 0.4336757991 | G102: 0.5485159817 | H102: 0.01757990868 | I102: 0.4351598174 | J102: 0.547260274 | K102: =AVERAGE(B102,E102,H102) -> 0.01765601218 | L102: =AVERAGE(C102,F102,I102) -> 0.4346651446 | M102: =AVERAGE(D102,G102,J102) -> 0.5476788432
A103: NHH UMS category B | B103: 0.03353436773 | C103: 0.1485480946 | D103: 0.8179175377 | E103: 0.03408780868 | F103: 0.1465834739 | G103: 0.8193287174 | H103: 0.0335340487 | I103: 0.1475096796 | J103: 0.8189562717 | K103: 0.0337187417 | L103: 0.1475470827 | M103: 0.8187341756
A104: NHH UMS category C | B104: 0.06452154903 | C104: 0.3026242998 | D104: 0.6328541512 | E104: 0.06197268151 | F104: 0.2522776083 | G104: 0.6857497101 | H104: 0.06091188926 | I104: 0.2540291814 | J104: 0.6850589294 | K104: 0.0624687066 | L104: 0.2696436965 | M104: 0.6678875969
A105: NHH UMS category D | B105: 0.005519861953 | C105: 0.6787847111 | D105: 0.3156954269 | E105: 0.002479401723 | F105: 0.6971741514 | G105: 0.3003464468 | H105: 0.002531353004 | I105: 0.6992210842 | J105: 0.2982475628 | K105: 0.00351020556 | L105: 0.6917266489 | M105: 0.3047631455
A109: 1069 - Peaking probabilities by network level
A110: 2012/13 charges are set in 2011/12 using historical data for the previous three years
B113: Y - 4 | E113: Y - 3 | H113: Y - 2 | K113: Information to be used calculating tariffs in year t
B114: Red | C114: Amber | D114: Green | E114: Red | F114: Amber | G114: Green | H114: Red | I114: Amber | J114: Green | K114: Red | L114: Amber | M114: Green
A115: GSPs | B115: 1 | C115: 0 | D115: 0 | E115: 0.9655846469 | F115: 0.03441535314 | G115: 0 | H115: 1 | I115: 0 | J115: 0 | K115: =AVERAGE(B115,E115,H115) -> 0.9885282156 | L115: =AVERAGE(C115,F115,I115) -> 0.01147178438 | M115: =AVERAGE(D115,G115,J115) -> 0
A116: 132kV | B116: 0.8723201681 | C116: 0.03678289797 | D116: 0.09089693394 | E116: 0.8872494868 | F116: 0.0306975002 | G116: 0.08205301301 | H116: 0.7919005955 | I116: 0.1099343787 | J116: 0.09816502574 | K116: 0.8504900835 | L116: 0.05913825897 | M116: 0.09037165756
A117: 132kV/EHV | B117: 0.8723201681 | C117: 0.03678289797 | D117: 0.09089693394 | E117: 0.8872494868 | F117: 0.0306975002 | G117: 0.08205301301 | H117: 0.7919005955 | I117: 0.1099343787 | J117: 0.09816502574 | K117: 0.8504900835 | L117: 0.05913825897 | M117: 0.09037165756
A118: EHV | B118: 0.5490938884 | C118: 0.3029021496 | D118: 0.148003962 | E118: 0.5370585545 | F118: 0.3590673225 | G118: 0.1038741229 | H118: 0.522700535 | I118: 0.3665754208 | J118: 0.1107240442 | K118: 0.5362843259 | L118: 0.3428482977 | M118: 0.1208673764
A119: EHV/HV | B119: 0.5490938884 | C119: 0.3029021496 | D119: 0.148003962 | E119: 0.5370585545 | F119: 0.3590673225 | G119: 0.1038741229 | H119: 0.522700535 | I119: 0.3665754208 | J119: 0.1107240442 | K119: 0.5362843259 | L119: 0.3428482977 | M119: 0.1208673764
A120: 132kV/HV | B120: 0.8723201681 | C120: 0.03678289797 | D120: 0.09089693394 | E120: 0.8872494868 | F120: 0.0306975002 | G120: 0.08205301301 | H120: 0.7919005955 | I120: 0.1099343787 | J120: 0.09816502574 | K120: 0.8504900835 | L120: 0.05913825897 | M120: 0.09037165756
A121: HV | B121: 0.5490938884 | C121: 0.3029021496 | D121: 0.148003962 | E121: 0.5370585545 | F121: 0.3590673225 | G121: 0.1038741229 | H121: 0.522700535 | I121: 0.3665754208 | J121: 0.1107240442 | K121: 0.5362843259 | L121: 0.3428482977 | M121: 0.1208673764
A122: HV/LV | B122: 0.5490938884 | C122: 0.3029021496 | D122: 0.148003962 | E122: 0.5370585545 | F122: 0.3590673225 | G122: 0.1038741229 | H122: 0.522700535 | I122: 0.3665754208 | J122: 0.1107240442 | K122: 0.5362843259 | L122: 0.3428482977 | M122: 0.1208673764
A123: LV circuits | B123: 0.5490938884 | C123: 0.3029021496 | D123: 0.148003962 | E123: 0.5370585545 | F123: 0.3590673225 | G123: 0.1038741229 | H123: 0.522700535 | I123: 0.3665754208 | J123: 0.1107240442 | K123: 0.5362843259 | L123: 0.3428482977 | M123: 0.1208673764

Sheet Mat of App
B3: 1025. Matrix of applicability of LV service models to tariffs with fixed charges
C5: ='CDCM Forecast Data'!$E$11 -> 2015/16 | K5: ='CDCM Forecast Data'!$F$11 -> 2016/17 | S5: ='CDCM Forecast Data'!$G$11 -> 2017/18 | AA5: ='CDCM Forecast Data'!$H$11 -> 2018/19 | AI5: ='CDCM Forecast Data'!$I$11 -> 2019/20
C6: LV service model 1 | D6: LV service model 2 | E6: LV service model 3 | F6: LV service model 4 | G6: LV service model 5 | H6: LV service model 6 | I6: LV service model 7 | J6: LV service model 8 | K6: LV service model 1 | L6: LV service model 2 | M6: LV service model 3 | N6: LV service model 4 | O6: LV service model 5 | P6: LV service model 6 | Q6: LV service model 7 | R6: LV service model 8 | S6: LV service model 1 | T6: LV service model 2 | U6: LV service model 3 | V6: LV service model 4 | W6: LV service model 5 | X6: LV service model 6 | Y6: LV service model 7 | Z6: LV service model 8 | AA6: LV service model 1 | AB6: LV service model 2 | AC6: LV service model 3 | AD6: LV service model 4 | AE6: LV service model 5 | AF6: LV service model 6 | AG6: LV service model 7 | AH6: LV service model 8 | AI6: LV service model 1 | AJ6: LV service model 2 | AK6: LV service model 3 | AL6: LV service model 4 | AM6: LV service model 5 | AN6: LV service model 6 | AO6: LV service model 7 | AP6: LV service model 8
B7: Domestic Unrestricted | C7: 0.05 | D7: 0 | E7: 0 | F7: 0 | K7: =C7 -> 0.05 | L7: =D7 -> 0 | M7: =E7 -> 0 | N7: =F7 -> 0 | O7: =G7 -> 0 | P7: =H7 -> 0 | Q7: =I7 -> 0 | R7: =J7 -> 0 | S7: =K7 -> 0.05 | T7: =L7 -> 0 | U7: =M7 -> 0 | V7: =N7 -> 0 | W7: =O7 -> 0 | X7: =P7 -> 0 | Y7: =Q7 -> 0 | Z7: =R7 -> 0 | AA7: =S7 -> 0.05 | AB7: =T7 -> 0 | AC7: =U7 -> 0 | AD7: =V7 -> 0 | AE7: =W7 -> 0 | AF7: =X7 -> 0 | AG7: =Y7 -> 0 | AH7: =Z7 -> 0 | AI7: =AA7 -> 0.05 | AJ7: =AB7 -> 0 | AK7: =AC7 -> 0 | AL7: =AD7 -> 0 | AM7: =AE7 -> 0 | AN7: =AF7 -> 0 | AO7: =AG7 -> 0 | AP7: =AH7 -> 0
B8: Domestic Two Rate | C8: 0.05 | D8: 0 | E8: 0 | F8: 0 | K8: 0.05 | L8: 0 | M8: 0 | N8: 0 | O8: 0 | P8: 0 | Q8: 0 | R8: 0 | S8: 0.05 | T8: 0 | U8: 0 | V8: 0 | W8: 0 | X8: 0 | Y8: 0 | Z8: 0 | AA8: 0.05 | AB8: 0 | AC8: 0 | AD8: 0 | AE8: 0 | AF8: 0 | AG8: 0 | AH8: 0 | AI8: 0.05 | AJ8: 0 | AK8: 0 | AL8: 0 | AM8: 0 | AN8: 0 | AO8: 0 | AP8: 0
B9: Small Non Domestic Unrestricted | C9: 0 | D9: 1 | E9: 0 | F9: 0 | K9: 0 | L9: 1 | M9: 0 | N9: 0 | O9: 0 | P9: 0 | Q9: 0 | R9: 0 | S9: 0 | T9: 1 | U9: 0 | V9: 0 | W9: 0 | X9: 0 | Y9: 0 | Z9: 0 | AA9: 0 | AB9: 1 | AC9: 0 | AD9: 0 | AE9: 0 | AF9: 0 | AG9: 0 | AH9: 0 | AI9: 0 | AJ9: 1 | AK9: 0 | AL9: 0 | AM9: 0 | AN9: 0 | AO9: 0 | AP9: 0
B10: Small Non Domestic Two Rate | C10: 0 | D10: 1 | E10: 0 | F10: 0 | K10: 0 | L10: 1 | M10: 0 | N10: 0 | O10: 0 | P10: 0 | Q10: 0 | R10: 0 | S10: 0 | T10: 1 | U10: 0 | V10: 0 | W10: 0 | X10: 0 | Y10: 0 | Z10: 0 | AA10: 0 | AB10: 1 | AC10: 0 | AD10: 0 | AE10: 0 | AF10: 0 | AG10: 0 | AH10: 0 | AI10: 0 | AJ10: 1 | AK10: 0 | AL10: 0 | AM10: 0 | AN10: 0 | AO10: 0 | AP10: 0
B11: LV Medium Non-Domestic | C11: 0 | D11: 0 | E11: 1 | F11: 0 | K11: =C11 -> 0 | L11: =D11 -> 0 | M11: =E11 -> 1 | N11: =F11 -> 0 | O11: =G11 -> 0 | P11: =H11 -> 0 | Q11: =I11 -> 0 | R11: =J11 -> 0 | S11: =K11 -> 0 | T11: =L11 -> 0 | U11: =M11 -> 1 | V11: =N11 -> 0 | W11: =O11 -> 0 | X11: =P11 -> 0 | Y11: =Q11 -> 0 | Z11: =R11 -> 0 | AA11: =S11 -> 0 | AB11: =T11 -> 0 | AC11: =U11 -> 1 | AD11: =V11 -> 0 | AE11: =W11 -> 0 | AF11: =X11 -> 0 | AG11: =Y11 -> 0 | AH11: =Z11 -> 0 | AI11: =AA11 -> 0 | AJ11: =AB11 -> 0 | AK11: =AC11 -> 1 | AL11: =AD11 -> 0 | AM11: =AE11 -> 0 | AN11: =AF11 -> 0 | AO11: =AG11 -> 0 | AP11: =AH11 -> 0
B12: LV Sub Medium Non-Domestic | C12: 0 | D12: 0 | E12: 0 | F12: 1 | K12: 0 | L12: 0 | M12: 0 | N12: 1 | O12: 0 | P12: 0 | Q12: 0 | R12: 0 | S12: 0 | T12: 0 | U12: 0 | V12: 1 | W12: 0 | X12: 0 | Y12: 0 | Z12: 0 | AA12: 0 | AB12: 0 | AC12: 0 | AD12: 1 | AE12: 0 | AF12: 0 | AG12: 0 | AH12: 0 | AI12: 0 | AJ12: 0 | AK12: 0 | AL12: 1 | AM12: 0 | AN12: 0 | AO12: 0 | AP12: 0
B13: LV Network Domestic | C13: 0.05 | K13: 0.05 | L13: 0 | M13: 0 | N13: 0 | O13: 0 | P13: 0 | Q13: 0 | R13: 0 | S13: 0.05 | T13: 0 | U13: 0 | V13: 0 | W13: 0 | X13: 0 | Y13: 0 | Z13: 0 | AA13: 0.05 | AB13: 0 | AC13: 0 | AD13: 0 | AE13: 0 | AF13: 0 | AG13: 0 | AH13: 0 | AI13: 0.05 | AJ13: 0 | AK13: 0 | AL13: 0 | AM13: 0 | AN13: 0 | AO13: 0 | AP13: 0
B14: LV Network Non-Domestic Non-CT | D14: 1 | K14: 0 | L14: 1 | M14: 0 | N14: 0 | O14: 0 | P14: 0 | Q14: 0 | R14: 0 | S14: 0 | T14: 1 | U14: 0 | V14: 0 | W14: 0 | X14: 0 | Y14: 0 | Z14: 0 | AA14: 0 | AB14: 1 | AC14: 0 | AD14: 0 | AE14: 0 | AF14: 0 | AG14: 0 | AH14: 0 | AI14: 0 | AJ14: 1 | AK14: 0 | AL14: 0 | AM14: 0 | AN14: 0 | AO14: 0 | AP14: 0
B15: LV HH Metered | C15: 0 | D15: 0 | E15: 0 | F15: 0 | G15: 1 | H15: 0 | I15: 0 | J15: 0 | K15: 0 | L15: 0 | M15: 0 | N15: 0 | O15: 1 | P15: 0 | Q15: 0 | R15: 0 | S15: 0 | T15: 0 | U15: 0 | V15: 0 | W15: 1 | X15: 0 | Y15: 0 | Z15: 0 | AA15: 0 | AB15: 0 | AC15: 0 | AD15: 0 | AE15: 1 | AF15: 0 | AG15: 0 | AH15: 0 | AI15: 0 | AJ15: 0 | AK15: 0 | AL15: 0 | AM15: 1 | AN15: 0 | AO15: 0 | AP15: 0
B16: LV Sub HH Metered | C16: 0 | D16: 0 | E16: 0 | F16: 0 | G16: 0 | H16: 1 | I16: 0 | J16: 0 | K16: 0 | L16: 0 | M16: 0 | N16: 0 | O16: 0 | P16: 1 | Q16: 0 | R16: 0 | S16: 0 | T16: 0 | U16: 0 | V16: 0 | W16: 0 | X16: 1 | Y16: 0 | Z16: 0 | AA16: 0 | AB16: 0 | AC16: 0 | AD16: 0 | AE16: 0 | AF16: 1 | AG16: 0 | AH16: 0 | AI16: 0 | AJ16: 0 | AK16: 0 | AL16: 0 | AM16: 0 | AN16: 1 | AO16: 0 | AP16: 0
B17: LV Generation NHH or Aggregate HH | C17: 0 | D17: 0 | E17: 0 | F17: 0 | G17: 0 | H17: 0 | I17: 1 | J17: 0 | K17: 0 | L17: 0 | M17: 0 | N17: 0 | O17: 0 | P17: 0 | Q17: 1 | R17: 0 | S17: 0 | T17: 0 | U17: 0 | V17: 0 | W17: 0 | X17: 0 | Y17: 1 | Z17: 0 | AA17: 0 | AB17: 0 | AC17: 0 | AD17: 0 | AE17: 0 | AF17: 0 | AG17: 1 | AH17: 0 | AI17: 0 | AJ17: 0 | AK17: 0 | AL17: 0 | AM17: 0 | AN17: 0 | AO17: 1 | AP17: 0
B18: LV Sub Generation NHH | C18: 0 | D18: 0 | E18: 0 | F18: 0 | G18: 0 | H18: 0 | I18: 1 | J18: 0 | K18: 0 | L18: 0 | M18: 0 | N18: 0 | O18: 0 | P18: 0 | Q18: 1 | R18: 0 | S18: 0 | T18: 0 | U18: 0 | V18: 0 | W18: 0 | X18: 0 | Y18: 1 | Z18: 0 | AA18: 0 | AB18: 0 | AC18: 0 | AD18: 0 | AE18: 0 | AF18: 0 | AG18: 1 | AH18: 0 | AI18: 0 | AJ18: 0 | AK18: 0 | AL18: 0 | AM18: 0 | AN18: 0 | AO18: 1 | AP18: 0
B19: LV Generation Intermittent | C19: 0 | D19: 0 | E19: 0 | F19: 0 | G19: 0 | H19: 0 | I19: 1 | J19: 0 | K19: 0 | L19: 0 | M19: 0 | N19: 0 | O19: 0 | P19: 0 | Q19: 1 | R19: 0 | S19: 0 | T19: 0 | U19: 0 | V19: 0 | W19: 0 | X19: 0 | Y19: 1 | Z19: 0 | AA19: 0 | AB19: 0 | AC19: 0 | AD19: 0 | AE19: 0 | AF19: 0 | AG19: 1 | AH19: 0 | AI19: 0 | AJ19: 0 | AK19: 0 | AL19: 0 | AM19: 0 | AN19: 0 | AO19: 1 | AP19: 0
B20: LV Generation Non-Intermittent | C20: 0 | D20: 0 | E20: 0 | F20: 0 | G20: 0 | H20: 0 | I20: 0 | J20: 0 | K20: 0 | L20: 0 | M20: 0 | N20: 0 | O20: 0 | P20: 0 | Q20: 0 | R20: 0 | S20: 0 | T20: 0 | U20: 0 | V20: 0 | W20: 0 | X20: 0 | Y20: 0 | Z20: 0 | AA20: 0 | AB20: 0 | AC20: 0 | AD20: 0 | AE20: 0 | AF20: 0 | AG20: 0 | AH20: 0 | AI20: 0 | AJ20: 0 | AK20: 0 | AL20: 0 | AM20: 0 | AN20: 0 | AO20: 0 | AP20: 0
B21: LV Sub Generation Intermittent | C21: 0 | D21: 0 | E21: 0 | F21: 0 | G21: 0 | H21: 0 | I21: 0 | J21: 0 | K21: 0 | L21: 0 | M21: 0 | N21: 0 | O21: 0 | P21: 0 | Q21: 0 | R21: 0 | S21: 0 | T21: 0 | U21: 0 | V21: 0 | W21: 0 | X21: 0 | Y21: 0 | Z21: 0 | AA21: 0 | AB21: 0 | AC21: 0 | AD21: 0 | AE21: 0 | AF21: 0 | AG21: 0 | AH21: 0 | AI21: 0 | AJ21: 0 | AK21: 0 | AL21: 0 | AM21: 0 | AN21: 0 | AO21: 0 | AP21: 0
B22: LV Sub Generation Non-Intermittent | C22: 0 | D22: 0 | E22: 0 | F22: 0 | G22: 0 | H22: 0 | I22: 0 | J22: 0 | K22: 0 | L22: 0 | M22: 0 | N22: 0 | O22: 0 | P22: 0 | Q22: 0 | R22: 0 | S22: 0 | T22: 0 | U22: 0 | V22: 0 | W22: 0 | X22: 0 | Y22: 0 | Z22: 0 | AA22: 0 | AB22: 0 | AC22: 0 | AD22: 0 | AE22: 0 | AF22: 0 | AG22: 0 | AH22: 0 | AI22: 0 | AJ22: 0 | AK22: 0 | AL22: 0 | AM22: 0 | AN22: 0 | AO22: 0 | AP22: 0
B24: 1026. Matrix of applicability of LV service models to unmetered tariffs
B26: Source: service models
B27: Proportion of service model involved in connecting load of 1 MWh/year | C27: ='CDCM Forecast Data'!$E$11 -> 2015/16 | K27: ='CDCM Forecast Data'!$F$11 -> 2016/17 | S27: ='CDCM Forecast Data'!$G$11 -> 2017/18 | AA27: ='CDCM Forecast Data'!$H$11 -> 2018/19 | AI27: ='CDCM Forecast Data'!$I$11 -> 2019/20
C28: LV service model 1 | D28: LV service model 2 | E28: LV service model 3 | F28: LV service model 4 | G28: LV service model 5 | H28: LV service model 6 | I28: LV service model 7 | J28: LV service model 8 | K28: LV service model 1 | L28: LV service model 2 | M28: LV service model 3 | N28: LV service model 4 | O28: LV service model 5 | P28: LV service model 6 | Q28: LV service model 7 | R28: LV service model 8 | S28: LV service model 1 | T28: LV service model 2 | U28: LV service model 3 | V28: LV service model 4 | W28: LV service model 5 | X28: LV service model 6 | Y28: LV service model 7 | Z28: LV service model 8 | AA28: LV service model 1 | AB28: LV service model 2 | AC28: LV service model 3 | AD28: LV service model 4 | AE28: LV service model 5 | AF28: LV service model 6 | AG28: LV service model 7 | AH28: LV service model 8 | AI28: LV service model 1 | AJ28: LV service model 2 | AK28: LV service model 3 | AL28: LV service model 4 | AM28: LV service model 5 | AN28: LV service model 6 | AO28: LV service model 7 | AP28: LV service model 8
B29: All LV unmetered tariffs | J29: 0.4876 | K29: =C29 -> 0 | L29: 0 | M29: 0 | N29: 0 | O29: 0 | P29: 0 | Q29: 0 | R29: 0.4876 | S29: =K29 -> 0 | T29: =L29 -> 0 | U29: =M29 -> 0 | V29: =N29 -> 0 | W29: =O29 -> 0 | X29: =P29 -> 0 | Y29: =Q29 -> 0 | Z29: =R29 -> 0.4876 | AA29: =S29 -> 0 | AB29: =T29 -> 0 | AC29: =U29 -> 0 | AD29: =V29 -> 0 | AE29: =W29 -> 0 | AF29: =X29 -> 0 | AG29: =Y29 -> 0 | AH29: =Z29 -> 0.4876 | AI29: =AA29 -> 0 | AJ29: =AB29 -> 0 | AK29: =AC29 -> 0 | AL29: =AD29 -> 0 | AM29: =AE29 -> 0 | AN29: =AF29 -> 0 | AO29: =AG29 -> 0 | AP29: =AH29 -> 0.4876
B31: 1028. Matrix of applicability of HV service models to tariffs with fixed charges
C32: ='CDCM Forecast Data'!$E$11 -> 2015/16 | H32: =+'CDCM Forecast Data'!F11 -> 2016/17 | M32: =+'CDCM Forecast Data'!G11 -> 2017/18 | R32: =+'CDCM Forecast Data'!H11 -> 2018/19 | W32: =+'CDCM Forecast Data'!I11 -> 2019/20
C33: HV service model 1 | D33: HV service model 2 | E33: HV service model 3 | F33: HV service model 4 | G33: HV service model 5 | H33: HV service model 1 | I33: HV service model 2 | J33: HV service model 3 | K33: HV service model 4 | L33: HV service model 5 | M33: HV service model 1 | N33: HV service model 2 | O33: HV service model 3 | P33: HV service model 4 | Q33: HV service model 5 | R33: HV service model 1 | S33: HV service model 2 | T33: HV service model 3 | U33: HV service model 4 | V33: HV service model 5 | W33: HV service model 1 | X33: HV service model 2 | Y33: HV service model 3 | Z33: HV service model 4 | AA33: HV service model 5
B34: HV Medium Non-Domestic | C34: 1 | H34: =C34 -> 1 | I34: =D34 -> 0 | J34: =E34 -> 0 | K34: =F34 -> 0 | L34: =G34 -> 0 | M34: =H34 -> 1 | N34: =I34 -> 0 | O34: =J34 -> 0 | P34: =K34 -> 0 | Q34: =L34 -> 0 | R34: =M34 -> 1 | S34: =N34 -> 0 | T34: =O34 -> 0 | U34: =P34 -> 0 | V34: =Q34 -> 0 | W34: =R34 -> 1 | X34: =S34 -> 0 | Y34: =T34 -> 0 | Z34: =U34 -> 0 | AA34: =V34 -> 0
B35: HV HH Metered | C35: 1 | H35: 1 | I35: 0 | J35: 0 | K35: 0 | L35: 0 | M35: 1 | N35: 0 | O35: 0 | P35: 0 | Q35: 0 | R35: 1 | S35: 0 | T35: 0 | U35: 0 | V35: 0 | W35: 1 | X35: 0 | Y35: 0 | Z35: 0 | AA35: 0
B36: HV Generation Intermittent | D36: 1 | H36: 0 | I36: 1 | J36: 0 | K36: 0 | L36: 0 | M36: 0 | N36: 1 | O36: 0 | P36: 0 | Q36: 0 | R36: 0 | S36: 1 | T36: 0 | U36: 0 | V36: 0 | W36: 0 | X36: 1 | Y36: 0 | Z36: 0 | AA36: 0
B37: HV Generation Non-Intermittent | D37: 1 | H37: 0 | I37: 1 | J37: 0 | K37: 0 | L37: 0 | M37: 0 | N37: 1 | O37: 0 | P37: 0 | Q37: 0 | R37: 0 | S37: 1 | T37: 0 | U37: 0 | V37: 0 | W37: 0 | X37: 1 | Y37: 0 | Z37: 0 | AA37: 0

Sheet CDCM Volume Forecasts
G3: Growth Rates (%)
G4: VOLUME - RED BAND | L4: VOLUME - AMBER BAND | P4: VOLUME - GREEN BAND | T4: CUSTOMER NUMBERS | X4: IMPORT CAPACITY | AB4: REACTIVE POWER
G5: Y | H5: Y + 1 | I5: Y + 2 | J5: Y + 3 | K5: Y + 4 | L5: Y + 1 | M5: Y + 2 | N5: Y + 3 | O5: Y + 4 | P5: Y + 1 | Q5: Y + 2 | R5: Y + 3 | S5: Y + 4 | T5: Y + 1 | U5: Y + 2 | V5: Y + 3 | W5: Y + 4 | X5: Y + 1 | Y5: Y + 2 | Z5: Y + 3 | AA5: Y + 4 | AB5: Y + 1 | AC5: Y + 2 | AD5: Y + 3 | AE5: Y + 4
E6: Customer Category | F6: Description | G6: =+'CDCM Forecast Data'!E11 -> 2015/16 | H6: =+'CDCM Forecast Data'!F11 -> 2016/17 | I6: =+'CDCM Forecast Data'!G11 -> 2017/18 | J6: =+'CDCM Forecast Data'!H11 -> 2018/19 | K6: =+'CDCM Forecast Data'!I11 -> 2019/20 | L6: =+H6 -> 2016/17 | M6: 2017/18 | N6: 2018/19 | O6: 2019/20 | P6: 2016/17 | Q6: 2017/18 | R6: 2018/19 | S6: 2019/20 | T6: 2016/17 | U6: 2017/18 | V6: 2018/19 | W6: 2019/20 | X6: 2016/17 | Y6: 2017/18 | Z6: 2018/19 | AA6: 2019/20 | AB6: 2016/17 | AC6: 2017/18 | AD6: 2018/19 | AE6: 2019/20 | AF6: Assumptions
E7: 1 | F7: Aggregated demand
E8: 2 | F8: Site-specific demand
E9: 3 | F9: Not used
E10: 4 | F10: Generation
E11: 5 | F11: Not used
E12: 6 | F12: Not used
E13: 7 | F13: Not used
E14: 8 | F14: Not used
E15: 9 | F15: Not used
E16: 10 | F16: Not used
E18: Summary Data | F18: Year | G18: =G6 -> 2015/16 | H18: =H6 -> 2016/17 | I18: =I6 -> 2017/18 | J18: =J6 -> 2018/19 | K18: =K6 -> 2019/20
F19: Total Volume | G19: =SUM(D28:F123) -> 13541332.8 | H19: =SUM(J28:L123) -> 13541332.8 | I19: =SUM(P28:R123) -> 13541332.8 | J19: =SUM(V28:X123) -> 13541332.8 | K19: =SUM(AB28:AD123) -> 13541332.8
F20: No. of MPANs | G20: =SUM(G28:G123) -> 1585770 | H20: =SUM(M28:M123) -> 1585770 | I20: =SUM(S28:S123) -> 1585770 | J20: =SUM(Y28:Y123) -> 1585770 | K20: =SUM(AE28:AE123) -> 1585770
F21: Total Import Capacity | G21: =SUM(H28:H123) -> 1715000 | H21: =SUM(N28:N123) -> 1715000 | I21: =SUM(T28:T123) -> 1715000 | J21: =SUM(Z28:Z123) -> 1715000 | K21: =SUM(AF28:AF123) -> 1715000
F22: Total Reactive | G22: =SUM(I28:I123) -> 359615.508 | H22: =SUM(O28:O123) -> 359615.508 | I22: =SUM(U28:U123) -> 359615.508 | J22: =SUM(AA28:AA123) -> 359615.508 | K22: =SUM(AG28:AG123) -> 359615.508
C25: 1053. Volume forecasts for the charging year: | D25: =G6& " - ("&G5&")" -> 2015/16 - (Y) | J25: =H6& " - ("&H5&")" -> 2016/17 - (Y + 1) | P25: =I6& " - ("&I5&")" -> 2017/18 - (Y + 2) | V25: =J6& " - ("&J5&")" -> 2018/19 - (Y + 3) | AB25: =K6& " - ("&K5&")" -> 2019/20 - (Y + 4)
B26: Customer Category | C26: Tariff | D26: Rate 1 units (MWh) | E26: Rate 2 units (MWh) | F26: Rate 3 units (MWh) | G26: MPANs | H26: Import capacity (kVA) | I26: Reactive power units (MVArh) | J26: Rate 1 units (MWh) | K26: Rate 2 units (MWh) | L26: Rate 3 units (MWh) | M26: MPANs | N26: Import capacity (kVA) | O26: Reactive power units (MVArh) | P26: Rate 1 units (MWh) | Q26: Rate 2 units (MWh) | R26: Rate 3 units (MWh) | S26: MPANs | T26: Import capacity (kVA) | U26: Reactive power units (MVArh) | V26: Rate 1 units (MWh) | W26: Rate 2 units (MWh) | X26: Rate 3 units (MWh) | Y26: MPANs | Z26: Import capacity (kVA) | AA26: Reactive power units (MVArh) | AB26: Rate 1 units (MWh) | AC26: Rate 2 units (MWh) | AD26: Rate 3 units (MWh) | AE26: MPANs | AF26: Import capacity (kVA) | AG26: Reactive power units (MVArh)
A27: 1 | C27: > Domestic Unrestricted
A28: =A27+1 -> 2 | B28: 1 | C28: Domestic Unrestricted | D28: 4290939.517 | G28: 1195490 | J28: =IF(D28,((VLOOKUP($B28,$E$7:$AE$16,4)+1)*D28),) -> 4290939.517 | K28: =IF(E28,((VLOOKUP($B28,$E$7:$AE$16,8)+1)*E28),) -> 0 | L28: =IF(F28,((VLOOKUP($B28,$E$7:$AE$16,12)+1)*F28),) -> 0 | M28: =IF(G28,((VLOOKUP($B28,$E$7:$AE$16,16)+1)*G28),) -> 1195490 | N28: =IF(H28,((VLOOKUP($B28,$E$7:$AE$16,20)+1)*H28),) -> 0 | O28: =IF(I28,((VLOOKUP($B28,$E$7:$AE$16,24)+1)*I28),) -> 0 | P28: =IF(D28,((VLOOKUP($B28,$E$7:$AE$16,5)+1)*J28),) -> 4290939.517 | Q28: =IF(E28,((VLOOKUP($B28,$E$7:$AE$16,5+4)+1)*K28),) -> 0 | R28: =IF(F28,((VLOOKUP($B28,$E$7:$AE$16,5+8)+1)*L28),) -> 0 | S28: =IF(G28,((VLOOKUP($B28,$E$7:$AE$16,5+12)+1)*M28),) -> 1195490 | T28: =IF(H28,((VLOOKUP($B28,$E$7:$AE$16,5+16)+1)*N28),) -> 0 | U28: =IF(I28,((VLOOKUP($B28,$E$7:$AE$16,5+20)+1)*O28),) -> 0 | V28: =IF(D28,((VLOOKUP($B28,$E$7:$AE$16,6)+1)*P28),) -> 4290939.517 | W28: =IF(E28,((VLOOKUP($B28,$E$7:$AE$16,6+4)+1)*Q28),) -> 0 | X28: =IF(F28,((VLOOKUP($B28,$E$7:$AE$16,6+8)+1)*R28),) -> 0 | Y28: =IF(G28,((VLOOKUP($B28,$E$7:$AE$16,6+12)+1)*S28),) -> 1195490 | Z28: =IF(H28,((VLOOKUP($B28,$E$7:$AE$16,6+16)+1)*T28),) -> 0 | AA28: =IF(I28,((VLOOKUP($B28,$E$7:$AE$16,6+20)+1)*U28),) -> 0 | AB28: =IF(D28,((VLOOKUP($B28,$E$7:$AE$16,7)+1)*V28),) -> 4290939.517 | AC28: =IF(E28,((VLOOKUP($B28,$E$7:$AE$16,7+4)+1)*W28),) -> 0 | AD28: =IF(F28,((VLOOKUP($B28,$E$7:$AE$16,7+8)+1)*X28),) -> 0 | AE28: =IF(G28,((VLOOKUP($B28,$E$7:$AE$16,7+12)+1)*Y28),) -> 1195490 | AF28: =IF(H28,((VLOOKUP($B28,$E$7:$AE$16,7+16)+1)*Z28),) -> 0 | AG28: =IF(I28,((VLOOKUP($B28,$E$7:$AE$16,7+20)+1)*AA28),) -> 0
A29: =A28+1 -> 3 | B29: 1 | C29: LDNO LV: Domestic Unrestricted | D29: 14926.84831 | G29: 4822 | J29: =IF(D29,((VLOOKUP($B29,$E$7:$AE$16,4)+1)*D29),) -> 14926.84831 | K29: =IF(E29,((VLOOKUP($B29,$E$7:$AE$16,8)+1)*E29),) -> 0 | L29: =IF(F29,((VLOOKUP($B29,$E$7:$AE$16,12)+1)*F29),) -> 0 | M29: =IF(G29,((VLOOKUP($B29,$E$7:$AE$16,16)+1)*G29),) -> 4822 | N29: =IF(H29,((VLOOKUP($B29,$E$7:$AE$16,20)+1)*H29),) -> 0 | O29: =IF(I29,((VLOOKUP($B29,$E$7:$AE$16,24)+1)*I29),) -> 0 | P29: =IF(D29,((VLOOKUP($B29,$E$7:$AE$16,5)+1)*J29),) -> 14926.84831 | Q29: =IF(E29,((VLOOKUP($B29,$E$7:$AE$16,5+4)+1)*K29),) -> 0 | R29: =IF(F29,((VLOOKUP($B29,$E$7:$AE$16,5+8)+1)*L29),) -> 0 | S29: =IF(G29,((VLOOKUP($B29,$E$7:$AE$16,5+12)+1)*M29),) -> 4822 | T29: =IF(H29,((VLOOKUP($B29,$E$7:$AE$16,5+16)+1)*N29),) -> 0 | U29: =IF(I29,((VLOOKUP($B29,$E$7:$AE$16,5+20)+1)*O29),) -> 0 | V29: =IF(D29,((VLOOKUP($B29,$E$7:$AE$16,6)+1)*P29),) -> 14926.84831 | W29: =IF(E29,((VLOOKUP($B29,$E$7:$AE$16,6+4)+1)*Q29),) -> 0 | X29: =IF(F29,((VLOOKUP($B29,$E$7:$AE$16,6+8)+1)*R29),) -> 0 | Y29: =IF(G29,((VLOOKUP($B29,$E$7:$AE$16,6+12)+1)*S29),) -> 4822 | Z29: =IF(H29,((VLOOKUP($B29,$E$7:$AE$16,6+16)+1)*T29),) -> 0 | AA29: =IF(I29,((VLOOKUP($B29,$E$7:$AE$16,6+20)+1)*U29),) -> 0 | AB29: =IF(D29,((VLOOKUP($B29,$E$7:$AE$16,7)+1)*V29),) -> 14926.84831 | AC29: =IF(E29,((VLOOKUP($B29,$E$7:$AE$16,7+4)+1)*W29),) -> 0 | AD29: =IF(F29,((VLOOKUP($B29,$E$7:$AE$16,7+8)+1)*X29),) -> 0 | AE29: =IF(G29,((VLOOKUP($B29,$E$7:$AE$16,7+12)+1)*Y29),) -> 4822 | AF29: =IF(H29,((VLOOKUP($B29,$E$7:$AE$16,7+16)+1)*Z29),) -> 0 | AG29: =IF(I29,((VLOOKUP($B29,$E$7:$AE$16,7+20)+1)*AA29),) -> 0
A30: 4 | B30: 1 | C30: LDNO HV: Domestic Unrestricted | D30: 19637.86889 | G30: 6443 | J30: =IF(D30,((VLOOKUP($B30,$E$7:$AE$16,4)+1)*D30),) -> 19637.86889 | K30: =IF(E30,((VLOOKUP($B30,$E$7:$AE$16,8)+1)*E30),) -> 0 | L30: =IF(F30,((VLOOKUP($B30,$E$7:$AE$16,12)+1)*F30),) -> 0 | M30: =IF(G30,((VLOOKUP($B30,$E$7:$AE$16,16)+1)*G30),) -> 6443 | N30: =IF(H30,((VLOOKUP($B30,$E$7:$AE$16,20)+1)*H30),) -> 0 | O30: =IF(I30,((VLOOKUP($B30,$E$7:$AE$16,24)+1)*I30),) -> 0 | P30: =IF(D30,((VLOOKUP($B30,$E$7:$AE$16,5)+1)*J30),) -> 19637.86889 | Q30: =IF(E30,((VLOOKUP($B30,$E$7:$AE$16,5+4)+1)*K30),) -> 0 | R30: =IF(F30,((VLOOKUP($B30,$E$7:$AE$16,5+8)+1)*L30),) -> 0 | S30: =IF(G30,((VLOOKUP($B30,$E$7:$AE$16,5+12)+1)*M30),) -> 6443 | T30: =IF(H30,((VLOOKUP($B30,$E$7:$AE$16,5+16)+1)*N30),) -> 0 | U30: =IF(I30,((VLOOKUP($B30,$E$7:$AE$16,5+20)+1)*O30),) -> 0 | V30: =IF(D30,((VLOOKUP($B30,$E$7:$AE$16,6)+1)*P30),) -> 19637.86889 | W30: =IF(E30,((VLOOKUP($B30,$E$7:$AE$16,6+4)+1)*Q30),) -> 0 | X30: =IF(F30,((VLOOKUP($B30,$E$7:$AE$16,6+8)+1)*R30),) -> 0 | Y30: =IF(G30,((VLOOKUP($B30,$E$7:$AE$16,6+12)+1)*S30),) -> 6443 | Z30: =IF(H30,((VLOOKUP($B30,$E$7:$AE$16,6+16)+1)*T30),) -> 0 | AA30: =IF(I30,((VLOOKUP($B30,$E$7:$AE$16,6+20)+1)*U30),) -> 0 | AB30: =IF(D30,((VLOOKUP($B30,$E$7:$AE$16,7)+1)*V30),) -> 19637.86889 | AC30: =IF(E30,((VLOOKUP($B30,$E$7:$AE$16,7+4)+1)*W30),) -> 0 | AD30: =IF(F30,((VLOOKUP($B30,$E$7:$AE$16,7+8)+1)*X30),) -> 0 | AE30: =IF(G30,((VLOOKUP($B30,$E$7:$AE$16,7+12)+1)*Y30),) -> 6443 | AF30: =IF(H30,((VLOOKUP($B30,$E$7:$AE$16,7+16)+1)*Z30),) -> 0 | AG30: =IF(I30,((VLOOKUP($B30,$E$7:$AE$16,7+20)+1)*AA30),) -> 0
A31: 5 | C31: > Domestic Two Rate
A32: 6 | B32: 1 | C32: Domestic Two Rate | D32: 705713.8558 | E32: 762376.7408 | G32: 224253 | J32: =IF(D32,((VLOOKUP($B32,$E$7:$AE$16,4)+1)*D32),) -> 705713.8558 | K32: =IF(E32,((VLOOKUP($B32,$E$7:$AE$16,8)+1)*E32),) -> 762376.7408 | L32: =IF(F32,((VLOOKUP($B32,$E$7:$AE$16,12)+1)*F32),) -> 0 | M32: =IF(G32,((VLOOKUP($B32,$E$7:$AE$16,16)+1)*G32),) -> 224253 | N32: =IF(H32,((VLOOKUP($B32,$E$7:$AE$16,20)+1)*H32),) -> 0 | O32: =IF(I32,((VLOOKUP($B32,$E$7:$AE$16,24)+1)*I32),) -> 0 | P32: =IF(D32,((VLOOKUP($B32,$E$7:$AE$16,5)+1)*J32),) -> 705713.8558 | Q32: =IF(E32,((VLOOKUP($B32,$E$7:$AE$16,5+4)+1)*K32),) -> 762376.7408 | R32: =IF(F32,((VLOOKUP($B32,$E$7:$AE$16,5+8)+1)*L32),) -> 0 | S32: =IF(G32,((VLOOKUP($B32,$E$7:$AE$16,5+12)+1)*M32),) -> 224253 | T32: =IF(H32,((VLOOKUP($B32,$E$7:$AE$16,5+16)+1)*N32),) -> 0 | U32: =IF(I32,((VLOOKUP($B32,$E$7:$AE$16,5+20)+1)*O32),) -> 0 | V32: =IF(D32,((VLOOKUP($B32,$E$7:$AE$16,6)+1)*P32),) -> 705713.8558 | W32: =IF(E32,((VLOOKUP($B32,$E$7:$AE$16,6+4)+1)*Q32),) -> 762376.7408 | X32: =IF(F32,((VLOOKUP($B32,$E$7:$AE$16,6+8)+1)*R32),) -> 0 | Y32: =IF(G32,((VLOOKUP($B32,$E$7:$AE$16,6+12)+1)*S32),) -> 224253 | Z32: =IF(H32,((VLOOKUP($B32,$E$7:$AE$16,6+16)+1)*T32),) -> 0 | AA32: =IF(I32,((VLOOKUP($B32,$E$7:$AE$16,6+20)+1)*U32),) -> 0 | AB32: =IF(D32,((VLOOKUP($B32,$E$7:$AE$16,7)+1)*V32),) -> 705713.8558 | AC32: =IF(E32,((VLOOKUP($B32,$E$7:$AE$16,7+4)+1)*W32),) -> 762376.7408 | AD32: =IF(F32,((VLOOKUP($B32,$E$7:$AE$16,7+8)+1)*X32),) -> 0 | AE32: =IF(G32,((VLOOKUP($B32,$E$7:$AE$16,7+12)+1)*Y32),) -> 224253 | AF32: =IF(H32,((VLOOKUP($B32,$E$7:$AE$16,7+16)+1)*Z32),) -> 0 | AG32: =IF(I32,((VLOOKUP($B32,$E$7:$AE$16,7+20)+1)*AA32),) -> 0
A33: 7 | B33: 1 | C33: LDNO LV: Domestic Two Rate | D33: 1609.784626 | E33: 652.4538035 | G33: 438 | J33: =IF(D33,((VLOOKUP($B33,$E$7:$AE$16,4)+1)*D33),) -> 1609.784626 | K33: =IF(E33,((VLOOKUP($B33,$E$7:$AE$16,8)+1)*E33),) -> 652.4538035 | L33: =IF(F33,((VLOOKUP($B33,$E$7:$AE$16,12)+1)*F33),) -> 0 | M33: =IF(G33,((VLOOKUP($B33,$E$7:$AE$16,16)+1)*G33),) -> 438 | N33: =IF(H33,((VLOOKUP($B33,$E$7:$AE$16,20)+1)*H33),) -> 0 | O33: =IF(I33,((VLOOKUP($B33,$E$7:$AE$16,24)+1)*I33),) -> 0 | P33: =IF(D33,((VLOOKUP($B33,$E$7:$AE$16,5)+1)*J33),) -> 1609.784626 | Q33: =IF(E33,((VLOOKUP($B33,$E$7:$AE$16,5+4)+1)*K33),) -> 652.4538035 | R33: =IF(F33,((VLOOKUP($B33,$E$7:$AE$16,5+8)+1)*L33),) -> 0 | S33: =IF(G33,((VLOOKUP($B33,$E$7:$AE$16,5+12)+1)*M33),) -> 438 | T33: =IF(H33,((VLOOKUP($B33,$E$7:$AE$16,5+16)+1)*N33),) -> 0 | U33: =IF(I33,((VLOOKUP($B33,$E$7:$AE$16,5+20)+1)*O33),) -> 0 | V33: =IF(D33,((VLOOKUP($B33,$E$7:$AE$16,6)+1)*P33),) -> 1609.784626 | W33: =IF(E33,((VLOOKUP($B33,$E$7:$AE$16,6+4)+1)*Q33),) -> 652.4538035 | X33: =IF(F33,((VLOOKUP($B33,$E$7:$AE$16,6+8)+1)*R33),) -> 0 | Y33: =IF(G33,((VLOOKUP($B33,$E$7:$AE$16,6+12)+1)*S33),) -> 438 | Z33: =IF(H33,((VLOOKUP($B33,$E$7:$AE$16,6+16)+1)*T33),) -> 0 | AA33: =IF(I33,((VLOOKUP($B33,$E$7:$AE$16,6+20)+1)*U33),) -> 0 | AB33: =IF(D33,((VLOOKUP($B33,$E$7:$AE$16,7)+1)*V33),) -> 1609.784626 | AC33: =IF(E33,((VLOOKUP($B33,$E$7:$AE$16,7+4)+1)*W33),) -> 652.4538035 | AD33: =IF(F33,((VLOOKUP($B33,$E$7:$AE$16,7+8)+1)*X33),) -> 0 | AE33: =IF(G33,((VLOOKUP($B33,$E$7:$AE$16,7+12)+1)*Y33),) -> 438 | AF33: =IF(H33,((VLOOKUP($B33,$E$7:$AE$16,7+16)+1)*Z33),) -> 0 | AG33: =IF(I33,((VLOOKUP($B33,$E$7:$AE$16,7+20)+1)*AA33),) -> 0
A34: 8 | B34: 1 | C34: LDNO HV: Domestic Two Rate | D34: 743.8910237 | E34: 336.0472317 | G34: 273 | J34: =IF(D34,((VLOOKUP($B34,$E$7:$AE$16,4)+1)*D34),) -> 743.8910237 | K34: =IF(E34,((VLOOKUP($B34,$E$7:$AE$16,8)+1)*E34),) -> 336.0472317 | L34: =IF(F34,((VLOOKUP($B34,$E$7:$AE$16,12)+1)*F34),) -> 0 | M34: =IF(G34,((VLOOKUP($B34,$E$7:$AE$16,16)+1)*G34),) -> 273 | N34: =IF(H34,((VLOOKUP($B34,$E$7:$AE$16,20)+1)*H34),) -> 0 | O34: =IF(I34,((VLOOKUP($B34,$E$7:$AE$16,24)+1)*I34),) -> 0 | P34: =IF(D34,((VLOOKUP($B34,$E$7:$AE$16,5)+1)*J34),) -> 743.8910237 | Q34: =IF(E34,((VLOOKUP($B34,$E$7:$AE$16,5+4)+1)*K34),) -> 336.0472317 | R34: =IF(F34,((VLOOKUP($B34,$E$7:$AE$16,5+8)+1)*L34),) -> 0 | S34: =IF(G34,((VLOOKUP($B34,$E$7:$AE$16,5+12)+1)*M34),) -> 273 | T34: =IF(H34,((VLOOKUP($B34,$E$7:$AE$16,5+16)+1)*N34),) -> 0 | U34: =IF(I34,((VLOOKUP($B34,$E$7:$AE$16,5+20)+1)*O34),) -> 0 | V34: =IF(D34,((VLOOKUP($B34,$E$7:$AE$16,6)+1)*P34),) -> 743.8910237 | W34: =IF(E34,((VLOOKUP($B34,$E$7:$AE$16,6+4)+1)*Q34),) -> 336.0472317 | X34: =IF(F34,((VLOOKUP($B34,$E$7:$AE$16,6+8)+1)*R34),) -> 0 | Y34: =IF(G34,((VLOOKUP($B34,$E$7:$AE$16,6+12)+1)*S34),) -> 273 | Z34: =IF(H34,((VLOOKUP($B34,$E$7:$AE$16,6+16)+1)*T34),) -> 0 | AA34: =IF(I34,((VLOOKUP($B34,$E$7:$AE$16,6+20)+1)*U34),) -> 0 | AB34: =IF(D34,((VLOOKUP($B34,$E$7:$AE$16,7)+1)*V34),) -> 743.8910237 | AC34: =IF(E34,((VLOOKUP($B34,$E$7:$AE$16,7+4)+1)*W34),) -> 336.0472317 | AD34: =IF(F34,((VLOOKUP($B34,$E$7:$AE$16,7+8)+1)*X34),) -> 0 | AE34: =IF(G34,((VLOOKUP($B34,$E$7:$AE$16,7+12)+1)*Y34),) -> 273 | AF34: =IF(H34,((VLOOKUP($B34,$E$7:$AE$16,7+16)+1)*Z34),) -> 0 | AG34: =IF(I34,((VLOOKUP($B34,$E$7:$AE$16,7+20)+1)*AA34),) -> 0
A35: 9 | C35: > Domestic Off Peak (related MPAN)
A36: 10 | B36: 1 | C36: Domestic Off Peak (related MPAN) | D36: 73622.90041 | G36: 0 | J36: =IF(D36,((VLOOKUP($B36,$E$7:$AE$16,4)+1)*D36),) -> 73622.90041 | K36: =IF(E36,((VLOOKUP($B36,$E$7:$AE$16,8)+1)*E36),) -> 0 | L36: =IF(F36,((VLOOKUP($B36,$E$7:$AE$16,12)+1)*F36),) -> 0 | M36: =IF(G36,((VLOOKUP($B36,$E$7:$AE$16,16)+1)*G36),) -> 0 | N36: =IF(H36,((VLOOKUP($B36,$E$7:$AE$16,20)+1)*H36),) -> 0 | O36: =IF(I36,((VLOOKUP($B36,$E$7:$AE$16,24)+1)*I36),) -> 0 | P36: =IF(D36,((VLOOKUP($B36,$E$7:$AE$16,5)+1)*J36),) -> 73622.90041 | Q36: =IF(E36,((VLOOKUP($B36,$E$7:$AE$16,5+4)+1)*K36),) -> 0 | R36: =IF(F36,((VLOOKUP($B36,$E$7:$AE$16,5+8)+1)*L36),) -> 0 | S36: =IF(G36,((VLOOKUP($B36,$E$7:$AE$16,5+12)+1)*M36),) -> 0 | T36: =IF(H36,((VLOOKUP($B36,$E$7:$AE$16,5+16)+1)*N36),) -> 0 | U36: =IF(I36,((VLOOKUP($B36,$E$7:$AE$16,5+20)+1)*O36),) -> 0 | V36: =IF(D36,((VLOOKUP($B36,$E$7:$AE$16,6)+1)*P36),) -> 73622.90041 | W36: =IF(E36,((VLOOKUP($B36,$E$7:$AE$16,6+4)+1)*Q36),) -> 0 | X36: =IF(F36,((VLOOKUP($B36,$E$7:$AE$16,6+8)+1)*R36),) -> 0 | Y36: =IF(G36,((VLOOKUP($B36,$E$7:$AE$16,6+12)+1)*S36),) -> 0 | Z36: =IF(H36,((VLOOKUP($B36,$E$7:$AE$16,6+16)+1)*T36),) -> 0 | AA36: =IF(I36,((VLOOKUP($B36,$E$7:$AE$16,6+20)+1)*U36),) -> 0 | AB36: =IF(D36,((VLOOKUP($B36,$E$7:$AE$16,7)+1)*V36),) -> 73622.90041 | AC36: =IF(E36,((VLOOKUP($B36,$E$7:$AE$16,7+4)+1)*W36),) -> 0 | AD36: =IF(F36,((VLOOKUP($B36,$E$7:$AE$16,7+8)+1)*X36),) -> 0 | AE36: =IF(G36,((VLOOKUP($B36,$E$7:$AE$16,7+12)+1)*Y36),) -> 0 | AF36: =IF(H36,((VLOOKUP($B36,$E$7:$AE$16,7+16)+1)*Z36),) -> 0 | AG36: =IF(I36,((VLOOKUP($B36,$E$7:$AE$16,7+20)+1)*AA36),) -> 0
A37: 11 | B37: 1 | C37: LDNO LV: Domestic Off Peak (related MPAN) | D37: 0 | G37: 0 | J37: =IF(D37,((VLOOKUP($B37,$E$7:$AE$16,4)+1)*D37),) -> 0 | K37: =IF(E37,((VLOOKUP($B37,$E$7:$AE$16,8)+1)*E37),) -> 0 | L37: =IF(F37,((VLOOKUP($B37,$E$7:$AE$16,12)+1)*F37),) -> 0 | M37: =IF(G37,((VLOOKUP($B37,$E$7:$AE$16,16)+1)*G37),) -> 0 | N37: =IF(H37,((VLOOKUP($B37,$E$7:$AE$16,20)+1)*H37),) -> 0 | O37: =IF(I37,((VLOOKUP($B37,$E$7:$AE$16,24)+1)*I37),) -> 0 | P37: =IF(D37,((VLOOKUP($B37,$E$7:$AE$16,5)+1)*J37),) -> 0 | Q37: =IF(E37,((VLOOKUP($B37,$E$7:$AE$16,5+4)+1)*K37),) -> 0 | R37: =IF(F37,((VLOOKUP($B37,$E$7:$AE$16,5+8)+1)*L37),) -> 0 | S37: =IF(G37,((VLOOKUP($B37,$E$7:$AE$16,5+12)+1)*M37),) -> 0 | T37: =IF(H37,((VLOOKUP($B37,$E$7:$AE$16,5+16)+1)*N37),) -> 0 | U37: =IF(I37,((VLOOKUP($B37,$E$7:$AE$16,5+20)+1)*O37),) -> 0 | V37: =IF(D37,((VLOOKUP($B37,$E$7:$AE$16,6)+1)*P37),) -> 0 | W37: =IF(E37,((VLOOKUP($B37,$E$7:$AE$16,6+4)+1)*Q37),) -> 0 | X37: =IF(F37,((VLOOKUP($B37,$E$7:$AE$16,6+8)+1)*R37),) -> 0 | Y37: =IF(G37,((VLOOKUP($B37,$E$7:$AE$16,6+12)+1)*S37),) -> 0 | Z37: =IF(H37,((VLOOKUP($B37,$E$7:$AE$16,6+16)+1)*T37),) -> 0 | AA37: =IF(I37,((VLOOKUP($B37,$E$7:$AE$16,6+20)+1)*U37),) -> 0 | AB37: =IF(D37,((VLOOKUP($B37,$E$7:$AE$16,7)+1)*V37),) -> 0 | AC37: =IF(E37,((VLOOKUP($B37,$E$7:$AE$16,7+4)+1)*W37),) -> 0 | AD37: =IF(F37,((VLOOKUP($B37,$E$7:$AE$16,7+8)+1)*X37),) -> 0 | AE37: =IF(G37,((VLOOKUP($B37,$E$7:$AE$16,7+12)+1)*Y37),) -> 0 | AF37: =IF(H37,((VLOOKUP($B37,$E$7:$AE$16,7+16)+1)*Z37),) -> 0 | AG37: =IF(I37,((VLOOKUP($B37,$E$7:$AE$16,7+20)+1)*AA37),) -> 0
A38: 12 | B38: 1 | C38: LDNO HV: Domestic Off Peak (related MPAN) | D38: 0 | G38: 0 | J38: =IF(D38,((VLOOKUP($B38,$E$7:$AE$16,4)+1)*D38),) -> 0 | K38: =IF(E38,((VLOOKUP($B38,$E$7:$AE$16,8)+1)*E38),) -> 0 | L38: =IF(F38,((VLOOKUP($B38,$E$7:$AE$16,12)+1)*F38),) -> 0 | M38: =IF(G38,((VLOOKUP($B38,$E$7:$AE$16,16)+1)*G38),) -> 0 | N38: =IF(H38,((VLOOKUP($B38,$E$7:$AE$16,20)+1)*H38),) -> 0 | O38: =IF(I38,((VLOOKUP($B38,$E$7:$AE$16,24)+1)*I38),) -> 0 | P38: =IF(D38,((VLOOKUP($B38,$E$7:$AE$16,5)+1)*J38),) -> 0 | Q38: =IF(E38,((VLOOKUP($B38,$E$7:$AE$16,5+4)+1)*K38),) -> 0 | R38: =IF(F38,((VLOOKUP($B38,$E$7:$AE$16,5+8)+1)*L38),) -> 0 | S38: =IF(G38,((VLOOKUP($B38,$E$7:$AE$16,5+12)+1)*M38),) -> 0 | T38: =IF(H38,((VLOOKUP($B38,$E$7:$AE$16,5+16)+1)*N38),) -> 0 | U38: =IF(I38,((VLOOKUP($B38,$E$7:$AE$16,5+20)+1)*O38),) -> 0 | V38: =IF(D38,((VLOOKUP($B38,$E$7:$AE$16,6)+1)*P38),) -> 0 | W38: =IF(E38,((VLOOKUP($B38,$E$7:$AE$16,6+4)+1)*Q38),) -> 0 | X38: =IF(F38,((VLOOKUP($B38,$E$7:$AE$16,6+8)+1)*R38),) -> 0 | Y38: =IF(G38,((VLOOKUP($B38,$E$7:$AE$16,6+12)+1)*S38),) -> 0 | Z38: =IF(H38,((VLOOKUP($B38,$E$7:$AE$16,6+16)+1)*T38),) -> 0 | AA38: =IF(I38,((VLOOKUP($B38,$E$7:$AE$16,6+20)+1)*U38),) -> 0 | AB38: =IF(D38,((VLOOKUP($B38,$E$7:$AE$16,7)+1)*V38),) -> 0 | AC38: =IF(E38,((VLOOKUP($B38,$E$7:$AE$16,7+4)+1)*W38),) -> 0 | AD38: =IF(F38,((VLOOKUP($B38,$E$7:$AE$16,7+8)+1)*X38),) -> 0 | AE38: =IF(G38,((VLOOKUP($B38,$E$7:$AE$16,7+12)+1)*Y38),) -> 0 | AF38: =IF(H38,((VLOOKUP($B38,$E$7:$AE$16,7+16)+1)*Z38),) -> 0 | AG38: =IF(I38,((VLOOKUP($B38,$E$7:$AE$16,7+20)+1)*AA38),) -> 0
A39: 13 | C39: > Small Non Domestic Unrestricted
A40: 14 | B40: 1 | C40: Small Non Domestic Unrestricted | D40: 1193627.254 | G40: 108227 | J40: =IF(D40,((VLOOKUP($B40,$E$7:$AE$16,4)+1)*D40),) -> 1193627.254 | K40: =IF(E40,((VLOOKUP($B40,$E$7:$AE$16,8)+1)*E40),) -> 0 | L40: =IF(F40,((VLOOKUP($B40,$E$7:$AE$16,12)+1)*F40),) -> 0 | M40: =IF(G40,((VLOOKUP($B40,$E$7:$AE$16,16)+1)*G40),) -> 108227 | N40: =IF(H40,((VLOOKUP($B40,$E$7:$AE$16,20)+1)*H40),) -> 0 | O40: =IF(I40,((VLOOKUP($B40,$E$7:$AE$16,24)+1)*I40),) -> 0 | P40: =IF(D40,((VLOOKUP($B40,$E$7:$AE$16,5)+1)*J40),) -> 1193627.254 | Q40: =IF(E40,((VLOOKUP($B40,$E$7:$AE$16,5+4)+1)*K40),) -> 0 | R40: =IF(F40,((VLOOKUP($B40,$E$7:$AE$16,5+8)+1)*L40),) -> 0 | S40: =IF(G40,((VLOOKUP($B40,$E$7:$AE$16,5+12)+1)*M40),) -> 108227 | T40: =IF(H40,((VLOOKUP($B40,$E$7:$AE$16,5+16)+1)*N40),) -> 0 | U40: =IF(I40,((VLOOKUP($B40,$E$7:$AE$16,5+20)+1)*O40),) -> 0 | V40: =IF(D40,((VLOOKUP($B40,$E$7:$AE$16,6)+1)*P40),) -> 1193627.254 | W40: =IF(E40,((VLOOKUP($B40,$E$7:$AE$16,6+4)+1)*Q40),) -> 0 | X40: =IF(F40,((VLOOKUP($B40,$E$7:$AE$16,6+8)+1)*R40),) -> 0 | Y40: =IF(G40,((VLOOKUP($B40,$E$7:$AE$16,6+12)+1)*S40),) -> 108227 | Z40: =IF(H40,((VLOOKUP($B40,$E$7:$AE$16,6+16)+1)*T40),) -> 0 | AA40: =IF(I40,((VLOOKUP($B40,$E$7:$AE$16,6+20)+1)*U40),) -> 0 | AB40: =IF(D40,((VLOOKUP($B40,$E$7:$AE$16,7)+1)*V40),) -> 1193627.254 | AC40: =IF(E40,((VLOOKUP($B40,$E$7:$AE$16,7+4)+1)*W40),) -> 0 | AD40: =IF(F40,((VLOOKUP($B40,$E$7:$AE$16,7+8)+1)*X40),) -> 0 | AE40: =IF(G40,((VLOOKUP($B40,$E$7:$AE$16,7+12)+1)*Y40),) -> 108227 | AF40: =IF(H40,((VLOOKUP($B40,$E$7:$AE$16,7+16)+1)*Z40),) -> 0 | AG40: =IF(I40,((VLOOKUP($B40,$E$7:$AE$16,7+20)+1)*AA40),) -> 0
A41: 15 | B41: 1 | C41: LDNO LV: Small Non Domestic Unrestricted | D41: 732.3359481 | G41: 89 | J41: =IF(D41,((VLOOKUP($B41,$E$7:$AE$16,4)+1)*D41),) -> 732.3359481 | K41: =IF(E41,((VLOOKUP($B41,$E$7:$AE$16,8)+1)*E41),) -> 0 | L41: =IF(F41,((VLOOKUP($B41,$E$7:$AE$16,12)+1)*F41),) -> 0 | M41: =IF(G41,((VLOOKUP($B41,$E$7:$AE$16,16)+1)*G41),) -> 89 | N41: =IF(H41,((VLOOKUP($B41,$E$7:$AE$16,20)+1)*H41),) -> 0 | O41: =IF(I41,((VLOOKUP($B41,$E$7:$AE$16,24)+1)*I41),) -> 0 | P41: =IF(D41,((VLOOKUP($B41,$E$7:$AE$16,5)+1)*J41),) -> 732.3359481 | Q41: =IF(E41,((VLOOKUP($B41,$E$7:$AE$16,5+4)+1)*K41),) -> 0 | R41: =IF(F41,((VLOOKUP($B41,$E$7:$AE$16,5+8)+1)*L41),) -> 0 | S41: =IF(G41,((VLOOKUP($B41,$E$7:$AE$16,5+12)+1)*M41),) -> 89 | T41: =IF(H41,((VLOOKUP($B41,$E$7:$AE$16,5+16)+1)*N41),) -> 0 | U41: =IF(I41,((VLOOKUP($B41,$E$7:$AE$16,5+20)+1)*O41),) -> 0 | V41: =IF(D41,((VLOOKUP($B41,$E$7:$AE$16,6)+1)*P41),) -> 732.3359481 | W41: =IF(E41,((VLOOKUP($B41,$E$7:$AE$16,6+4)+1)*Q41),) -> 0 | X41: =IF(F41,((VLOOKUP($B41,$E$7:$AE$16,6+8)+1)*R41),) -> 0 | Y41: =IF(G41,((VLOOKUP($B41,$E$7:$AE$16,6+12)+1)*S41),) -> 89 | Z41: =IF(H41,((VLOOKUP($B41,$E$7:$AE$16,6+16)+1)*T41),) -> 0 | AA41: =IF(I41,((VLOOKUP($B41,$E$7:$AE$16,6+20)+1)*U41),) -> 0 | AB41: =IF(D41,((VLOOKUP($B41,$E$7:$AE$16,7)+1)*V41),) -> 732.3359481 | AC41: =IF(E41,((VLOOKUP($B41,$E$7:$AE$16,7+4)+1)*W41),) -> 0 | AD41: =IF(F41,((VLOOKUP($B41,$E$7:$AE$16,7+8)+1)*X41),) -> 0 | AE41: =IF(G41,((VLOOKUP($B41,$E$7:$AE$16,7+12)+1)*Y41),) -> 89 | AF41: =IF(H41,((VLOOKUP($B41,$E$7:$AE$16,7+16)+1)*Z41),) -> 0 | AG41: =IF(I41,((VLOOKUP($B41,$E$7:$AE$16,7+20)+1)*AA41),) -> 0
A42: 16 | B42: 1 | C42: LDNO HV: Small Non Domestic Unrestricted | D42: 5309.683211 | G42: 236 | J42: =IF(D42,((VLOOKUP($B42,$E$7:$AE$16,4)+1)*D42),) -> 5309.683211 | K42: =IF(E42,((VLOOKUP($B42,$E$7:$AE$16,8)+1)*E42),) -> 0 | L42: =IF(F42,((VLOOKUP($B42,$E$7:$AE$16,12)+1)*F42),) -> 0 | M42: =IF(G42,((VLOOKUP($B42,$E$7:$AE$16,16)+1)*G42),) -> 236 | N42: =IF(H42,((VLOOKUP($B42,$E$7:$AE$16,20)+1)*H42),) -> 0 | O42: =IF(I42,((VLOOKUP($B42,$E$7:$AE$16,24)+1)*I42),) -> 0 | P42: =IF(D42,((VLOOKUP($B42,$E$7:$AE$16,5)+1)*J42),) -> 5309.683211 | Q42: =IF(E42,((VLOOKUP($B42,$E$7:$AE$16,5+4)+1)*K42),) -> 0 | R42: =IF(F42,((VLOOKUP($B42,$E$7:$AE$16,5+8)+1)*L42),) -> 0 | S42: =IF(G42,((VLOOKUP($B42,$E$7:$AE$16,5+12)+1)*M42),) -> 236 | T42: =IF(H42,((VLOOKUP($B42,$E$7:$AE$16,5+16)+1)*N42),) -> 0 | U42: =IF(I42,((VLOOKUP($B42,$E$7:$AE$16,5+20)+1)*O42),) -> 0 | V42: =IF(D42,((VLOOKUP($B42,$E$7:$AE$16,6)+1)*P42),) -> 5309.683211 | W42: =IF(E42,((VLOOKUP($B42,$E$7:$AE$16,6+4)+1)*Q42),) -> 0 | X42: =IF(F42,((VLOOKUP($B42,$E$7:$AE$16,6+8)+1)*R42),) -> 0 | Y42: =IF(G42,((VLOOKUP($B42,$E$7:$AE$16,6+12)+1)*S42),) -> 236 | Z42: =IF(H42,((VLOOKUP($B42,$E$7:$AE$16,6+16)+1)*T42),) -> 0 | AA42: =IF(I42,((VLOOKUP($B42,$E$7:$AE$16,6+20)+1)*U42),) -> 0 | AB42: =IF(D42,((VLOOKUP($B42,$E$7:$AE$16,7)+1)*V42),) -> 5309.683211 | AC42: =IF(E42,((VLOOKUP($B42,$E$7:$AE$16,7+4)+1)*W42),) -> 0 | AD42: =IF(F42,((VLOOKUP($B42,$E$7:$AE$16,7+8)+1)*X42),) -> 0 | AE42: =IF(G42,((VLOOKUP($B42,$E$7:$AE$16,7+12)+1)*Y42),) -> 236 | AF42: =IF(H42,((VLOOKUP($B42,$E$7:$AE$16,7+16)+1)*Z42),) -> 0 | AG42: =IF(I42,((VLOOKUP($B42,$E$7:$AE$16,7+20)+1)*AA42),) -> 0
A43: 17 | C43: > Small Non Domestic Two Rate
A44: 18 | B44: 1 | C44: Small Non Domestic Two Rate | D44: 375235.737 | E44: 180177.0378 | G44: 27300 | J44: =IF(D44,((VLOOKUP($B44,$E$7:$AE$16,4)+1)*D44),) -> 375235.737 | K44: =IF(E44,((VLOOKUP($B44,$E$7:$AE$16,8)+1)*E44),) -> 180177.0378 | L44: =IF(F44,((VLOOKUP($B44,$E$7:$AE$16,12)+1)*F44),) -> 0 | M44: =IF(G44,((VLOOKUP($B44,$E$7:$AE$16,16)+1)*G44),) -> 27300 | N44: =IF(H44,((VLOOKUP($B44,$E$7:$AE$16,20)+1)*H44),) -> 0 | O44: =IF(I44,((VLOOKUP($B44,$E$7:$AE$16,24)+1)*I44),) -> 0 | P44: =IF(D44,((VLOOKUP($B44,$E$7:$AE$16,5)+1)*J44),) -> 375235.737 | Q44: =IF(E44,((VLOOKUP($B44,$E$7:$AE$16,5+4)+1)*K44),) -> 180177.0378 | R44: =IF(F44,((VLOOKUP($B44,$E$7:$AE$16,5+8)+1)*L44),) -> 0 | S44: =IF(G44,((VLOOKUP($B44,$E$7:$AE$16,5+12)+1)*M44),) -> 27300 | T44: =IF(H44,((VLOOKUP($B44,$E$7:$AE$16,5+16)+1)*N44),) -> 0 | U44: =IF(I44,((VLOOKUP($B44,$E$7:$AE$16,5+20)+1)*O44),) -> 0 | V44: =IF(D44,((VLOOKUP($B44,$E$7:$AE$16,6)+1)*P44),) -> 375235.737 | W44: =IF(E44,((VLOOKUP($B44,$E$7:$AE$16,6+4)+1)*Q44),) -> 180177.0378 | X44: =IF(F44,((VLOOKUP($B44,$E$7:$AE$16,6+8)+1)*R44),) -> 0 | Y44: =IF(G44,((VLOOKUP($B44,$E$7:$AE$16,6+12)+1)*S44),) -> 27300 | Z44: =IF(H44,((VLOOKUP($B44,$E$7:$AE$16,6+16)+1)*T44),) -> 0 | AA44: =IF(I44,((VLOOKUP($B44,$E$7:$AE$16,6+20)+1)*U44),) -> 0 | AB44: =IF(D44,((VLOOKUP($B44,$E$7:$AE$16,7)+1)*V44),) -> 375235.737 | AC44: =IF(E44,((VLOOKUP($B44,$E$7:$AE$16,7+4)+1)*W44),) -> 180177.0378 | AD44: =IF(F44,((VLOOKUP($B44,$E$7:$AE$16,7+8)+1)*X44),) -> 0 | AE44: =IF(G44,((VLOOKUP($B44,$E$7:$AE$16,7+12)+1)*Y44),) -> 27300 | AF44: =IF(H44,((VLOOKUP($B44,$E$7:$AE$16,7+16)+1)*Z44),) -> 0 | AG44: =IF(I44,((VLOOKUP($B44,$E$7:$AE$16,7+20)+1)*AA44),) -> 0
A45: 19 | B45: 1 | C45: LDNO LV: Small Non Domestic Two Rate | D45: 419.0897999 | E45: 205.1707039 | G45: 1 | J45: 419.0897999 | K45: 205.1707039 | L45: 0 | M45: 1 | N45: 0 | O45: 0 | P45: 419.0897999 | Q45: 205.1707039 | R45: 0 | S45: 1 | T45: 0 | U45: 0 | V45: 419.0897999 | W45: 205.1707039 | X45: 0 | Y45: 1 | Z45: 0 | AA45: 0 | AB45: 419.0897999 | AC45: 205.1707039 | AD45: 0 | AE45: 1 | AF45: 0 | AG45: 0
A46: 20 | B46: 1 | C46: LDNO HV: Small Non Domestic Two Rate | D46: 565.9256191 | E46: 220.1109965 | G46: 15 | J46: 565.9256191 | K46: 220.1109965 | L46: 0 | M46: 15 | N46: 0 | O46: 0 | P46: 565.9256191 | Q46: 220.1109965 | R46: 0 | S46: 15 | T46: 0 | U46: 0 | V46: 565.9256191 | W46: 220.1109965 | X46: 0 | Y46: 15 | Z46: 0 | AA46: 0 | AB46: 565.9256191 | AC46: 220.1109965 | AD46: 0 | AE46: 15 | AF46: 0 | AG46: 0
A47: 21 | C47: > Small Non Domestic Off Peak (related MPAN) | J47: 0 | K47: 0 | L47: 0 | M47: 0 | N47: 0 | O47: 0 | P47: 0 | Q47: 0 | R47: 0 | S47: 0 | T47: 0 | U47: 0 | V47: 0 | W47: 0 | X47: 0 | Y47: 0 | Z47: 0 | AA47: 0 | AB47: 0 | AC47: 0 | AD47: 0 | AE47: 0 | AF47: 0 | AG47: 0
A48: 22 | B48: 1 | C48: Small Non Domestic Off Peak (related MPAN) | D48: 26247.10193 | G48: 0 | J48: 26247.10193 | K48: 0 | L48: 0 | M48: 0 | N48: 0 | O48: 0 | P48: 26247.10193 | Q48: 0 | R48: 0 | S48: 0 | T48: 0 | U48: 0 | V48: 26247.10193 | W48: 0 | X48: 0 | Y48: 0 | Z48: 0 | AA48: 0 | AB48: 26247.10193 | AC48: 0 | AD48: 0 | AE48: 0 | AF48: 0 | AG48: 0
A49: 23 | B49: 1 | C49: LDNO LV: Small Non Domestic Off Peak (related MPAN) | D49: 0 | G49: 0 | J49: 0 | K49: 0 | L49: 0 | M49: 0 | N49: 0 | O49: 0 | P49: 0 | Q49: 0 | R49: 0 | S49: 0 | T49: 0 | U49: 0 | V49: 0 | W49: 0 | X49: 0 | Y49: 0 | Z49: 0 | AA49: 0 | AB49: 0 | AC49: 0 | AD49: 0 | AE49: 0 | AF49: 0 | AG49: 0
A50: 24 | B50: 1 | C50: LDNO HV: Small Non Domestic Off Peak (related MPAN) | D50: 0 | G50: 0 | J50: 0 | K50: 0 | L50: 0 | M50: 0 | N50: 0 | O50: 0 | P50: 0 | Q50: 0 | R50: 0 | S50: 0 | T50: 0 | U50: 0 | V50: 0 | W50: 0 | X50: 0 | Y50: 0 | Z50: 0 | AA50: 0 | AB50: 0 | AC50: 0 | AD50: 0 | AE50: 0 | AF50: 0 | AG50: 0
A51: 25 | C51: > LV Medium Non-Domestic | J51: 0 | K51: 0 | L51: 0 | M51: 0 | N51: 0 | O51: 0 | P51: 0 | Q51: 0 | R51: 0 | S51: 0 | T51: 0 | U51: 0 | V51: 0 | W51: 0 | X51: 0 | Y51: 0 | Z51: 0 | AA51: 0 | AB51: 0 | AC51: 0 | AD51: 0 | AE51: 0 | AF51: 0 | AG51: 0
A52: 26 | B52: 1 | C52: LV Medium Non-Domestic | D52: 700742.3663 | E52: 174053.3221 | G52: 9354 | J52: 700742.3663 | K52: 174053.3221 | L52: 0 | M52: 9354 | N52: 0 | O52: 0 | P52: 700742.3663 | Q52: 174053.3221 | R52: 0 | S52: 9354 | T52: 0 | U52: 0 | V52: 700742.3663 | W52: 174053.3221 | X52: 0 | Y52: 9354 | Z52: 0 | AA52: 0 | AB52: 700742.3663 | AC52: 174053.3221 | AD52: 0 | AE52: 9354 | AF52: 0 | AG52: 0
A53: 27 | B53: 1 | C53: LDNO LV: LV Medium Non-Domestic | D53: 0.2837051651 | E53: 0.3644753188 | G53: 1 | J53: 0.2837051651 | K53: 0.3644753188 | L53: 0 | M53: 1 | N53: 0 | O53: 0 | P53: 0.2837051651 | Q53: 0.3644753188 | R53: 0 | S53: 1 | T53: 0 | U53: 0 | V53: 0.2837051651 | W53: 0.3644753188 | X53: 0 | Y53: 1 | Z53: 0 | AA53: 0 | AB53: 0.2837051651 | AC53: 0.3644753188 | AD53: 0 | AE53: 1 | AF53: 0 | AG53: 0
A54: 28 | B54: 1 | C54: LDNO HV: LV Medium Non-Domestic | D54: 4381.328991 | E54: 719.3878294 | G54: 47 | J54: 4381.328991 | K54: 719.3878294 | L54: 0 | M54: 47 | N54: 0 | O54: 0 | P54: 4381.328991 | Q54: 719.3878294 | R54: 0 | S54: 47 | T54: 0 | U54: 0 | V54: 4381.328991 | W54: 719.3878294 | X54: 0 | Y54: 47 | Z54: 0 | AA54: 0 | AB54: 4381.328991 | AC54: 719.3878294 | AD54: 0 | AE54: 47 | AF54: 0 | AG54: 0
A55: 29 | C55: > LV Sub Medium Non-Domestic | J55: 0 | K55: 0 | L55: 0 | M55: 0 | N55: 0 | O55: 0 | P55: 0 | Q55: 0 | R55: 0 | S55: 0 | T55: 0 | U55: 0 | V55: 0 | W55: 0 | X55: 0 | Y55: 0 | Z55: 0 | AA55: 0 | AB55: 0 | AC55: 0 | AD55: 0 | AE55: 0 | AF55: 0 | AG55: 0
A56: 30 | B56: 1 | C56: LV Sub Medium Non-Domestic | D56: 70119.39344 | E56: 19612.90827 | G56: 707 | J56: 70119.39344 | K56: 19612.90827 | L56: 0 | M56: 707 | N56: 0 | O56: 0 | P56: 70119.39344 | Q56: 19612.90827 | R56: 0 | S56: 707 | T56: 0 | U56: 0 | V56: 70119.39344 | W56: 19612.90827 | X56: 0 | Y56: 707 | Z56: 0 | AA56: 0 | AB56: 70119.39344 | AC56: 19612.90827 | AD56: 0 | AE56: 707 | AF56: 0 | AG56: 0
A57: 31 | C57: > HV Medium Non-Domestic | J57: 0 | K57: 0 | L57: 0 | M57: 0 | N57: 0 | O57: 0 | P57: 0 | Q57: 0 | R57: 0 | S57: 0 | T57: 0 | U57: 0 | V57: 0 | W57: 0 | X57: 0 | Y57: 0 | Z57: 0 | AA57: 0 | AB57: 0 | AC57: 0 | AD57: 0 | AE57: 0 | AF57: 0 | AG57: 0
A58: 32 | B58: 1 | C58: HV Medium Non-Domestic | D58: 2124.753079 | E58: 555.3476542 | G58: 26 | J58: 2124.753079 | K58: 555.3476542 | L58: 0 | M58: 26 | N58: 0 | O58: 0 | P58: 2124.753079 | Q58: 555.3476542 | R58: 0 | S58: 26 | T58: 0 | U58: 0 | V58: 2124.753079 | W58: 555.3476542 | X58: 0 | Y58: 26 | Z58: 0 | AA58: 0 | AB58: 2124.753079 | AC58: 555.3476542 | AD58: 0 | AE58: 26 | AF58: 0 | AG58: 0
A59: 33 | C59: > LV Network Domestic | J59: 0 | K59: 0 | L59: 0 | M59: 0 | N59: 0 | O59: 0 | P59: 0 | Q59: 0 | R59: 0 | S59: 0 | T59: 0 | U59: 0 | V59: 0 | W59: 0 | X59: 0 | Y59: 0 | Z59: 0 | AA59: 0 | AB59: 0 | AC59: 0 | AD59: 0 | AE59: 0 | AF59: 0 | AG59: 0
A60: 34 | B60: 1 | C60: LV Network Domestic | D60: 0 | E60: 0 | F60: 0 | G60: 0 | J60: 0 | K60: 0 | L60: 0 | M60: 0 | N60: 0 | O60: 0 | P60: 0 | Q60: 0 | R60: 0 | S60: 0 | T60: 0 | U60: 0 | V60: 0 | W60: 0 | X60: 0 | Y60: 0 | Z60: 0 | AA60: 0 | AB60: 0 | AC60: 0 | AD60: 0 | AE60: 0 | AF60: 0 | AG60: 0
A61: 35 | B61: 1 | C61: LDNO LV: LV Network Domestic | D61: 0 | E61: 0 | F61: 0 | G61: 0 | J61: 0 | K61: 0 | L61: 0 | M61: 0 | N61: 0 | O61: 0 | P61: 0 | Q61: 0 | R61: 0 | S61: 0 | T61: 0 | U61: 0 | V61: 0 | W61: 0 | X61: 0 | Y61: 0 | Z61: 0 | AA61: 0 | AB61: 0 | AC61: 0 | AD61: 0 | AE61: 0 | AF61: 0 | AG61: 0
A62: 36 | B62: 1 | C62: LDNO HV: LV Network Domestic | D62: 0 | E62: 0 | F62: 0 | G62: 0 | J62: 0 | K62: 0 | L62: 0 | M62: 0 | N62: 0 | O62: 0 | P62: 0 | Q62: 0 | R62: 0 | S62: 0 | T62: 0 | U62: 0 | V62: 0 | W62: 0 | X62: 0 | Y62: 0 | Z62: 0 | AA62: 0 | AB62: 0 | AC62: 0 | AD62: 0 | AE62: 0 | AF62: 0 | AG62: 0
A63: 37 | C63: > LV Network Non-Domestic Non-CT | J63: 0 | K63: 0 | L63: 0 | M63: 0 | N63: 0 | O63: 0 | P63: 0 | Q63: 0 | R63: 0 | S63: 0 | T63: 0 | U63: 0 | V63: 0 | W63: 0 | X63: 0 | Y63: 0 | Z63: 0 | AA63: 0 | AB63: 0 | AC63: 0 | AD63: 0 | AE63: 0 | AF63: 0 | AG63: 0
A64: 38 | B64: 1 | C64: LV Network Non-Domestic Non-CT | D64: 0 | E64: 0 | F64: 0 | G64: 0 | J64: 0 | K64: 0 | L64: 0 | M64: 0 | N64: 0 | O64: 0 | P64: 0 | Q64: 0 | R64: 0 | S64: 0 | T64: 0 | U64: 0 | V64: 0 | W64: 0 | X64: 0 | Y64: 0 | Z64: 0 | AA64: 0 | AB64: 0 | AC64: 0 | AD64: 0 | AE64: 0 | AF64: 0 | AG64: 0
A65: 39 | B65: 1 | C65: LDNO LV: LV Network Non-Domestic Non-CT | D65: 0 | E65: 0 | F65: 0 | G65: 0 | J65: 0 | K65: 0 | L65: 0 | M65: 0 | N65: 0 | O65: 0 | P65: 0 | Q65: 0 | R65: 0 | S65: 0 | T65: 0 | U65: 0 | V65: 0 | W65: 0 | X65: 0 | Y65: 0 | Z65: 0 | AA65: 0 | AB65: 0 | AC65: 0 | AD65: 0 | AE65: 0 | AF65: 0 | AG65: 0
A66: 40 | B66: 1 | C66: LDNO HV: LV Network Non-Domestic Non-CT | D66: 0 | E66: 0 | F66: 0 | G66: 0 | J66: 0 | K66: 0 | L66: 0 | M66: 0 | N66: 0 | O66: 0 | P66: 0 | Q66: 0 | R66: 0 | S66: 0 | T66: 0 | U66: 0 | V66: 0 | W66: 0 | X66: 0 | Y66: 0 | Z66: 0 | AA66: 0 | AB66: 0 | AC66: 0 | AD66: 0 | AE66: 0 | AF66: 0 | AG66: 0
A67: 41 | C67: > LV HH Metered | J67: 0 | K67: 0 | L67: 0 | M67: 0 | N67: 0 | O67: 0 | P67: 0 | Q67: 0 | R67: 0 | S67: 0 | T67: 0 | U67: 0 | V67: 0 | W67: 0 | X67: 0 | Y67: 0 | Z67: 0 | AA67: 0 | AB67: 0 | AC67: 0 | AD67: 0 | AE67: 0 | AF67: 0 | AG67: 0
A68: 42 | B68: 2 | C68: LV HH Metered | D68: 58121.07373 | E68: 415490.1951 | F68: 353097.5434 | G68: 3115 | H68: 400000 | I68: 79172.705 | J68: 58121.07373 | K68: 415490.1951 | L68: 353097.5434 | M68: 3115 | N68: 400000 | O68: 79172.705 | P68: 58121.07373 | Q68: 415490.1951 | R68: 353097.5434 | S68: 3115 | T68: 400000 | U68: 79172.705 | V68: 58121.07373 | W68: 415490.1951 | X68: 353097.5434 | Y68: 3115 | Z68: 400000 | AA68: 79172.705 | AB68: 58121.07373 | AC68: 415490.1951 | AD68: 353097.5434 | AE68: 3115 | AF68: 400000 | AG68: 79172.705
A69: 43 | B69: 2 | C69: LDNO LV: LV HH Metered | D69: 0 | E69: 0 | F69: 0 | G69: 0 | H69: 0 | I69: 0 | J69: 0 | K69: 0 | L69: 0 | M69: 0 | N69: 0 | O69: 0 | P69: 0 | Q69: 0 | R69: 0 | S69: 0 | T69: 0 | U69: 0 | V69: 0 | W69: 0 | X69: 0 | Y69: 0 | Z69: 0 | AA69: 0 | AB69: 0 | AC69: 0 | AD69: 0 | AE69: 0 | AF69: 0 | AG69: 0
A70: 44 | B70: 2 | C70: LDNO HV: LV HH Metered | D70: 2320.543558 | E70: 15183.85819 | F70: 13036.53843 | G70: 69 | H70: 19000 | I70: 1650.56 | J70: 2320.543558 | K70: 15183.85819 | L70: 13036.53843 | M70: 69 | N70: 19000 | O70: 1650.56 | P70: 2320.543558 | Q70: 15183.85819 | R70: 13036.53843 | S70: 69 | T70: 19000 | U70: 1650.56 | V70: 2320.543558 | W70: 15183.85819 | X70: 13036.53843 | Y70: 69 | Z70: 19000 | AA70: 1650.56 | AB70: 2320.543558 | AC70: 15183.85819 | AD70: 13036.53843 | AE70: 69 | AF70: 19000 | AG70: 1650.56
A71: 45 | C71: > LV Sub HH Metered | J71: 0 | K71: 0 | L71: 0 | M71: 0 | N71: 0 | O71: 0 | P71: 0 | Q71: 0 | R71: 0 | S71: 0 | T71: 0 | U71: 0 | V71: 0 | W71: 0 | X71: 0 | Y71: 0 | Z71: 0 | AA71: 0 | AB71: 0 | AC71: 0 | AD71: 0 | AE71: 0 | AF71: 0 | AG71: 0
A72: 46 | B72: 2 | C72: LV Sub HH Metered | D72: 49274.69914 | E72: 364799.304 | F72: 328189.7348 | G72: 1328 | H72: 327000 | I72: 77243.021 | J72: 49274.69914 | K72: 364799.304 | L72: 328189.7348 | M72: 1328 | N72: 327000 | O72: 77243.021 | P72: 49274.69914 | Q72: 364799.304 | R72: 328189.7348 | S72: 1328 | T72: 327000 | U72: 77243.021 | V72: 49274.69914 | W72: 364799.304 | X72: 328189.7348 | Y72: 1328 | Z72: 327000 | AA72: 77243.021 | AB72: 49274.69914 | AC72: 364799.304 | AD72: 328189.7348 | AE72: 1328 | AF72: 327000 | AG72: 77243.021
A73: 47 | B73: 2 | C73: LDNO HV: LV Sub HH Metered | D73: 0 | E73: 0 | F73: 0 | G73: 0 | H73: 0 | I73: 0 | J73: 0 | K73: 0 | L73: 0 | M73: 0 | N73: 0 | O73: 0 | P73: 0 | Q73: 0 | R73: 0 | S73: 0 | T73: 0 | U73: 0 | V73: 0 | W73: 0 | X73: 0 | Y73: 0 | Z73: 0 | AA73: 0 | AB73: 0 | AC73: 0 | AD73: 0 | AE73: 0 | AF73: 0 | AG73: 0
A74: 48 | C74: > HV HH Metered | J74: =IF(D74,((VLOOKUP($B74,$E$7:$AE$16,4)+1)*D74),) -> 0 | K74: =IF(E74,((VLOOKUP($B74,$E$7:$AE$16,8)+1)*E74),) -> 0 | L74: =IF(F74,((VLOOKUP($B74,$E$7:$AE$16,12)+1)*F74),) -> 0 | M74: =IF(G74,((VLOOKUP($B74,$E$7:$AE$16,16)+1)*G74),) -> 0 | N74: =IF(H74,((VLOOKUP($B74,$E$7:$AE$16,20)+1)*H74),) -> 0 | O74: =IF(I74,((VLOOKUP($B74,$E$7:$AE$16,24)+1)*I74),) -> 0 | P74: =IF(D74,((VLOOKUP($B74,$E$7:$AE$16,5)+1)*J74),) -> 0 | Q74: =IF(E74,((VLOOKUP($B74,$E$7:$AE$16,5+4)+1)*K74),) -> 0 | R74: =IF(F74,((VLOOKUP($B74,$E$7:$AE$16,5+8)+1)*L74),) -> 0 | S74: =IF(G74,((VLOOKUP($B74,$E$7:$AE$16,5+12)+1)*M74),) -> 0 | T74: =IF(H74,((VLOOKUP($B74,$E$7:$AE$16,5+16)+1)*N74),) -> 0 | U74: =IF(I74,((VLOOKUP($B74,$E$7:$AE$16,5+20)+1)*O74),) -> 0 | V74: =IF(D74,((VLOOKUP($B74,$E$7:$AE$16,6)+1)*P74),) -> 0 | W74: =IF(E74,((VLOOKUP($B74,$E$7:$AE$16,6+4)+1)*Q74),) -> 0 | X74: =IF(F74,((VLOOKUP($B74,$E$7:$AE$16,6+8)+1)*R74),) -> 0 | Y74: =IF(G74,((VLOOKUP($B74,$E$7:$AE$16,6+12)+1)*S74),) -> 0 | Z74: =IF(H74,((VLOOKUP($B74,$E$7:$AE$16,6+16)+1)*T74),) -> 0 | AA74: =IF(I74,((VLOOKUP($B74,$E$7:$AE$16,6+20)+1)*U74),) -> 0 | AB74: =IF(D74,((VLOOKUP($B74,$E$7:$AE$16,7)+1)*V74),) -> 0 | AC74: =IF(E74,((VLOOKUP($B74,$E$7:$AE$16,7+4)+1)*W74),) -> 0 | AD74: =IF(F74,((VLOOKUP($B74,$E$7:$AE$16,7+8)+1)*X74),) -> 0 | AE74: =IF(G74,((VLOOKUP($B74,$E$7:$AE$16,7+12)+1)*Y74),) -> 0 | AF74: =IF(H74,((VLOOKUP($B74,$E$7:$AE$16,7+16)+1)*Z74),) -> 0 | AG74: =IF(I74,((VLOOKUP($B74,$E$7:$AE$16,7+20)+1)*AA74),) -> 0
A75: 49 | B75: 2 | C75: HV HH Metered | D75: 171615.9697 | E75: 1222113.106 | F75: 1301017.156 | G75: 987 | H75: 964000 | I75: 196467.337 | J75: 171615.9697 | K75: 1222113.106 | L75: 1301017.156 | M75: 987 | N75: 964000 | O75: 196467.337 | P75: 171615.9697 | Q75: 1222113.106 | R75: 1301017.156 | S75: 987 | T75: 964000 | U75: 196467.337 | V75: 171615.9697 | W75: 1222113.106 | X75: 1301017.156 | Y75: 987 | Z75: 964000 | AA75: 196467.337 | AB75: 171615.9697 | AC75: 1222113.106 | AD75: 1301017.156 | AE75: 987 | AF75: 964000 | AG75: 196467.337
A76: 50 | B76: 2 | C76: LDNO HV: HV HH Metered | D76: 688.0612894 | E76: 3907.504393 | F76: 5074.351555 | G76: 4 | H76: 5000 | I76: 45.941 | J76: 688.0612894 | K76: 3907.504393 | L76: 5074.351555 | M76: 4 | N76: 5000 | O76: 45.941 | P76: 688.0612894 | Q76: 3907.504393 | R76: 5074.351555 | S76: 4 | T76: 5000 | U76: 45.941 | V76: 688.0612894 | W76: 3907.504393 | X76: 5074.351555 | Y76: 4 | Z76: 5000 | AA76: 45.941 | AB76: 688.0612894 | AC76: 3907.504393 | AD76: 5074.351555 | AE76: 4 | AF76: 5000 | AG76: 45.941
A77: 51 | C77: > NHH UMS category A | J77: 0 | K77: 0 | L77: 0 | M77: 0 | N77: 0 | O77: 0 | P77: 0 | Q77: 0 | R77: 0 | S77: 0 | T77: 0 | U77: 0 | V77: 0 | W77: 0 | X77: 0 | Y77: 0 | Z77: 0 | AA77: 0 | AB77: 0 | AC77: 0 | AD77: 0 | AE77: 0 | AF77: 0 | AG77: 0
A78: 52 | B78: 1 | C78: NHH UMS category A | D78: 13888.88092 | G78: 705 | J78: 13888.88092 | K78: 0 | L78: 0 | M78: 705 | N78: 0 | O78: 0 | P78: 13888.88092 | Q78: 0 | R78: 0 | S78: 705 | T78: 0 | U78: 0 | V78: 13888.88092 | W78: 0 | X78: 0 | Y78: 705 | Z78: 0 | AA78: 0 | AB78: 13888.88092 | AC78: 0 | AD78: 0 | AE78: 705 | AF78: 0 | AG78: 0
A79: 53 | B79: 1 | C79: LDNO LV: NHH UMS category A | D79: 123.8792041 | G79: 0 | J79: 123.8792041 | K79: 0 | L79: 0 | M79: 0 | N79: 0 | O79: 0 | P79: 123.8792041 | Q79: 0 | R79: 0 | S79: 0 | T79: 0 | U79: 0 | V79: 123.8792041 | W79: 0 | X79: 0 | Y79: 0 | Z79: 0 | AA79: 0 | AB79: 123.8792041 | AC79: 0 | AD79: 0 | AE79: 0 | AF79: 0 | AG79: 0
A80: 54 | B80: 1 | C80: LDNO HV: NHH UMS category A | D80: 10.40420543 | G80: 0 | J80: 10.40420543 | K80: 0 | L80: 0 | M80: 0 | N80: 0 | O80: 0 | P80: 10.40420543 | Q80: 0 | R80: 0 | S80: 0 | T80: 0 | U80: 0 | V80: 10.40420543 | W80: 0 | X80: 0 | Y80: 0 | Z80: 0 | AA80: 0 | AB80: 10.40420543 | AC80: 0 | AD80: 0 | AE80: 0 | AF80: 0 | AG80: 0
A81: 55 | C81: > NHH UMS category B | J81: 0 | K81: 0 | L81: 0 | M81: 0 | N81: 0 | O81: 0 | P81: 0 | Q81: 0 | R81: 0 | S81: 0 | T81: 0 | U81: 0 | V81: 0 | W81: 0 | X81: 0 | Y81: 0 | Z81: 0 | AA81: 0 | AB81: 0 | AC81: 0 | AD81: 0 | AE81: 0 | AF81: 0 | AG81: 0
A82: 56 | B82: 1 | C82: NHH UMS category B | D82: 5281.884691 | G82: 659 | J82: 5281.884691 | K82: 0 | L82: 0 | M82: 659 | N82: 0 | O82: 0 | P82: 5281.884691 | Q82: 0 | R82: 0 | S82: 659 | T82: 0 | U82: 0 | V82: 5281.884691 | W82: 0 | X82: 0 | Y82: 659 | Z82: 0 | AA82: 0 | AB82: 5281.884691 | AC82: 0 | AD82: 0 | AE82: 659 | AF82: 0 | AG82: 0
A83: 57 | B83: 1 | C83: LDNO LV: NHH UMS category B | D83: 74.42947252 | G83: 0 | J83: 74.42947252 | K83: 0 | L83: 0 | M83: 0 | N83: 0 | O83: 0 | P83: 74.42947252 | Q83: 0 | R83: 0 | S83: 0 | T83: 0 | U83: 0 | V83: 74.42947252 | W83: 0 | X83: 0 | Y83: 0 | Z83: 0 | AA83: 0 | AB83: 74.42947252 | AC83: 0 | AD83: 0 | AE83: 0 | AF83: 0 | AG83: 0
A84: 58 | B84: 1 | C84: LDNO HV: NHH UMS category B | D84: 172.6343121 | G84: 0 | J84: 172.6343121 | K84: 0 | L84: 0 | M84: 0 | N84: 0 | O84: 0 | P84: 172.6343121 | Q84: 0 | R84: 0 | S84: 0 | T84: 0 | U84: 0 | V84: 172.6343121 | W84: 0 | X84: 0 | Y84: 0 | Z84: 0 | AA84: 0 | AB84: 172.6343121 | AC84: 0 | AD84: 0 | AE84: 0 | AF84: 0 | AG84: 0
A85: 59 | C85: > NHH UMS category C | J85: 0 | K85: 0 | L85: 0 | M85: 0 | N85: 0 | O85: 0 | P85: 0 | Q85: 0 | R85: 0 | S85: 0 | T85: 0 | U85: 0 | V85: 0 | W85: 0 | X85: 0 | Y85: 0 | Z85: 0 | AA85: 0 | AB85: 0 | AC85: 0 | AD85: 0 | AE85: 0 | AF85: 0 | AG85: 0
A86: 60 | B86: 1 | C86: NHH UMS category C | D86: 618.2508284 | G86: 168 | J86: 618.2508284 | K86: 0 | L86: 0 | M86: 168 | N86: 0 | O86: 0 | P86: 618.2508284 | Q86: 0 | R86: 0 | S86: 168 | T86: 0 | U86: 0 | V86: 618.2508284 | W86: 0 | X86: 0 | Y86: 168 | Z86: 0 | AA86: 0 | AB86: 618.2508284 | AC86: 0 | AD86: 0 | AE86: 168 | AF86: 0 | AG86: 0
A87: 61 | B87: 1 | C87: LDNO LV: NHH UMS category C | D87: 0 | G87: 0 | J87: 0 | K87: 0 | L87: 0 | M87: 0 | N87: 0 | O87: 0 | P87: 0 | Q87: 0 | R87: 0 | S87: 0 | T87: 0 | U87: 0 | V87: 0 | W87: 0 | X87: 0 | Y87: 0 | Z87: 0 | AA87: 0 | AB87: 0 | AC87: 0 | AD87: 0 | AE87: 0 | AF87: 0 | AG87: 0
A88: 62 | B88: 1 | C88: LDNO HV: NHH UMS category C | D88: 128.409513 | G88: 0 | J88: 128.409513 | K88: 0 | L88: 0 | M88: 0 | N88: 0 | O88: 0 | P88: 128.409513 | Q88: 0 | R88: 0 | S88: 0 | T88: 0 | U88: 0 | V88: 128.409513 | W88: 0 | X88: 0 | Y88: 0 | Z88: 0 | AA88: 0 | AB88: 128.409513 | AC88: 0 | AD88: 0 | AE88: 0 | AF88: 0 | AG88: 0
A89: 63 | C89: > NHH UMS category D | J89: 0 | K89: 0 | L89: 0 | M89: 0 | N89: 0 | O89: 0 | P89: 0 | Q89: 0 | R89: 0 | S89: 0 | T89: 0 | U89: 0 | V89: 0 | W89: 0 | X89: 0 | Y89: 0 | Z89: 0 | AA89: 0 | AB89: 0 | AC89: 0 | AD89: 0 | AE89: 0 | AF89: 0 | AG89: 0
A90: 64 | B90: 1 | C90: NHH UMS category D | D90: 0 | G90: 1 | J90: 0 | K90: 0 | L90: 0 | M90: 1 | N90: 0 | O90: 0 | P90: 0 | Q90: 0 | R90: 0 | S90: 1 | T90: 0 | U90: 0 | V90: 0 | W90: 0 | X90: 0 | Y90: 1 | Z90: 0 | AA90: 0 | AB90: 0 | AC90: 0 | AD90: 0 | AE90: 1 | AF90: 0 | AG90: 0
A91: 65 | B91: 1 | C91: LDNO LV: NHH UMS category D | D91: 0 | G91: 0 | J91: 0 | K91: 0 | L91: 0 | M91: 0 | N91: 0 | O91: 0 | P91: 0 | Q91: 0 | R91: 0 | S91: 0 | T91: 0 | U91: 0 | V91: 0 | W91: 0 | X91: 0 | Y91: 0 | Z91: 0 | AA91: 0 | AB91: 0 | AC91: 0 | AD91: 0 | AE91: 0 | AF91: 0 | AG91: 0
A92: 66 | B92: 1 | C92: LDNO HV: NHH UMS category D | D92: 0 | G92: 0 | J92: 0 | K92: 0 | L92: 0 | M92: 0 | N92: 0 | O92: 0 | P92: 0 | Q92: 0 | R92: 0 | S92: 0 | T92: 0 | U92: 0 | V92: 0 | W92: 0 | X92: 0 | Y92: 0 | Z92: 0 | AA92: 0 | AB92: 0 | AC92: 0 | AD92: 0 | AE92: 0 | AF92: 0 | AG92: 0
A93: =A92+1 -> 67 | C93: > LV UMS (Pseudo HH Metered) | J93: 0 | K93: 0 | L93: 0 | M93: 0 | N93: 0 | O93: 0 | P93: 0 | Q93: 0 | R93: 0 | S93: 0 | T93: 0 | U93: 0 | V93: 0 | W93: 0 | X93: 0 | Y93: 0 | Z93: 0 | AA93: 0 | AB93: 0 | AC93: 0 | AD93: 0 | AE93: 0 | AF93: 0 | AG93: 0
A94: 68 | B94: 2 | C94: LV UMS (Pseudo HH Metered) | D94: 4455.729543 | E94: 27997.88905 | F94: 96620.92453 | G94: 17 | J94: 4455.729543 | K94: 27997.88905 | L94: 96620.92453 | M94: 17 | N94: 0 | O94: 0 | P94: 4455.729543 | Q94: 27997.88905 | R94: 96620.92453 | S94: 17 | T94: 0 | U94: 0 | V94: 4455.729543 | W94: 27997.88905 | X94: 96620.92453 | Y94: 17 | Z94: 0 | AA94: 0 | AB94: 4455.729543 | AC94: 27997.88905 | AD94: 96620.92453 | AE94: 17 | AF94: 0 | AG94: 0
A95: 69 | B95: 2 | C95: LDNO LV: LV UMS (Pseudo HH Metered) | D95: 0 | E95: 0 | F95: 0 | G95: 0 | J95: 0 | K95: 0 | L95: 0 | M95: 0 | N95: 0 | O95: 0 | P95: 0 | Q95: 0 | R95: 0 | S95: 0 | T95: 0 | U95: 0 | V95: 0 | W95: 0 | X95: 0 | Y95: 0 | Z95: 0 | AA95: 0 | AB95: 0 | AC95: 0 | AD95: 0 | AE95: 0 | AF95: 0 | AG95: 0
A96: 70 | B96: 2 | C96: LDNO HV: LV UMS (Pseudo HH Metered) | D96: 0 | E96: 0 | F96: 0 | G96: 0 | J96: 0 | K96: 0 | L96: 0 | M96: 0 | N96: 0 | O96: 0 | P96: 0 | Q96: 0 | R96: 0 | S96: 0 | T96: 0 | U96: 0 | V96: 0 | W96: 0 | X96: 0 | Y96: 0 | Z96: 0 | AA96: 0 | AB96: 0 | AC96: 0 | AD96: 0 | AE96: 0 | AF96: 0 | AG96: 0
A97: 71 | C97: > LV Generation NHH or Aggregate HH | J97: 0 | K97: 0 | L97: 0 | M97: 0 | N97: 0 | O97: 0 | P97: 0 | Q97: 0 | R97: 0 | S97: 0 | T97: 0 | U97: 0 | V97: 0 | W97: 0 | X97: 0 | Y97: 0 | Z97: 0 | AA97: 0 | AB97: 0 | AC97: 0 | AD97: 0 | AE97: 0 | AF97: 0 | AG97: 0
A98: 72 | B98: 4 | C98: LV Generation NHH or Aggregate HH | D98: 2351.390322 | G98: 260 | J98: 2351.390322 | K98: 0 | L98: 0 | M98: 260 | N98: 0 | O98: 0 | P98: 2351.390322 | Q98: 0 | R98: 0 | S98: 260 | T98: 0 | U98: 0 | V98: 2351.390322 | W98: 0 | X98: 0 | Y98: 260 | Z98: 0 | AA98: 0 | AB98: 2351.390322 | AC98: 0 | AD98: 0 | AE98: 260 | AF98: 0 | AG98: 0
A99: 73 | B99: 4 | C99: LDNO LV: LV Generation NHH or Aggregate HH | D99: 115.0887325 | G99: 0 | J99: 115.0887325 | K99: 0 | L99: 0 | M99: 0 | N99: 0 | O99: 0 | P99: 115.0887325 | Q99: 0 | R99: 0 | S99: 0 | T99: 0 | U99: 0 | V99: 115.0887325 | W99: 0 | X99: 0 | Y99: 0 | Z99: 0 | AA99: 0 | AB99: 115.0887325 | AC99: 0 | AD99: 0 | AE99: 0 | AF99: 0 | AG99: 0
A100: 74 | B100: 4 | C100: LDNO HV: LV Generation NHH or Aggregate HH | D100: 0 | G100: 0 | J100: 0 | K100: 0 | L100: 0 | M100: 0 | N100: 0 | O100: 0 | P100: 0 | Q100: 0 | R100: 0 | S100: 0 | T100: 0 | U100: 0 | V100: 0 | W100: 0 | X100: 0 | Y100: 0 | Z100: 0 | AA100: 0 | AB100: 0 | AC100: 0 | AD100: 0 | AE100: 0 | AF100: 0 | AG100: 0
A101: 75 | C101: > LV Sub Generation NHH | J101: 0 | K101: 0 | L101: 0 | M101: 0 | N101: 0 | O101: 0 | P101: 0 | Q101: 0 | R101: 0 | S101: 0 | T101: 0 | U101: 0 | V101: 0 | W101: 0 | X101: 0 | Y101: 0 | Z101: 0 | AA101: 0 | AB101: 0 | AC101: 0 | AD101: 0 | AE101: 0 | AF101: 0 | AG101: 0
A102: 76 | B102: 4 | C102: LV Sub Generation NHH | D102: 0 | G102: 0 | J102: 0 | K102: 0 | L102: 0 | M102: 0 | N102: 0 | O102: 0 | P102: 0 | Q102: 0 | R102: 0 | S102: 0 | T102: 0 | U102: 0 | V102: 0 | W102: 0 | X102: 0 | Y102: 0 | Z102: 0 | AA102: 0 | AB102: 0 | AC102: 0 | AD102: 0 | AE102: 0 | AF102: 0 | AG102: 0
A103: 77 | B103: 4 | C103: LDNO HV: LV Sub Generation NHH | D103: 0 | G103: 0 | J103: 0 | K103: 0 | L103: 0 | M103: 0 | N103: 0 | O103: 0 | P103: 0 | Q103: 0 | R103: 0 | S103: 0 | T103: 0 | U103: 0 | V103: 0 | W103: 0 | X103: 0 | Y103: 0 | Z103: 0 | AA103: 0 | AB103: 0 | AC103: 0 | AD103: 0 | AE103: 0 | AF103: 0 | AG103: 0
A104: 78 | C104: > LV Generation Intermittent | J104: 0 | K104: 0 | L104: 0 | M104: 0 | N104: 0 | O104: 0 | P104: 0 | Q104: 0 | R104: 0 | S104: 0 | T104: 0 | U104: 0 | V104: 0 | W104: 0 | X104: 0 | Y104: 0 | Z104: 0 | AA104: 0 | AB104: 0 | AC104: 0 | AD104: 0 | AE104: 0 | AF104: 0 | AG104: 0
A105: 79 | B105: 4 | C105: LV Generation Intermittent | D105: 38618.94537 | G105: 496 | I105: 2200.6 | J105: 38618.94537 | K105: 0 | L105: 0 | M105: 496 | N105: 0 | O105: 2200.6 | P105: 38618.94537 | Q105: 0 | R105: 0 | S105: 496 | T105: 0 | U105: 2200.6 | V105: 38618.94537 | W105: 0 | X105: 0 | Y105: 496 | Z105: 0 | AA105: 2200.6 | AB105: 38618.94537 | AC105: 0 | AD105: 0 | AE105: 496 | AF105: 0 | AG105: 2200.6
A106: 80 | B106: 4 | C106: LDNO LV: LV Generation Intermittent | D106: 0 | G106: 0 | I106: 0 | J106: =IF(D106,((VLOOKUP($B106,$E$7:$AE$16,4)+1)*D106),) -> 0 | K106: =IF(E106,((VLOOKUP($B106,$E$7:$AE$16,8)+1)*E106),) -> 0 | L106: =IF(F106,((VLOOKUP($B106,$E$7:$AE$16,12)+1)*F106),) -> 0 | M106: =IF(G106,((VLOOKUP($B106,$E$7:$AE$16,16)+1)*G106),) -> 0 | N106: =IF(H106,((VLOOKUP($B106,$E$7:$AE$16,20)+1)*H106),) -> 0 | O106: =IF(I106,((VLOOKUP($B106,$E$7:$AE$16,24)+1)*I106),) -> 0 | P106: =IF(D106,((VLOOKUP($B106,$E$7:$AE$16,5)+1)*J106),) -> 0 | Q106: =IF(E106,((VLOOKUP($B106,$E$7:$AE$16,5+4)+1)*K106),) -> 0 | R106: =IF(F106,((VLOOKUP($B106,$E$7:$AE$16,5+8)+1)*L106),) -> 0 | S106: =IF(G106,((VLOOKUP($B106,$E$7:$AE$16,5+12)+1)*M106),) -> 0 | T106: =IF(H106,((VLOOKUP($B106,$E$7:$AE$16,5+16)+1)*N106),) -> 0 | U106: =IF(I106,((VLOOKUP($B106,$E$7:$AE$16,5+20)+1)*O106),) -> 0 | V106: =IF(D106,((VLOOKUP($B106,$E$7:$AE$16,6)+1)*P106),) -> 0 | W106: =IF(E106,((VLOOKUP($B106,$E$7:$AE$16,6+4)+1)*Q106),) -> 0 | X106: =IF(F106,((VLOOKUP($B106,$E$7:$AE$16,6+8)+1)*R106),) -> 0 | Y106: =IF(G106,((VLOOKUP($B106,$E$7:$AE$16,6+12)+1)*S106),) -> 0 | Z106: =IF(H106,((VLOOKUP($B106,$E$7:$AE$16,6+16)+1)*T106),) -> 0 | AA106: =IF(I106,((VLOOKUP($B106,$E$7:$AE$16,6+20)+1)*U106),) -> 0 | AB106: =IF(D106,((VLOOKUP($B106,$E$7:$AE$16,7)+1)*V106),) -> 0 | AC106: =IF(E106,((VLOOKUP($B106,$E$7:$AE$16,7+4)+1)*W106),) -> 0 | AD106: =IF(F106,((VLOOKUP($B106,$E$7:$AE$16,7+8)+1)*X106),) -> 0 | AE106: =IF(G106,((VLOOKUP($B106,$E$7:$AE$16,7+12)+1)*Y106),) -> 0 | AF106: =IF(H106,((VLOOKUP($B106,$E$7:$AE$16,7+16)+1)*Z106),) -> 0 | AG106: =IF(I106,((VLOOKUP($B106,$E$7:$AE$16,7+20)+1)*AA106),) -> 0
A107: 81 | B107: 4 | C107: LDNO HV: LV Generation Intermittent | D107: 0 | G107: 0 | I107: 0 | J107: 0 | K107: 0 | L107: 0 | M107: 0 | N107: 0 | O107: 0 | P107: 0 | Q107: 0 | R107: 0 | S107: 0 | T107: 0 | U107: 0 | V107: 0 | W107: 0 | X107: 0 | Y107: 0 | Z107: 0 | AA107: 0 | AB107: 0 | AC107: 0 | AD107: 0 | AE107: 0 | AF107: 0 | AG107: 0
A108: 82 | C108: > LV Generation Non-Intermittent | J108: 0 | K108: 0 | L108: 0 | M108: 0 | N108: 0 | O108: 0 | P108: 0 | Q108: 0 | R108: 0 | S108: 0 | T108: 0 | U108: 0 | V108: 0 | W108: 0 | X108: 0 | Y108: 0 | Z108: 0 | AA108: 0 | AB108: 0 | AC108: 0 | AD108: 0 | AE108: 0 | AF108: 0 | AG108: 0
A109: 83 | B109: 4 | C109: LV Generation Non-Intermittent | D109: 416.519849 | E109: 2168.244323 | F109: 1902.921682 | G109: 8 | I109: 4.002 | J109: 416.519849 | K109: 2168.244323 | L109: 1902.921682 | M109: 8 | N109: 0 | O109: 4.002 | P109: 416.519849 | Q109: 2168.244323 | R109: 1902.921682 | S109: 8 | T109: 0 | U109: 4.002 | V109: 416.519849 | W109: 2168.244323 | X109: 1902.921682 | Y109: 8 | Z109: 0 | AA109: 4.002 | AB109: 416.519849 | AC109: 2168.244323 | AD109: 1902.921682 | AE109: 8 | AF109: 0 | AG109: 4.002
A110: 84 | B110: 4 | C110: LDNO LV: LV Generation Non-Intermittent | D110: 0 | E110: 0 | F110: 0 | G110: 0 | I110: 0 | J110: 0 | K110: 0 | L110: 0 | M110: 0 | N110: 0 | O110: 0 | P110: 0 | Q110: 0 | R110: 0 | S110: 0 | T110: 0 | U110: 0 | V110: 0 | W110: 0 | X110: 0 | Y110: 0 | Z110: 0 | AA110: 0 | AB110: 0 | AC110: 0 | AD110: 0 | AE110: 0 | AF110: 0 | AG110: 0
A111: 85 | B111: 4 | C111: LDNO HV: LV Generation Non-Intermittent | D111: 0 | E111: 0 | F111: 0 | G111: 0 | I111: 0 | J111: 0 | K111: 0 | L111: 0 | M111: 0 | N111: 0 | O111: 0 | P111: 0 | Q111: 0 | R111: 0 | S111: 0 | T111: 0 | U111: 0 | V111: 0 | W111: 0 | X111: 0 | Y111: 0 | Z111: 0 | AA111: 0 | AB111: 0 | AC111: 0 | AD111: 0 | AE111: 0 | AF111: 0 | AG111: 0
A112: 86 | C112: > LV Sub Generation Intermittent | J112: 0 | K112: 0 | L112: 0 | M112: 0 | N112: 0 | O112: 0 | P112: 0 | Q112: 0 | R112: 0 | S112: 0 | T112: 0 | U112: 0 | V112: 0 | W112: 0 | X112: 0 | Y112: 0 | Z112: 0 | AA112: 0 | AB112: 0 | AC112: 0 | AD112: 0 | AE112: 0 | AF112: 0 | AG112: 0
A113: 87 | B113: 4 | C113: LV Sub Generation Intermittent | D113: 5874.307069 | G113: 60 | I113: 608.533 | J113: 5874.307069 | K113: 0 | L113: 0 | M113: 60 | N113: 0 | O113: 608.533 | P113: 5874.307069 | Q113: 0 | R113: 0 | S113: 60 | T113: 0 | U113: 608.533 | V113: 5874.307069 | W113: 0 | X113: 0 | Y113: 60 | Z113: 0 | AA113: 608.533 | AB113: 5874.307069 | AC113: 0 | AD113: 0 | AE113: 60 | AF113: 0 | AG113: 608.533
A114: 88 | B114: 4 | C114: LDNO HV: LV Sub Generation Intermittent | D114: 0 | G114: 0 | I114: 0 | J114: 0 | K114: 0 | L114: 0 | M114: 0 | N114: 0 | O114: 0 | P114: 0 | Q114: 0 | R114: 0 | S114: 0 | T114: 0 | U114: 0 | V114: 0 | W114: 0 | X114: 0 | Y114: 0 | Z114: 0 | AA114: 0 | AB114: 0 | AC114: 0 | AD114: 0 | AE114: 0 | AF114: 0 | AG114: 0
A115: 89 | C115: > LV Sub Generation Non-Intermittent | J115: 0 | K115: 0 | L115: 0 | M115: 0 | N115: 0 | O115: 0 | P115: 0 | Q115: 0 | R115: 0 | S115: 0 | T115: 0 | U115: 0 | V115: 0 | W115: 0 | X115: 0 | Y115: 0 | Z115: 0 | AA115: 0 | AB115: 0 | AC115: 0 | AD115: 0 | AE115: 0 | AF115: 0 | AG115: 0
A116: 90 | B116: 4 | C116: LV Sub Generation Non-Intermittent | D116: 183.9761698 | E116: 970.3839728 | F116: 1572.264913 | G116: 9 | I116: 207.562 | J116: =IF(D116,((VLOOKUP($B116,$E$7:$AE$16,4)+1)*D116),) -> 183.9761698 | K116: =IF(E116,((VLOOKUP($B116,$E$7:$AE$16,8)+1)*E116),) -> 970.3839728 | L116: =IF(F116,((VLOOKUP($B116,$E$7:$AE$16,12)+1)*F116),) -> 1572.264913 | M116: =IF(G116,((VLOOKUP($B116,$E$7:$AE$16,16)+1)*G116),) -> 9 | N116: =IF(H116,((VLOOKUP($B116,$E$7:$AE$16,20)+1)*H116),) -> 0 | O116: =IF(I116,((VLOOKUP($B116,$E$7:$AE$16,24)+1)*I116),) -> 207.562 | P116: =IF(D116,((VLOOKUP($B116,$E$7:$AE$16,5)+1)*J116),) -> 183.9761698 | Q116: =IF(E116,((VLOOKUP($B116,$E$7:$AE$16,5+4)+1)*K116),) -> 970.3839728 | R116: =IF(F116,((VLOOKUP($B116,$E$7:$AE$16,5+8)+1)*L116),) -> 1572.264913 | S116: =IF(G116,((VLOOKUP($B116,$E$7:$AE$16,5+12)+1)*M116),) -> 9 | T116: =IF(H116,((VLOOKUP($B116,$E$7:$AE$16,5+16)+1)*N116),) -> 0 | U116: =IF(I116,((VLOOKUP($B116,$E$7:$AE$16,5+20)+1)*O116),) -> 207.562 | V116: =IF(D116,((VLOOKUP($B116,$E$7:$AE$16,6)+1)*P116),) -> 183.9761698 | W116: =IF(E116,((VLOOKUP($B116,$E$7:$AE$16,6+4)+1)*Q116),) -> 970.3839728 | X116: =IF(F116,((VLOOKUP($B116,$E$7:$AE$16,6+8)+1)*R116),) -> 1572.264913 | Y116: =IF(G116,((VLOOKUP($B116,$E$7:$AE$16,6+12)+1)*S116),) -> 9 | Z116: =IF(H116,((VLOOKUP($B116,$E$7:$AE$16,6+16)+1)*T116),) -> 0 | AA116: =IF(I116,((VLOOKUP($B116,$E$7:$AE$16,6+20)+1)*U116),) -> 207.562 | AB116: =IF(D116,((VLOOKUP($B116,$E$7:$AE$16,7)+1)*V116),) -> 183.9761698 | AC116: =IF(E116,((VLOOKUP($B116,$E$7:$AE$16,7+4)+1)*W116),) -> 970.3839728 | AD116: =IF(F116,((VLOOKUP($B116,$E$7:$AE$16,7+8)+1)*X116),) -> 1572.264913 | AE116: =IF(G116,((VLOOKUP($B116,$E$7:$AE$16,7+12)+1)*Y116),) -> 9 | AF116: =IF(H116,((VLOOKUP($B116,$E$7:$AE$16,7+16)+1)*Z116),) -> 0 | AG116: =IF(I116,((VLOOKUP($B116,$E$7:$AE$16,7+20)+1)*AA116),) -> 207.562
A117: 91 | B117: 4 | C117: LDNO HV: LV Sub Generation Non-Intermittent | D117: 0 | E117: 0 | F117: 0 | G117: 0 | I117: 0 | J117: 0 | K117: 0 | L117: 0 | M117: 0 | N117: 0 | O117: 0 | P117: 0 | Q117: 0 | R117: 0 | S117: 0 | T117: 0 | U117: 0 | V117: 0 | W117: 0 | X117: 0 | Y117: 0 | Z117: 0 | AA117: 0 | AB117: 0 | AC117: 0 | AD117: 0 | AE117: 0 | AF117: 0 | AG117: 0
A118: 92 | C118: > HV Generation Intermittent | J118: 0 | K118: 0 | L118: 0 | M118: 0 | N118: 0 | O118: 0 | P118: 0 | Q118: 0 | R118: 0 | S118: 0 | T118: 0 | U118: 0 | V118: 0 | W118: 0 | X118: 0 | Y118: 0 | Z118: 0 | AA118: 0 | AB118: 0 | AC118: 0 | AD118: 0 | AE118: 0 | AF118: 0 | AG118: 0
A119: 93 | B119: 4 | C119: HV Generation Intermittent | D119: 199644.0463 | G119: 112 | I119: 1479.683 | J119: 199644.0463 | K119: 0 | L119: 0 | M119: 112 | N119: 0 | O119: 1479.683 | P119: 199644.0463 | Q119: 0 | R119: 0 | S119: 112 | T119: 0 | U119: 1479.683 | V119: 199644.0463 | W119: 0 | X119: 0 | Y119: 112 | Z119: 0 | AA119: 1479.683 | AB119: 199644.0463 | AC119: 0 | AD119: 0 | AE119: 112 | AF119: 0 | AG119: 1479.683
A120: 94 | B120: 4 | C120: LDNO HV: HV Generation Intermittent | D120: 0 | G120: 0 | I120: 0 | J120: 0 | K120: 0 | L120: 0 | M120: 0 | N120: 0 | O120: 0 | P120: 0 | Q120: 0 | R120: 0 | S120: 0 | T120: 0 | U120: 0 | V120: 0 | W120: 0 | X120: 0 | Y120: 0 | Z120: 0 | AA120: 0 | AB120: 0 | AC120: 0 | AD120: 0 | AE120: 0 | AF120: 0 | AG120: 0
A121: 95 | C121: > HV Generation Non-Intermittent | J121: 0 | K121: 0 | L121: 0 | M121: 0 | N121: 0 | O121: 0 | P121: 0 | Q121: 0 | R121: 0 | S121: 0 | T121: 0 | U121: 0 | V121: 0 | W121: 0 | X121: 0 | Y121: 0 | Z121: 0 | AA121: 0 | AB121: 0 | AC121: 0 | AD121: 0 | AE121: 0 | AF121: 0 | AG121: 0
A122: 96 | B122: 4 | C122: HV Generation Non-Intermittent | D122: 13655.48466 | E122: 81256.33619 | F122: 113691.1286 | G122: 50 | I122: 535.564 | J122: =IF(D122,((VLOOKUP($B122,$E$7:$AE$16,4)+1)*D122),) -> 13655.48466 | K122: =IF(E122,((VLOOKUP($B122,$E$7:$AE$16,8)+1)*E122),) -> 81256.33619 | L122: =IF(F122,((VLOOKUP($B122,$E$7:$AE$16,12)+1)*F122),) -> 113691.1286 | M122: =IF(G122,((VLOOKUP($B122,$E$7:$AE$16,16)+1)*G122),) -> 50 | N122: =IF(H122,((VLOOKUP($B122,$E$7:$AE$16,20)+1)*H122),) -> 0 | O122: =IF(I122,((VLOOKUP($B122,$E$7:$AE$16,24)+1)*I122),) -> 535.564 | P122: =IF(D122,((VLOOKUP($B122,$E$7:$AE$16,5)+1)*J122),) -> 13655.48466 | Q122: =IF(E122,((VLOOKUP($B122,$E$7:$AE$16,5+4)+1)*K122),) -> 81256.33619 | R122: =IF(F122,((VLOOKUP($B122,$E$7:$AE$16,5+8)+1)*L122),) -> 113691.1286 | S122: =IF(G122,((VLOOKUP($B122,$E$7:$AE$16,5+12)+1)*M122),) -> 50 | T122: =IF(H122,((VLOOKUP($B122,$E$7:$AE$16,5+16)+1)*N122),) -> 0 | U122: =IF(I122,((VLOOKUP($B122,$E$7:$AE$16,5+20)+1)*O122),) -> 535.564 | V122: =IF(D122,((VLOOKUP($B122,$E$7:$AE$16,6)+1)*P122),) -> 13655.48466 | W122: =IF(E122,((VLOOKUP($B122,$E$7:$AE$16,6+4)+1)*Q122),) -> 81256.33619 | X122: =IF(F122,((VLOOKUP($B122,$E$7:$AE$16,6+8)+1)*R122),) -> 113691.1286 | Y122: =IF(G122,((VLOOKUP($B122,$E$7:$AE$16,6+12)+1)*S122),) -> 50 | Z122: =IF(H122,((VLOOKUP($B122,$E$7:$AE$16,6+16)+1)*T122),) -> 0 | AA122: =IF(I122,((VLOOKUP($B122,$E$7:$AE$16,6+20)+1)*U122),) -> 535.564 | AB122: =IF(D122,((VLOOKUP($B122,$E$7:$AE$16,7)+1)*V122),) -> 13655.48466 | AC122: =IF(E122,((VLOOKUP($B122,$E$7:$AE$16,7+4)+1)*W122),) -> 81256.33619 | AD122: =IF(F122,((VLOOKUP($B122,$E$7:$AE$16,7+8)+1)*X122),) -> 113691.1286 | AE122: =IF(G122,((VLOOKUP($B122,$E$7:$AE$16,7+12)+1)*Y122),) -> 50 | AF122: =IF(H122,((VLOOKUP($B122,$E$7:$AE$16,7+16)+1)*Z122),) -> 0 | AG122: =IF(I122,((VLOOKUP($B122,$E$7:$AE$16,7+20)+1)*AA122),) -> 535.564
A123: 97 | B123: 4 | C123: LDNO HV: HV Generation Non-Intermittent | D123: 0 | E123: 0 | F123: 0 | G123: 0 | I123: 0 | J123: 0 | K123: 0 | L123: 0 | M123: 0 | N123: 0 | O123: 0 | P123: 0 | Q123: 0 | R123: 0 | S123: 0 | T123: 0 | U123: 0 | V123: 0 | W123: 0 | X123: 0 | Y123: 0 | Z123: 0 | AA123: 0 | AB123: 0 | AC123: 0 | AD123: 0 | AE123: 0 | AF123: 0 | AG123: 0

Sheet CDCM Timebands
B2: CDCM Timebands
C4: 2015/16
C5: WD (incl. bank holidays) | D5: WE | E5: 2016/17 | F5: 2017/18 | G5: 2018/19 | H5: 2019/20
B6: Red | C6: 17:00 to 19:00 | E6: No Change | F6: No Change | G6: No Change | H6: No Change
B8: Amber | C8: 07:30 to 17:00 | D8: 16:30 to 19:30
C9: 19:00 to 21:30
B11: Green | C11: 00:00 to 07:30 | D11: 00:00 to 16:30
C12: 21:30 to 24:00 | D12: 19:30 to 24:00
C14: 2015/16
C15: Monday to Friday Nov to Feb (excluding 22nd Dec to 4th Jan inclusive) | D15: Monday to Friday Mar to Oct (plus 22nd Dec to 4th Jan inclusive) | E15: WE | F15: 2016/17 | G15: 2017/18 | H15: 2018/19 | I15: 2019/20
B16: Black | C16: 17:00 to 19:00 | F16: No Change | G16: No Change | H16: No Change | I16: No Change
B18: Yellow | C18: 07:30 to 17:00 | D18: 07:30 to 21:30 | E18: 16:30 to 19:30
C19: 19:00 to 21:30
B21: Green | C21: 00:00 to 07:30 | D21: 00:00 to 07:30 | E21: 00:00 to 16:30
C22: 21:30 to 24:00 | D22: 21:30 to 24:00 | E22: 19:30 to 24:00

Sheet (Y)
A1: Input data (Y)
A4: 1000. Company, charging year, data version
B6: Company | C6: Year | D6: Version
A7: Company, charging year, data version | B7: =VLOOKUP(Vlookup!B7,'CDCM Forecast Data'!$A$14:$I$271,5,FALSE) -> 0 | C7: =VLOOKUP(Vlookup!C7,'CDCM Forecast Data'!$A$14:$I$271,5,FALSE) -> 0 | D7: =VLOOKUP(Vlookup!D7,'CDCM Forecast Data'!$A$14:$I$271,5,FALSE) -> 0
A9: 1010. Financial and general assumptions
A11: Sources: financial assumptions; calendar; network model.
A12: These financial assumptions determine the annuity rate applied to convert the asset values of the network model into an annual charge.
B13: Rate of return | C13: Annualisation period (years) | D13: Annuity proportion for customer-contributed assets | E13: Power factor | F13: Days in the charging period
A14: Financial and general assumptions | B14: =VLOOKUP(Vlookup!B14,'CDCM Forecast Data'!$A$14:$I$271,5,FALSE) -> 0.056 | C14: =VLOOKUP(Vlookup!C14,'CDCM Forecast Data'!$A$14:$I$271,5,FALSE) -> 40 | E14: =VLOOKUP(Vlookup!E14,'CDCM Forecast Data'!$A$14:$I$271,5,FALSE) -> 0.95 | F14: =VLOOKUP(Vlookup!F14,'CDCM Forecast Data'!$A$14:$I$271,5,FALSE) -> 366
A16: 1017. Diversity allowance between top and bottom of network level
A18: Source: operational data analysis and/or network model.
A19: The diversity figure against GSP is the diversity between GSP Group (the whole system) and individual GSPs.
A20: The diversity figure against 132kV is the diversity between GSPs (the top of the 132kV network) and 132kV/EHV bulk supply points (the bottom of the 132kV network).
A21: The diversity figure against EHV is the diversity between 132kV/EHV bulk supply points (the top of the EHV network) and EHV/HV primary substations (the bottom of the EHV network).
A22: The diversity figure against HV is the diversity between EHV/HV primary substations (the top of the HV network) and HV/LV substations (the bottom of the HV network).
B23: Diversity allowance between top and bottom of network level
A24: GSPs | B24: =VLOOKUP(Vlookup!B24,'CDCM Forecast Data'!$A$14:$I$271,5,FALSE) -> 0.022
A25: 132kV | B25: =VLOOKUP(Vlookup!B25,'CDCM Forecast Data'!$A$14:$I$271,5,FALSE) -> 0.031
A26: 132kV/EHV
A27: EHV | B27: =VLOOKUP(Vlookup!B27,'CDCM Forecast Data'!$A$14:$I$271,5,FALSE) -> 0.075
A28: EHV/HV
A29: HV | B29: =VLOOKUP(Vlookup!B29,'CDCM Forecast Data'!$A$14:$I$271,5,FALSE) -> 0.37
A30: HV/LV
A31: LV circuits
A33: 1018. Proportion of relevant load going through 132kV/HV direct transformation
B35: 132kV/HV
A36: EHV/HV | B36: =VLOOKUP(Vlookup!B36,'CDCM Forecast Data'!$A$14:$I$271,5,FALSE) -> 0
A38: 1019. Network model GSP peak demand (MW)
B40: Network model GSP peak demand (MW)
A41: Network model GSP peak demand (MW) | B41: =VLOOKUP(Vlookup!B41,'CDCM Forecast Data'!$A$14:$I$271,5,FALSE) -> 500
A43: 1020. Gross asset cost by network level (£)
B45: Gross assets £
A46: 132kV | B46: =VLOOKUP(Vlookup!B46,'CDCM Forecast Data'!$A$14:$I$271,5,FALSE) -> 108796668.7
A47: 132kV/EHV | B47: =VLOOKUP(Vlookup!B47,'CDCM Forecast Data'!$A$14:$I$271,5,FALSE) -> 16204582.05
A48: EHV | B48: =VLOOKUP(Vlookup!B48,'CDCM Forecast Data'!$A$14:$I$271,5,FALSE) -> 47812491.21
A49: EHV/HV | B49: =VLOOKUP(Vlookup!B49,'CDCM Forecast Data'!$A$14:$I$271,5,FALSE) -> 38220798.71
A50: 132kV/HV | B50: =VLOOKUP(Vlookup!B50,'CDCM Forecast Data'!$A$14:$I$271,5,FALSE) -> 0
A51: HV | B51: =VLOOKUP(Vlookup!B51,'CDCM Forecast Data'!$A$14:$I$271,5,FALSE) -> 159774060
A52: HV/LV | B52: =VLOOKUP(Vlookup!B52,'CDCM Forecast Data'!$A$14:$I$271,5,FALSE) -> 62354022.62
A53: LV circuits | B53: =VLOOKUP(Vlookup!B53,'CDCM Forecast Data'!$A$14:$I$271,5,FALSE) -> 139051883.3
A55: 1022. LV service model asset cost (£)
B57: LV service model 1 | C57: LV service model 2 | D57: LV service model 3 | E57: LV service model 4 | F57: LV service model 5 | G57: LV service model 6 | H57: LV service model 7 | I57: LV service model 8
A58: LV service model asset cost (£) | B58: =VLOOKUP(Vlookup!B58,'CDCM Forecast Data'!$A$14:$I$271,5,FALSE) -> 4818.312533 | C58: =VLOOKUP(Vlookup!C58,'CDCM Forecast Data'!$A$14:$I$271,5,FALSE) -> 588.8475667 | D58: =VLOOKUP(Vlookup!D58,'CDCM Forecast Data'!$A$14:$I$271,5,FALSE) -> 688.3550083 | E58: =VLOOKUP(Vlookup!E58,'CDCM Forecast Data'!$A$14:$I$271,5,FALSE) -> 508.3187333 | F58: =VLOOKUP(Vlookup!F58,'CDCM Forecast Data'!$A$14:$I$271,5,FALSE) -> 1179.954953 | G58: =VLOOKUP(Vlookup!G58,'CDCM Forecast Data'!$A$14:$I$271,5,FALSE) -> 892.507875 | H58: =VLOOKUP(Vlookup!H58,'CDCM Forecast Data'!$A$14:$I$271,5,FALSE) -> 0 | I58: =VLOOKUP(Vlookup!I58,'CDCM Forecast Data'!$A$14:$I$271,5,FALSE) -> 468.8148
A60: 1023. HV service model asset cost (£)
B62: HV service model 1 | C62: HV service model 2 | D62: HV service model 3 | E62: HV service model 4 | F62: HV service model 5
A63: HV service model asset cost (£) | B63: =VLOOKUP(Vlookup!B63,'CDCM Forecast Data'!$A$14:$I$271,5,FALSE) -> 8971.25056 | C63: =VLOOKUP(Vlookup!C63,'CDCM Forecast Data'!$A$14:$I$271,5,FALSE) -> 4334.24 | D63: =VLOOKUP(Vlookup!D63,'CDCM Forecast Data'!$A$14:$I$271,5,FALSE) -> 0 | E63: =VLOOKUP(Vlookup!E63,'CDCM Forecast Data'!$A$14:$I$271,5,FALSE) -> 0 | F63: =VLOOKUP(Vlookup!F63,'CDCM Forecast Data'!$A$14:$I$271,5,FALSE) -> 0
A65: 1025. Matrix of applicability of LV service models to tariffs with fixed charges
B66: 2 | C66: =B66+1 -> 3 | D66: 4 | E66: 5 | F66: 6 | G66: 7 | H66: 8 | I66: 9
B67: LV service model 1 | C67: LV service model 2 | D67: LV service model 3 | E67: LV service model 4 | F67: LV service model 5 | G67: LV service model 6 | H67: LV service model 7 | I67: LV service model 8
A68: Domestic Unrestricted | B68: =VLOOKUP($A68,'Mat of App'!$B$7:$AP$37,B$66,FALSE) -> 0.05 | C68: =VLOOKUP($A68,'Mat of App'!$B$7:$AP$37,C$66,FALSE) -> 0 | D68: =VLOOKUP($A68,'Mat of App'!$B$7:$AP$37,D$66,FALSE) -> 0 | E68: =VLOOKUP($A68,'Mat of App'!$B$7:$AP$37,E$66,FALSE) -> 0 | F68: =VLOOKUP($A68,'Mat of App'!$B$7:$AP$37,F$66,FALSE) -> 0 | G68: =VLOOKUP($A68,'Mat of App'!$B$7:$AP$37,G$66,FALSE) -> 0 | H68: =VLOOKUP($A68,'Mat of App'!$B$7:$AP$37,H$66,FALSE) -> 0 | I68: =VLOOKUP($A68,'Mat of App'!$B$7:$AP$37,I$66,FALSE) -> 0
A69: Domestic Two Rate | B69: =VLOOKUP($A69,'Mat of App'!$B$7:$AP$37,B$66,FALSE) -> 0.05 | C69: =VLOOKUP($A69,'Mat of App'!$B$7:$AP$37,C$66,FALSE) -> 0 | D69: =VLOOKUP($A69,'Mat of App'!$B$7:$AP$37,D$66,FALSE) -> 0 | E69: =VLOOKUP($A69,'Mat of App'!$B$7:$AP$37,E$66,FALSE) -> 0 | F69: =VLOOKUP($A69,'Mat of App'!$B$7:$AP$37,F$66,FALSE) -> 0 | G69: =VLOOKUP($A69,'Mat of App'!$B$7:$AP$37,G$66,FALSE) -> 0 | H69: =VLOOKUP($A69,'Mat of App'!$B$7:$AP$37,H$66,FALSE) -> 0 | I69: =VLOOKUP($A69,'Mat of App'!$B$7:$AP$37,I$66,FALSE) -> 0
A70: Small Non Domestic Unrestricted | B70: =VLOOKUP($A70,'Mat of App'!$B$7:$AP$37,B$66,FALSE) -> 0 | C70: =VLOOKUP($A70,'Mat of App'!$B$7:$AP$37,C$66,FALSE) -> 1 | D70: =VLOOKUP($A70,'Mat of App'!$B$7:$AP$37,D$66,FALSE) -> 0 | E70: =VLOOKUP($A70,'Mat of App'!$B$7:$AP$37,E$66,FALSE) -> 0 | F70: =VLOOKUP($A70,'Mat of App'!$B$7:$AP$37,F$66,FALSE) -> 0 | G70: =VLOOKUP($A70,'Mat of App'!$B$7:$AP$37,G$66,FALSE) -> 0 | H70: =VLOOKUP($A70,'Mat of App'!$B$7:$AP$37,H$66,FALSE) -> 0 | I70: =VLOOKUP($A70,'Mat of App'!$B$7:$AP$37,I$66,FALSE) -> 0
A71: Small Non Domestic Two Rate | B71: =VLOOKUP($A71,'Mat of App'!$B$7:$AP$37,B$66,FALSE) -> 0 | C71: =VLOOKUP($A71,'Mat of App'!$B$7:$AP$37,C$66,FALSE) -> 1 | D71: =VLOOKUP($A71,'Mat of App'!$B$7:$AP$37,D$66,FALSE) -> 0 | E71: =VLOOKUP($A71,'Mat of App'!$B$7:$AP$37,E$66,FALSE) -> 0 | F71: =VLOOKUP($A71,'Mat of App'!$B$7:$AP$37,F$66,FALSE) -> 0 | G71: =VLOOKUP($A71,'Mat of App'!$B$7:$AP$37,G$66,FALSE) -> 0 | H71: =VLOOKUP($A71,'Mat of App'!$B$7:$AP$37,H$66,FALSE) -> 0 | I71: =VLOOKUP($A71,'Mat of App'!$B$7:$AP$37,I$66,FALSE) -> 0
A72: LV Medium Non-Domestic | B72: =VLOOKUP($A72,'Mat of App'!$B$7:$AP$37,B$66,FALSE) -> 0 | C72: =VLOOKUP($A72,'Mat of App'!$B$7:$AP$37,C$66,FALSE) -> 0 | D72: =VLOOKUP($A72,'Mat of App'!$B$7:$AP$37,D$66,FALSE) -> 1 | E72: =VLOOKUP($A72,'Mat of App'!$B$7:$AP$37,E$66,FALSE) -> 0 | F72: =VLOOKUP($A72,'Mat of App'!$B$7:$AP$37,F$66,FALSE) -> 0 | G72: =VLOOKUP($A72,'Mat of App'!$B$7:$AP$37,G$66,FALSE) -> 0 | H72: =VLOOKUP($A72,'Mat of App'!$B$7:$AP$37,H$66,FALSE) -> 0 | I72: =VLOOKUP($A72,'Mat of App'!$B$7:$AP$37,I$66,FALSE) -> 0
A73: LV Sub Medium Non-Domestic | B73: =VLOOKUP($A73,'Mat of App'!$B$7:$AP$37,B$66,FALSE) -> 0 | C73: =VLOOKUP($A73,'Mat of App'!$B$7:$AP$37,C$66,FALSE) -> 0 | D73: =VLOOKUP($A73,'Mat of App'!$B$7:$AP$37,D$66,FALSE) -> 0 | E73: =VLOOKUP($A73,'Mat of App'!$B$7:$AP$37,E$66,FALSE) -> 1 | F73: =VLOOKUP($A73,'Mat of App'!$B$7:$AP$37,F$66,FALSE) -> 0 | G73: =VLOOKUP($A73,'Mat of App'!$B$7:$AP$37,G$66,FALSE) -> 0 | H73: =VLOOKUP($A73,'Mat of App'!$B$7:$AP$37,H$66,FALSE) -> 0 | I73: =VLOOKUP($A73,'Mat of App'!$B$7:$AP$37,I$66,FALSE) -> 0
A74: LV Network Domestic | B74: =VLOOKUP($A74,'Mat of App'!$B$7:$AP$37,B$66,FALSE) -> 0.05 | C74: =VLOOKUP($A74,'Mat of App'!$B$7:$AP$37,C$66,FALSE) -> 0 | D74: =VLOOKUP($A74,'Mat of App'!$B$7:$AP$37,D$66,FALSE) -> 0 | E74: =VLOOKUP($A74,'Mat of App'!$B$7:$AP$37,E$66,FALSE) -> 0 | F74: =VLOOKUP($A74,'Mat of App'!$B$7:$AP$37,F$66,FALSE) -> 0 | G74: =VLOOKUP($A74,'Mat of App'!$B$7:$AP$37,G$66,FALSE) -> 0 | H74: =VLOOKUP($A74,'Mat of App'!$B$7:$AP$37,H$66,FALSE) -> 0 | I74: =VLOOKUP($A74,'Mat of App'!$B$7:$AP$37,I$66,FALSE) -> 0
A75: LV Network Non-Domestic Non-CT | B75: =VLOOKUP($A75,'Mat of App'!$B$7:$AP$37,B$66,FALSE) -> 0 | C75: =VLOOKUP($A75,'Mat of App'!$B$7:$AP$37,C$66,FALSE) -> 1 | D75: =VLOOKUP($A75,'Mat of App'!$B$7:$AP$37,D$66,FALSE) -> 0 | E75: =VLOOKUP($A75,'Mat of App'!$B$7:$AP$37,E$66,FALSE) -> 0 | F75: =VLOOKUP($A75,'Mat of App'!$B$7:$AP$37,F$66,FALSE) -> 0 | G75: =VLOOKUP($A75,'Mat of App'!$B$7:$AP$37,G$66,FALSE) -> 0 | H75: =VLOOKUP($A75,'Mat of App'!$B$7:$AP$37,H$66,FALSE) -> 0 | I75: =VLOOKUP($A75,'Mat of App'!$B$7:$AP$37,I$66,FALSE) -> 0
A76: LV HH Metered | B76: =VLOOKUP($A76,'Mat of App'!$B$7:$AP$37,B$66,FALSE) -> 0 | C76: =VLOOKUP($A76,'Mat of App'!$B$7:$AP$37,C$66,FALSE) -> 0 | D76: =VLOOKUP($A76,'Mat of App'!$B$7:$AP$37,D$66,FALSE) -> 0 | E76: =VLOOKUP($A76,'Mat of App'!$B$7:$AP$37,E$66,FALSE) -> 0 | F76: =VLOOKUP($A76,'Mat of App'!$B$7:$AP$37,F$66,FALSE) -> 1 | G76: =VLOOKUP($A76,'Mat of App'!$B$7:$AP$37,G$66,FALSE) -> 0 | H76: =VLOOKUP($A76,'Mat of App'!$B$7:$AP$37,H$66,FALSE) -> 0 | I76: =VLOOKUP($A76,'Mat of App'!$B$7:$AP$37,I$66,FALSE) -> 0
A77: LV Sub HH Metered | B77: =VLOOKUP($A77,'Mat of App'!$B$7:$AP$37,B$66,FALSE) -> 0 | C77: =VLOOKUP($A77,'Mat of App'!$B$7:$AP$37,C$66,FALSE) -> 0 | D77: =VLOOKUP($A77,'Mat of App'!$B$7:$AP$37,D$66,FALSE) -> 0 | E77: =VLOOKUP($A77,'Mat of App'!$B$7:$AP$37,E$66,FALSE) -> 0 | F77: =VLOOKUP($A77,'Mat of App'!$B$7:$AP$37,F$66,FALSE) -> 0 | G77: =VLOOKUP($A77,'Mat of App'!$B$7:$AP$37,G$66,FALSE) -> 1 | H77: =VLOOKUP($A77,'Mat of App'!$B$7:$AP$37,H$66,FALSE) -> 0 | I77: =VLOOKUP($A77,'Mat of App'!$B$7:$AP$37,I$66,FALSE) -> 0
A78: LV Generation NHH or Aggregate HH | B78: =VLOOKUP($A78,'Mat of App'!$B$7:$AP$37,B$66,FALSE) -> 0 | C78: =VLOOKUP($A78,'Mat of App'!$B$7:$AP$37,C$66,FALSE) -> 0 | D78: =VLOOKUP($A78,'Mat of App'!$B$7:$AP$37,D$66,FALSE) -> 0 | E78: =VLOOKUP($A78,'Mat of App'!$B$7:$AP$37,E$66,FALSE) -> 0 | F78: =VLOOKUP($A78,'Mat of App'!$B$7:$AP$37,F$66,FALSE) -> 0 | G78: =VLOOKUP($A78,'Mat of App'!$B$7:$AP$37,G$66,FALSE) -> 0 | H78: =VLOOKUP($A78,'Mat of App'!$B$7:$AP$37,H$66,FALSE) -> 1 | I78: =VLOOKUP($A78,'Mat of App'!$B$7:$AP$37,I$66,FALSE) -> 0
A79: LV Sub Generation NHH | B79: =VLOOKUP($A79,'Mat of App'!$B$7:$AP$37,B$66,FALSE) -> 0 | C79: =VLOOKUP($A79,'Mat of App'!$B$7:$AP$37,C$66,FALSE) -> 0 | D79: =VLOOKUP($A79,'Mat of App'!$B$7:$AP$37,D$66,FALSE) -> 0 | E79: =VLOOKUP($A79,'Mat of App'!$B$7:$AP$37,E$66,FALSE) -> 0 | F79: =VLOOKUP($A79,'Mat of App'!$B$7:$AP$37,F$66,FALSE) -> 0 | G79: =VLOOKUP($A79,'Mat of App'!$B$7:$AP$37,G$66,FALSE) -> 0 | H79: =VLOOKUP($A79,'Mat of App'!$B$7:$AP$37,H$66,FALSE) -> 1 | I79: =VLOOKUP($A79,'Mat of App'!$B$7:$AP$37,I$66,FALSE) -> 0
A80: LV Generation Intermittent | B80: =VLOOKUP($A80,'Mat of App'!$B$7:$AP$37,B$66,FALSE) -> 0 | C80: =VLOOKUP($A80,'Mat of App'!$B$7:$AP$37,C$66,FALSE) -> 0 | D80: =VLOOKUP($A80,'Mat of App'!$B$7:$AP$37,D$66,FALSE) -> 0 | E80: =VLOOKUP($A80,'Mat of App'!$B$7:$AP$37,E$66,FALSE) -> 0 | F80: =VLOOKUP($A80,'Mat of App'!$B$7:$AP$37,F$66,FALSE) -> 0 | G80: =VLOOKUP($A80,'Mat of App'!$B$7:$AP$37,G$66,FALSE) -> 0 | H80: =VLOOKUP($A80,'Mat of App'!$B$7:$AP$37,H$66,FALSE) -> 1 | I80: =VLOOKUP($A80,'Mat of App'!$B$7:$AP$37,I$66,FALSE) -> 0
A81: LV Generation Non-Intermittent | B81: =VLOOKUP($A81,'Mat of App'!$B$7:$AP$37,B$66,FALSE) -> 0 | C81: =VLOOKUP($A81,'Mat of App'!$B$7:$AP$37,C$66,FALSE) -> 0 | D81: =VLOOKUP($A81,'Mat of App'!$B$7:$AP$37,D$66,FALSE) -> 0 | E81: =VLOOKUP($A81,'Mat of App'!$B$7:$AP$37,E$66,FALSE) -> 0 | F81: =VLOOKUP($A81,'Mat of App'!$B$7:$AP$37,F$66,FALSE) -> 0 | G81: =VLOOKUP($A81,'Mat of App'!$B$7:$AP$37,G$66,FALSE) -> 0 | H81: =VLOOKUP($A81,'Mat of App'!$B$7:$AP$37,H$66,FALSE) -> 0 | I81: =VLOOKUP($A81,'Mat of App'!$B$7:$AP$37,I$66,FALSE) -> 0
A82: LV Sub Generation Intermittent | B82: =VLOOKUP($A82,'Mat of App'!$B$7:$AP$37,B$66,FALSE) -> 0 | C82: =VLOOKUP($A82,'Mat of App'!$B$7:$AP$37,C$66,FALSE) -> 0 | D82: =VLOOKUP($A82,'Mat of App'!$B$7:$AP$37,D$66,FALSE) -> 0 | E82: =VLOOKUP($A82,'Mat of App'!$B$7:$AP$37,E$66,FALSE) -> 0 | F82: =VLOOKUP($A82,'Mat of App'!$B$7:$AP$37,F$66,FALSE) -> 0 | G82: =VLOOKUP($A82,'Mat of App'!$B$7:$AP$37,G$66,FALSE) -> 0 | H82: =VLOOKUP($A82,'Mat of App'!$B$7:$AP$37,H$66,FALSE) -> 0 | I82: =VLOOKUP($A82,'Mat of App'!$B$7:$AP$37,I$66,FALSE) -> 0
A83: LV Sub Generation Non-Intermittent | B83: =VLOOKUP($A83,'Mat of App'!$B$7:$AP$37,B$66,FALSE) -> 0 | C83: =VLOOKUP($A83,'Mat of App'!$B$7:$AP$37,C$66,FALSE) -> 0 | D83: =VLOOKUP($A83,'Mat of App'!$B$7:$AP$37,D$66,FALSE) -> 0 | E83: =VLOOKUP($A83,'Mat of App'!$B$7:$AP$37,E$66,FALSE) -> 0 | F83: =VLOOKUP($A83,'Mat of App'!$B$7:$AP$37,F$66,FALSE) -> 0 | G83: =VLOOKUP($A83,'Mat of App'!$B$7:$AP$37,G$66,FALSE) -> 0 | H83: =VLOOKUP($A83,'Mat of App'!$B$7:$AP$37,H$66,FALSE) -> 0 | I83: =VLOOKUP($A83,'Mat of App'!$B$7:$AP$37,I$66,FALSE) -> 0
A85: 1026. Matrix of applicability of LV service models to unmetered tariffs
A87: Source: service models
A88: Proportion of service model involved in connecting load of 1 MWh/year
B89: LV service model 1 | C89: LV service model 2 | D89: LV service model 3 | E89: LV service model 4 | F89: LV service model 5 | G89: LV service model 6 | H89: LV service model 7 | I89: LV service model 8
A90: All LV unmetered tariffs | B90: =VLOOKUP($A90,'Mat of App'!$B$7:$AP$37,B$66,FALSE) -> 0 | C90: =VLOOKUP($A90,'Mat of App'!$B$7:$AP$37,C$66,FALSE) -> 0 | D90: =VLOOKUP($A90,'Mat of App'!$B$7:$AP$37,D$66,FALSE) -> 0 | E90: =VLOOKUP($A90,'Mat of App'!$B$7:$AP$37,E$66,FALSE) -> 0 | F90: =VLOOKUP($A90,'Mat of App'!$B$7:$AP$37,F$66,FALSE) -> 0 | G90: =VLOOKUP($A90,'Mat of App'!$B$7:$AP$37,G$66,FALSE) -> 0 | H90: =VLOOKUP($A90,'Mat of App'!$B$7:$AP$37,H$66,FALSE) -> 0 | I90: =VLOOKUP($A90,'Mat of App'!$B$7:$AP$37,I$66,FALSE) -> 0.4876
A92: 1028. Matrix of applicability of HV service models to tariffs with fixed charges
B93: 2 | C93: =B93+1 -> 3 | D93: =C93+1 -> 4 | E93: =D93+1 -> 5 | F93: =E93+1 -> 6
B94: HV service model 1 | C94: HV service model 2 | D94: HV service model 3 | E94: HV service model 4 | F94: HV service model 5
A95: HV Medium Non-Domestic | B95: =VLOOKUP($A95,'Mat of App'!$B$7:$AP$37,B$93,FALSE) -> 1 | C95: =VLOOKUP($A95,'Mat of App'!$B$7:$AP$37,C$93,FALSE) -> 0 | D95: =VLOOKUP($A95,'Mat of App'!$B$7:$AP$37,D$93,FALSE) -> 0 | E95: =VLOOKUP($A95,'Mat of App'!$B$7:$AP$37,E$93,FALSE) -> 0 | F95: =VLOOKUP($A95,'Mat of App'!$B$7:$AP$37,F$93,FALSE) -> 0
A96: HV HH Metered | B96: =VLOOKUP($A96,'Mat of App'!$B$7:$AP$37,B$93,FALSE) -> 1 | C96: =VLOOKUP($A96,'Mat of App'!$B$7:$AP$37,C$93,FALSE) -> 0 | D96: =VLOOKUP($A96,'Mat of App'!$B$7:$AP$37,D$93,FALSE) -> 0 | E96: =VLOOKUP($A96,'Mat of App'!$B$7:$AP$37,E$93,FALSE) -> 0 | F96: =VLOOKUP($A96,'Mat of App'!$B$7:$AP$37,F$93,FALSE) -> 0
A97: HV Generation Intermittent | B97: =VLOOKUP($A97,'Mat of App'!$B$7:$AP$37,B$93,FALSE) -> 0 | C97: =VLOOKUP($A97,'Mat of App'!$B$7:$AP$37,C$93,FALSE) -> 1 | D97: =VLOOKUP($A97,'Mat of App'!$B$7:$AP$37,D$93,FALSE) -> 0 | E97: =VLOOKUP($A97,'Mat of App'!$B$7:$AP$37,E$93,FALSE) -> 0 | F97: =VLOOKUP($A97,'Mat of App'!$B$7:$AP$37,F$93,FALSE) -> 0
A98: HV Generation Non-Intermittent | B98: =VLOOKUP($A98,'Mat of App'!$B$7:$AP$37,B$93,FALSE) -> 0 | C98: =VLOOKUP($A98,'Mat of App'!$B$7:$AP$37,C$93,FALSE) -> 1 | D98: =VLOOKUP($A98,'Mat of App'!$B$7:$AP$37,D$93,FALSE) -> 0 | E98: =VLOOKUP($A98,'Mat of App'!$B$7:$AP$37,E$93,FALSE) -> 0 | F98: =VLOOKUP($A98,'Mat of App'!$B$7:$AP$37,F$93,FALSE) -> 0
A100: 1032. Loss adjustment factors to transmission
A102: Source: losses model or loss adjustment factors at time of system peak.
B103: 132kV | C103: 132kV/EHV | D103: EHV | E103: EHV/HV | F103: HV | G103: HV/LV | H103: LV circuits
A104: Loss adjustment factor | B104: =VLOOKUP(Vlookup!B69,'CDCM Forecast Data'!$A$14:$I$271,5,FALSE) -> 1.008 | C104: =VLOOKUP(Vlookup!C69,'CDCM Forecast Data'!$A$14:$I$271,5,FALSE) -> 1.011 | D104: =VLOOKUP(Vlookup!D69,'CDCM Forecast Data'!$A$14:$I$271,5,FALSE) -> 1.024 | E104: =VLOOKUP(Vlookup!E69,'CDCM Forecast Data'!$A$14:$I$271,5,FALSE) -> 1.034 | F104: =VLOOKUP(Vlookup!F69,'CDCM Forecast Data'!$A$14:$I$271,5,FALSE) -> 1.057 | G104: =VLOOKUP(Vlookup!G69,'CDCM Forecast Data'!$A$14:$I$271,5,FALSE) -> 1.07 | H104: =VLOOKUP(Vlookup!H69,'CDCM Forecast Data'!$A$14:$I$271,5,FALSE) -> 1.085
A106: 1037. Embedded network (LDNO) discounts
A108: Source: separate price control disaggregation model.
B109: No discount | C109: LDNO LV: LV user | D109: LDNO HV: LV user | E109: LDNO HV: LV sub user | F109: LDNO HV: HV user
A110: LDNO discount | C110: =VLOOKUP(Vlookup!C75,'CDCM Forecast Data'!$A$14:$I$271,5,FALSE) -> 0.3656937215 | D110: =VLOOKUP(Vlookup!D75,'CDCM Forecast Data'!$A$14:$I$271,5,FALSE) -> 0.6245521397 | E110: =VLOOKUP(Vlookup!E75,'CDCM Forecast Data'!$A$14:$I$271,5,FALSE) -> 0.3894166697 | F110: =VLOOKUP(Vlookup!F75,'CDCM Forecast Data'!$A$14:$I$271,5,FALSE) -> 0.2775282659
A112: 1041. Load profile data for demand users
A114: Source: load data analysis.
B115: Coincidence factor | C115: Load factor
A116: Domestic Unrestricted | B116: =VLOOKUP(Vlookup!B81,'CDCM Forecast Data'!$A$14:$I$271,5,FALSE) -> 0.9179184292 | C116: =VLOOKUP(Vlookup!C81,'CDCM Forecast Data'!$A$14:$I$271,5,FALSE) -> 0.415665058
A117: Domestic Two Rate | B117: =VLOOKUP(Vlookup!B82,'CDCM Forecast Data'!$A$14:$I$271,5,FALSE) -> 0.3200962015 | C117: =VLOOKUP(Vlookup!C82,'CDCM Forecast Data'!$A$14:$I$271,5,FALSE) -> 0.2450956802
A118: Domestic Off Peak (related MPAN) | C118: =VLOOKUP(Vlookup!C83,'CDCM Forecast Data'!$A$14:$I$271,5,FALSE) -> 0.136867915
A119: Small Non Domestic Unrestricted | B119: =VLOOKUP(Vlookup!B84,'CDCM Forecast Data'!$A$14:$I$271,5,FALSE) -> 0.616785984 | C119: =VLOOKUP(Vlookup!C84,'CDCM Forecast Data'!$A$14:$I$271,5,FALSE) -> 0.395190376
A120: Small Non Domestic Two Rate | B120: =VLOOKUP(Vlookup!B85,'CDCM Forecast Data'!$A$14:$I$271,5,FALSE) -> 0.565932477 | C120: =VLOOKUP(Vlookup!C85,'CDCM Forecast Data'!$A$14:$I$271,5,FALSE) -> 0.4330374222
A121: Small Non Domestic Off Peak (related MPAN) | C121: =VLOOKUP(Vlookup!C86,'CDCM Forecast Data'!$A$14:$I$271,5,FALSE) -> 0.1971252058
A122: LV Medium Non-Domestic | B122: =VLOOKUP(Vlookup!B87,'CDCM Forecast Data'!$A$14:$I$271,5,FALSE) -> 0.8402833019 | C122: =VLOOKUP(Vlookup!C87,'CDCM Forecast Data'!$A$14:$I$271,5,FALSE) -> 0.5917167714
A123: LV Sub Medium Non-Domestic | B123: =VLOOKUP(Vlookup!B88,'CDCM Forecast Data'!$A$14:$I$271,5,FALSE) -> 0.816438164 | C123: =VLOOKUP(Vlookup!C88,'CDCM Forecast Data'!$A$14:$I$271,5,FALSE) -> 0.5994378117
A124: HV Medium Non-Domestic | B124: =VLOOKUP(Vlookup!B89,'CDCM Forecast Data'!$A$14:$I$271,5,FALSE) -> 0.7355089477 | C124: =VLOOKUP(Vlookup!C89,'CDCM Forecast Data'!$A$14:$I$271,5,FALSE) -> 0.4659507287
A125: LV Network Domestic | B125: =VLOOKUP(Vlookup!B90,'CDCM Forecast Data'!$A$14:$I$271,5,FALSE) -> 0.8239834604 | C125: =VLOOKUP(Vlookup!C90,'CDCM Forecast Data'!$A$14:$I$271,5,FALSE) -> 0.3860236334
A126: LV Network Non-Domestic Non-CT | B126: =VLOOKUP(Vlookup!B91,'CDCM Forecast Data'!$A$14:$I$271,5,FALSE) -> 0.6065619843 | C126: =VLOOKUP(Vlookup!C91,'CDCM Forecast Data'!$A$14:$I$271,5,FALSE) -> 0.3977278379
A127: LV HH Metered | B127: =VLOOKUP(Vlookup!B92,'CDCM Forecast Data'!$A$14:$I$271,5,FALSE) -> 0.8048097412 | C127: =VLOOKUP(Vlookup!C92,'CDCM Forecast Data'!$A$14:$I$271,5,FALSE) -> 0.5859730553
A128: LV Sub HH Metered | B128: =VLOOKUP(Vlookup!B93,'CDCM Forecast Data'!$A$14:$I$271,5,FALSE) -> 0.7678104713 | C128: =VLOOKUP(Vlookup!C93,'CDCM Forecast Data'!$A$14:$I$271,5,FALSE) -> 0.6124288461
A129: HV HH Metered | B129: =VLOOKUP(Vlookup!B94,'CDCM Forecast Data'!$A$14:$I$271,5,FALSE) -> 0.7982801564 | C129: =VLOOKUP(Vlookup!C94,'CDCM Forecast Data'!$A$14:$I$271,5,FALSE) -> 0.720897537
A130: NHH UMS category A | B130: =VLOOKUP(Vlookup!B95,'CDCM Forecast Data'!$A$14:$I$271,5,FALSE) -> 1 | C130: =VLOOKUP(Vlookup!C95,'CDCM Forecast Data'!$A$14:$I$271,5,FALSE) -> 1
A131: NHH UMS category B | B131: =VLOOKUP(Vlookup!B96,'CDCM Forecast Data'!$A$14:$I$271,5,FALSE) -> 1 | C131: =VLOOKUP(Vlookup!C96,'CDCM Forecast Data'!$A$14:$I$271,5,FALSE) -> 0.4728817338
A132: NHH UMS category C | B132: =VLOOKUP(Vlookup!B97,'CDCM Forecast Data'!$A$14:$I$271,5,FALSE) -> 1 | C132: =VLOOKUP(Vlookup!C97,'CDCM Forecast Data'!$A$14:$I$271,5,FALSE) -> 0.2480372467
A133: NHH UMS category D | B133: =VLOOKUP(Vlookup!B98,'CDCM Forecast Data'!$A$14:$I$271,5,FALSE) -> 0 | C133: =VLOOKUP(Vlookup!C98,'CDCM Forecast Data'!$A$14:$I$271,5,FALSE) -> 0.5138551701
A134: LV UMS (Pseudo HH Metered) | B134: =VLOOKUP(Vlookup!B99,'CDCM Forecast Data'!$A$14:$I$271,5,FALSE) -> 0.9767133458 | C134: =VLOOKUP(Vlookup!C99,'CDCM Forecast Data'!$A$14:$I$271,5,FALSE) -> 0.4699498049
A136: 1053. Volume forecasts for the charging year
B137: 4 | C137: 5 | D137: 6 | E137: 7 | F137: 8 | G137: 9
A138: Source: forecast.
A139: Please include MPAN counts for tariffs with no fixed charge (e.g. off-peak tariffs),
A140: but exclude MPANs on tariffs with a fixed charge that are not subject to a fixed charge due to a site grouping arrangement.
B141: Rate 1 units (MWh) | C141: Rate 2 units (MWh) | D141: Rate 3 units (MWh) | E141: MPANs | F141: Import capacity (kVA) | G141: Reactive power units (MVArh)
A142: > Domestic Unrestricted | B142: =VLOOKUP(Vlookup!$B107,'CDCM Volume Forecasts'!$A$27:$AG$123,B$137,FALSE) -> 0 | C142: =VLOOKUP(Vlookup!$B107,'CDCM Volume Forecasts'!$A$27:$AG$123,C$137,FALSE) -> 0 | D142: =VLOOKUP(Vlookup!$B107,'CDCM Volume Forecasts'!$A$27:$AG$123,D$137,FALSE) -> 0 | E142: =VLOOKUP(Vlookup!$B107,'CDCM Volume Forecasts'!$A$27:$AG$123,E$137,FALSE) -> 0 | F142: =VLOOKUP(Vlookup!$B107,'CDCM Volume Forecasts'!$A$27:$AG$123,F$137,FALSE) -> 0 | G142: =VLOOKUP(Vlookup!$B107,'CDCM Volume Forecasts'!$A$27:$AG$123,G$137,FALSE) -> 0
A143: Domestic Unrestricted | B143: =VLOOKUP(Vlookup!$B108,'CDCM Volume Forecasts'!$A$27:$AG$123,B$137,FALSE) -> 4290939.517 | C143: =VLOOKUP(Vlookup!$B108,'CDCM Volume Forecasts'!$A$27:$AG$123,C$137,FALSE) -> 0 | D143: =VLOOKUP(Vlookup!$B108,'CDCM Volume Forecasts'!$A$27:$AG$123,D$137,FALSE) -> 0 | E143: =VLOOKUP(Vlookup!$B108,'CDCM Volume Forecasts'!$A$27:$AG$123,E$137,FALSE) -> 1195490 | F143: =VLOOKUP(Vlookup!$B108,'CDCM Volume Forecasts'!$A$27:$AG$123,F$137,FALSE) -> 0 | G143: =VLOOKUP(Vlookup!$B108,'CDCM Volume Forecasts'!$A$27:$AG$123,G$137,FALSE) -> 0
A144: LDNO LV: Domestic Unrestricted | B144: =VLOOKUP(Vlookup!$B109,'CDCM Volume Forecasts'!$A$27:$AG$123,B$137,FALSE) -> 14926.84831 | C144: =VLOOKUP(Vlookup!$B109,'CDCM Volume Forecasts'!$A$27:$AG$123,C$137,FALSE) -> 0 | D144: =VLOOKUP(Vlookup!$B109,'CDCM Volume Forecasts'!$A$27:$AG$123,D$137,FALSE) -> 0 | E144: =VLOOKUP(Vlookup!$B109,'CDCM Volume Forecasts'!$A$27:$AG$123,E$137,FALSE) -> 4822 | F144: =VLOOKUP(Vlookup!$B109,'CDCM Volume Forecasts'!$A$27:$AG$123,F$137,FALSE) -> 0 | G144: =VLOOKUP(Vlookup!$B109,'CDCM Volume Forecasts'!$A$27:$AG$123,G$137,FALSE) -> 0
A145: LDNO HV: Domestic Unrestricted | B145: =VLOOKUP(Vlookup!$B110,'CDCM Volume Forecasts'!$A$27:$AG$123,B$137,FALSE) -> 19637.86889 | C145: =VLOOKUP(Vlookup!$B110,'CDCM Volume Forecasts'!$A$27:$AG$123,C$137,FALSE) -> 0 | D145: =VLOOKUP(Vlookup!$B110,'CDCM Volume Forecasts'!$A$27:$AG$123,D$137,FALSE) -> 0 | E145: =VLOOKUP(Vlookup!$B110,'CDCM Volume Forecasts'!$A$27:$AG$123,E$137,FALSE) -> 6443 | F145: =VLOOKUP(Vlookup!$B110,'CDCM Volume Forecasts'!$A$27:$AG$123,F$137,FALSE) -> 0 | G145: =VLOOKUP(Vlookup!$B110,'CDCM Volume Forecasts'!$A$27:$AG$123,G$137,FALSE) -> 0
A146: > Domestic Two Rate | B146: =VLOOKUP(Vlookup!$B111,'CDCM Volume Forecasts'!$A$27:$AG$123,B$137,FALSE) -> 0 | C146: =VLOOKUP(Vlookup!$B111,'CDCM Volume Forecasts'!$A$27:$AG$123,C$137,FALSE) -> 0 | D146: =VLOOKUP(Vlookup!$B111,'CDCM Volume Forecasts'!$A$27:$AG$123,D$137,FALSE) -> 0 | E146: =VLOOKUP(Vlookup!$B111,'CDCM Volume Forecasts'!$A$27:$AG$123,E$137,FALSE) -> 0 | F146: =VLOOKUP(Vlookup!$B111,'CDCM Volume Forecasts'!$A$27:$AG$123,F$137,FALSE) -> 0 | G146: =VLOOKUP(Vlookup!$B111,'CDCM Volume Forecasts'!$A$27:$AG$123,G$137,FALSE) -> 0
A147: Domestic Two Rate | B147: =VLOOKUP(Vlookup!$B112,'CDCM Volume Forecasts'!$A$27:$AG$123,B$137,FALSE) -> 705713.8558 | C147: =VLOOKUP(Vlookup!$B112,'CDCM Volume Forecasts'!$A$27:$AG$123,C$137,FALSE) -> 762376.7408 | D147: =VLOOKUP(Vlookup!$B112,'CDCM Volume Forecasts'!$A$27:$AG$123,D$137,FALSE) -> 0 | E147: =VLOOKUP(Vlookup!$B112,'CDCM Volume Forecasts'!$A$27:$AG$123,E$137,FALSE) -> 224253 | F147: =VLOOKUP(Vlookup!$B112,'CDCM Volume Forecasts'!$A$27:$AG$123,F$137,FALSE) -> 0 | G147: =VLOOKUP(Vlookup!$B112,'CDCM Volume Forecasts'!$A$27:$AG$123,G$137,FALSE) -> 0
A148: LDNO LV: Domestic Two Rate | B148: =VLOOKUP(Vlookup!$B113,'CDCM Volume Forecasts'!$A$27:$AG$123,B$137,FALSE) -> 1609.784626 | C148: =VLOOKUP(Vlookup!$B113,'CDCM Volume Forecasts'!$A$27:$AG$123,C$137,FALSE) -> 652.4538035 | D148: =VLOOKUP(Vlookup!$B113,'CDCM Volume Forecasts'!$A$27:$AG$123,D$137,FALSE) -> 0 | E148: =VLOOKUP(Vlookup!$B113,'CDCM Volume Forecasts'!$A$27:$AG$123,E$137,FALSE) -> 438 | F148: =VLOOKUP(Vlookup!$B113,'CDCM Volume Forecasts'!$A$27:$AG$123,F$137,FALSE) -> 0 | G148: =VLOOKUP(Vlookup!$B113,'CDCM Volume Forecasts'!$A$27:$AG$123,G$137,FALSE) -> 0
A149: LDNO HV: Domestic Two Rate | B149: =VLOOKUP(Vlookup!$B114,'CDCM Volume Forecasts'!$A$27:$AG$123,B$137,FALSE) -> 743.8910237 | C149: =VLOOKUP(Vlookup!$B114,'CDCM Volume Forecasts'!$A$27:$AG$123,C$137,FALSE) -> 336.0472317 | D149: =VLOOKUP(Vlookup!$B114,'CDCM Volume Forecasts'!$A$27:$AG$123,D$137,FALSE) -> 0 | E149: =VLOOKUP(Vlookup!$B114,'CDCM Volume Forecasts'!$A$27:$AG$123,E$137,FALSE) -> 273 | F149: =VLOOKUP(Vlookup!$B114,'CDCM Volume Forecasts'!$A$27:$AG$123,F$137,FALSE) -> 0 | G149: =VLOOKUP(Vlookup!$B114,'CDCM Volume Forecasts'!$A$27:$AG$123,G$137,FALSE) -> 0
A150: > Domestic Off Peak (related MPAN) | B150: =VLOOKUP(Vlookup!$B115,'CDCM Volume Forecasts'!$A$27:$AG$123,B$137,FALSE) -> 0 | C150: =VLOOKUP(Vlookup!$B115,'CDCM Volume Forecasts'!$A$27:$AG$123,C$137,FALSE) -> 0 | D150: =VLOOKUP(Vlookup!$B115,'CDCM Volume Forecasts'!$A$27:$AG$123,D$137,FALSE) -> 0 | E150: =VLOOKUP(Vlookup!$B115,'CDCM Volume Forecasts'!$A$27:$AG$123,E$137,FALSE) -> 0 | F150: =VLOOKUP(Vlookup!$B115,'CDCM Volume Forecasts'!$A$27:$AG$123,F$137,FALSE) -> 0 | G150: =VLOOKUP(Vlookup!$B115,'CDCM Volume Forecasts'!$A$27:$AG$123,G$137,FALSE) -> 0
A151: Domestic Off Peak (related MPAN) | B151: =VLOOKUP(Vlookup!$B116,'CDCM Volume Forecasts'!$A$27:$AG$123,B$137,FALSE) -> 73622.90041 | C151: =VLOOKUP(Vlookup!$B116,'CDCM Volume Forecasts'!$A$27:$AG$123,C$137,FALSE) -> 0 | D151: =VLOOKUP(Vlookup!$B116,'CDCM Volume Forecasts'!$A$27:$AG$123,D$137,FALSE) -> 0 | E151: =VLOOKUP(Vlookup!$B116,'CDCM Volume Forecasts'!$A$27:$AG$123,E$137,FALSE) -> 0 | F151: =VLOOKUP(Vlookup!$B116,'CDCM Volume Forecasts'!$A$27:$AG$123,F$137,FALSE) -> 0 | G151: =VLOOKUP(Vlookup!$B116,'CDCM Volume Forecasts'!$A$27:$AG$123,G$137,FALSE) -> 0
A152: LDNO LV: Domestic Off Peak (related MPAN) | B152: =VLOOKUP(Vlookup!$B117,'CDCM Volume Forecasts'!$A$27:$AG$123,B$137,FALSE) -> 0 | C152: =VLOOKUP(Vlookup!$B117,'CDCM Volume Forecasts'!$A$27:$AG$123,C$137,FALSE) -> 0 | D152: =VLOOKUP(Vlookup!$B117,'CDCM Volume Forecasts'!$A$27:$AG$123,D$137,FALSE) -> 0 | E152: =VLOOKUP(Vlookup!$B117,'CDCM Volume Forecasts'!$A$27:$AG$123,E$137,FALSE) -> 0 | F152: =VLOOKUP(Vlookup!$B117,'CDCM Volume Forecasts'!$A$27:$AG$123,F$137,FALSE) -> 0 | G152: =VLOOKUP(Vlookup!$B117,'CDCM Volume Forecasts'!$A$27:$AG$123,G$137,FALSE) -> 0
A153: LDNO HV: Domestic Off Peak (related MPAN) | B153: =VLOOKUP(Vlookup!$B118,'CDCM Volume Forecasts'!$A$27:$AG$123,B$137,FALSE) -> 0 | C153: =VLOOKUP(Vlookup!$B118,'CDCM Volume Forecasts'!$A$27:$AG$123,C$137,FALSE) -> 0 | D153: =VLOOKUP(Vlookup!$B118,'CDCM Volume Forecasts'!$A$27:$AG$123,D$137,FALSE) -> 0 | E153: =VLOOKUP(Vlookup!$B118,'CDCM Volume Forecasts'!$A$27:$AG$123,E$137,FALSE) -> 0 | F153: =VLOOKUP(Vlookup!$B118,'CDCM Volume Forecasts'!$A$27:$AG$123,F$137,FALSE) -> 0 | G153: =VLOOKUP(Vlookup!$B118,'CDCM Volume Forecasts'!$A$27:$AG$123,G$137,FALSE) -> 0
A154: > Small Non Domestic Unrestricted | B154: =VLOOKUP(Vlookup!$B119,'CDCM Volume Forecasts'!$A$27:$AG$123,B$137,FALSE) -> 0 | C154: =VLOOKUP(Vlookup!$B119,'CDCM Volume Forecasts'!$A$27:$AG$123,C$137,FALSE) -> 0 | D154: =VLOOKUP(Vlookup!$B119,'CDCM Volume Forecasts'!$A$27:$AG$123,D$137,FALSE) -> 0 | E154: =VLOOKUP(Vlookup!$B119,'CDCM Volume Forecasts'!$A$27:$AG$123,E$137,FALSE) -> 0 | F154: =VLOOKUP(Vlookup!$B119,'CDCM Volume Forecasts'!$A$27:$AG$123,F$137,FALSE) -> 0 | G154: =VLOOKUP(Vlookup!$B119,'CDCM Volume Forecasts'!$A$27:$AG$123,G$137,FALSE) -> 0
A155: Small Non Domestic Unrestricted | B155: =VLOOKUP(Vlookup!$B120,'CDCM Volume Forecasts'!$A$27:$AG$123,B$137,FALSE) -> 1193627.254 | C155: =VLOOKUP(Vlookup!$B120,'CDCM Volume Forecasts'!$A$27:$AG$123,C$137,FALSE) -> 0 | D155: =VLOOKUP(Vlookup!$B120,'CDCM Volume Forecasts'!$A$27:$AG$123,D$137,FALSE) -> 0 | E155: =VLOOKUP(Vlookup!$B120,'CDCM Volume Forecasts'!$A$27:$AG$123,E$137,FALSE) -> 108227 | F155: =VLOOKUP(Vlookup!$B120,'CDCM Volume Forecasts'!$A$27:$AG$123,F$137,FALSE) -> 0 | G155: =VLOOKUP(Vlookup!$B120,'CDCM Volume Forecasts'!$A$27:$AG$123,G$137,FALSE) -> 0
A156: LDNO LV: Small Non Domestic Unrestricted | B156: =VLOOKUP(Vlookup!$B121,'CDCM Volume Forecasts'!$A$27:$AG$123,B$137,FALSE) -> 732.3359481 | C156: =VLOOKUP(Vlookup!$B121,'CDCM Volume Forecasts'!$A$27:$AG$123,C$137,FALSE) -> 0 | D156: =VLOOKUP(Vlookup!$B121,'CDCM Volume Forecasts'!$A$27:$AG$123,D$137,FALSE) -> 0 | E156: =VLOOKUP(Vlookup!$B121,'CDCM Volume Forecasts'!$A$27:$AG$123,E$137,FALSE) -> 89 | F156: =VLOOKUP(Vlookup!$B121,'CDCM Volume Forecasts'!$A$27:$AG$123,F$137,FALSE) -> 0 | G156: =VLOOKUP(Vlookup!$B121,'CDCM Volume Forecasts'!$A$27:$AG$123,G$137,FALSE) -> 0
A157: LDNO HV: Small Non Domestic Unrestricted | B157: =VLOOKUP(Vlookup!$B122,'CDCM Volume Forecasts'!$A$27:$AG$123,B$137,FALSE) -> 5309.683211 | C157: =VLOOKUP(Vlookup!$B122,'CDCM Volume Forecasts'!$A$27:$AG$123,C$137,FALSE) -> 0 | D157: =VLOOKUP(Vlookup!$B122,'CDCM Volume Forecasts'!$A$27:$AG$123,D$137,FALSE) -> 0 | E157: =VLOOKUP(Vlookup!$B122,'CDCM Volume Forecasts'!$A$27:$AG$123,E$137,FALSE) -> 236 | F157: =VLOOKUP(Vlookup!$B122,'CDCM Volume Forecasts'!$A$27:$AG$123,F$137,FALSE) -> 0 | G157: =VLOOKUP(Vlookup!$B122,'CDCM Volume Forecasts'!$A$27:$AG$123,G$137,FALSE) -> 0
A158: > Small Non Domestic Two Rate | B158: =VLOOKUP(Vlookup!$B123,'CDCM Volume Forecasts'!$A$27:$AG$123,B$137,FALSE) -> 0 | C158: =VLOOKUP(Vlookup!$B123,'CDCM Volume Forecasts'!$A$27:$AG$123,C$137,FALSE) -> 0 | D158: =VLOOKUP(Vlookup!$B123,'CDCM Volume Forecasts'!$A$27:$AG$123,D$137,FALSE) -> 0 | E158: =VLOOKUP(Vlookup!$B123,'CDCM Volume Forecasts'!$A$27:$AG$123,E$137,FALSE) -> 0 | F158: =VLOOKUP(Vlookup!$B123,'CDCM Volume Forecasts'!$A$27:$AG$123,F$137,FALSE) -> 0 | G158: =VLOOKUP(Vlookup!$B123,'CDCM Volume Forecasts'!$A$27:$AG$123,G$137,FALSE) -> 0
A159: Small Non Domestic Two Rate | B159: =VLOOKUP(Vlookup!$B124,'CDCM Volume Forecasts'!$A$27:$AG$123,B$137,FALSE) -> 375235.737 | C159: =VLOOKUP(Vlookup!$B124,'CDCM Volume Forecasts'!$A$27:$AG$123,C$137,FALSE) -> 180177.0378 | D159: =VLOOKUP(Vlookup!$B124,'CDCM Volume Forecasts'!$A$27:$AG$123,D$137,FALSE) -> 0 | E159: =VLOOKUP(Vlookup!$B124,'CDCM Volume Forecasts'!$A$27:$AG$123,E$137,FALSE) -> 27300 | F159: =VLOOKUP(Vlookup!$B124,'CDCM Volume Forecasts'!$A$27:$AG$123,F$137,FALSE) -> 0 | G159: =VLOOKUP(Vlookup!$B124,'CDCM Volume Forecasts'!$A$27:$AG$123,G$137,FALSE) -> 0
A160: LDNO LV: Small Non Domestic Two Rate | B160: =VLOOKUP(Vlookup!$B125,'CDCM Volume Forecasts'!$A$27:$AG$123,B$137,FALSE) -> 419.0897999 | C160: =VLOOKUP(Vlookup!$B125,'CDCM Volume Forecasts'!$A$27:$AG$123,C$137,FALSE) -> 205.1707039 | D160: =VLOOKUP(Vlookup!$B125,'CDCM Volume Forecasts'!$A$27:$AG$123,D$137,FALSE) -> 0 | E160: =VLOOKUP(Vlookup!$B125,'CDCM Volume Forecasts'!$A$27:$AG$123,E$137,FALSE) -> 1 | F160: =VLOOKUP(Vlookup!$B125,'CDCM Volume Forecasts'!$A$27:$AG$123,F$137,FALSE) -> 0 | G160: =VLOOKUP(Vlookup!$B125,'CDCM Volume Forecasts'!$A$27:$AG$123,G$137,FALSE) -> 0
A161: LDNO HV: Small Non Domestic Two Rate | B161: =VLOOKUP(Vlookup!$B126,'CDCM Volume Forecasts'!$A$27:$AG$123,B$137,FALSE) -> 565.9256191 | C161: =VLOOKUP(Vlookup!$B126,'CDCM Volume Forecasts'!$A$27:$AG$123,C$137,FALSE) -> 220.1109965 | D161: =VLOOKUP(Vlookup!$B126,'CDCM Volume Forecasts'!$A$27:$AG$123,D$137,FALSE) -> 0 | E161: =VLOOKUP(Vlookup!$B126,'CDCM Volume Forecasts'!$A$27:$AG$123,E$137,FALSE) -> 15 | F161: =VLOOKUP(Vlookup!$B126,'CDCM Volume Forecasts'!$A$27:$AG$123,F$137,FALSE) -> 0 | G161: =VLOOKUP(Vlookup!$B126,'CDCM Volume Forecasts'!$A$27:$AG$123,G$137,FALSE) -> 0
A162: > Small Non Domestic Off Peak (related MPAN) | B162: =VLOOKUP(Vlookup!$B127,'CDCM Volume Forecasts'!$A$27:$AG$123,B$137,FALSE) -> 0 | C162: =VLOOKUP(Vlookup!$B127,'CDCM Volume Forecasts'!$A$27:$AG$123,C$137,FALSE) -> 0 | D162: =VLOOKUP(Vlookup!$B127,'CDCM Volume Forecasts'!$A$27:$AG$123,D$137,FALSE) -> 0 | E162: =VLOOKUP(Vlookup!$B127,'CDCM Volume Forecasts'!$A$27:$AG$123,E$137,FALSE) -> 0 | F162: =VLOOKUP(Vlookup!$B127,'CDCM Volume Forecasts'!$A$27:$AG$123,F$137,FALSE) -> 0 | G162: =VLOOKUP(Vlookup!$B127,'CDCM Volume Forecasts'!$A$27:$AG$123,G$137,FALSE) -> 0
A163: Small Non Domestic Off Peak (related MPAN) | B163: =VLOOKUP(Vlookup!$B128,'CDCM Volume Forecasts'!$A$27:$AG$123,B$137,FALSE) -> 26247.10193 | C163: =VLOOKUP(Vlookup!$B128,'CDCM Volume Forecasts'!$A$27:$AG$123,C$137,FALSE) -> 0 | D163: =VLOOKUP(Vlookup!$B128,'CDCM Volume Forecasts'!$A$27:$AG$123,D$137,FALSE) -> 0 | E163: =VLOOKUP(Vlookup!$B128,'CDCM Volume Forecasts'!$A$27:$AG$123,E$137,FALSE) -> 0 | F163: =VLOOKUP(Vlookup!$B128,'CDCM Volume Forecasts'!$A$27:$AG$123,F$137,FALSE) -> 0 | G163: =VLOOKUP(Vlookup!$B128,'CDCM Volume Forecasts'!$A$27:$AG$123,G$137,FALSE) -> 0
A164: LDNO LV: Small Non Domestic Off Peak (related MPAN) | B164: =VLOOKUP(Vlookup!$B129,'CDCM Volume Forecasts'!$A$27:$AG$123,B$137,FALSE) -> 0 | C164: =VLOOKUP(Vlookup!$B129,'CDCM Volume Forecasts'!$A$27:$AG$123,C$137,FALSE) -> 0 | D164: =VLOOKUP(Vlookup!$B129,'CDCM Volume Forecasts'!$A$27:$AG$123,D$137,FALSE) -> 0 | E164: =VLOOKUP(Vlookup!$B129,'CDCM Volume Forecasts'!$A$27:$AG$123,E$137,FALSE) -> 0 | F164: =VLOOKUP(Vlookup!$B129,'CDCM Volume Forecasts'!$A$27:$AG$123,F$137,FALSE) -> 0 | G164: =VLOOKUP(Vlookup!$B129,'CDCM Volume Forecasts'!$A$27:$AG$123,G$137,FALSE) -> 0
A165: LDNO HV: Small Non Domestic Off Peak (related MPAN) | B165: =VLOOKUP(Vlookup!$B130,'CDCM Volume Forecasts'!$A$27:$AG$123,B$137,FALSE) -> 0 | C165: =VLOOKUP(Vlookup!$B130,'CDCM Volume Forecasts'!$A$27:$AG$123,C$137,FALSE) -> 0 | D165: =VLOOKUP(Vlookup!$B130,'CDCM Volume Forecasts'!$A$27:$AG$123,D$137,FALSE) -> 0 | E165: =VLOOKUP(Vlookup!$B130,'CDCM Volume Forecasts'!$A$27:$AG$123,E$137,FALSE) -> 0 | F165: =VLOOKUP(Vlookup!$B130,'CDCM Volume Forecasts'!$A$27:$AG$123,F$137,FALSE) -> 0 | G165: =VLOOKUP(Vlookup!$B130,'CDCM Volume Forecasts'!$A$27:$AG$123,G$137,FALSE) -> 0
A166: > LV Medium Non-Domestic | B166: =VLOOKUP(Vlookup!$B131,'CDCM Volume Forecasts'!$A$27:$AG$123,B$137,FALSE) -> 0 | C166: =VLOOKUP(Vlookup!$B131,'CDCM Volume Forecasts'!$A$27:$AG$123,C$137,FALSE) -> 0 | D166: =VLOOKUP(Vlookup!$B131,'CDCM Volume Forecasts'!$A$27:$AG$123,D$137,FALSE) -> 0 | E166: =VLOOKUP(Vlookup!$B131,'CDCM Volume Forecasts'!$A$27:$AG$123,E$137,FALSE) -> 0 | F166: =VLOOKUP(Vlookup!$B131,'CDCM Volume Forecasts'!$A$27:$AG$123,F$137,FALSE) -> 0 | G166: =VLOOKUP(Vlookup!$B131,'CDCM Volume Forecasts'!$A$27:$AG$123,G$137,FALSE) -> 0
A167: LV Medium Non-Domestic | B167: =VLOOKUP(Vlookup!$B132,'CDCM Volume Forecasts'!$A$27:$AG$123,B$137,FALSE) -> 700742.3663 | C167: =VLOOKUP(Vlookup!$B132,'CDCM Volume Forecasts'!$A$27:$AG$123,C$137,FALSE) -> 174053.3221 | D167: =VLOOKUP(Vlookup!$B132,'CDCM Volume Forecasts'!$A$27:$AG$123,D$137,FALSE) -> 0 | E167: =VLOOKUP(Vlookup!$B132,'CDCM Volume Forecasts'!$A$27:$AG$123,E$137,FALSE) -> 9354 | F167: =VLOOKUP(Vlookup!$B132,'CDCM Volume Forecasts'!$A$27:$AG$123,F$137,FALSE) -> 0 | G167: =VLOOKUP(Vlookup!$B132,'CDCM Volume Forecasts'!$A$27:$AG$123,G$137,FALSE) -> 0
A168: LDNO LV: LV Medium Non-Domestic | B168: =VLOOKUP(Vlookup!$B133,'CDCM Volume Forecasts'!$A$27:$AG$123,B$137,FALSE) -> 0.2837051651 | C168: =VLOOKUP(Vlookup!$B133,'CDCM Volume Forecasts'!$A$27:$AG$123,C$137,FALSE) -> 0.3644753188 | D168: =VLOOKUP(Vlookup!$B133,'CDCM Volume Forecasts'!$A$27:$AG$123,D$137,FALSE) -> 0 | E168: =VLOOKUP(Vlookup!$B133,'CDCM Volume Forecasts'!$A$27:$AG$123,E$137,FALSE) -> 1 | F168: =VLOOKUP(Vlookup!$B133,'CDCM Volume Forecasts'!$A$27:$AG$123,F$137,FALSE) -> 0 | G168: =VLOOKUP(Vlookup!$B133,'CDCM Volume Forecasts'!$A$27:$AG$123,G$137,FALSE) -> 0
A169: LDNO HV: LV Medium Non-Domestic | B169: =VLOOKUP(Vlookup!$B134,'CDCM Volume Forecasts'!$A$27:$AG$123,B$137,FALSE) -> 4381.328991 | C169: =VLOOKUP(Vlookup!$B134,'CDCM Volume Forecasts'!$A$27:$AG$123,C$137,FALSE) -> 719.3878294 | D169: =VLOOKUP(Vlookup!$B134,'CDCM Volume Forecasts'!$A$27:$AG$123,D$137,FALSE) -> 0 | E169: =VLOOKUP(Vlookup!$B134,'CDCM Volume Forecasts'!$A$27:$AG$123,E$137,FALSE) -> 47 | F169: =VLOOKUP(Vlookup!$B134,'CDCM Volume Forecasts'!$A$27:$AG$123,F$137,FALSE) -> 0 | G169: =VLOOKUP(Vlookup!$B134,'CDCM Volume Forecasts'!$A$27:$AG$123,G$137,FALSE) -> 0
A170: > LV Sub Medium Non-Domestic | B170: =VLOOKUP(Vlookup!$B135,'CDCM Volume Forecasts'!$A$27:$AG$123,B$137,FALSE) -> 0 | C170: =VLOOKUP(Vlookup!$B135,'CDCM Volume Forecasts'!$A$27:$AG$123,C$137,FALSE) -> 0 | D170: =VLOOKUP(Vlookup!$B135,'CDCM Volume Forecasts'!$A$27:$AG$123,D$137,FALSE) -> 0 | E170: =VLOOKUP(Vlookup!$B135,'CDCM Volume Forecasts'!$A$27:$AG$123,E$137,FALSE) -> 0 | F170: =VLOOKUP(Vlookup!$B135,'CDCM Volume Forecasts'!$A$27:$AG$123,F$137,FALSE) -> 0 | G170: =VLOOKUP(Vlookup!$B135,'CDCM Volume Forecasts'!$A$27:$AG$123,G$137,FALSE) -> 0
A171: LV Sub Medium Non-Domestic | B171: =VLOOKUP(Vlookup!$B136,'CDCM Volume Forecasts'!$A$27:$AG$123,B$137,FALSE) -> 70119.39344 | C171: =VLOOKUP(Vlookup!$B136,'CDCM Volume Forecasts'!$A$27:$AG$123,C$137,FALSE) -> 19612.90827 | D171: =VLOOKUP(Vlookup!$B136,'CDCM Volume Forecasts'!$A$27:$AG$123,D$137,FALSE) -> 0 | E171: =VLOOKUP(Vlookup!$B136,'CDCM Volume Forecasts'!$A$27:$AG$123,E$137,FALSE) -> 707 | F171: =VLOOKUP(Vlookup!$B136,'CDCM Volume Forecasts'!$A$27:$AG$123,F$137,FALSE) -> 0 | G171: =VLOOKUP(Vlookup!$B136,'CDCM Volume Forecasts'!$A$27:$AG$123,G$137,FALSE) -> 0
A172: > HV Medium Non-Domestic | B172: =VLOOKUP(Vlookup!$B137,'CDCM Volume Forecasts'!$A$27:$AG$123,B$137,FALSE) -> 0 | C172: =VLOOKUP(Vlookup!$B137,'CDCM Volume Forecasts'!$A$27:$AG$123,C$137,FALSE) -> 0 | D172: =VLOOKUP(Vlookup!$B137,'CDCM Volume Forecasts'!$A$27:$AG$123,D$137,FALSE) -> 0 | E172: =VLOOKUP(Vlookup!$B137,'CDCM Volume Forecasts'!$A$27:$AG$123,E$137,FALSE) -> 0 | F172: =VLOOKUP(Vlookup!$B137,'CDCM Volume Forecasts'!$A$27:$AG$123,F$137,FALSE) -> 0 | G172: =VLOOKUP(Vlookup!$B137,'CDCM Volume Forecasts'!$A$27:$AG$123,G$137,FALSE) -> 0
A173: HV Medium Non-Domestic | B173: =VLOOKUP(Vlookup!$B138,'CDCM Volume Forecasts'!$A$27:$AG$123,B$137,FALSE) -> 2124.753079 | C173: =VLOOKUP(Vlookup!$B138,'CDCM Volume Forecasts'!$A$27:$AG$123,C$137,FALSE) -> 555.3476542 | D173: =VLOOKUP(Vlookup!$B138,'CDCM Volume Forecasts'!$A$27:$AG$123,D$137,FALSE) -> 0 | E173: =VLOOKUP(Vlookup!$B138,'CDCM Volume Forecasts'!$A$27:$AG$123,E$137,FALSE) -> 26 | F173: =VLOOKUP(Vlookup!$B138,'CDCM Volume Forecasts'!$A$27:$AG$123,F$137,FALSE) -> 0 | G173: =VLOOKUP(Vlookup!$B138,'CDCM Volume Forecasts'!$A$27:$AG$123,G$137,FALSE) -> 0
A174: > LV Network Domestic | B174: =VLOOKUP(Vlookup!$B139,'CDCM Volume Forecasts'!$A$27:$AG$123,B$137,FALSE) -> 0 | C174: =VLOOKUP(Vlookup!$B139,'CDCM Volume Forecasts'!$A$27:$AG$123,C$137,FALSE) -> 0 | D174: =VLOOKUP(Vlookup!$B139,'CDCM Volume Forecasts'!$A$27:$AG$123,D$137,FALSE) -> 0 | E174: =VLOOKUP(Vlookup!$B139,'CDCM Volume Forecasts'!$A$27:$AG$123,E$137,FALSE) -> 0 | F174: =VLOOKUP(Vlookup!$B139,'CDCM Volume Forecasts'!$A$27:$AG$123,F$137,FALSE) -> 0 | G174: =VLOOKUP(Vlookup!$B139,'CDCM Volume Forecasts'!$A$27:$AG$123,G$137,FALSE) -> 0
A175: LV Network Domestic | B175: =VLOOKUP(Vlookup!$B140,'CDCM Volume Forecasts'!$A$27:$AG$123,B$137,FALSE) -> 0 | C175: =VLOOKUP(Vlookup!$B140,'CDCM Volume Forecasts'!$A$27:$AG$123,C$137,FALSE) -> 0 | D175: =VLOOKUP(Vlookup!$B140,'CDCM Volume Forecasts'!$A$27:$AG$123,D$137,FALSE) -> 0 | E175: =VLOOKUP(Vlookup!$B140,'CDCM Volume Forecasts'!$A$27:$AG$123,E$137,FALSE) -> 0 | F175: =VLOOKUP(Vlookup!$B140,'CDCM Volume Forecasts'!$A$27:$AG$123,F$137,FALSE) -> 0 | G175: =VLOOKUP(Vlookup!$B140,'CDCM Volume Forecasts'!$A$27:$AG$123,G$137,FALSE) -> 0
A176: LDNO LV: LV Network Domestic | B176: =VLOOKUP(Vlookup!$B141,'CDCM Volume Forecasts'!$A$27:$AG$123,B$137,FALSE) -> 0 | C176: =VLOOKUP(Vlookup!$B141,'CDCM Volume Forecasts'!$A$27:$AG$123,C$137,FALSE) -> 0 | D176: =VLOOKUP(Vlookup!$B141,'CDCM Volume Forecasts'!$A$27:$AG$123,D$137,FALSE) -> 0 | E176: =VLOOKUP(Vlookup!$B141,'CDCM Volume Forecasts'!$A$27:$AG$123,E$137,FALSE) -> 0 | F176: =VLOOKUP(Vlookup!$B141,'CDCM Volume Forecasts'!$A$27:$AG$123,F$137,FALSE) -> 0 | G176: =VLOOKUP(Vlookup!$B141,'CDCM Volume Forecasts'!$A$27:$AG$123,G$137,FALSE) -> 0
A177: LDNO HV: LV Network Domestic | B177: =VLOOKUP(Vlookup!$B142,'CDCM Volume Forecasts'!$A$27:$AG$123,B$137,FALSE) -> 0 | C177: =VLOOKUP(Vlookup!$B142,'CDCM Volume Forecasts'!$A$27:$AG$123,C$137,FALSE) -> 0 | D177: =VLOOKUP(Vlookup!$B142,'CDCM Volume Forecasts'!$A$27:$AG$123,D$137,FALSE) -> 0 | E177: =VLOOKUP(Vlookup!$B142,'CDCM Volume Forecasts'!$A$27:$AG$123,E$137,FALSE) -> 0 | F177: =VLOOKUP(Vlookup!$B142,'CDCM Volume Forecasts'!$A$27:$AG$123,F$137,FALSE) -> 0 | G177: =VLOOKUP(Vlookup!$B142,'CDCM Volume Forecasts'!$A$27:$AG$123,G$137,FALSE) -> 0
A178: > LV Network Non-Domestic Non-CT | B178: =VLOOKUP(Vlookup!$B143,'CDCM Volume Forecasts'!$A$27:$AG$123,B$137,FALSE) -> 0 | C178: =VLOOKUP(Vlookup!$B143,'CDCM Volume Forecasts'!$A$27:$AG$123,C$137,FALSE) -> 0 | D178: =VLOOKUP(Vlookup!$B143,'CDCM Volume Forecasts'!$A$27:$AG$123,D$137,FALSE) -> 0 | E178: =VLOOKUP(Vlookup!$B143,'CDCM Volume Forecasts'!$A$27:$AG$123,E$137,FALSE) -> 0 | F178: =VLOOKUP(Vlookup!$B143,'CDCM Volume Forecasts'!$A$27:$AG$123,F$137,FALSE) -> 0 | G178: =VLOOKUP(Vlookup!$B143,'CDCM Volume Forecasts'!$A$27:$AG$123,G$137,FALSE) -> 0
A179: LV Network Non-Domestic Non-CT | B179: =VLOOKUP(Vlookup!$B144,'CDCM Volume Forecasts'!$A$27:$AG$123,B$137,FALSE) -> 0 | C179: =VLOOKUP(Vlookup!$B144,'CDCM Volume Forecasts'!$A$27:$AG$123,C$137,FALSE) -> 0 | D179: =VLOOKUP(Vlookup!$B144,'CDCM Volume Forecasts'!$A$27:$AG$123,D$137,FALSE) -> 0 | E179: =VLOOKUP(Vlookup!$B144,'CDCM Volume Forecasts'!$A$27:$AG$123,E$137,FALSE) -> 0 | F179: =VLOOKUP(Vlookup!$B144,'CDCM Volume Forecasts'!$A$27:$AG$123,F$137,FALSE) -> 0 | G179: =VLOOKUP(Vlookup!$B144,'CDCM Volume Forecasts'!$A$27:$AG$123,G$137,FALSE) -> 0
A180: LDNO LV: LV Network Non-Domestic Non-CT | B180: =VLOOKUP(Vlookup!$B145,'CDCM Volume Forecasts'!$A$27:$AG$123,B$137,FALSE) -> 0 | C180: =VLOOKUP(Vlookup!$B145,'CDCM Volume Forecasts'!$A$27:$AG$123,C$137,FALSE) -> 0 | D180: =VLOOKUP(Vlookup!$B145,'CDCM Volume Forecasts'!$A$27:$AG$123,D$137,FALSE) -> 0 | E180: =VLOOKUP(Vlookup!$B145,'CDCM Volume Forecasts'!$A$27:$AG$123,E$137,FALSE) -> 0 | F180: =VLOOKUP(Vlookup!$B145,'CDCM Volume Forecasts'!$A$27:$AG$123,F$137,FALSE) -> 0 | G180: =VLOOKUP(Vlookup!$B145,'CDCM Volume Forecasts'!$A$27:$AG$123,G$137,FALSE) -> 0
A181: LDNO HV: LV Network Non-Domestic Non-CT | B181: =VLOOKUP(Vlookup!$B146,'CDCM Volume Forecasts'!$A$27:$AG$123,B$137,FALSE) -> 0 | C181: =VLOOKUP(Vlookup!$B146,'CDCM Volume Forecasts'!$A$27:$AG$123,C$137,FALSE) -> 0 | D181: =VLOOKUP(Vlookup!$B146,'CDCM Volume Forecasts'!$A$27:$AG$123,D$137,FALSE) -> 0 | E181: =VLOOKUP(Vlookup!$B146,'CDCM Volume Forecasts'!$A$27:$AG$123,E$137,FALSE) -> 0 | F181: =VLOOKUP(Vlookup!$B146,'CDCM Volume Forecasts'!$A$27:$AG$123,F$137,FALSE) -> 0 | G181: =VLOOKUP(Vlookup!$B146,'CDCM Volume Forecasts'!$A$27:$AG$123,G$137,FALSE) -> 0
A182: > LV HH Metered | B182: =VLOOKUP(Vlookup!$B147,'CDCM Volume Forecasts'!$A$27:$AG$123,B$137,FALSE) -> 0 | C182: =VLOOKUP(Vlookup!$B147,'CDCM Volume Forecasts'!$A$27:$AG$123,C$137,FALSE) -> 0 | D182: =VLOOKUP(Vlookup!$B147,'CDCM Volume Forecasts'!$A$27:$AG$123,D$137,FALSE) -> 0 | E182: =VLOOKUP(Vlookup!$B147,'CDCM Volume Forecasts'!$A$27:$AG$123,E$137,FALSE) -> 0 | F182: =VLOOKUP(Vlookup!$B147,'CDCM Volume Forecasts'!$A$27:$AG$123,F$137,FALSE) -> 0 | G182: =VLOOKUP(Vlookup!$B147,'CDCM Volume Forecasts'!$A$27:$AG$123,G$137,FALSE) -> 0
A183: LV HH Metered | B183: =VLOOKUP(Vlookup!$B148,'CDCM Volume Forecasts'!$A$27:$AG$123,B$137,FALSE) -> 58121.07373 | C183: =VLOOKUP(Vlookup!$B148,'CDCM Volume Forecasts'!$A$27:$AG$123,C$137,FALSE) -> 415490.1951 | D183: =VLOOKUP(Vlookup!$B148,'CDCM Volume Forecasts'!$A$27:$AG$123,D$137,FALSE) -> 353097.5434 | E183: =VLOOKUP(Vlookup!$B148,'CDCM Volume Forecasts'!$A$27:$AG$123,E$137,FALSE) -> 3115 | F183: =VLOOKUP(Vlookup!$B148,'CDCM Volume Forecasts'!$A$27:$AG$123,F$137,FALSE) -> 400000 | G183: =VLOOKUP(Vlookup!$B148,'CDCM Volume Forecasts'!$A$27:$AG$123,G$137,FALSE) -> 79172.705
A184: LDNO LV: LV HH Metered | B184: =VLOOKUP(Vlookup!$B149,'CDCM Volume Forecasts'!$A$27:$AG$123,B$137,FALSE) -> 0 | C184: =VLOOKUP(Vlookup!$B149,'CDCM Volume Forecasts'!$A$27:$AG$123,C$137,FALSE) -> 0 | D184: =VLOOKUP(Vlookup!$B149,'CDCM Volume Forecasts'!$A$27:$AG$123,D$137,FALSE) -> 0 | E184: =VLOOKUP(Vlookup!$B149,'CDCM Volume Forecasts'!$A$27:$AG$123,E$137,FALSE) -> 0 | F184: =VLOOKUP(Vlookup!$B149,'CDCM Volume Forecasts'!$A$27:$AG$123,F$137,FALSE) -> 0 | G184: =VLOOKUP(Vlookup!$B149,'CDCM Volume Forecasts'!$A$27:$AG$123,G$137,FALSE) -> 0
A185: LDNO HV: LV HH Metered | B185: =VLOOKUP(Vlookup!$B150,'CDCM Volume Forecasts'!$A$27:$AG$123,B$137,FALSE) -> 2320.543558 | C185: =VLOOKUP(Vlookup!$B150,'CDCM Volume Forecasts'!$A$27:$AG$123,C$137,FALSE) -> 15183.85819 | D185: =VLOOKUP(Vlookup!$B150,'CDCM Volume Forecasts'!$A$27:$AG$123,D$137,FALSE) -> 13036.53843 | E185: =VLOOKUP(Vlookup!$B150,'CDCM Volume Forecasts'!$A$27:$AG$123,E$137,FALSE) -> 69 | F185: =VLOOKUP(Vlookup!$B150,'CDCM Volume Forecasts'!$A$27:$AG$123,F$137,FALSE) -> 19000 | G185: =VLOOKUP(Vlookup!$B150,'CDCM Volume Forecasts'!$A$27:$AG$123,G$137,FALSE) -> 1650.56
A186: > LV Sub HH Metered | B186: =VLOOKUP(Vlookup!$B151,'CDCM Volume Forecasts'!$A$27:$AG$123,B$137,FALSE) -> 0 | C186: =VLOOKUP(Vlookup!$B151,'CDCM Volume Forecasts'!$A$27:$AG$123,C$137,FALSE) -> 0 | D186: =VLOOKUP(Vlookup!$B151,'CDCM Volume Forecasts'!$A$27:$AG$123,D$137,FALSE) -> 0 | E186: =VLOOKUP(Vlookup!$B151,'CDCM Volume Forecasts'!$A$27:$AG$123,E$137,FALSE) -> 0 | F186: =VLOOKUP(Vlookup!$B151,'CDCM Volume Forecasts'!$A$27:$AG$123,F$137,FALSE) -> 0 | G186: =VLOOKUP(Vlookup!$B151,'CDCM Volume Forecasts'!$A$27:$AG$123,G$137,FALSE) -> 0
A187: LV Sub HH Metered | B187: =VLOOKUP(Vlookup!$B152,'CDCM Volume Forecasts'!$A$27:$AG$123,B$137,FALSE) -> 49274.69914 | C187: =VLOOKUP(Vlookup!$B152,'CDCM Volume Forecasts'!$A$27:$AG$123,C$137,FALSE) -> 364799.304 | D187: =VLOOKUP(Vlookup!$B152,'CDCM Volume Forecasts'!$A$27:$AG$123,D$137,FALSE) -> 328189.7348 | E187: =VLOOKUP(Vlookup!$B152,'CDCM Volume Forecasts'!$A$27:$AG$123,E$137,FALSE) -> 1328 | F187: =VLOOKUP(Vlookup!$B152,'CDCM Volume Forecasts'!$A$27:$AG$123,F$137,FALSE) -> 327000 | G187: =VLOOKUP(Vlookup!$B152,'CDCM Volume Forecasts'!$A$27:$AG$123,G$137,FALSE) -> 77243.021
A188: LDNO HV: LV Sub HH Metered | B188: =VLOOKUP(Vlookup!$B153,'CDCM Volume Forecasts'!$A$27:$AG$123,B$137,FALSE) -> 0 | C188: =VLOOKUP(Vlookup!$B153,'CDCM Volume Forecasts'!$A$27:$AG$123,C$137,FALSE) -> 0 | D188: =VLOOKUP(Vlookup!$B153,'CDCM Volume Forecasts'!$A$27:$AG$123,D$137,FALSE) -> 0 | E188: =VLOOKUP(Vlookup!$B153,'CDCM Volume Forecasts'!$A$27:$AG$123,E$137,FALSE) -> 0 | F188: =VLOOKUP(Vlookup!$B153,'CDCM Volume Forecasts'!$A$27:$AG$123,F$137,FALSE) -> 0 | G188: =VLOOKUP(Vlookup!$B153,'CDCM Volume Forecasts'!$A$27:$AG$123,G$137,FALSE) -> 0
A189: > HV HH Metered | B189: =VLOOKUP(Vlookup!$B154,'CDCM Volume Forecasts'!$A$27:$AG$123,B$137,FALSE) -> 0 | C189: =VLOOKUP(Vlookup!$B154,'CDCM Volume Forecasts'!$A$27:$AG$123,C$137,FALSE) -> 0 | D189: =VLOOKUP(Vlookup!$B154,'CDCM Volume Forecasts'!$A$27:$AG$123,D$137,FALSE) -> 0 | E189: =VLOOKUP(Vlookup!$B154,'CDCM Volume Forecasts'!$A$27:$AG$123,E$137,FALSE) -> 0 | F189: =VLOOKUP(Vlookup!$B154,'CDCM Volume Forecasts'!$A$27:$AG$123,F$137,FALSE) -> 0 | G189: =VLOOKUP(Vlookup!$B154,'CDCM Volume Forecasts'!$A$27:$AG$123,G$137,FALSE) -> 0
A190: HV HH Metered | B190: =VLOOKUP(Vlookup!$B155,'CDCM Volume Forecasts'!$A$27:$AG$123,B$137,FALSE) -> 171615.9697 | C190: =VLOOKUP(Vlookup!$B155,'CDCM Volume Forecasts'!$A$27:$AG$123,C$137,FALSE) -> 1222113.106 | D190: =VLOOKUP(Vlookup!$B155,'CDCM Volume Forecasts'!$A$27:$AG$123,D$137,FALSE) -> 1301017.156 | E190: =VLOOKUP(Vlookup!$B155,'CDCM Volume Forecasts'!$A$27:$AG$123,E$137,FALSE) -> 987 | F190: =VLOOKUP(Vlookup!$B155,'CDCM Volume Forecasts'!$A$27:$AG$123,F$137,FALSE) -> 964000 | G190: =VLOOKUP(Vlookup!$B155,'CDCM Volume Forecasts'!$A$27:$AG$123,G$137,FALSE) -> 196467.337
A191: LDNO HV: HV HH Metered | B191: =VLOOKUP(Vlookup!$B156,'CDCM Volume Forecasts'!$A$27:$AG$123,B$137,FALSE) -> 688.0612894 | C191: =VLOOKUP(Vlookup!$B156,'CDCM Volume Forecasts'!$A$27:$AG$123,C$137,FALSE) -> 3907.504393 | D191: =VLOOKUP(Vlookup!$B156,'CDCM Volume Forecasts'!$A$27:$AG$123,D$137,FALSE) -> 5074.351555 | E191: =VLOOKUP(Vlookup!$B156,'CDCM Volume Forecasts'!$A$27:$AG$123,E$137,FALSE) -> 4 | F191: =VLOOKUP(Vlookup!$B156,'CDCM Volume Forecasts'!$A$27:$AG$123,F$137,FALSE) -> 5000 | G191: =VLOOKUP(Vlookup!$B156,'CDCM Volume Forecasts'!$A$27:$AG$123,G$137,FALSE) -> 45.941
A192: > NHH UMS category A | B192: =VLOOKUP(Vlookup!$B157,'CDCM Volume Forecasts'!$A$27:$AG$123,B$137,FALSE) -> 0 | C192: =VLOOKUP(Vlookup!$B157,'CDCM Volume Forecasts'!$A$27:$AG$123,C$137,FALSE) -> 0 | D192: =VLOOKUP(Vlookup!$B157,'CDCM Volume Forecasts'!$A$27:$AG$123,D$137,FALSE) -> 0 | E192: =VLOOKUP(Vlookup!$B157,'CDCM Volume Forecasts'!$A$27:$AG$123,E$137,FALSE) -> 0 | F192: =VLOOKUP(Vlookup!$B157,'CDCM Volume Forecasts'!$A$27:$AG$123,F$137,FALSE) -> 0 | G192: =VLOOKUP(Vlookup!$B157,'CDCM Volume Forecasts'!$A$27:$AG$123,G$137,FALSE) -> 0
A193: NHH UMS category A | B193: =VLOOKUP(Vlookup!$B158,'CDCM Volume Forecasts'!$A$27:$AG$123,B$137,FALSE) -> 13888.88092 | C193: =VLOOKUP(Vlookup!$B158,'CDCM Volume Forecasts'!$A$27:$AG$123,C$137,FALSE) -> 0 | D193: =VLOOKUP(Vlookup!$B158,'CDCM Volume Forecasts'!$A$27:$AG$123,D$137,FALSE) -> 0 | E193: =VLOOKUP(Vlookup!$B158,'CDCM Volume Forecasts'!$A$27:$AG$123,E$137,FALSE) -> 705 | F193: =VLOOKUP(Vlookup!$B158,'CDCM Volume Forecasts'!$A$27:$AG$123,F$137,FALSE) -> 0 | G193: =VLOOKUP(Vlookup!$B158,'CDCM Volume Forecasts'!$A$27:$AG$123,G$137,FALSE) -> 0
A194: LDNO LV: NHH UMS category A | B194: =VLOOKUP(Vlookup!$B159,'CDCM Volume Forecasts'!$A$27:$AG$123,B$137,FALSE) -> 123.8792041 | C194: =VLOOKUP(Vlookup!$B159,'CDCM Volume Forecasts'!$A$27:$AG$123,C$137,FALSE) -> 0 | D194: =VLOOKUP(Vlookup!$B159,'CDCM Volume Forecasts'!$A$27:$AG$123,D$137,FALSE) -> 0 | E194: =VLOOKUP(Vlookup!$B159,'CDCM Volume Forecasts'!$A$27:$AG$123,E$137,FALSE) -> 0 | F194: =VLOOKUP(Vlookup!$B159,'CDCM Volume Forecasts'!$A$27:$AG$123,F$137,FALSE) -> 0 | G194: =VLOOKUP(Vlookup!$B159,'CDCM Volume Forecasts'!$A$27:$AG$123,G$137,FALSE) -> 0
A195: LDNO HV: NHH UMS category A | B195: =VLOOKUP(Vlookup!$B160,'CDCM Volume Forecasts'!$A$27:$AG$123,B$137,FALSE) -> 10.40420543 | C195: =VLOOKUP(Vlookup!$B160,'CDCM Volume Forecasts'!$A$27:$AG$123,C$137,FALSE) -> 0 | D195: =VLOOKUP(Vlookup!$B160,'CDCM Volume Forecasts'!$A$27:$AG$123,D$137,FALSE) -> 0 | E195: =VLOOKUP(Vlookup!$B160,'CDCM Volume Forecasts'!$A$27:$AG$123,E$137,FALSE) -> 0 | F195: =VLOOKUP(Vlookup!$B160,'CDCM Volume Forecasts'!$A$27:$AG$123,F$137,FALSE) -> 0 | G195: =VLOOKUP(Vlookup!$B160,'CDCM Volume Forecasts'!$A$27:$AG$123,G$137,FALSE) -> 0
A196: > NHH UMS category B | B196: =VLOOKUP(Vlookup!$B161,'CDCM Volume Forecasts'!$A$27:$AG$123,B$137,FALSE) -> 0 | C196: =VLOOKUP(Vlookup!$B161,'CDCM Volume Forecasts'!$A$27:$AG$123,C$137,FALSE) -> 0 | D196: =VLOOKUP(Vlookup!$B161,'CDCM Volume Forecasts'!$A$27:$AG$123,D$137,FALSE) -> 0 | E196: =VLOOKUP(Vlookup!$B161,'CDCM Volume Forecasts'!$A$27:$AG$123,E$137,FALSE) -> 0 | F196: =VLOOKUP(Vlookup!$B161,'CDCM Volume Forecasts'!$A$27:$AG$123,F$137,FALSE) -> 0 | G196: =VLOOKUP(Vlookup!$B161,'CDCM Volume Forecasts'!$A$27:$AG$123,G$137,FALSE) -> 0
A197: NHH UMS category B | B197: =VLOOKUP(Vlookup!$B162,'CDCM Volume Forecasts'!$A$27:$AG$123,B$137,FALSE) -> 5281.884691 | C197: =VLOOKUP(Vlookup!$B162,'CDCM Volume Forecasts'!$A$27:$AG$123,C$137,FALSE) -> 0 | D197: =VLOOKUP(Vlookup!$B162,'CDCM Volume Forecasts'!$A$27:$AG$123,D$137,FALSE) -> 0 | E197: =VLOOKUP(Vlookup!$B162,'CDCM Volume Forecasts'!$A$27:$AG$123,E$137,FALSE) -> 659 | F197: =VLOOKUP(Vlookup!$B162,'CDCM Volume Forecasts'!$A$27:$AG$123,F$137,FALSE) -> 0 | G197: =VLOOKUP(Vlookup!$B162,'CDCM Volume Forecasts'!$A$27:$AG$123,G$137,FALSE) -> 0
A198: LDNO LV: NHH UMS category B | B198: =VLOOKUP(Vlookup!$B163,'CDCM Volume Forecasts'!$A$27:$AG$123,B$137,FALSE) -> 74.42947252 | C198: =VLOOKUP(Vlookup!$B163,'CDCM Volume Forecasts'!$A$27:$AG$123,C$137,FALSE) -> 0 | D198: =VLOOKUP(Vlookup!$B163,'CDCM Volume Forecasts'!$A$27:$AG$123,D$137,FALSE) -> 0 | E198: =VLOOKUP(Vlookup!$B163,'CDCM Volume Forecasts'!$A$27:$AG$123,E$137,FALSE) -> 0 | F198: =VLOOKUP(Vlookup!$B163,'CDCM Volume Forecasts'!$A$27:$AG$123,F$137,FALSE) -> 0 | G198: =VLOOKUP(Vlookup!$B163,'CDCM Volume Forecasts'!$A$27:$AG$123,G$137,FALSE) -> 0
A199: LDNO HV: NHH UMS category B | B199: =VLOOKUP(Vlookup!$B164,'CDCM Volume Forecasts'!$A$27:$AG$123,B$137,FALSE) -> 172.6343121 | C199: =VLOOKUP(Vlookup!$B164,'CDCM Volume Forecasts'!$A$27:$AG$123,C$137,FALSE) -> 0 | D199: =VLOOKUP(Vlookup!$B164,'CDCM Volume Forecasts'!$A$27:$AG$123,D$137,FALSE) -> 0 | E199: =VLOOKUP(Vlookup!$B164,'CDCM Volume Forecasts'!$A$27:$AG$123,E$137,FALSE) -> 0 | F199: =VLOOKUP(Vlookup!$B164,'CDCM Volume Forecasts'!$A$27:$AG$123,F$137,FALSE) -> 0 | G199: =VLOOKUP(Vlookup!$B164,'CDCM Volume Forecasts'!$A$27:$AG$123,G$137,FALSE) -> 0
A200: > NHH UMS category C | B200: =VLOOKUP(Vlookup!$B165,'CDCM Volume Forecasts'!$A$27:$AG$123,B$137,FALSE) -> 0 | C200: =VLOOKUP(Vlookup!$B165,'CDCM Volume Forecasts'!$A$27:$AG$123,C$137,FALSE) -> 0 | D200: =VLOOKUP(Vlookup!$B165,'CDCM Volume Forecasts'!$A$27:$AG$123,D$137,FALSE) -> 0 | E200: =VLOOKUP(Vlookup!$B165,'CDCM Volume Forecasts'!$A$27:$AG$123,E$137,FALSE) -> 0 | F200: =VLOOKUP(Vlookup!$B165,'CDCM Volume Forecasts'!$A$27:$AG$123,F$137,FALSE) -> 0 | G200: =VLOOKUP(Vlookup!$B165,'CDCM Volume Forecasts'!$A$27:$AG$123,G$137,FALSE) -> 0
A201: NHH UMS category C | B201: =VLOOKUP(Vlookup!$B166,'CDCM Volume Forecasts'!$A$27:$AG$123,B$137,FALSE) -> 618.2508284 | C201: =VLOOKUP(Vlookup!$B166,'CDCM Volume Forecasts'!$A$27:$AG$123,C$137,FALSE) -> 0 | D201: =VLOOKUP(Vlookup!$B166,'CDCM Volume Forecasts'!$A$27:$AG$123,D$137,FALSE) -> 0 | E201: =VLOOKUP(Vlookup!$B166,'CDCM Volume Forecasts'!$A$27:$AG$123,E$137,FALSE) -> 168 | F201: =VLOOKUP(Vlookup!$B166,'CDCM Volume Forecasts'!$A$27:$AG$123,F$137,FALSE) -> 0 | G201: =VLOOKUP(Vlookup!$B166,'CDCM Volume Forecasts'!$A$27:$AG$123,G$137,FALSE) -> 0
A202: LDNO LV: NHH UMS category C | B202: =VLOOKUP(Vlookup!$B167,'CDCM Volume Forecasts'!$A$27:$AG$123,B$137,FALSE) -> 0 | C202: =VLOOKUP(Vlookup!$B167,'CDCM Volume Forecasts'!$A$27:$AG$123,C$137,FALSE) -> 0 | D202: =VLOOKUP(Vlookup!$B167,'CDCM Volume Forecasts'!$A$27:$AG$123,D$137,FALSE) -> 0 | E202: =VLOOKUP(Vlookup!$B167,'CDCM Volume Forecasts'!$A$27:$AG$123,E$137,FALSE) -> 0 | F202: =VLOOKUP(Vlookup!$B167,'CDCM Volume Forecasts'!$A$27:$AG$123,F$137,FALSE) -> 0 | G202: =VLOOKUP(Vlookup!$B167,'CDCM Volume Forecasts'!$A$27:$AG$123,G$137,FALSE) -> 0
A203: LDNO HV: NHH UMS category C | B203: =VLOOKUP(Vlookup!$B168,'CDCM Volume Forecasts'!$A$27:$AG$123,B$137,FALSE) -> 128.409513 | C203: =VLOOKUP(Vlookup!$B168,'CDCM Volume Forecasts'!$A$27:$AG$123,C$137,FALSE) -> 0 | D203: =VLOOKUP(Vlookup!$B168,'CDCM Volume Forecasts'!$A$27:$AG$123,D$137,FALSE) -> 0 | E203: =VLOOKUP(Vlookup!$B168,'CDCM Volume Forecasts'!$A$27:$AG$123,E$137,FALSE) -> 0 | F203: =VLOOKUP(Vlookup!$B168,'CDCM Volume Forecasts'!$A$27:$AG$123,F$137,FALSE) -> 0 | G203: =VLOOKUP(Vlookup!$B168,'CDCM Volume Forecasts'!$A$27:$AG$123,G$137,FALSE) -> 0
A204: > NHH UMS category D | B204: =VLOOKUP(Vlookup!$B169,'CDCM Volume Forecasts'!$A$27:$AG$123,B$137,FALSE) -> 0 | C204: =VLOOKUP(Vlookup!$B169,'CDCM Volume Forecasts'!$A$27:$AG$123,C$137,FALSE) -> 0 | D204: =VLOOKUP(Vlookup!$B169,'CDCM Volume Forecasts'!$A$27:$AG$123,D$137,FALSE) -> 0 | E204: =VLOOKUP(Vlookup!$B169,'CDCM Volume Forecasts'!$A$27:$AG$123,E$137,FALSE) -> 0 | F204: =VLOOKUP(Vlookup!$B169,'CDCM Volume Forecasts'!$A$27:$AG$123,F$137,FALSE) -> 0 | G204: =VLOOKUP(Vlookup!$B169,'CDCM Volume Forecasts'!$A$27:$AG$123,G$137,FALSE) -> 0
A205: NHH UMS category D | B205: =VLOOKUP(Vlookup!$B170,'CDCM Volume Forecasts'!$A$27:$AG$123,B$137,FALSE) -> 0 | C205: =VLOOKUP(Vlookup!$B170,'CDCM Volume Forecasts'!$A$27:$AG$123,C$137,FALSE) -> 0 | D205: =VLOOKUP(Vlookup!$B170,'CDCM Volume Forecasts'!$A$27:$AG$123,D$137,FALSE) -> 0 | E205: =VLOOKUP(Vlookup!$B170,'CDCM Volume Forecasts'!$A$27:$AG$123,E$137,FALSE) -> 1 | F205: =VLOOKUP(Vlookup!$B170,'CDCM Volume Forecasts'!$A$27:$AG$123,F$137,FALSE) -> 0 | G205: =VLOOKUP(Vlookup!$B170,'CDCM Volume Forecasts'!$A$27:$AG$123,G$137,FALSE) -> 0
A206: LDNO LV: NHH UMS category D | B206: =VLOOKUP(Vlookup!$B171,'CDCM Volume Forecasts'!$A$27:$AG$123,B$137,FALSE) -> 0 | C206: =VLOOKUP(Vlookup!$B171,'CDCM Volume Forecasts'!$A$27:$AG$123,C$137,FALSE) -> 0 | D206: =VLOOKUP(Vlookup!$B171,'CDCM Volume Forecasts'!$A$27:$AG$123,D$137,FALSE) -> 0 | E206: =VLOOKUP(Vlookup!$B171,'CDCM Volume Forecasts'!$A$27:$AG$123,E$137,FALSE) -> 0 | F206: =VLOOKUP(Vlookup!$B171,'CDCM Volume Forecasts'!$A$27:$AG$123,F$137,FALSE) -> 0 | G206: =VLOOKUP(Vlookup!$B171,'CDCM Volume Forecasts'!$A$27:$AG$123,G$137,FALSE) -> 0
A207: LDNO HV: NHH UMS category D | B207: =VLOOKUP(Vlookup!$B172,'CDCM Volume Forecasts'!$A$27:$AG$123,B$137,FALSE) -> 0 | C207: =VLOOKUP(Vlookup!$B172,'CDCM Volume Forecasts'!$A$27:$AG$123,C$137,FALSE) -> 0 | D207: =VLOOKUP(Vlookup!$B172,'CDCM Volume Forecasts'!$A$27:$AG$123,D$137,FALSE) -> 0 | E207: =VLOOKUP(Vlookup!$B172,'CDCM Volume Forecasts'!$A$27:$AG$123,E$137,FALSE) -> 0 | F207: =VLOOKUP(Vlookup!$B172,'CDCM Volume Forecasts'!$A$27:$AG$123,F$137,FALSE) -> 0 | G207: =VLOOKUP(Vlookup!$B172,'CDCM Volume Forecasts'!$A$27:$AG$123,G$137,FALSE) -> 0
A208: > LV UMS (Pseudo HH Metered) | B208: =VLOOKUP(Vlookup!$B173,'CDCM Volume Forecasts'!$A$27:$AG$123,B$137,FALSE) -> 0 | C208: =VLOOKUP(Vlookup!$B173,'CDCM Volume Forecasts'!$A$27:$AG$123,C$137,FALSE) -> 0 | D208: =VLOOKUP(Vlookup!$B173,'CDCM Volume Forecasts'!$A$27:$AG$123,D$137,FALSE) -> 0 | E208: =VLOOKUP(Vlookup!$B173,'CDCM Volume Forecasts'!$A$27:$AG$123,E$137,FALSE) -> 0 | F208: =VLOOKUP(Vlookup!$B173,'CDCM Volume Forecasts'!$A$27:$AG$123,F$137,FALSE) -> 0 | G208: =VLOOKUP(Vlookup!$B173,'CDCM Volume Forecasts'!$A$27:$AG$123,G$137,FALSE) -> 0
A209: LV UMS (Pseudo HH Metered) | B209: =VLOOKUP(Vlookup!$B174,'CDCM Volume Forecasts'!$A$27:$AG$123,B$137,FALSE) -> 4455.729543 | C209: =VLOOKUP(Vlookup!$B174,'CDCM Volume Forecasts'!$A$27:$AG$123,C$137,FALSE) -> 27997.88905 | D209: =VLOOKUP(Vlookup!$B174,'CDCM Volume Forecasts'!$A$27:$AG$123,D$137,FALSE) -> 96620.92453 | E209: =VLOOKUP(Vlookup!$B174,'CDCM Volume Forecasts'!$A$27:$AG$123,E$137,FALSE) -> 17 | F209: =VLOOKUP(Vlookup!$B174,'CDCM Volume Forecasts'!$A$27:$AG$123,F$137,FALSE) -> 0 | G209: =VLOOKUP(Vlookup!$B174,'CDCM Volume Forecasts'!$A$27:$AG$123,G$137,FALSE) -> 0
A210: LDNO LV: LV UMS (Pseudo HH Metered) | B210: =VLOOKUP(Vlookup!$B175,'CDCM Volume Forecasts'!$A$27:$AG$123,B$137,FALSE) -> 0 | C210: =VLOOKUP(Vlookup!$B175,'CDCM Volume Forecasts'!$A$27:$AG$123,C$137,FALSE) -> 0 | D210: =VLOOKUP(Vlookup!$B175,'CDCM Volume Forecasts'!$A$27:$AG$123,D$137,FALSE) -> 0 | E210: =VLOOKUP(Vlookup!$B175,'CDCM Volume Forecasts'!$A$27:$AG$123,E$137,FALSE) -> 0 | F210: =VLOOKUP(Vlookup!$B175,'CDCM Volume Forecasts'!$A$27:$AG$123,F$137,FALSE) -> 0 | G210: =VLOOKUP(Vlookup!$B175,'CDCM Volume Forecasts'!$A$27:$AG$123,G$137,FALSE) -> 0
A211: LDNO HV: LV UMS (Pseudo HH Metered) | B211: =VLOOKUP(Vlookup!$B176,'CDCM Volume Forecasts'!$A$27:$AG$123,B$137,FALSE) -> 0 | C211: =VLOOKUP(Vlookup!$B176,'CDCM Volume Forecasts'!$A$27:$AG$123,C$137,FALSE) -> 0 | D211: =VLOOKUP(Vlookup!$B176,'CDCM Volume Forecasts'!$A$27:$AG$123,D$137,FALSE) -> 0 | E211: =VLOOKUP(Vlookup!$B176,'CDCM Volume Forecasts'!$A$27:$AG$123,E$137,FALSE) -> 0 | F211: =VLOOKUP(Vlookup!$B176,'CDCM Volume Forecasts'!$A$27:$AG$123,F$137,FALSE) -> 0 | G211: =VLOOKUP(Vlookup!$B176,'CDCM Volume Forecasts'!$A$27:$AG$123,G$137,FALSE) -> 0
A212: > LV Generation NHH or Aggregate HH | B212: =VLOOKUP(Vlookup!$B177,'CDCM Volume Forecasts'!$A$27:$AG$123,B$137,FALSE) -> 0 | C212: =VLOOKUP(Vlookup!$B177,'CDCM Volume Forecasts'!$A$27:$AG$123,C$137,FALSE) -> 0 | D212: =VLOOKUP(Vlookup!$B177,'CDCM Volume Forecasts'!$A$27:$AG$123,D$137,FALSE) -> 0 | E212: =VLOOKUP(Vlookup!$B177,'CDCM Volume Forecasts'!$A$27:$AG$123,E$137,FALSE) -> 0 | F212: =VLOOKUP(Vlookup!$B177,'CDCM Volume Forecasts'!$A$27:$AG$123,F$137,FALSE) -> 0 | G212: =VLOOKUP(Vlookup!$B177,'CDCM Volume Forecasts'!$A$27:$AG$123,G$137,FALSE) -> 0
A213: LV Generation NHH or Aggregate HH | B213: =VLOOKUP(Vlookup!$B178,'CDCM Volume Forecasts'!$A$27:$AG$123,B$137,FALSE) -> 2351.390322 | C213: =VLOOKUP(Vlookup!$B178,'CDCM Volume Forecasts'!$A$27:$AG$123,C$137,FALSE) -> 0 | D213: =VLOOKUP(Vlookup!$B178,'CDCM Volume Forecasts'!$A$27:$AG$123,D$137,FALSE) -> 0 | E213: =VLOOKUP(Vlookup!$B178,'CDCM Volume Forecasts'!$A$27:$AG$123,E$137,FALSE) -> 260 | F213: =VLOOKUP(Vlookup!$B178,'CDCM Volume Forecasts'!$A$27:$AG$123,F$137,FALSE) -> 0 | G213: =VLOOKUP(Vlookup!$B178,'CDCM Volume Forecasts'!$A$27:$AG$123,G$137,FALSE) -> 0
A214: LDNO LV: LV Generation NHH or Aggregate HH | B214: =VLOOKUP(Vlookup!$B179,'CDCM Volume Forecasts'!$A$27:$AG$123,B$137,FALSE) -> 115.0887325 | C214: =VLOOKUP(Vlookup!$B179,'CDCM Volume Forecasts'!$A$27:$AG$123,C$137,FALSE) -> 0 | D214: =VLOOKUP(Vlookup!$B179,'CDCM Volume Forecasts'!$A$27:$AG$123,D$137,FALSE) -> 0 | E214: =VLOOKUP(Vlookup!$B179,'CDCM Volume Forecasts'!$A$27:$AG$123,E$137,FALSE) -> 0 | F214: =VLOOKUP(Vlookup!$B179,'CDCM Volume Forecasts'!$A$27:$AG$123,F$137,FALSE) -> 0 | G214: =VLOOKUP(Vlookup!$B179,'CDCM Volume Forecasts'!$A$27:$AG$123,G$137,FALSE) -> 0
A215: LDNO HV: LV Generation NHH or Aggregate HH | B215: =VLOOKUP(Vlookup!$B180,'CDCM Volume Forecasts'!$A$27:$AG$123,B$137,FALSE) -> 0 | C215: =VLOOKUP(Vlookup!$B180,'CDCM Volume Forecasts'!$A$27:$AG$123,C$137,FALSE) -> 0 | D215: =VLOOKUP(Vlookup!$B180,'CDCM Volume Forecasts'!$A$27:$AG$123,D$137,FALSE) -> 0 | E215: =VLOOKUP(Vlookup!$B180,'CDCM Volume Forecasts'!$A$27:$AG$123,E$137,FALSE) -> 0 | F215: =VLOOKUP(Vlookup!$B180,'CDCM Volume Forecasts'!$A$27:$AG$123,F$137,FALSE) -> 0 | G215: =VLOOKUP(Vlookup!$B180,'CDCM Volume Forecasts'!$A$27:$AG$123,G$137,FALSE) -> 0
A216: > LV Sub Generation NHH | B216: =VLOOKUP(Vlookup!$B181,'CDCM Volume Forecasts'!$A$27:$AG$123,B$137,FALSE) -> 0 | C216: =VLOOKUP(Vlookup!$B181,'CDCM Volume Forecasts'!$A$27:$AG$123,C$137,FALSE) -> 0 | D216: =VLOOKUP(Vlookup!$B181,'CDCM Volume Forecasts'!$A$27:$AG$123,D$137,FALSE) -> 0 | E216: =VLOOKUP(Vlookup!$B181,'CDCM Volume Forecasts'!$A$27:$AG$123,E$137,FALSE) -> 0 | F216: =VLOOKUP(Vlookup!$B181,'CDCM Volume Forecasts'!$A$27:$AG$123,F$137,FALSE) -> 0 | G216: =VLOOKUP(Vlookup!$B181,'CDCM Volume Forecasts'!$A$27:$AG$123,G$137,FALSE) -> 0
A217: LV Sub Generation NHH | B217: =VLOOKUP(Vlookup!$B182,'CDCM Volume Forecasts'!$A$27:$AG$123,B$137,FALSE) -> 0 | C217: =VLOOKUP(Vlookup!$B182,'CDCM Volume Forecasts'!$A$27:$AG$123,C$137,FALSE) -> 0 | D217: =VLOOKUP(Vlookup!$B182,'CDCM Volume Forecasts'!$A$27:$AG$123,D$137,FALSE) -> 0 | E217: =VLOOKUP(Vlookup!$B182,'CDCM Volume Forecasts'!$A$27:$AG$123,E$137,FALSE) -> 0 | F217: =VLOOKUP(Vlookup!$B182,'CDCM Volume Forecasts'!$A$27:$AG$123,F$137,FALSE) -> 0 | G217: =VLOOKUP(Vlookup!$B182,'CDCM Volume Forecasts'!$A$27:$AG$123,G$137,FALSE) -> 0
A218: LDNO HV: LV Sub Generation NHH | B218: =VLOOKUP(Vlookup!$B183,'CDCM Volume Forecasts'!$A$27:$AG$123,B$137,FALSE) -> 0 | C218: =VLOOKUP(Vlookup!$B183,'CDCM Volume Forecasts'!$A$27:$AG$123,C$137,FALSE) -> 0 | D218: =VLOOKUP(Vlookup!$B183,'CDCM Volume Forecasts'!$A$27:$AG$123,D$137,FALSE) -> 0 | E218: =VLOOKUP(Vlookup!$B183,'CDCM Volume Forecasts'!$A$27:$AG$123,E$137,FALSE) -> 0 | F218: =VLOOKUP(Vlookup!$B183,'CDCM Volume Forecasts'!$A$27:$AG$123,F$137,FALSE) -> 0 | G218: =VLOOKUP(Vlookup!$B183,'CDCM Volume Forecasts'!$A$27:$AG$123,G$137,FALSE) -> 0
A219: > LV Generation Intermittent | B219: =VLOOKUP(Vlookup!$B184,'CDCM Volume Forecasts'!$A$27:$AG$123,B$137,FALSE) -> 0 | C219: =VLOOKUP(Vlookup!$B184,'CDCM Volume Forecasts'!$A$27:$AG$123,C$137,FALSE) -> 0 | D219: =VLOOKUP(Vlookup!$B184,'CDCM Volume Forecasts'!$A$27:$AG$123,D$137,FALSE) -> 0 | E219: =VLOOKUP(Vlookup!$B184,'CDCM Volume Forecasts'!$A$27:$AG$123,E$137,FALSE) -> 0 | F219: =VLOOKUP(Vlookup!$B184,'CDCM Volume Forecasts'!$A$27:$AG$123,F$137,FALSE) -> 0 | G219: =VLOOKUP(Vlookup!$B184,'CDCM Volume Forecasts'!$A$27:$AG$123,G$137,FALSE) -> 0
A220: LV Generation Intermittent | B220: =VLOOKUP(Vlookup!$B185,'CDCM Volume Forecasts'!$A$27:$AG$123,B$137,FALSE) -> 38618.94537 | C220: =VLOOKUP(Vlookup!$B185,'CDCM Volume Forecasts'!$A$27:$AG$123,C$137,FALSE) -> 0 | D220: =VLOOKUP(Vlookup!$B185,'CDCM Volume Forecasts'!$A$27:$AG$123,D$137,FALSE) -> 0 | E220: =VLOOKUP(Vlookup!$B185,'CDCM Volume Forecasts'!$A$27:$AG$123,E$137,FALSE) -> 496 | F220: =VLOOKUP(Vlookup!$B185,'CDCM Volume Forecasts'!$A$27:$AG$123,F$137,FALSE) -> 0 | G220: =VLOOKUP(Vlookup!$B185,'CDCM Volume Forecasts'!$A$27:$AG$123,G$137,FALSE) -> 2200.6
A221: LDNO LV: LV Generation Intermittent | B221: =VLOOKUP(Vlookup!$B186,'CDCM Volume Forecasts'!$A$27:$AG$123,B$137,FALSE) -> 0 | C221: =VLOOKUP(Vlookup!$B186,'CDCM Volume Forecasts'!$A$27:$AG$123,C$137,FALSE) -> 0 | D221: =VLOOKUP(Vlookup!$B186,'CDCM Volume Forecasts'!$A$27:$AG$123,D$137,FALSE) -> 0 | E221: =VLOOKUP(Vlookup!$B186,'CDCM Volume Forecasts'!$A$27:$AG$123,E$137,FALSE) -> 0 | F221: =VLOOKUP(Vlookup!$B186,'CDCM Volume Forecasts'!$A$27:$AG$123,F$137,FALSE) -> 0 | G221: =VLOOKUP(Vlookup!$B186,'CDCM Volume Forecasts'!$A$27:$AG$123,G$137,FALSE) -> 0
A222: LDNO HV: LV Generation Intermittent | B222: =VLOOKUP(Vlookup!$B187,'CDCM Volume Forecasts'!$A$27:$AG$123,B$137,FALSE) -> 0 | C222: =VLOOKUP(Vlookup!$B187,'CDCM Volume Forecasts'!$A$27:$AG$123,C$137,FALSE) -> 0 | D222: =VLOOKUP(Vlookup!$B187,'CDCM Volume Forecasts'!$A$27:$AG$123,D$137,FALSE) -> 0 | E222: =VLOOKUP(Vlookup!$B187,'CDCM Volume Forecasts'!$A$27:$AG$123,E$137,FALSE) -> 0 | F222: =VLOOKUP(Vlookup!$B187,'CDCM Volume Forecasts'!$A$27:$AG$123,F$137,FALSE) -> 0 | G222: =VLOOKUP(Vlookup!$B187,'CDCM Volume Forecasts'!$A$27:$AG$123,G$137,FALSE) -> 0
A223: > LV Generation Non-Intermittent | B223: =VLOOKUP(Vlookup!$B188,'CDCM Volume Forecasts'!$A$27:$AG$123,B$137,FALSE) -> 0 | C223: =VLOOKUP(Vlookup!$B188,'CDCM Volume Forecasts'!$A$27:$AG$123,C$137,FALSE) -> 0 | D223: =VLOOKUP(Vlookup!$B188,'CDCM Volume Forecasts'!$A$27:$AG$123,D$137,FALSE) -> 0 | E223: =VLOOKUP(Vlookup!$B188,'CDCM Volume Forecasts'!$A$27:$AG$123,E$137,FALSE) -> 0 | F223: =VLOOKUP(Vlookup!$B188,'CDCM Volume Forecasts'!$A$27:$AG$123,F$137,FALSE) -> 0 | G223: =VLOOKUP(Vlookup!$B188,'CDCM Volume Forecasts'!$A$27:$AG$123,G$137,FALSE) -> 0
A224: LV Generation Non-Intermittent | B224: =VLOOKUP(Vlookup!$B189,'CDCM Volume Forecasts'!$A$27:$AG$123,B$137,FALSE) -> 416.519849 | C224: =VLOOKUP(Vlookup!$B189,'CDCM Volume Forecasts'!$A$27:$AG$123,C$137,FALSE) -> 2168.244323 | D224: =VLOOKUP(Vlookup!$B189,'CDCM Volume Forecasts'!$A$27:$AG$123,D$137,FALSE) -> 1902.921682 | E224: =VLOOKUP(Vlookup!$B189,'CDCM Volume Forecasts'!$A$27:$AG$123,E$137,FALSE) -> 8 | F224: =VLOOKUP(Vlookup!$B189,'CDCM Volume Forecasts'!$A$27:$AG$123,F$137,FALSE) -> 0 | G224: =VLOOKUP(Vlookup!$B189,'CDCM Volume Forecasts'!$A$27:$AG$123,G$137,FALSE) -> 4.002
A225: LDNO LV: LV Generation Non-Intermittent | B225: =VLOOKUP(Vlookup!$B190,'CDCM Volume Forecasts'!$A$27:$AG$123,B$137,FALSE) -> 0 | C225: =VLOOKUP(Vlookup!$B190,'CDCM Volume Forecasts'!$A$27:$AG$123,C$137,FALSE) -> 0 | D225: =VLOOKUP(Vlookup!$B190,'CDCM Volume Forecasts'!$A$27:$AG$123,D$137,FALSE) -> 0 | E225: =VLOOKUP(Vlookup!$B190,'CDCM Volume Forecasts'!$A$27:$AG$123,E$137,FALSE) -> 0 | F225: =VLOOKUP(Vlookup!$B190,'CDCM Volume Forecasts'!$A$27:$AG$123,F$137,FALSE) -> 0 | G225: =VLOOKUP(Vlookup!$B190,'CDCM Volume Forecasts'!$A$27:$AG$123,G$137,FALSE) -> 0
A226: LDNO HV: LV Generation Non-Intermittent | B226: =VLOOKUP(Vlookup!$B191,'CDCM Volume Forecasts'!$A$27:$AG$123,B$137,FALSE) -> 0 | C226: =VLOOKUP(Vlookup!$B191,'CDCM Volume Forecasts'!$A$27:$AG$123,C$137,FALSE) -> 0 | D226: =VLOOKUP(Vlookup!$B191,'CDCM Volume Forecasts'!$A$27:$AG$123,D$137,FALSE) -> 0 | E226: =VLOOKUP(Vlookup!$B191,'CDCM Volume Forecasts'!$A$27:$AG$123,E$137,FALSE) -> 0 | F226: =VLOOKUP(Vlookup!$B191,'CDCM Volume Forecasts'!$A$27:$AG$123,F$137,FALSE) -> 0 | G226: =VLOOKUP(Vlookup!$B191,'CDCM Volume Forecasts'!$A$27:$AG$123,G$137,FALSE) -> 0
A227: > LV Sub Generation Intermittent | B227: =VLOOKUP(Vlookup!$B192,'CDCM Volume Forecasts'!$A$27:$AG$123,B$137,FALSE) -> 0 | C227: =VLOOKUP(Vlookup!$B192,'CDCM Volume Forecasts'!$A$27:$AG$123,C$137,FALSE) -> 0 | D227: =VLOOKUP(Vlookup!$B192,'CDCM Volume Forecasts'!$A$27:$AG$123,D$137,FALSE) -> 0 | E227: =VLOOKUP(Vlookup!$B192,'CDCM Volume Forecasts'!$A$27:$AG$123,E$137,FALSE) -> 0 | F227: =VLOOKUP(Vlookup!$B192,'CDCM Volume Forecasts'!$A$27:$AG$123,F$137,FALSE) -> 0 | G227: =VLOOKUP(Vlookup!$B192,'CDCM Volume Forecasts'!$A$27:$AG$123,G$137,FALSE) -> 0
A228: LV Sub Generation Intermittent | B228: =VLOOKUP(Vlookup!$B193,'CDCM Volume Forecasts'!$A$27:$AG$123,B$137,FALSE) -> 5874.307069 | C228: =VLOOKUP(Vlookup!$B193,'CDCM Volume Forecasts'!$A$27:$AG$123,C$137,FALSE) -> 0 | D228: =VLOOKUP(Vlookup!$B193,'CDCM Volume Forecasts'!$A$27:$AG$123,D$137,FALSE) -> 0 | E228: =VLOOKUP(Vlookup!$B193,'CDCM Volume Forecasts'!$A$27:$AG$123,E$137,FALSE) -> 60 | F228: =VLOOKUP(Vlookup!$B193,'CDCM Volume Forecasts'!$A$27:$AG$123,F$137,FALSE) -> 0 | G228: =VLOOKUP(Vlookup!$B193,'CDCM Volume Forecasts'!$A$27:$AG$123,G$137,FALSE) -> 608.533
... 81 more rows

Sheet (Y+1)
A1: Input data (Y+1)
A4: 1000. Company, charging year, data version
B6: Company | C6: Year | D6: Version
A7: Company, charging year, data version | B7: =VLOOKUP(Vlookup!B7,'CDCM Forecast Data'!$A$14:$I$271,6,FALSE) -> 0 | C7: =VLOOKUP(Vlookup!C7,'CDCM Forecast Data'!$A$14:$I$271,6,FALSE) -> 0 | D7: =VLOOKUP(Vlookup!D7,'CDCM Forecast Data'!$A$14:$I$271,6,FALSE) -> 0
A9: 1010. Financial and general assumptions
A11: Sources: financial assumptions; calendar; network model.
A12: These financial assumptions determine the annuity rate applied to convert the asset values of the network model into an annual charge.
B13: Rate of return | C13: Annualisation period (years) | D13: Annuity proportion for customer-contributed assets | E13: Power factor | F13: Days in the charging period
A14: Financial and general assumptions | B14: =VLOOKUP(Vlookup!B14,'CDCM Forecast Data'!$A$14:$I$271,6,FALSE) -> 0.056 | C14: =VLOOKUP(Vlookup!C14,'CDCM Forecast Data'!$A$14:$I$271,6,FALSE) -> 40 | E14: =VLOOKUP(Vlookup!E14,'CDCM Forecast Data'!$A$14:$I$271,6,FALSE) -> 0.95 | F14: =VLOOKUP(Vlookup!F14,'CDCM Forecast Data'!$A$14:$I$271,6,FALSE) -> 365
A16: 1017. Diversity allowance between top and bottom of network level
A18: Source: operational data analysis and/or network model.
A19: The diversity figure against GSP is the diversity between GSP Group (the whole system) and individual GSPs.
A20: The diversity figure against 132kV is the diversity between GSPs (the top of the 132kV network) and 132kV/EHV bulk supply points (the bottom of the 132kV network).
A21: The diversity figure against EHV is the diversity between 132kV/EHV bulk supply points (the top of the EHV network) and EHV/HV primary substations (the bottom of the EHV network).
A22: The diversity figure against HV is the diversity between EHV/HV primary substations (the top of the HV network) and HV/LV substations (the bottom of the HV network).
B23: Diversity allowance between top and bottom of network level
A24: GSPs | B24: =VLOOKUP(Vlookup!B24,'CDCM Forecast Data'!$A$14:$I$271,6,FALSE) -> 0.022
A25: 132kV | B25: =VLOOKUP(Vlookup!B25,'CDCM Forecast Data'!$A$14:$I$271,6,FALSE) -> 0.031
A26: 132kV/EHV
A27: EHV | B27: =VLOOKUP(Vlookup!B27,'CDCM Forecast Data'!$A$14:$I$271,6,FALSE) -> 0.075
A28: EHV/HV
A29: HV | B29: =VLOOKUP(Vlookup!B29,'CDCM Forecast Data'!$A$14:$I$271,6,FALSE) -> 0.37
A30: HV/LV
A31: LV circuits
A33: 1018. Proportion of relevant load going through 132kV/HV direct transformation
B35: 132kV/HV
A36: EHV/HV | B36: =VLOOKUP(Vlookup!B36,'CDCM Forecast Data'!$A$14:$I$271,6,FALSE) -> 0
A38: 1019. Network model GSP peak demand (MW)
B40: Network model GSP peak demand (MW)
A41: Network model GSP peak demand (MW) | B41: =VLOOKUP(Vlookup!B41,'CDCM Forecast Data'!$A$14:$I$271,6,FALSE) -> 500
A43: 1020. Gross asset cost by network level (£)
B45: Gross assets £
A46: 132kV | B46: =VLOOKUP(Vlookup!B46,'CDCM Forecast Data'!$A$14:$I$271,6,FALSE) -> 111419930.2
A47: 132kV/EHV | B47: =VLOOKUP(Vlookup!B47,'CDCM Forecast Data'!$A$14:$I$271,6,FALSE) -> 15781435.27
A48: EHV | B48: =VLOOKUP(Vlookup!B48,'CDCM Forecast Data'!$A$14:$I$271,6,FALSE) -> 39840185.59
A49: EHV/HV | B49: =VLOOKUP(Vlookup!B49,'CDCM Forecast Data'!$A$14:$I$271,6,FALSE) -> 40041227.15
A50: 132kV/HV | B50: =VLOOKUP(Vlookup!B50,'CDCM Forecast Data'!$A$14:$I$271,6,FALSE) -> 0
A51: HV | B51: =VLOOKUP(Vlookup!B51,'CDCM Forecast Data'!$A$14:$I$271,6,FALSE) -> 142603119.3
A52: HV/LV | B52: =VLOOKUP(Vlookup!B52,'CDCM Forecast Data'!$A$14:$I$271,6,FALSE) -> 60769296.66
A53: LV circuits | B53: =VLOOKUP(Vlookup!B53,'CDCM Forecast Data'!$A$14:$I$271,6,FALSE) -> 130516403.4
A55: 1022. LV service model asset cost (£)
B57: LV service model 1 | C57: LV service model 2 | D57: LV service model 3 | E57: LV service model 4 | F57: LV service model 5 | G57: LV service model 6 | H57: LV service model 7 | I57: LV service model 8
A58: LV service model asset cost (£) | B58: =VLOOKUP(Vlookup!B58,'CDCM Forecast Data'!$A$14:$I$271,6,FALSE) -> 5105.17672 | C58: =VLOOKUP(Vlookup!C58,'CDCM Forecast Data'!$A$14:$I$271,6,FALSE) -> 574.28134 | D58: =VLOOKUP(Vlookup!D58,'CDCM Forecast Data'!$A$14:$I$271,6,FALSE) -> 699.18344 | E58: =VLOOKUP(Vlookup!E58,'CDCM Forecast Data'!$A$14:$I$271,6,FALSE) -> 518.5284 | F58: =VLOOKUP(Vlookup!F58,'CDCM Forecast Data'!$A$14:$I$271,6,FALSE) -> 1178.730448 | G58: =VLOOKUP(Vlookup!G58,'CDCM Forecast Data'!$A$14:$I$271,6,FALSE) -> 907.87362 | H58: =VLOOKUP(Vlookup!H58,'CDCM Forecast Data'!$A$14:$I$271,6,FALSE) -> 0 | I58: =VLOOKUP(Vlookup!I58,'CDCM Forecast Data'!$A$14:$I$271,6,FALSE) -> 474.8232
A60: 1023. HV service model asset cost (£)
B62: HV service model 1 | C62: HV service model 2 | D62: HV service model 3 | E62: HV service model 4 | F62: HV service model 5
A63: HV service model asset cost (£) | B63: =VLOOKUP(Vlookup!B63,'CDCM Forecast Data'!$A$14:$I$271,6,FALSE) -> 9007.159776 | C63: =VLOOKUP(Vlookup!C63,'CDCM Forecast Data'!$A$14:$I$271,6,FALSE) -> 4342.656 | D63: =VLOOKUP(Vlookup!D63,'CDCM Forecast Data'!$A$14:$I$271,6,FALSE) -> 0 | E63: =VLOOKUP(Vlookup!E63,'CDCM Forecast Data'!$A$14:$I$271,6,FALSE) -> 0 | F63: =VLOOKUP(Vlookup!F63,'CDCM Forecast Data'!$A$14:$I$271,6,FALSE) -> 0
A65: 1025. Matrix of applicability of LV service models to tariffs with fixed charges
B66: 10 | C66: =B66+1 -> 11 | D66: 12 | E66: 13 | F66: 14 | G66: 15 | H66: 16 | I66: 17
B67: LV service model 1 | C67: LV service model 2 | D67: LV service model 3 | E67: LV service model 4 | F67: LV service model 5 | G67: LV service model 6 | H67: LV service model 7 | I67: LV service model 8
A68: Domestic Unrestricted | B68: =VLOOKUP($A68,'Mat of App'!$B$7:$AP$37,B$66,FALSE) -> 0.05 | C68: =VLOOKUP($A68,'Mat of App'!$B$7:$AP$37,C$66,FALSE) -> 0 | D68: =VLOOKUP($A68,'Mat of App'!$B$7:$AP$37,D$66,FALSE) -> 0 | E68: =VLOOKUP($A68,'Mat of App'!$B$7:$AP$37,E$66,FALSE) -> 0 | F68: =VLOOKUP($A68,'Mat of App'!$B$7:$AP$37,F$66,FALSE) -> 0 | G68: =VLOOKUP($A68,'Mat of App'!$B$7:$AP$37,G$66,FALSE) -> 0 | H68: =VLOOKUP($A68,'Mat of App'!$B$7:$AP$37,H$66,FALSE) -> 0 | I68: =VLOOKUP($A68,'Mat of App'!$B$7:$AP$37,I$66,FALSE) -> 0
A69: Domestic Two Rate | B69: =VLOOKUP($A69,'Mat of App'!$B$7:$AP$37,B$66,FALSE) -> 0.05 | C69: =VLOOKUP($A69,'Mat of App'!$B$7:$AP$37,C$66,FALSE) -> 0 | D69: =VLOOKUP($A69,'Mat of App'!$B$7:$AP$37,D$66,FALSE) -> 0 | E69: =VLOOKUP($A69,'Mat of App'!$B$7:$AP$37,E$66,FALSE) -> 0 | F69: =VLOOKUP($A69,'Mat of App'!$B$7:$AP$37,F$66,FALSE) -> 0 | G69: =VLOOKUP($A69,'Mat of App'!$B$7:$AP$37,G$66,FALSE) -> 0 | H69: =VLOOKUP($A69,'Mat of App'!$B$7:$AP$37,H$66,FALSE) -> 0 | I69: =VLOOKUP($A69,'Mat of App'!$B$7:$AP$37,I$66,FALSE) -> 0
A70: Small Non Domestic Unrestricted | B70: =VLOOKUP($A70,'Mat of App'!$B$7:$AP$37,B$66,FALSE) -> 0 | C70: =VLOOKUP($A70,'Mat of App'!$B$7:$AP$37,C$66,FALSE) -> 1 | D70: =VLOOKUP($A70,'Mat of App'!$B$7:$AP$37,D$66,FALSE) -> 0 | E70: =VLOOKUP($A70,'Mat of App'!$B$7:$AP$37,E$66,FALSE) -> 0 | F70: =VLOOKUP($A70,'Mat of App'!$B$7:$AP$37,F$66,FALSE) -> 0 | G70: =VLOOKUP($A70,'Mat of App'!$B$7:$AP$37,G$66,FALSE) -> 0 | H70: =VLOOKUP($A70,'Mat of App'!$B$7:$AP$37,H$66,FALSE) -> 0 | I70: =VLOOKUP($A70,'Mat of App'!$B$7:$AP$37,I$66,FALSE) -> 0
A71: Small Non Domestic Two Rate | B71: =VLOOKUP($A71,'Mat of App'!$B$7:$AP$37,B$66,FALSE) -> 0 | C71: =VLOOKUP($A71,'Mat of App'!$B$7:$AP$37,C$66,FALSE) -> 1 | D71: =VLOOKUP($A71,'Mat of App'!$B$7:$AP$37,D$66,FALSE) -> 0 | E71: =VLOOKUP($A71,'Mat of App'!$B$7:$AP$37,E$66,FALSE) -> 0 | F71: =VLOOKUP($A71,'Mat of App'!$B$7:$AP$37,F$66,FALSE) -> 0 | G71: =VLOOKUP($A71,'Mat of App'!$B$7:$AP$37,G$66,FALSE) -> 0 | H71: =VLOOKUP($A71,'Mat of App'!$B$7:$AP$37,H$66,FALSE) -> 0 | I71: =VLOOKUP($A71,'Mat of App'!$B$7:$AP$37,I$66,FALSE) -> 0
A72: LV Medium Non-Domestic | B72: =VLOOKUP($A72,'Mat of App'!$B$7:$AP$37,B$66,FALSE) -> 0 | C72: =VLOOKUP($A72,'Mat of App'!$B$7:$AP$37,C$66,FALSE) -> 0 | D72: =VLOOKUP($A72,'Mat of App'!$B$7:$AP$37,D$66,FALSE) -> 1 | E72: =VLOOKUP($A72,'Mat of App'!$B$7:$AP$37,E$66,FALSE) -> 0 | F72: =VLOOKUP($A72,'Mat of App'!$B$7:$AP$37,F$66,FALSE) -> 0 | G72: =VLOOKUP($A72,'Mat of App'!$B$7:$AP$37,G$66,FALSE) -> 0 | H72: =VLOOKUP($A72,'Mat of App'!$B$7:$AP$37,H$66,FALSE) -> 0 | I72: =VLOOKUP($A72,'Mat of App'!$B$7:$AP$37,I$66,FALSE) -> 0
A73: LV Sub Medium Non-Domestic | B73: =VLOOKUP($A73,'Mat of App'!$B$7:$AP$37,B$66,FALSE) -> 0 | C73: =VLOOKUP($A73,'Mat of App'!$B$7:$AP$37,C$66,FALSE) -> 0 | D73: =VLOOKUP($A73,'Mat of App'!$B$7:$AP$37,D$66,FALSE) -> 0 | E73: =VLOOKUP($A73,'Mat of App'!$B$7:$AP$37,E$66,FALSE) -> 1 | F73: =VLOOKUP($A73,'Mat of App'!$B$7:$AP$37,F$66,FALSE) -> 0 | G73: =VLOOKUP($A73,'Mat of App'!$B$7:$AP$37,G$66,FALSE) -> 0 | H73: =VLOOKUP($A73,'Mat of App'!$B$7:$AP$37,H$66,FALSE) -> 0 | I73: =VLOOKUP($A73,'Mat of App'!$B$7:$AP$37,I$66,FALSE) -> 0
A74: LV Network Domestic | B74: =VLOOKUP($A74,'Mat of App'!$B$7:$AP$37,B$66,FALSE) -> 0.05 | C74: =VLOOKUP($A74,'Mat of App'!$B$7:$AP$37,C$66,FALSE) -> 0 | D74: =VLOOKUP($A74,'Mat of App'!$B$7:$AP$37,D$66,FALSE) -> 0 | E74: =VLOOKUP($A74,'Mat of App'!$B$7:$AP$37,E$66,FALSE) -> 0 | F74: =VLOOKUP($A74,'Mat of App'!$B$7:$AP$37,F$66,FALSE) -> 0 | G74: =VLOOKUP($A74,'Mat of App'!$B$7:$AP$37,G$66,FALSE) -> 0 | H74: =VLOOKUP($A74,'Mat of App'!$B$7:$AP$37,H$66,FALSE) -> 0 | I74: =VLOOKUP($A74,'Mat of App'!$B$7:$AP$37,I$66,FALSE) -> 0
A75: LV Network Non-Domestic Non-CT | B75: =VLOOKUP($A75,'Mat of App'!$B$7:$AP$37,B$66,FALSE) -> 0 | C75: =VLOOKUP($A75,'Mat of App'!$B$7:$AP$37,C$66,FALSE) -> 1 | D75: =VLOOKUP($A75,'Mat of App'!$B$7:$AP$37,D$66,FALSE) -> 0 | E75: =VLOOKUP($A75,'Mat of App'!$B$7:$AP$37,E$66,FALSE) -> 0 | F75: =VLOOKUP($A75,'Mat of App'!$B$7:$AP$37,F$66,FALSE) -> 0 | G75: =VLOOKUP($A75,'Mat of App'!$B$7:$AP$37,G$66,FALSE) -> 0 | H75: =VLOOKUP($A75,'Mat of App'!$B$7:$AP$37,H$66,FALSE) -> 0 | I75: =VLOOKUP($A75,'Mat of App'!$B$7:$AP$37,I$66,FALSE) -> 0
A76: LV HH Metered | B76: =VLOOKUP($A76,'Mat of App'!$B$7:$AP$37,B$66,FALSE) -> 0 | C76: =VLOOKUP($A76,'Mat of App'!$B$7:$AP$37,C$66,FALSE) -> 0 | D76: =VLOOKUP($A76,'Mat of App'!$B$7:$AP$37,D$66,FALSE) -> 0 | E76: =VLOOKUP($A76,'Mat of App'!$B$7:$AP$37,E$66,FALSE) -> 0 | F76: =VLOOKUP($A76,'Mat of App'!$B$7:$AP$37,F$66,FALSE) -> 1 | G76: =VLOOKUP($A76,'Mat of App'!$B$7:$AP$37,G$66,FALSE) -> 0 | H76: =VLOOKUP($A76,'Mat of App'!$B$7:$AP$37,H$66,FALSE) -> 0 | I76: =VLOOKUP($A76,'Mat of App'!$B$7:$AP$37,I$66,FALSE) -> 0
A77: LV Sub HH Metered | B77: =VLOOKUP($A77,'Mat of App'!$B$7:$AP$37,B$66,FALSE) -> 0 | C77: =VLOOKUP($A77,'Mat of App'!$B$7:$AP$37,C$66,FALSE) -> 0 | D77: =VLOOKUP($A77,'Mat of App'!$B$7:$AP$37,D$66,FALSE) -> 0 | E77: =VLOOKUP($A77,'Mat of App'!$B$7:$AP$37,E$66,FALSE) -> 0 | F77: =VLOOKUP($A77,'Mat of App'!$B$7:$AP$37,F$66,FALSE) -> 0 | G77: =VLOOKUP($A77,'Mat of App'!$B$7:$AP$37,G$66,FALSE) -> 1 | H77: =VLOOKUP($A77,'Mat of App'!$B$7:$AP$37,H$66,FALSE) -> 0 | I77: =VLOOKUP($A77,'Mat of App'!$B$7:$AP$37,I$66,FALSE) -> 0
A78: LV Generation NHH or Aggregate HH | B78: =VLOOKUP($A78,'Mat of App'!$B$7:$AP$37,B$66,FALSE) -> 0 | C78: =VLOOKUP($A78,'Mat of App'!$B$7:$AP$37,C$66,FALSE) -> 0 | D78: =VLOOKUP($A78,'Mat of App'!$B$7:$AP$37,D$66,FALSE) -> 0 | E78: =VLOOKUP($A78,'Mat of App'!$B$7:$AP$37,E$66,FALSE) -> 0 | F78: =VLOOKUP($A78,'Mat of App'!$B$7:$AP$37,F$66,FALSE) -> 0 | G78: =VLOOKUP($A78,'Mat of App'!$B$7:$AP$37,G$66,FALSE) -> 0 | H78: =VLOOKUP($A78,'Mat of App'!$B$7:$AP$37,H$66,FALSE) -> 1 | I78: =VLOOKUP($A78,'Mat of App'!$B$7:$AP$37,I$66,FALSE) -> 0
A79: LV Sub Generation NHH | B79: =VLOOKUP($A79,'Mat of App'!$B$7:$AP$37,B$66,FALSE) -> 0 | C79: =VLOOKUP($A79,'Mat of App'!$B$7:$AP$37,C$66,FALSE) -> 0 | D79: =VLOOKUP($A79,'Mat of App'!$B$7:$AP$37,D$66,FALSE) -> 0 | E79: =VLOOKUP($A79,'Mat of App'!$B$7:$AP$37,E$66,FALSE) -> 0 | F79: =VLOOKUP($A79,'Mat of App'!$B$7:$AP$37,F$66,FALSE) -> 0 | G79: =VLOOKUP($A79,'Mat of App'!$B$7:$AP$37,G$66,FALSE) -> 0 | H79: =VLOOKUP($A79,'Mat of App'!$B$7:$AP$37,H$66,FALSE) -> 1 | I79: =VLOOKUP($A79,'Mat of App'!$B$7:$AP$37,I$66,FALSE) -> 0
A80: LV Generation Intermittent | B80: =VLOOKUP($A80,'Mat of App'!$B$7:$AP$37,B$66,FALSE) -> 0 | C80: =VLOOKUP($A80,'Mat of App'!$B$7:$AP$37,C$66,FALSE) -> 0 | D80: =VLOOKUP($A80,'Mat of App'!$B$7:$AP$37,D$66,FALSE) -> 0 | E80: =VLOOKUP($A80,'Mat of App'!$B$7:$AP$37,E$66,FALSE) -> 0 | F80: =VLOOKUP($A80,'Mat of App'!$B$7:$AP$37,F$66,FALSE) -> 0 | G80: =VLOOKUP($A80,'Mat of App'!$B$7:$AP$37,G$66,FALSE) -> 0 | H80: =VLOOKUP($A80,'Mat of App'!$B$7:$AP$37,H$66,FALSE) -> 1 | I80: =VLOOKUP($A80,'Mat of App'!$B$7:$AP$37,I$66,FALSE) -> 0
A81: LV Generation Non-Intermittent | B81: =VLOOKUP($A81,'Mat of App'!$B$7:$AP$37,B$66,FALSE) -> 0 | C81: =VLOOKUP($A81,'Mat of App'!$B$7:$AP$37,C$66,FALSE) -> 0 | D81: =VLOOKUP($A81,'Mat of App'!$B$7:$AP$37,D$66,FALSE) -> 0 | E81: =VLOOKUP($A81,'Mat of App'!$B$7:$AP$37,E$66,FALSE) -> 0 | F81: =VLOOKUP($A81,'Mat of App'!$B$7:$AP$37,F$66,FALSE) -> 0 | G81: =VLOOKUP($A81,'Mat of App'!$B$7:$AP$37,G$66,FALSE) -> 0 | H81: =VLOOKUP($A81,'Mat of App'!$B$7:$AP$37,H$66,FALSE) -> 0 | I81: =VLOOKUP($A81,'Mat of App'!$B$7:$AP$37,I$66,FALSE) -> 0
A82: LV Sub Generation Intermittent | B82: =VLOOKUP($A82,'Mat of App'!$B$7:$AP$37,B$66,FALSE) -> 0 | C82: =VLOOKUP($A82,'Mat of App'!$B$7:$AP$37,C$66,FALSE) -> 0 | D82: =VLOOKUP($A82,'Mat of App'!$B$7:$AP$37,D$66,FALSE) -> 0 | E82: =VLOOKUP($A82,'Mat of App'!$B$7:$AP$37,E$66,FALSE) -> 0 | F82: =VLOOKUP($A82,'Mat of App'!$B$7:$AP$37,F$66,FALSE) -> 0 | G82: =VLOOKUP($A82,'Mat of App'!$B$7:$AP$37,G$66,FALSE) -> 0 | H82: =VLOOKUP($A82,'Mat of App'!$B$7:$AP$37,H$66,FALSE) -> 0 | I82: =VLOOKUP($A82,'Mat of App'!$B$7:$AP$37,I$66,FALSE) -> 0
A83: LV Sub Generation Non-Intermittent | B83: =VLOOKUP($A83,'Mat of App'!$B$7:$AP$37,B$66,FALSE) -> 0 | C83: =VLOOKUP($A83,'Mat of App'!$B$7:$AP$37,C$66,FALSE) -> 0 | D83: =VLOOKUP($A83,'Mat of App'!$B$7:$AP$37,D$66,FALSE) -> 0 | E83: =VLOOKUP($A83,'Mat of App'!$B$7:$AP$37,E$66,FALSE) -> 0 | F83: =VLOOKUP($A83,'Mat of App'!$B$7:$AP$37,F$66,FALSE) -> 0 | G83: =VLOOKUP($A83,'Mat of App'!$B$7:$AP$37,G$66,FALSE) -> 0 | H83: =VLOOKUP($A83,'Mat of App'!$B$7:$AP$37,H$66,FALSE) -> 0 | I83: =VLOOKUP($A83,'Mat of App'!$B$7:$AP$37,I$66,FALSE) -> 0
A85: 1026. Matrix of applicability of LV service models to unmetered tariffs
A87: Source: service models
A88: Proportion of service model involved in connecting load of 1 MWh/year
B89: LV service model 1 | C89: LV service model 2 | D89: LV service model 3 | E89: LV service model 4 | F89: LV service model 5 | G89: LV service model 6 | H89: LV service model 7 | I89: LV service model 8
A90: All LV unmetered tariffs | B90: =VLOOKUP($A90,'Mat of App'!$B$7:$AP$37,B$66,FALSE) -> 0 | C90: =VLOOKUP($A90,'Mat of App'!$B$7:$AP$37,C$66,FALSE) -> 0 | D90: =VLOOKUP($A90,'Mat of App'!$B$7:$AP$37,D$66,FALSE) -> 0 | E90: =VLOOKUP($A90,'Mat of App'!$B$7:$AP$37,E$66,FALSE) -> 0 | F90: =VLOOKUP($A90,'Mat of App'!$B$7:$AP$37,F$66,FALSE) -> 0 | G90: =VLOOKUP($A90,'Mat of App'!$B$7:$AP$37,G$66,FALSE) -> 0 | H90: =VLOOKUP($A90,'Mat of App'!$B$7:$AP$37,H$66,FALSE) -> 0 | I90: =VLOOKUP($A90,'Mat of App'!$B$7:$AP$37,I$66,FALSE) -> 0.4876
A92: 1028. Matrix of applicability of HV service models to tariffs with fixed charges
B93: 7 | C93: =B93+1 -> 8 | D93: =C93+1 -> 9 | E93: =D93+1 -> 10 | F93: =E93+1 -> 11
B94: HV service model 1 | C94: HV service model 2 | D94: HV service model 3 | E94: HV service model 4 | F94: HV service model 5
A95: HV Medium Non-Domestic | B95: =VLOOKUP($A95,'Mat of App'!$B$7:$AP$37,B$93,FALSE) -> 1 | C95: =VLOOKUP($A95,'Mat of App'!$B$7:$AP$37,C$93,FALSE) -> 0 | D95: =VLOOKUP($A95,'Mat of App'!$B$7:$AP$37,D$93,FALSE) -> 0 | E95: =VLOOKUP($A95,'Mat of App'!$B$7:$AP$37,E$93,FALSE) -> 0 | F95: =VLOOKUP($A95,'Mat of App'!$B$7:$AP$37,F$93,FALSE) -> 0
A96: HV HH Metered | B96: =VLOOKUP($A96,'Mat of App'!$B$7:$AP$37,B$93,FALSE) -> 1 | C96: =VLOOKUP($A96,'Mat of App'!$B$7:$AP$37,C$93,FALSE) -> 0 | D96: =VLOOKUP($A96,'Mat of App'!$B$7:$AP$37,D$93,FALSE) -> 0 | E96: =VLOOKUP($A96,'Mat of App'!$B$7:$AP$37,E$93,FALSE) -> 0 | F96: =VLOOKUP($A96,'Mat of App'!$B$7:$AP$37,F$93,FALSE) -> 0
A97: HV Generation Intermittent | B97: =VLOOKUP($A97,'Mat of App'!$B$7:$AP$37,B$93,FALSE) -> 0 | C97: =VLOOKUP($A97,'Mat of App'!$B$7:$AP$37,C$93,FALSE) -> 1 | D97: =VLOOKUP($A97,'Mat of App'!$B$7:$AP$37,D$93,FALSE) -> 0 | E97: =VLOOKUP($A97,'Mat of App'!$B$7:$AP$37,E$93,FALSE) -> 0 | F97: =VLOOKUP($A97,'Mat of App'!$B$7:$AP$37,F$93,FALSE) -> 0
A98: HV Generation Non-Intermittent | B98: =VLOOKUP($A98,'Mat of App'!$B$7:$AP$37,B$93,FALSE) -> 0 | C98: =VLOOKUP($A98,'Mat of App'!$B$7:$AP$37,C$93,FALSE) -> 1 | D98: =VLOOKUP($A98,'Mat of App'!$B$7:$AP$37,D$93,FALSE) -> 0 | E98: =VLOOKUP($A98,'Mat of App'!$B$7:$AP$37,E$93,FALSE) -> 0 | F98: =VLOOKUP($A98,'Mat of App'!$B$7:$AP$37,F$93,FALSE) -> 0
A100: 1032. Loss adjustment factors to transmission
A102: Source: losses model or loss adjustment factors at time of system peak.
B103: 132kV | C103: 132kV/EHV | D103: EHV | E103: EHV/HV | F103: HV | G103: HV/LV | H103: LV circuits
A104: Loss adjustment factor | B104: =VLOOKUP(Vlookup!B69,'CDCM Forecast Data'!$A$14:$I$271,6,FALSE) -> 1.008 | C104: =VLOOKUP(Vlookup!C69,'CDCM Forecast Data'!$A$14:$I$271,6,FALSE) -> 1.011 | D104: =VLOOKUP(Vlookup!D69,'CDCM Forecast Data'!$A$14:$I$271,6,FALSE) -> 1.024 | E104: =VLOOKUP(Vlookup!E69,'CDCM Forecast Data'!$A$14:$I$271,6,FALSE) -> 1.034 | F104: =VLOOKUP(Vlookup!F69,'CDCM Forecast Data'!$A$14:$I$271,6,FALSE) -> 1.057 | G104: =VLOOKUP(Vlookup!G69,'CDCM Forecast Data'!$A$14:$I$271,6,FALSE) -> 1.07 | H104: =VLOOKUP(Vlookup!H69,'CDCM Forecast Data'!$A$14:$I$271,6,FALSE) -> 1.085
A106: 1037. Embedded network (LDNO) discounts
A108: Source: separate price control disaggregation model.
B109: No discount | C109: LDNO LV: LV user | D109: LDNO HV: LV user | E109: LDNO HV: LV sub user | F109: LDNO HV: HV user
A110: LDNO discount | C110: =VLOOKUP(Vlookup!C75,'CDCM Forecast Data'!$A$14:$I$271,6,FALSE) -> 0.3656937215 | D110: =VLOOKUP(Vlookup!D75,'CDCM Forecast Data'!$A$14:$I$271,6,FALSE) -> 0.6245521397 | E110: =VLOOKUP(Vlookup!E75,'CDCM Forecast Data'!$A$14:$I$271,6,FALSE) -> 0.3894166697 | F110: =VLOOKUP(Vlookup!F75,'CDCM Forecast Data'!$A$14:$I$271,6,FALSE) -> 0.2775282659
A112: 1041. Load profile data for demand users
A114: Source: load data analysis.
B115: Coincidence factor | C115: Load factor
A116: Domestic Unrestricted | B116: =VLOOKUP(Vlookup!B81,'CDCM Forecast Data'!$A$14:$I$271,6,FALSE) -> 0.9179184292 | C116: =VLOOKUP(Vlookup!C81,'CDCM Forecast Data'!$A$14:$I$271,6,FALSE) -> 0.415665058
A117: Domestic Two Rate | B117: =VLOOKUP(Vlookup!B82,'CDCM Forecast Data'!$A$14:$I$271,6,FALSE) -> 0.3200962015 | C117: =VLOOKUP(Vlookup!C82,'CDCM Forecast Data'!$A$14:$I$271,6,FALSE) -> 0.2450956802
A118: Domestic Off Peak (related MPAN) | C118: =VLOOKUP(Vlookup!C83,'CDCM Forecast Data'!$A$14:$I$271,6,FALSE) -> 0.136867915
A119: Small Non Domestic Unrestricted | B119: =VLOOKUP(Vlookup!B84,'CDCM Forecast Data'!$A$14:$I$271,6,FALSE) -> 0.616785984 | C119: =VLOOKUP(Vlookup!C84,'CDCM Forecast Data'!$A$14:$I$271,6,FALSE) -> 0.395190376
A120: Small Non Domestic Two Rate | B120: =VLOOKUP(Vlookup!B85,'CDCM Forecast Data'!$A$14:$I$271,6,FALSE) -> 0.565932477 | C120: =VLOOKUP(Vlookup!C85,'CDCM Forecast Data'!$A$14:$I$271,6,FALSE) -> 0.4330374222
A121: Small Non Domestic Off Peak (related MPAN) | C121: =VLOOKUP(Vlookup!C86,'CDCM Forecast Data'!$A$14:$I$271,6,FALSE) -> 0.1971252058
A122: LV Medium Non-Domestic | B122: =VLOOKUP(Vlookup!B87,'CDCM Forecast Data'!$A$14:$I$271,6,FALSE) -> 0.8402833019 | C122: =VLOOKUP(Vlookup!C87,'CDCM Forecast Data'!$A$14:$I$271,6,FALSE) -> 0.5917167714
A123: LV Sub Medium Non-Domestic | B123: =VLOOKUP(Vlookup!B88,'CDCM Forecast Data'!$A$14:$I$271,6,FALSE) -> 0.816438164 | C123: =VLOOKUP(Vlookup!C88,'CDCM Forecast Data'!$A$14:$I$271,6,FALSE) -> 0.5994378117
A124: HV Medium Non-Domestic | B124: =VLOOKUP(Vlookup!B89,'CDCM Forecast Data'!$A$14:$I$271,6,FALSE) -> 0.7355089477 | C124: =VLOOKUP(Vlookup!C89,'CDCM Forecast Data'!$A$14:$I$271,6,FALSE) -> 0.4659507287
A125: LV Network Domestic | B125: =VLOOKUP(Vlookup!B90,'CDCM Forecast Data'!$A$14:$I$271,6,FALSE) -> 0.8239834604 | C125: =VLOOKUP(Vlookup!C90,'CDCM Forecast Data'!$A$14:$I$271,6,FALSE) -> 0.3860236334
A126: LV Network Non-Domestic Non-CT | B126: =VLOOKUP(Vlookup!B91,'CDCM Forecast Data'!$A$14:$I$271,6,FALSE) -> 0.6065619843 | C126: =VLOOKUP(Vlookup!C91,'CDCM Forecast Data'!$A$14:$I$271,6,FALSE) -> 0.3977278379
A127: LV HH Metered | B127: =VLOOKUP(Vlookup!B92,'CDCM Forecast Data'!$A$14:$I$271,6,FALSE) -> 0.8048097412 | C127: =VLOOKUP(Vlookup!C92,'CDCM Forecast Data'!$A$14:$I$271,6,FALSE) -> 0.5859730553
A128: LV Sub HH Metered | B128: =VLOOKUP(Vlookup!B93,'CDCM Forecast Data'!$A$14:$I$271,6,FALSE) -> 0.7678104713 | C128: =VLOOKUP(Vlookup!C93,'CDCM Forecast Data'!$A$14:$I$271,6,FALSE) -> 0.6124288461
A129: HV HH Metered | B129: =VLOOKUP(Vlookup!B94,'CDCM Forecast Data'!$A$14:$I$271,6,FALSE) -> 0.7982801564 | C129: =VLOOKUP(Vlookup!C94,'CDCM Forecast Data'!$A$14:$I$271,6,FALSE) -> 0.720897537
A130: NHH UMS category A | B130: =VLOOKUP(Vlookup!B95,'CDCM Forecast Data'!$A$14:$I$271,6,FALSE) -> 1 | C130: =VLOOKUP(Vlookup!C95,'CDCM Forecast Data'!$A$14:$I$271,6,FALSE) -> 1
A131: NHH UMS category B | B131: =VLOOKUP(Vlookup!B96,'CDCM Forecast Data'!$A$14:$I$271,6,FALSE) -> 1 | C131: =VLOOKUP(Vlookup!C96,'CDCM Forecast Data'!$A$14:$I$271,6,FALSE) -> 0.4728817338
A132: NHH UMS category C | B132: =VLOOKUP(Vlookup!B97,'CDCM Forecast Data'!$A$14:$I$271,6,FALSE) -> 1 | C132: =VLOOKUP(Vlookup!C97,'CDCM Forecast Data'!$A$14:$I$271,6,FALSE) -> 0.2480372467
A133: NHH UMS category D | B133: =VLOOKUP(Vlookup!B98,'CDCM Forecast Data'!$A$14:$I$271,6,FALSE) -> 0 | C133: =VLOOKUP(Vlookup!C98,'CDCM Forecast Data'!$A$14:$I$271,6,FALSE) -> 0.5138551701
A134: LV UMS (Pseudo HH Metered) | B134: =VLOOKUP(Vlookup!B99,'CDCM Forecast Data'!$A$14:$I$271,6,FALSE) -> 0.9767133458 | C134: =VLOOKUP(Vlookup!C99,'CDCM Forecast Data'!$A$14:$I$271,6,FALSE) -> 0.4699498049
A136: 1053. Volume forecasts for the charging year
B137: 10 | C137: 11 | D137: 12 | E137: 13 | F137: 14 | G137: 15
A138: Source: forecast.
A139: Please include MPAN counts for tariffs with no fixed charge (e.g. off-peak tariffs),
A140: but exclude MPANs on tariffs with a fixed charge that are not subject to a fixed charge due to a site grouping arrangement.
B141: Rate 1 units (MWh) | C141: Rate 2 units (MWh) | D141: Rate 3 units (MWh) | E141: MPANs | F141: Import capacity (kVA) | G141: Reactive power units (MVArh)
A142: > Domestic Unrestricted | B142: =VLOOKUP(Vlookup!$B107,'CDCM Volume Forecasts'!$A$27:$AG$123,B$137,FALSE) -> 0 | C142: =VLOOKUP(Vlookup!$B107,'CDCM Volume Forecasts'!$A$27:$AG$123,C$137,FALSE) -> 0 | D142: =VLOOKUP(Vlookup!$B107,'CDCM Volume Forecasts'!$A$27:$AG$123,D$137,FALSE) -> 0 | E142: =VLOOKUP(Vlookup!$B107,'CDCM Volume Forecasts'!$A$27:$AG$123,E$137,FALSE) -> 0 | F142: =VLOOKUP(Vlookup!$B107,'CDCM Volume Forecasts'!$A$27:$AG$123,F$137,FALSE) -> 0 | G142: =VLOOKUP(Vlookup!$B107,'CDCM Volume Forecasts'!$A$27:$AG$123,G$137,FALSE) -> 0
A143: Domestic Unrestricted | B143: =VLOOKUP(Vlookup!$B108,'CDCM Volume Forecasts'!$A$27:$AG$123,B$137,FALSE) -> 4290939.517 | C143: =VLOOKUP(Vlookup!$B108,'CDCM Volume Forecasts'!$A$27:$AG$123,C$137,FALSE) -> 0 | D143: =VLOOKUP(Vlookup!$B108,'CDCM Volume Forecasts'!$A$27:$AG$123,D$137,FALSE) -> 0 | E143: =VLOOKUP(Vlookup!$B108,'CDCM Volume Forecasts'!$A$27:$AG$123,E$137,FALSE) -> 1195490 | F143: =VLOOKUP(Vlookup!$B108,'CDCM Volume Forecasts'!$A$27:$AG$123,F$137,FALSE) -> 0 | G143: =VLOOKUP(Vlookup!$B108,'CDCM Volume Forecasts'!$A$27:$AG$123,G$137,FALSE) -> 0
A144: LDNO LV: Domestic Unrestricted | B144: =VLOOKUP(Vlookup!$B109,'CDCM Volume Forecasts'!$A$27:$AG$123,B$137,FALSE) -> 14926.84831 | C144: =VLOOKUP(Vlookup!$B109,'CDCM Volume Forecasts'!$A$27:$AG$123,C$137,FALSE) -> 0 | D144: =VLOOKUP(Vlookup!$B109,'CDCM Volume Forecasts'!$A$27:$AG$123,D$137,FALSE) -> 0 | E144: =VLOOKUP(Vlookup!$B109,'CDCM Volume Forecasts'!$A$27:$AG$123,E$137,FALSE) -> 4822 | F144: =VLOOKUP(Vlookup!$B109,'CDCM Volume Forecasts'!$A$27:$AG$123,F$137,FALSE) -> 0 | G144: =VLOOKUP(Vlookup!$B109,'CDCM Volume Forecasts'!$A$27:$AG$123,G$137,FALSE) -> 0
A145: LDNO HV: Domestic Unrestricted | B145: =VLOOKUP(Vlookup!$B110,'CDCM Volume Forecasts'!$A$27:$AG$123,B$137,FALSE) -> 19637.86889 | C145: =VLOOKUP(Vlookup!$B110,'CDCM Volume Forecasts'!$A$27:$AG$123,C$137,FALSE) -> 0 | D145: =VLOOKUP(Vlookup!$B110,'CDCM Volume Forecasts'!$A$27:$AG$123,D$137,FALSE) -> 0 | E145: =VLOOKUP(Vlookup!$B110,'CDCM Volume Forecasts'!$A$27:$AG$123,E$137,FALSE) -> 6443 | F145: =VLOOKUP(Vlookup!$B110,'CDCM Volume Forecasts'!$A$27:$AG$123,F$137,FALSE) -> 0 | G145: =VLOOKUP(Vlookup!$B110,'CDCM Volume Forecasts'!$A$27:$AG$123,G$137,FALSE) -> 0
A146: > Domestic Two Rate | B146: =VLOOKUP(Vlookup!$B111,'CDCM Volume Forecasts'!$A$27:$AG$123,B$137,FALSE) -> 0 | C146: =VLOOKUP(Vlookup!$B111,'CDCM Volume Forecasts'!$A$27:$AG$123,C$137,FALSE) -> 0 | D146: =VLOOKUP(Vlookup!$B111,'CDCM Volume Forecasts'!$A$27:$AG$123,D$137,FALSE) -> 0 | E146: =VLOOKUP(Vlookup!$B111,'CDCM Volume Forecasts'!$A$27:$AG$123,E$137,FALSE) -> 0 | F146: =VLOOKUP(Vlookup!$B111,'CDCM Volume Forecasts'!$A$27:$AG$123,F$137,FALSE) -> 0 | G146: =VLOOKUP(Vlookup!$B111,'CDCM Volume Forecasts'!$A$27:$AG$123,G$137,FALSE) -> 0
A147: Domestic Two Rate | B147: =VLOOKUP(Vlookup!$B112,'CDCM Volume Forecasts'!$A$27:$AG$123,B$137,FALSE) -> 705713.8558 | C147: =VLOOKUP(Vlookup!$B112,'CDCM Volume Forecasts'!$A$27:$AG$123,C$137,FALSE) -> 762376.7408 | D147: =VLOOKUP(Vlookup!$B112,'CDCM Volume Forecasts'!$A$27:$AG$123,D$137,FALSE) -> 0 | E147: =VLOOKUP(Vlookup!$B112,'CDCM Volume Forecasts'!$A$27:$AG$123,E$137,FALSE) -> 224253 | F147: =VLOOKUP(Vlookup!$B112,'CDCM Volume Forecasts'!$A$27:$AG$123,F$137,FALSE) -> 0 | G147: =VLOOKUP(Vlookup!$B112,'CDCM Volume Forecasts'!$A$27:$AG$123,G$137,FALSE) -> 0
A148: LDNO LV: Domestic Two Rate | B148: =VLOOKUP(Vlookup!$B113,'CDCM Volume Forecasts'!$A$27:$AG$123,B$137,FALSE) -> 1609.784626 | C148: =VLOOKUP(Vlookup!$B113,'CDCM Volume Forecasts'!$A$27:$AG$123,C$137,FALSE) -> 652.4538035 | D148: =VLOOKUP(Vlookup!$B113,'CDCM Volume Forecasts'!$A$27:$AG$123,D$137,FALSE) -> 0 | E148: =VLOOKUP(Vlookup!$B113,'CDCM Volume Forecasts'!$A$27:$AG$123,E$137,FALSE) -> 438 | F148: =VLOOKUP(Vlookup!$B113,'CDCM Volume Forecasts'!$A$27:$AG$123,F$137,FALSE) -> 0 | G148: =VLOOKUP(Vlookup!$B113,'CDCM Volume Forecasts'!$A$27:$AG$123,G$137,FALSE) -> 0
A149: LDNO HV: Domestic Two Rate | B149: =VLOOKUP(Vlookup!$B114,'CDCM Volume Forecasts'!$A$27:$AG$123,B$137,FALSE) -> 743.8910237 | C149: =VLOOKUP(Vlookup!$B114,'CDCM Volume Forecasts'!$A$27:$AG$123,C$137,FALSE) -> 336.0472317 | D149: =VLOOKUP(Vlookup!$B114,'CDCM Volume Forecasts'!$A$27:$AG$123,D$137,FALSE) -> 0 | E149: =VLOOKUP(Vlookup!$B114,'CDCM Volume Forecasts'!$A$27:$AG$123,E$137,FALSE) -> 273 | F149: =VLOOKUP(Vlookup!$B114,'CDCM Volume Forecasts'!$A$27:$AG$123,F$137,FALSE) -> 0 | G149: =VLOOKUP(Vlookup!$B114,'CDCM Volume Forecasts'!$A$27:$AG$123,G$137,FALSE) -> 0
A150: > Domestic Off Peak (related MPAN) | B150: =VLOOKUP(Vlookup!$B115,'CDCM Volume Forecasts'!$A$27:$AG$123,B$137,FALSE) -> 0 | C150: =VLOOKUP(Vlookup!$B115,'CDCM Volume Forecasts'!$A$27:$AG$123,C$137,FALSE) -> 0 | D150: =VLOOKUP(Vlookup!$B115,'CDCM Volume Forecasts'!$A$27:$AG$123,D$137,FALSE) -> 0 | E150: =VLOOKUP(Vlookup!$B115,'CDCM Volume Forecasts'!$A$27:$AG$123,E$137,FALSE) -> 0 | F150: =VLOOKUP(Vlookup!$B115,'CDCM Volume Forecasts'!$A$27:$AG$123,F$137,FALSE) -> 0 | G150: =VLOOKUP(Vlookup!$B115,'CDCM Volume Forecasts'!$A$27:$AG$123,G$137,FALSE) -> 0
A151: Domestic Off Peak (related MPAN) | B151: =VLOOKUP(Vlookup!$B116,'CDCM Volume Forecasts'!$A$27:$AG$123,B$137,FALSE) -> 73622.90041 | C151: =VLOOKUP(Vlookup!$B116,'CDCM Volume Forecasts'!$A$27:$AG$123,C$137,FALSE) -> 0 | D151: =VLOOKUP(Vlookup!$B116,'CDCM Volume Forecasts'!$A$27:$AG$123,D$137,FALSE) -> 0 | E151: =VLOOKUP(Vlookup!$B116,'CDCM Volume Forecasts'!$A$27:$AG$123,E$137,FALSE) -> 0 | F151: =VLOOKUP(Vlookup!$B116,'CDCM Volume Forecasts'!$A$27:$AG$123,F$137,FALSE) -> 0 | G151: =VLOOKUP(Vlookup!$B116,'CDCM Volume Forecasts'!$A$27:$AG$123,G$137,FALSE) -> 0
A152: LDNO LV: Domestic Off Peak (related MPAN) | B152: =VLOOKUP(Vlookup!$B117,'CDCM Volume Forecasts'!$A$27:$AG$123,B$137,FALSE) -> 0 | C152: =VLOOKUP(Vlookup!$B117,'CDCM Volume Forecasts'!$A$27:$AG$123,C$137,FALSE) -> 0 | D152: =VLOOKUP(Vlookup!$B117,'CDCM Volume Forecasts'!$A$27:$AG$123,D$137,FALSE) -> 0 | E152: =VLOOKUP(Vlookup!$B117,'CDCM Volume Forecasts'!$A$27:$AG$123,E$137,FALSE) -> 0 | F152: =VLOOKUP(Vlookup!$B117,'CDCM Volume Forecasts'!$A$27:$AG$123,F$137,FALSE) -> 0 | G152: =VLOOKUP(Vlookup!$B117,'CDCM Volume Forecasts'!$A$27:$AG$123,G$137,FALSE) -> 0
A153: LDNO HV: Domestic Off Peak (related MPAN) | B153: =VLOOKUP(Vlookup!$B118,'CDCM Volume Forecasts'!$A$27:$AG$123,B$137,FALSE) -> 0 | C153: =VLOOKUP(Vlookup!$B118,'CDCM Volume Forecasts'!$A$27:$AG$123,C$137,FALSE) -> 0 | D153: =VLOOKUP(Vlookup!$B118,'CDCM Volume Forecasts'!$A$27:$AG$123,D$137,FALSE) -> 0 | E153: =VLOOKUP(Vlookup!$B118,'CDCM Volume Forecasts'!$A$27:$AG$123,E$137,FALSE) -> 0 | F153: =VLOOKUP(Vlookup!$B118,'CDCM Volume Forecasts'!$A$27:$AG$123,F$137,FALSE) -> 0 | G153: =VLOOKUP(Vlookup!$B118,'CDCM Volume Forecasts'!$A$27:$AG$123,G$137,FALSE) -> 0
A154: > Small Non Domestic Unrestricted | B154: =VLOOKUP(Vlookup!$B119,'CDCM Volume Forecasts'!$A$27:$AG$123,B$137,FALSE) -> 0 | C154: =VLOOKUP(Vlookup!$B119,'CDCM Volume Forecasts'!$A$27:$AG$123,C$137,FALSE) -> 0 | D154: =VLOOKUP(Vlookup!$B119,'CDCM Volume Forecasts'!$A$27:$AG$123,D$137,FALSE) -> 0 | E154: =VLOOKUP(Vlookup!$B119,'CDCM Volume Forecasts'!$A$27:$AG$123,E$137,FALSE) -> 0 | F154: =VLOOKUP(Vlookup!$B119,'CDCM Volume Forecasts'!$A$27:$AG$123,F$137,FALSE) -> 0 | G154: =VLOOKUP(Vlookup!$B119,'CDCM Volume Forecasts'!$A$27:$AG$123,G$137,FALSE) -> 0
A155: Small Non Domestic Unrestricted | B155: =VLOOKUP(Vlookup!$B120,'CDCM Volume Forecasts'!$A$27:$AG$123,B$137,FALSE) -> 1193627.254 | C155: =VLOOKUP(Vlookup!$B120,'CDCM Volume Forecasts'!$A$27:$AG$123,C$137,FALSE) -> 0 | D155: =VLOOKUP(Vlookup!$B120,'CDCM Volume Forecasts'!$A$27:$AG$123,D$137,FALSE) -> 0 | E155: =VLOOKUP(Vlookup!$B120,'CDCM Volume Forecasts'!$A$27:$AG$123,E$137,FALSE) -> 108227 | F155: =VLOOKUP(Vlookup!$B120,'CDCM Volume Forecasts'!$A$27:$AG$123,F$137,FALSE) -> 0 | G155: =VLOOKUP(Vlookup!$B120,'CDCM Volume Forecasts'!$A$27:$AG$123,G$137,FALSE) -> 0
A156: LDNO LV: Small Non Domestic Unrestricted | B156: =VLOOKUP(Vlookup!$B121,'CDCM Volume Forecasts'!$A$27:$AG$123,B$137,FALSE) -> 732.3359481 | C156: =VLOOKUP(Vlookup!$B121,'CDCM Volume Forecasts'!$A$27:$AG$123,C$137,FALSE) -> 0 | D156: =VLOOKUP(Vlookup!$B121,'CDCM Volume Forecasts'!$A$27:$AG$123,D$137,FALSE) -> 0 | E156: =VLOOKUP(Vlookup!$B121,'CDCM Volume Forecasts'!$A$27:$AG$123,E$137,FALSE) -> 89 | F156: =VLOOKUP(Vlookup!$B121,'CDCM Volume Forecasts'!$A$27:$AG$123,F$137,FALSE) -> 0 | G156: =VLOOKUP(Vlookup!$B121,'CDCM Volume Forecasts'!$A$27:$AG$123,G$137,FALSE) -> 0
A157: LDNO HV: Small Non Domestic Unrestricted | B157: =VLOOKUP(Vlookup!$B122,'CDCM Volume Forecasts'!$A$27:$AG$123,B$137,FALSE) -> 5309.683211 | C157: =VLOOKUP(Vlookup!$B122,'CDCM Volume Forecasts'!$A$27:$AG$123,C$137,FALSE) -> 0 | D157: =VLOOKUP(Vlookup!$B122,'CDCM Volume Forecasts'!$A$27:$AG$123,D$137,FALSE) -> 0 | E157: =VLOOKUP(Vlookup!$B122,'CDCM Volume Forecasts'!$A$27:$AG$123,E$137,FALSE) -> 236 | F157: =VLOOKUP(Vlookup!$B122,'CDCM Volume Forecasts'!$A$27:$AG$123,F$137,FALSE) -> 0 | G157: =VLOOKUP(Vlookup!$B122,'CDCM Volume Forecasts'!$A$27:$AG$123,G$137,FALSE) -> 0
A158: > Small Non Domestic Two Rate | B158: =VLOOKUP(Vlookup!$B123,'CDCM Volume Forecasts'!$A$27:$AG$123,B$137,FALSE) -> 0 | C158: =VLOOKUP(Vlookup!$B123,'CDCM Volume Forecasts'!$A$27:$AG$123,C$137,FALSE) -> 0 | D158: =VLOOKUP(Vlookup!$B123,'CDCM Volume Forecasts'!$A$27:$AG$123,D$137,FALSE) -> 0 | E158: =VLOOKUP(Vlookup!$B123,'CDCM Volume Forecasts'!$A$27:$AG$123,E$137,FALSE) -> 0 | F158: =VLOOKUP(Vlookup!$B123,'CDCM Volume Forecasts'!$A$27:$AG$123,F$137,FALSE) -> 0 | G158: =VLOOKUP(Vlookup!$B123,'CDCM Volume Forecasts'!$A$27:$AG$123,G$137,FALSE) -> 0
A159: Small Non Domestic Two Rate | B159: =VLOOKUP(Vlookup!$B124,'CDCM Volume Forecasts'!$A$27:$AG$123,B$137,FALSE) -> 375235.737 | C159: =VLOOKUP(Vlookup!$B124,'CDCM Volume Forecasts'!$A$27:$AG$123,C$137,FALSE) -> 180177.0378 | D159: =VLOOKUP(Vlookup!$B124,'CDCM Volume Forecasts'!$A$27:$AG$123,D$137,FALSE) -> 0 | E159: =VLOOKUP(Vlookup!$B124,'CDCM Volume Forecasts'!$A$27:$AG$123,E$137,FALSE) -> 27300 | F159: =VLOOKUP(Vlookup!$B124,'CDCM Volume Forecasts'!$A$27:$AG$123,F$137,FALSE) -> 0 | G159: =VLOOKUP(Vlookup!$B124,'CDCM Volume Forecasts'!$A$27:$AG$123,G$137,FALSE) -> 0
A160: LDNO LV: Small Non Domestic Two Rate | B160: =VLOOKUP(Vlookup!$B125,'CDCM Volume Forecasts'!$A$27:$AG$123,B$137,FALSE) -> 419.0897999 | C160: =VLOOKUP(Vlookup!$B125,'CDCM Volume Forecasts'!$A$27:$AG$123,C$137,FALSE) -> 205.1707039 | D160: =VLOOKUP(Vlookup!$B125,'CDCM Volume Forecasts'!$A$27:$AG$123,D$137,FALSE) -> 0 | E160: =VLOOKUP(Vlookup!$B125,'CDCM Volume Forecasts'!$A$27:$AG$123,E$137,FALSE) -> 1 | F160: =VLOOKUP(Vlookup!$B125,'CDCM Volume Forecasts'!$A$27:$AG$123,F$137,FALSE) -> 0 | G160: =VLOOKUP(Vlookup!$B125,'CDCM Volume Forecasts'!$A$27:$AG$123,G$137,FALSE) -> 0
A161: LDNO HV: Small Non Domestic Two Rate | B161: =VLOOKUP(Vlookup!$B126,'CDCM Volume Forecasts'!$A$27:$AG$123,B$137,FALSE) -> 565.9256191 | C161: =VLOOKUP(Vlookup!$B126,'CDCM Volume Forecasts'!$A$27:$AG$123,C$137,FALSE) -> 220.1109965 | D161: =VLOOKUP(Vlookup!$B126,'CDCM Volume Forecasts'!$A$27:$AG$123,D$137,FALSE) -> 0 | E161: =VLOOKUP(Vlookup!$B126,'CDCM Volume Forecasts'!$A$27:$AG$123,E$137,FALSE) -> 15 | F161: =VLOOKUP(Vlookup!$B126,'CDCM Volume Forecasts'!$A$27:$AG$123,F$137,FALSE) -> 0 | G161: =VLOOKUP(Vlookup!$B126,'CDCM Volume Forecasts'!$A$27:$AG$123,G$137,FALSE) -> 0
A162: > Small Non Domestic Off Peak (related MPAN) | B162: =VLOOKUP(Vlookup!$B127,'CDCM Volume Forecasts'!$A$27:$AG$123,B$137,FALSE) -> 0 | C162: =VLOOKUP(Vlookup!$B127,'CDCM Volume Forecasts'!$A$27:$AG$123,C$137,FALSE) -> 0 | D162: =VLOOKUP(Vlookup!$B127,'CDCM Volume Forecasts'!$A$27:$AG$123,D$137,FALSE) -> 0 | E162: =VLOOKUP(Vlookup!$B127,'CDCM Volume Forecasts'!$A$27:$AG$123,E$137,FALSE) -> 0 | F162: =VLOOKUP(Vlookup!$B127,'CDCM Volume Forecasts'!$A$27:$AG$123,F$137,FALSE) -> 0 | G162: =VLOOKUP(Vlookup!$B127,'CDCM Volume Forecasts'!$A$27:$AG$123,G$137,FALSE) -> 0
A163: Small Non Domestic Off Peak (related MPAN) | B163: =VLOOKUP(Vlookup!$B128,'CDCM Volume Forecasts'!$A$27:$AG$123,B$137,FALSE) -> 26247.10193 | C163: =VLOOKUP(Vlookup!$B128,'CDCM Volume Forecasts'!$A$27:$AG$123,C$137,FALSE) -> 0 | D163: =VLOOKUP(Vlookup!$B128,'CDCM Volume Forecasts'!$A$27:$AG$123,D$137,FALSE) -> 0 | E163: =VLOOKUP(Vlookup!$B128,'CDCM Volume Forecasts'!$A$27:$AG$123,E$137,FALSE) -> 0 | F163: =VLOOKUP(Vlookup!$B128,'CDCM Volume Forecasts'!$A$27:$AG$123,F$137,FALSE) -> 0 | G163: =VLOOKUP(Vlookup!$B128,'CDCM Volume Forecasts'!$A$27:$AG$123,G$137,FALSE) -> 0
A164: LDNO LV: Small Non Domestic Off Peak (related MPAN) | B164: =VLOOKUP(Vlookup!$B129,'CDCM Volume Forecasts'!$A$27:$AG$123,B$137,FALSE) -> 0 | C164: =VLOOKUP(Vlookup!$B129,'CDCM Volume Forecasts'!$A$27:$AG$123,C$137,FALSE) -> 0 | D164: =VLOOKUP(Vlookup!$B129,'CDCM Volume Forecasts'!$A$27:$AG$123,D$137,FALSE) -> 0 | E164: =VLOOKUP(Vlookup!$B129,'CDCM Volume Forecasts'!$A$27:$AG$123,E$137,FALSE) -> 0 | F164: =VLOOKUP(Vlookup!$B129,'CDCM Volume Forecasts'!$A$27:$AG$123,F$137,FALSE) -> 0 | G164: =VLOOKUP(Vlookup!$B129,'CDCM Volume Forecasts'!$A$27:$AG$123,G$137,FALSE) -> 0
A165: LDNO HV: Small Non Domestic Off Peak (related MPAN) | B165: =VLOOKUP(Vlookup!$B130,'CDCM Volume Forecasts'!$A$27:$AG$123,B$137,FALSE) -> 0 | C165: =VLOOKUP(Vlookup!$B130,'CDCM Volume Forecasts'!$A$27:$AG$123,C$137,FALSE) -> 0 | D165: =VLOOKUP(Vlookup!$B130,'CDCM Volume Forecasts'!$A$27:$AG$123,D$137,FALSE) -> 0 | E165: =VLOOKUP(Vlookup!$B130,'CDCM Volume Forecasts'!$A$27:$AG$123,E$137,FALSE) -> 0 | F165: =VLOOKUP(Vlookup!$B130,'CDCM Volume Forecasts'!$A$27:$AG$123,F$137,FALSE) -> 0 | G165: =VLOOKUP(Vlookup!$B130,'CDCM Volume Forecasts'!$A$27:$AG$123,G$137,FALSE) -> 0
A166: > LV Medium Non-Domestic | B166: =VLOOKUP(Vlookup!$B131,'CDCM Volume Forecasts'!$A$27:$AG$123,B$137,FALSE) -> 0 | C166: =VLOOKUP(Vlookup!$B131,'CDCM Volume Forecasts'!$A$27:$AG$123,C$137,FALSE) -> 0 | D166: =VLOOKUP(Vlookup!$B131,'CDCM Volume Forecasts'!$A$27:$AG$123,D$137,FALSE) -> 0 | E166: =VLOOKUP(Vlookup!$B131,'CDCM Volume Forecasts'!$A$27:$AG$123,E$137,FALSE) -> 0 | F166: =VLOOKUP(Vlookup!$B131,'CDCM Volume Forecasts'!$A$27:$AG$123,F$137,FALSE) -> 0 | G166: =VLOOKUP(Vlookup!$B131,'CDCM Volume Forecasts'!$A$27:$AG$123,G$137,FALSE) -> 0
A167: LV Medium Non-Domestic | B167: =VLOOKUP(Vlookup!$B132,'CDCM Volume Forecasts'!$A$27:$AG$123,B$137,FALSE) -> 700742.3663 | C167: =VLOOKUP(Vlookup!$B132,'CDCM Volume Forecasts'!$A$27:$AG$123,C$137,FALSE) -> 174053.3221 | D167: =VLOOKUP(Vlookup!$B132,'CDCM Volume Forecasts'!$A$27:$AG$123,D$137,FALSE) -> 0 | E167: =VLOOKUP(Vlookup!$B132,'CDCM Volume Forecasts'!$A$27:$AG$123,E$137,FALSE) -> 9354 | F167: =VLOOKUP(Vlookup!$B132,'CDCM Volume Forecasts'!$A$27:$AG$123,F$137,FALSE) -> 0 | G167: =VLOOKUP(Vlookup!$B132,'CDCM Volume Forecasts'!$A$27:$AG$123,G$137,FALSE) -> 0
A168: LDNO LV: LV Medium Non-Domestic | B168: =VLOOKUP(Vlookup!$B133,'CDCM Volume Forecasts'!$A$27:$AG$123,B$137,FALSE) -> 0.2837051651 | C168: =VLOOKUP(Vlookup!$B133,'CDCM Volume Forecasts'!$A$27:$AG$123,C$137,FALSE) -> 0.3644753188 | D168: =VLOOKUP(Vlookup!$B133,'CDCM Volume Forecasts'!$A$27:$AG$123,D$137,FALSE) -> 0 | E168: =VLOOKUP(Vlookup!$B133,'CDCM Volume Forecasts'!$A$27:$AG$123,E$137,FALSE) -> 1 | F168: =VLOOKUP(Vlookup!$B133,'CDCM Volume Forecasts'!$A$27:$AG$123,F$137,FALSE) -> 0 | G168: =VLOOKUP(Vlookup!$B133,'CDCM Volume Forecasts'!$A$27:$AG$123,G$137,FALSE) -> 0
A169: LDNO HV: LV Medium Non-Domestic | B169: =VLOOKUP(Vlookup!$B134,'CDCM Volume Forecasts'!$A$27:$AG$123,B$137,FALSE) -> 4381.328991 | C169: =VLOOKUP(Vlookup!$B134,'CDCM Volume Forecasts'!$A$27:$AG$123,C$137,FALSE) -> 719.3878294 | D169: =VLOOKUP(Vlookup!$B134,'CDCM Volume Forecasts'!$A$27:$AG$123,D$137,FALSE) -> 0 | E169: =VLOOKUP(Vlookup!$B134,'CDCM Volume Forecasts'!$A$27:$AG$123,E$137,FALSE) -> 47 | F169: =VLOOKUP(Vlookup!$B134,'CDCM Volume Forecasts'!$A$27:$AG$123,F$137,FALSE) -> 0 | G169: =VLOOKUP(Vlookup!$B134,'CDCM Volume Forecasts'!$A$27:$AG$123,G$137,FALSE) -> 0
A170: > LV Sub Medium Non-Domestic | B170: =VLOOKUP(Vlookup!$B135,'CDCM Volume Forecasts'!$A$27:$AG$123,B$137,FALSE) -> 0 | C170: =VLOOKUP(Vlookup!$B135,'CDCM Volume Forecasts'!$A$27:$AG$123,C$137,FALSE) -> 0 | D170: =VLOOKUP(Vlookup!$B135,'CDCM Volume Forecasts'!$A$27:$AG$123,D$137,FALSE) -> 0 | E170: =VLOOKUP(Vlookup!$B135,'CDCM Volume Forecasts'!$A$27:$AG$123,E$137,FALSE) -> 0 | F170: =VLOOKUP(Vlookup!$B135,'CDCM Volume Forecasts'!$A$27:$AG$123,F$137,FALSE) -> 0 | G170: =VLOOKUP(Vlookup!$B135,'CDCM Volume Forecasts'!$A$27:$AG$123,G$137,FALSE) -> 0
A171: LV Sub Medium Non-Domestic | B171: =VLOOKUP(Vlookup!$B136,'CDCM Volume Forecasts'!$A$27:$AG$123,B$137,FALSE) -> 70119.39344 | C171: =VLOOKUP(Vlookup!$B136,'CDCM Volume Forecasts'!$A$27:$AG$123,C$137,FALSE) -> 19612.90827 | D171: =VLOOKUP(Vlookup!$B136,'CDCM Volume Forecasts'!$A$27:$AG$123,D$137,FALSE) -> 0 | E171: =VLOOKUP(Vlookup!$B136,'CDCM Volume Forecasts'!$A$27:$AG$123,E$137,FALSE) -> 707 | F171: =VLOOKUP(Vlookup!$B136,'CDCM Volume Forecasts'!$A$27:$AG$123,F$137,FALSE) -> 0 | G171: =VLOOKUP(Vlookup!$B136,'CDCM Volume Forecasts'!$A$27:$AG$123,G$137,FALSE) -> 0
A172: > HV Medium Non-Domestic | B172: =VLOOKUP(Vlookup!$B137,'CDCM Volume Forecasts'!$A$27:$AG$123,B$137,FALSE) -> 0 | C172: =VLOOKUP(Vlookup!$B137,'CDCM Volume Forecasts'!$A$27:$AG$123,C$137,FALSE) -> 0 | D172: =VLOOKUP(Vlookup!$B137,'CDCM Volume Forecasts'!$A$27:$AG$123,D$137,FALSE) -> 0 | E172: =VLOOKUP(Vlookup!$B137,'CDCM Volume Forecasts'!$A$27:$AG$123,E$137,FALSE) -> 0 | F172: =VLOOKUP(Vlookup!$B137,'CDCM Volume Forecasts'!$A$27:$AG$123,F$137,FALSE) -> 0 | G172: =VLOOKUP(Vlookup!$B137,'CDCM Volume Forecasts'!$A$27:$AG$123,G$137,FALSE) -> 0
A173: HV Medium Non-Domestic | B173: =VLOOKUP(Vlookup!$B138,'CDCM Volume Forecasts'!$A$27:$AG$123,B$137,FALSE) -> 2124.753079 | C173: =VLOOKUP(Vlookup!$B138,'CDCM Volume Forecasts'!$A$27:$AG$123,C$137,FALSE) -> 555.3476542 | D173: =VLOOKUP(Vlookup!$B138,'CDCM Volume Forecasts'!$A$27:$AG$123,D$137,FALSE) -> 0 | E173: =VLOOKUP(Vlookup!$B138,'CDCM Volume Forecasts'!$A$27:$AG$123,E$137,FALSE) -> 26 | F173: =VLOOKUP(Vlookup!$B138,'CDCM Volume Forecasts'!$A$27:$AG$123,F$137,FALSE) -> 0 | G173: =VLOOKUP(Vlookup!$B138,'CDCM Volume Forecasts'!$A$27:$AG$123,G$137,FALSE) -> 0
A174: > LV Network Domestic | B174: =VLOOKUP(Vlookup!$B139,'CDCM Volume Forecasts'!$A$27:$AG$123,B$137,FALSE) -> 0 | C174: =VLOOKUP(Vlookup!$B139,'CDCM Volume Forecasts'!$A$27:$AG$123,C$137,FALSE) -> 0 | D174: =VLOOKUP(Vlookup!$B139,'CDCM Volume Forecasts'!$A$27:$AG$123,D$137,FALSE) -> 0 | E174: =VLOOKUP(Vlookup!$B139,'CDCM Volume Forecasts'!$A$27:$AG$123,E$137,FALSE) -> 0 | F174: =VLOOKUP(Vlookup!$B139,'CDCM Volume Forecasts'!$A$27:$AG$123,F$137,FALSE) -> 0 | G174: =VLOOKUP(Vlookup!$B139,'CDCM Volume Forecasts'!$A$27:$AG$123,G$137,FALSE) -> 0
A175: LV Network Domestic | B175: =VLOOKUP(Vlookup!$B140,'CDCM Volume Forecasts'!$A$27:$AG$123,B$137,FALSE) -> 0 | C175: =VLOOKUP(Vlookup!$B140,'CDCM Volume Forecasts'!$A$27:$AG$123,C$137,FALSE) -> 0 | D175: =VLOOKUP(Vlookup!$B140,'CDCM Volume Forecasts'!$A$27:$AG$123,D$137,FALSE) -> 0 | E175: =VLOOKUP(Vlookup!$B140,'CDCM Volume Forecasts'!$A$27:$AG$123,E$137,FALSE) -> 0 | F175: =VLOOKUP(Vlookup!$B140,'CDCM Volume Forecasts'!$A$27:$AG$123,F$137,FALSE) -> 0 | G175: =VLOOKUP(Vlookup!$B140,'CDCM Volume Forecasts'!$A$27:$AG$123,G$137,FALSE) -> 0
A176: LDNO LV: LV Network Domestic | B176: =VLOOKUP(Vlookup!$B141,'CDCM Volume Forecasts'!$A$27:$AG$123,B$137,FALSE) -> 0 | C176: =VLOOKUP(Vlookup!$B141,'CDCM Volume Forecasts'!$A$27:$AG$123,C$137,FALSE) -> 0 | D176: =VLOOKUP(Vlookup!$B141,'CDCM Volume Forecasts'!$A$27:$AG$123,D$137,FALSE) -> 0 | E176: =VLOOKUP(Vlookup!$B141,'CDCM Volume Forecasts'!$A$27:$AG$123,E$137,FALSE) -> 0 | F176: =VLOOKUP(Vlookup!$B141,'CDCM Volume Forecasts'!$A$27:$AG$123,F$137,FALSE) -> 0 | G176: =VLOOKUP(Vlookup!$B141,'CDCM Volume Forecasts'!$A$27:$AG$123,G$137,FALSE) -> 0
A177: LDNO HV: LV Network Domestic | B177: =VLOOKUP(Vlookup!$B142,'CDCM Volume Forecasts'!$A$27:$AG$123,B$137,FALSE) -> 0 | C177: =VLOOKUP(Vlookup!$B142,'CDCM Volume Forecasts'!$A$27:$AG$123,C$137,FALSE) -> 0 | D177: =VLOOKUP(Vlookup!$B142,'CDCM Volume Forecasts'!$A$27:$AG$123,D$137,FALSE) -> 0 | E177: =VLOOKUP(Vlookup!$B142,'CDCM Volume Forecasts'!$A$27:$AG$123,E$137,FALSE) -> 0 | F177: =VLOOKUP(Vlookup!$B142,'CDCM Volume Forecasts'!$A$27:$AG$123,F$137,FALSE) -> 0 | G177: =VLOOKUP(Vlookup!$B142,'CDCM Volume Forecasts'!$A$27:$AG$123,G$137,FALSE) -> 0
A178: > LV Network Non-Domestic Non-CT | B178: =VLOOKUP(Vlookup!$B143,'CDCM Volume Forecasts'!$A$27:$AG$123,B$137,FALSE) -> 0 | C178: =VLOOKUP(Vlookup!$B143,'CDCM Volume Forecasts'!$A$27:$AG$123,C$137,FALSE) -> 0 | D178: =VLOOKUP(Vlookup!$B143,'CDCM Volume Forecasts'!$A$27:$AG$123,D$137,FALSE) -> 0 | E178: =VLOOKUP(Vlookup!$B143,'CDCM Volume Forecasts'!$A$27:$AG$123,E$137,FALSE) -> 0 | F178: =VLOOKUP(Vlookup!$B143,'CDCM Volume Forecasts'!$A$27:$AG$123,F$137,FALSE) -> 0 | G178: =VLOOKUP(Vlookup!$B143,'CDCM Volume Forecasts'!$A$27:$AG$123,G$137,FALSE) -> 0
A179: LV Network Non-Domestic Non-CT | B179: =VLOOKUP(Vlookup!$B144,'CDCM Volume Forecasts'!$A$27:$AG$123,B$137,FALSE) -> 0 | C179: =VLOOKUP(Vlookup!$B144,'CDCM Volume Forecasts'!$A$27:$AG$123,C$137,FALSE) -> 0 | D179: =VLOOKUP(Vlookup!$B144,'CDCM Volume Forecasts'!$A$27:$AG$123,D$137,FALSE) -> 0 | E179: =VLOOKUP(Vlookup!$B144,'CDCM Volume Forecasts'!$A$27:$AG$123,E$137,FALSE) -> 0 | F179: =VLOOKUP(Vlookup!$B144,'CDCM Volume Forecasts'!$A$27:$AG$123,F$137,FALSE) -> 0 | G179: =VLOOKUP(Vlookup!$B144,'CDCM Volume Forecasts'!$A$27:$AG$123,G$137,FALSE) -> 0
A180: LDNO LV: LV Network Non-Domestic Non-CT | B180: =VLOOKUP(Vlookup!$B145,'CDCM Volume Forecasts'!$A$27:$AG$123,B$137,FALSE) -> 0 | C180: =VLOOKUP(Vlookup!$B145,'CDCM Volume Forecasts'!$A$27:$AG$123,C$137,FALSE) -> 0 | D180: =VLOOKUP(Vlookup!$B145,'CDCM Volume Forecasts'!$A$27:$AG$123,D$137,FALSE) -> 0 | E180: =VLOOKUP(Vlookup!$B145,'CDCM Volume Forecasts'!$A$27:$AG$123,E$137,FALSE) -> 0 | F180: =VLOOKUP(Vlookup!$B145,'CDCM Volume Forecasts'!$A$27:$AG$123,F$137,FALSE) -> 0 | G180: =VLOOKUP(Vlookup!$B145,'CDCM Volume Forecasts'!$A$27:$AG$123,G$137,FALSE) -> 0
A181: LDNO HV: LV Network Non-Domestic Non-CT | B181: =VLOOKUP(Vlookup!$B146,'CDCM Volume Forecasts'!$A$27:$AG$123,B$137,FALSE) -> 0 | C181: =VLOOKUP(Vlookup!$B146,'CDCM Volume Forecasts'!$A$27:$AG$123,C$137,FALSE) -> 0 | D181: =VLOOKUP(Vlookup!$B146,'CDCM Volume Forecasts'!$A$27:$AG$123,D$137,FALSE) -> 0 | E181: =VLOOKUP(Vlookup!$B146,'CDCM Volume Forecasts'!$A$27:$AG$123,E$137,FALSE) -> 0 | F181: =VLOOKUP(Vlookup!$B146,'CDCM Volume Forecasts'!$A$27:$AG$123,F$137,FALSE) -> 0 | G181: =VLOOKUP(Vlookup!$B146,'CDCM Volume Forecasts'!$A$27:$AG$123,G$137,FALSE) -> 0
A182: > LV HH Metered | B182: =VLOOKUP(Vlookup!$B147,'CDCM Volume Forecasts'!$A$27:$AG$123,B$137,FALSE) -> 0 | C182: =VLOOKUP(Vlookup!$B147,'CDCM Volume Forecasts'!$A$27:$AG$123,C$137,FALSE) -> 0 | D182: =VLOOKUP(Vlookup!$B147,'CDCM Volume Forecasts'!$A$27:$AG$123,D$137,FALSE) -> 0 | E182: =VLOOKUP(Vlookup!$B147,'CDCM Volume Forecasts'!$A$27:$AG$123,E$137,FALSE) -> 0 | F182: =VLOOKUP(Vlookup!$B147,'CDCM Volume Forecasts'!$A$27:$AG$123,F$137,FALSE) -> 0 | G182: =VLOOKUP(Vlookup!$B147,'CDCM Volume Forecasts'!$A$27:$AG$123,G$137,FALSE) -> 0
A183: LV HH Metered | B183: =VLOOKUP(Vlookup!$B148,'CDCM Volume Forecasts'!$A$27:$AG$123,B$137,FALSE) -> 58121.07373 | C183: =VLOOKUP(Vlookup!$B148,'CDCM Volume Forecasts'!$A$27:$AG$123,C$137,FALSE) -> 415490.1951 | D183: =VLOOKUP(Vlookup!$B148,'CDCM Volume Forecasts'!$A$27:$AG$123,D$137,FALSE) -> 353097.5434 | E183: =VLOOKUP(Vlookup!$B148,'CDCM Volume Forecasts'!$A$27:$AG$123,E$137,FALSE) -> 3115 | F183: =VLOOKUP(Vlookup!$B148,'CDCM Volume Forecasts'!$A$27:$AG$123,F$137,FALSE) -> 400000 | G183: =VLOOKUP(Vlookup!$B148,'CDCM Volume Forecasts'!$A$27:$AG$123,G$137,FALSE) -> 79172.705
A184: LDNO LV: LV HH Metered | B184: =VLOOKUP(Vlookup!$B149,'CDCM Volume Forecasts'!$A$27:$AG$123,B$137,FALSE) -> 0 | C184: =VLOOKUP(Vlookup!$B149,'CDCM Volume Forecasts'!$A$27:$AG$123,C$137,FALSE) -> 0 | D184: =VLOOKUP(Vlookup!$B149,'CDCM Volume Forecasts'!$A$27:$AG$123,D$137,FALSE) -> 0 | E184: =VLOOKUP(Vlookup!$B149,'CDCM Volume Forecasts'!$A$27:$AG$123,E$137,FALSE) -> 0 | F184: =VLOOKUP(Vlookup!$B149,'CDCM Volume Forecasts'!$A$27:$AG$123,F$137,FALSE) -> 0 | G184: =VLOOKUP(Vlookup!$B149,'CDCM Volume Forecasts'!$A$27:$AG$123,G$137,FALSE) -> 0
A185: LDNO HV: LV HH Metered | B185: =VLOOKUP(Vlookup!$B150,'CDCM Volume Forecasts'!$A$27:$AG$123,B$137,FALSE) -> 2320.543558 | C185: =VLOOKUP(Vlookup!$B150,'CDCM Volume Forecasts'!$A$27:$AG$123,C$137,FALSE) -> 15183.85819 | D185: =VLOOKUP(Vlookup!$B150,'CDCM Volume Forecasts'!$A$27:$AG$123,D$137,FALSE) -> 13036.53843 | E185: =VLOOKUP(Vlookup!$B150,'CDCM Volume Forecasts'!$A$27:$AG$123,E$137,FALSE) -> 69 | F185: =VLOOKUP(Vlookup!$B150,'CDCM Volume Forecasts'!$A$27:$AG$123,F$137,FALSE) -> 19000 | G185: =VLOOKUP(Vlookup!$B150,'CDCM Volume Forecasts'!$A$27:$AG$123,G$137,FALSE) -> 1650.56
A186: > LV Sub HH Metered | B186: =VLOOKUP(Vlookup!$B151,'CDCM Volume Forecasts'!$A$27:$AG$123,B$137,FALSE) -> 0 | C186: =VLOOKUP(Vlookup!$B151,'CDCM Volume Forecasts'!$A$27:$AG$123,C$137,FALSE) -> 0 | D186: =VLOOKUP(Vlookup!$B151,'CDCM Volume Forecasts'!$A$27:$AG$123,D$137,FALSE) -> 0 | E186: =VLOOKUP(Vlookup!$B151,'CDCM Volume Forecasts'!$A$27:$AG$123,E$137,FALSE) -> 0 | F186: =VLOOKUP(Vlookup!$B151,'CDCM Volume Forecasts'!$A$27:$AG$123,F$137,FALSE) -> 0 | G186: =VLOOKUP(Vlookup!$B151,'CDCM Volume Forecasts'!$A$27:$AG$123,G$137,FALSE) -> 0
A187: LV Sub HH Metered | B187: =VLOOKUP(Vlookup!$B152,'CDCM Volume Forecasts'!$A$27:$AG$123,B$137,FALSE) -> 49274.69914 | C187: =VLOOKUP(Vlookup!$B152,'CDCM Volume Forecasts'!$A$27:$AG$123,C$137,FALSE) -> 364799.304 | D187: =VLOOKUP(Vlookup!$B152,'CDCM Volume Forecasts'!$A$27:$AG$123,D$137,FALSE) -> 328189.7348 | E187: =VLOOKUP(Vlookup!$B152,'CDCM Volume Forecasts'!$A$27:$AG$123,E$137,FALSE) -> 1328 | F187: =VLOOKUP(Vlookup!$B152,'CDCM Volume Forecasts'!$A$27:$AG$123,F$137,FALSE) -> 327000 | G187: =VLOOKUP(Vlookup!$B152,'CDCM Volume Forecasts'!$A$27:$AG$123,G$137,FALSE) -> 77243.021
A188: LDNO HV: LV Sub HH Metered | B188: =VLOOKUP(Vlookup!$B153,'CDCM Volume Forecasts'!$A$27:$AG$123,B$137,FALSE) -> 0 | C188: =VLOOKUP(Vlookup!$B153,'CDCM Volume Forecasts'!$A$27:$AG$123,C$137,FALSE) -> 0 | D188: =VLOOKUP(Vlookup!$B153,'CDCM Volume Forecasts'!$A$27:$AG$123,D$137,FALSE) -> 0 | E188: =VLOOKUP(Vlookup!$B153,'CDCM Volume Forecasts'!$A$27:$AG$123,E$137,FALSE) -> 0 | F188: =VLOOKUP(Vlookup!$B153,'CDCM Volume Forecasts'!$A$27:$AG$123,F$137,FALSE) -> 0 | G188: =VLOOKUP(Vlookup!$B153,'CDCM Volume Forecasts'!$A$27:$AG$123,G$137,FALSE) -> 0
A189: > HV HH Metered | B189: =VLOOKUP(Vlookup!$B154,'CDCM Volume Forecasts'!$A$27:$AG$123,B$137,FALSE) -> 0 | C189: =VLOOKUP(Vlookup!$B154,'CDCM Volume Forecasts'!$A$27:$AG$123,C$137,FALSE) -> 0 | D189: =VLOOKUP(Vlookup!$B154,'CDCM Volume Forecasts'!$A$27:$AG$123,D$137,FALSE) -> 0 | E189: =VLOOKUP(Vlookup!$B154,'CDCM Volume Forecasts'!$A$27:$AG$123,E$137,FALSE) -> 0 | F189: =VLOOKUP(Vlookup!$B154,'CDCM Volume Forecasts'!$A$27:$AG$123,F$137,FALSE) -> 0 | G189: =VLOOKUP(Vlookup!$B154,'CDCM Volume Forecasts'!$A$27:$AG$123,G$137,FALSE) -> 0
A190: HV HH Metered | B190: =VLOOKUP(Vlookup!$B155,'CDCM Volume Forecasts'!$A$27:$AG$123,B$137,FALSE) -> 171615.9697 | C190: =VLOOKUP(Vlookup!$B155,'CDCM Volume Forecasts'!$A$27:$AG$123,C$137,FALSE) -> 1222113.106 | D190: =VLOOKUP(Vlookup!$B155,'CDCM Volume Forecasts'!$A$27:$AG$123,D$137,FALSE) -> 1301017.156 | E190: =VLOOKUP(Vlookup!$B155,'CDCM Volume Forecasts'!$A$27:$AG$123,E$137,FALSE) -> 987 | F190: =VLOOKUP(Vlookup!$B155,'CDCM Volume Forecasts'!$A$27:$AG$123,F$137,FALSE) -> 964000 | G190: =VLOOKUP(Vlookup!$B155,'CDCM Volume Forecasts'!$A$27:$AG$123,G$137,FALSE) -> 196467.337
A191: LDNO HV: HV HH Metered | B191: =VLOOKUP(Vlookup!$B156,'CDCM Volume Forecasts'!$A$27:$AG$123,B$137,FALSE) -> 688.0612894 | C191: =VLOOKUP(Vlookup!$B156,'CDCM Volume Forecasts'!$A$27:$AG$123,C$137,FALSE) -> 3907.504393 | D191: =VLOOKUP(Vlookup!$B156,'CDCM Volume Forecasts'!$A$27:$AG$123,D$137,FALSE) -> 5074.351555 | E191: =VLOOKUP(Vlookup!$B156,'CDCM Volume Forecasts'!$A$27:$AG$123,E$137,FALSE) -> 4 | F191: =VLOOKUP(Vlookup!$B156,'CDCM Volume Forecasts'!$A$27:$AG$123,F$137,FALSE) -> 5000 | G191: =VLOOKUP(Vlookup!$B156,'CDCM Volume Forecasts'!$A$27:$AG$123,G$137,FALSE) -> 45.941
A192: > NHH UMS category A | B192: =VLOOKUP(Vlookup!$B157,'CDCM Volume Forecasts'!$A$27:$AG$123,B$137,FALSE) -> 0 | C192: =VLOOKUP(Vlookup!$B157,'CDCM Volume Forecasts'!$A$27:$AG$123,C$137,FALSE) -> 0 | D192: =VLOOKUP(Vlookup!$B157,'CDCM Volume Forecasts'!$A$27:$AG$123,D$137,FALSE) -> 0 | E192: =VLOOKUP(Vlookup!$B157,'CDCM Volume Forecasts'!$A$27:$AG$123,E$137,FALSE) -> 0 | F192: =VLOOKUP(Vlookup!$B157,'CDCM Volume Forecasts'!$A$27:$AG$123,F$137,FALSE) -> 0 | G192: =VLOOKUP(Vlookup!$B157,'CDCM Volume Forecasts'!$A$27:$AG$123,G$137,FALSE) -> 0
A193: NHH UMS category A | B193: =VLOOKUP(Vlookup!$B158,'CDCM Volume Forecasts'!$A$27:$AG$123,B$137,FALSE) -> 13888.88092 | C193: =VLOOKUP(Vlookup!$B158,'CDCM Volume Forecasts'!$A$27:$AG$123,C$137,FALSE) -> 0 | D193: =VLOOKUP(Vlookup!$B158,'CDCM Volume Forecasts'!$A$27:$AG$123,D$137,FALSE) -> 0 | E193: =VLOOKUP(Vlookup!$B158,'CDCM Volume Forecasts'!$A$27:$AG$123,E$137,FALSE) -> 705 | F193: =VLOOKUP(Vlookup!$B158,'CDCM Volume Forecasts'!$A$27:$AG$123,F$137,FALSE) -> 0 | G193: =VLOOKUP(Vlookup!$B158,'CDCM Volume Forecasts'!$A$27:$AG$123,G$137,FALSE) -> 0
A194: LDNO LV: NHH UMS category A | B194: =VLOOKUP(Vlookup!$B159,'CDCM Volume Forecasts'!$A$27:$AG$123,B$137,FALSE) -> 123.8792041 | C194: =VLOOKUP(Vlookup!$B159,'CDCM Volume Forecasts'!$A$27:$AG$123,C$137,FALSE) -> 0 | D194: =VLOOKUP(Vlookup!$B159,'CDCM Volume Forecasts'!$A$27:$AG$123,D$137,FALSE) -> 0 | E194: =VLOOKUP(Vlookup!$B159,'CDCM Volume Forecasts'!$A$27:$AG$123,E$137,FALSE) -> 0 | F194: =VLOOKUP(Vlookup!$B159,'CDCM Volume Forecasts'!$A$27:$AG$123,F$137,FALSE) -> 0 | G194: =VLOOKUP(Vlookup!$B159,'CDCM Volume Forecasts'!$A$27:$AG$123,G$137,FALSE) -> 0
A195: LDNO HV: NHH UMS category A | B195: =VLOOKUP(Vlookup!$B160,'CDCM Volume Forecasts'!$A$27:$AG$123,B$137,FALSE) -> 10.40420543 | C195: =VLOOKUP(Vlookup!$B160,'CDCM Volume Forecasts'!$A$27:$AG$123,C$137,FALSE) -> 0 | D195: =VLOOKUP(Vlookup!$B160,'CDCM Volume Forecasts'!$A$27:$AG$123,D$137,FALSE) -> 0 | E195: =VLOOKUP(Vlookup!$B160,'CDCM Volume Forecasts'!$A$27:$AG$123,E$137,FALSE) -> 0 | F195: =VLOOKUP(Vlookup!$B160,'CDCM Volume Forecasts'!$A$27:$AG$123,F$137,FALSE) -> 0 | G195: =VLOOKUP(Vlookup!$B160,'CDCM Volume Forecasts'!$A$27:$AG$123,G$137,FALSE) -> 0
A196: > NHH UMS category B | B196: =VLOOKUP(Vlookup!$B161,'CDCM Volume Forecasts'!$A$27:$AG$123,B$137,FALSE) -> 0 | C196: =VLOOKUP(Vlookup!$B161,'CDCM Volume Forecasts'!$A$27:$AG$123,C$137,FALSE) -> 0 | D196: =VLOOKUP(Vlookup!$B161,'CDCM Volume Forecasts'!$A$27:$AG$123,D$137,FALSE) -> 0 | E196: =VLOOKUP(Vlookup!$B161,'CDCM Volume Forecasts'!$A$27:$AG$123,E$137,FALSE) -> 0 | F196: =VLOOKUP(Vlookup!$B161,'CDCM Volume Forecasts'!$A$27:$AG$123,F$137,FALSE) -> 0 | G196: =VLOOKUP(Vlookup!$B161,'CDCM Volume Forecasts'!$A$27:$AG$123,G$137,FALSE) -> 0
A197: NHH UMS category B | B197: =VLOOKUP(Vlookup!$B162,'CDCM Volume Forecasts'!$A$27:$AG$123,B$137,FALSE) -> 5281.884691 | C197: =VLOOKUP(Vlookup!$B162,'CDCM Volume Forecasts'!$A$27:$AG$123,C$137,FALSE) -> 0 | D197: =VLOOKUP(Vlookup!$B162,'CDCM Volume Forecasts'!$A$27:$AG$123,D$137,FALSE) -> 0 | E197: =VLOOKUP(Vlookup!$B162,'CDCM Volume Forecasts'!$A$27:$AG$123,E$137,FALSE) -> 659 | F197: =VLOOKUP(Vlookup!$B162,'CDCM Volume Forecasts'!$A$27:$AG$123,F$137,FALSE) -> 0 | G197: =VLOOKUP(Vlookup!$B162,'CDCM Volume Forecasts'!$A$27:$AG$123,G$137,FALSE) -> 0
A198: LDNO LV: NHH UMS category B | B198: =VLOOKUP(Vlookup!$B163,'CDCM Volume Forecasts'!$A$27:$AG$123,B$137,FALSE) -> 74.42947252 | C198: =VLOOKUP(Vlookup!$B163,'CDCM Volume Forecasts'!$A$27:$AG$123,C$137,FALSE) -> 0 | D198: =VLOOKUP(Vlookup!$B163,'CDCM Volume Forecasts'!$A$27:$AG$123,D$137,FALSE) -> 0 | E198: =VLOOKUP(Vlookup!$B163,'CDCM Volume Forecasts'!$A$27:$AG$123,E$137,FALSE) -> 0 | F198: =VLOOKUP(Vlookup!$B163,'CDCM Volume Forecasts'!$A$27:$AG$123,F$137,FALSE) -> 0 | G198: =VLOOKUP(Vlookup!$B163,'CDCM Volume Forecasts'!$A$27:$AG$123,G$137,FALSE) -> 0
A199: LDNO HV: NHH UMS category B | B199: =VLOOKUP(Vlookup!$B164,'CDCM Volume Forecasts'!$A$27:$AG$123,B$137,FALSE) -> 172.6343121 | C199: =VLOOKUP(Vlookup!$B164,'CDCM Volume Forecasts'!$A$27:$AG$123,C$137,FALSE) -> 0 | D199: =VLOOKUP(Vlookup!$B164,'CDCM Volume Forecasts'!$A$27:$AG$123,D$137,FALSE) -> 0 | E199: =VLOOKUP(Vlookup!$B164,'CDCM Volume Forecasts'!$A$27:$AG$123,E$137,FALSE) -> 0 | F199: =VLOOKUP(Vlookup!$B164,'CDCM Volume Forecasts'!$A$27:$AG$123,F$137,FALSE) -> 0 | G199: =VLOOKUP(Vlookup!$B164,'CDCM Volume Forecasts'!$A$27:$AG$123,G$137,FALSE) -> 0
A200: > NHH UMS category C | B200: =VLOOKUP(Vlookup!$B165,'CDCM Volume Forecasts'!$A$27:$AG$123,B$137,FALSE) -> 0 | C200: =VLOOKUP(Vlookup!$B165,'CDCM Volume Forecasts'!$A$27:$AG$123,C$137,FALSE) -> 0 | D200: =VLOOKUP(Vlookup!$B165,'CDCM Volume Forecasts'!$A$27:$AG$123,D$137,FALSE) -> 0 | E200: =VLOOKUP(Vlookup!$B165,'CDCM Volume Forecasts'!$A$27:$AG$123,E$137,FALSE) -> 0 | F200: =VLOOKUP(Vlookup!$B165,'CDCM Volume Forecasts'!$A$27:$AG$123,F$137,FALSE) -> 0 | G200: =VLOOKUP(Vlookup!$B165,'CDCM Volume Forecasts'!$A$27:$AG$123,G$137,FALSE) -> 0
A201: NHH UMS category C | B201: =VLOOKUP(Vlookup!$B166,'CDCM Volume Forecasts'!$A$27:$AG$123,B$137,FALSE) -> 618.2508284 | C201: =VLOOKUP(Vlookup!$B166,'CDCM Volume Forecasts'!$A$27:$AG$123,C$137,FALSE) -> 0 | D201: =VLOOKUP(Vlookup!$B166,'CDCM Volume Forecasts'!$A$27:$AG$123,D$137,FALSE) -> 0 | E201: =VLOOKUP(Vlookup!$B166,'CDCM Volume Forecasts'!$A$27:$AG$123,E$137,FALSE) -> 168 | F201: =VLOOKUP(Vlookup!$B166,'CDCM Volume Forecasts'!$A$27:$AG$123,F$137,FALSE) -> 0 | G201: =VLOOKUP(Vlookup!$B166,'CDCM Volume Forecasts'!$A$27:$AG$123,G$137,FALSE) -> 0
A202: LDNO LV: NHH UMS category C | B202: =VLOOKUP(Vlookup!$B167,'CDCM Volume Forecasts'!$A$27:$AG$123,B$137,FALSE) -> 0 | C202: =VLOOKUP(Vlookup!$B167,'CDCM Volume Forecasts'!$A$27:$AG$123,C$137,FALSE) -> 0 | D202: =VLOOKUP(Vlookup!$B167,'CDCM Volume Forecasts'!$A$27:$AG$123,D$137,FALSE) -> 0 | E202: =VLOOKUP(Vlookup!$B167,'CDCM Volume Forecasts'!$A$27:$AG$123,E$137,FALSE) -> 0 | F202: =VLOOKUP(Vlookup!$B167,'CDCM Volume Forecasts'!$A$27:$AG$123,F$137,FALSE) -> 0 | G202: =VLOOKUP(Vlookup!$B167,'CDCM Volume Forecasts'!$A$27:$AG$123,G$137,FALSE) -> 0
A203: LDNO HV: NHH UMS category C | B203: =VLOOKUP(Vlookup!$B168,'CDCM Volume Forecasts'!$A$27:$AG$123,B$137,FALSE) -> 128.409513 | C203: =VLOOKUP(Vlookup!$B168,'CDCM Volume Forecasts'!$A$27:$AG$123,C$137,FALSE) -> 0 | D203: =VLOOKUP(Vlookup!$B168,'CDCM Volume Forecasts'!$A$27:$AG$123,D$137,FALSE) -> 0 | E203: =VLOOKUP(Vlookup!$B168,'CDCM Volume Forecasts'!$A$27:$AG$123,E$137,FALSE) -> 0 | F203: =VLOOKUP(Vlookup!$B168,'CDCM Volume Forecasts'!$A$27:$AG$123,F$137,FALSE) -> 0 | G203: =VLOOKUP(Vlookup!$B168,'CDCM Volume Forecasts'!$A$27:$AG$123,G$137,FALSE) -> 0
A204: > NHH UMS category D | B204: =VLOOKUP(Vlookup!$B169,'CDCM Volume Forecasts'!$A$27:$AG$123,B$137,FALSE) -> 0 | C204: =VLOOKUP(Vlookup!$B169,'CDCM Volume Forecasts'!$A$27:$AG$123,C$137,FALSE) -> 0 | D204: =VLOOKUP(Vlookup!$B169,'CDCM Volume Forecasts'!$A$27:$AG$123,D$137,FALSE) -> 0 | E204: =VLOOKUP(Vlookup!$B169,'CDCM Volume Forecasts'!$A$27:$AG$123,E$137,FALSE) -> 0 | F204: =VLOOKUP(Vlookup!$B169,'CDCM Volume Forecasts'!$A$27:$AG$123,F$137,FALSE) -> 0 | G204: =VLOOKUP(Vlookup!$B169,'CDCM Volume Forecasts'!$A$27:$AG$123,G$137,FALSE) -> 0
A205: NHH UMS category D | B205: =VLOOKUP(Vlookup!$B170,'CDCM Volume Forecasts'!$A$27:$AG$123,B$137,FALSE) -> 0 | C205: =VLOOKUP(Vlookup!$B170,'CDCM Volume Forecasts'!$A$27:$AG$123,C$137,FALSE) -> 0 | D205: =VLOOKUP(Vlookup!$B170,'CDCM Volume Forecasts'!$A$27:$AG$123,D$137,FALSE) -> 0 | E205: =VLOOKUP(Vlookup!$B170,'CDCM Volume Forecasts'!$A$27:$AG$123,E$137,FALSE) -> 1 | F205: =VLOOKUP(Vlookup!$B170,'CDCM Volume Forecasts'!$A$27:$AG$123,F$137,FALSE) -> 0 | G205: =VLOOKUP(Vlookup!$B170,'CDCM Volume Forecasts'!$A$27:$AG$123,G$137,FALSE) -> 0
A206: LDNO LV: NHH UMS category D | B206: =VLOOKUP(Vlookup!$B171,'CDCM Volume Forecasts'!$A$27:$AG$123,B$137,FALSE) -> 0 | C206: =VLOOKUP(Vlookup!$B171,'CDCM Volume Forecasts'!$A$27:$AG$123,C$137,FALSE) -> 0 | D206: =VLOOKUP(Vlookup!$B171,'CDCM Volume Forecasts'!$A$27:$AG$123,D$137,FALSE) -> 0 | E206: =VLOOKUP(Vlookup!$B171,'CDCM Volume Forecasts'!$A$27:$AG$123,E$137,FALSE) -> 0 | F206: =VLOOKUP(Vlookup!$B171,'CDCM Volume Forecasts'!$A$27:$AG$123,F$137,FALSE) -> 0 | G206: =VLOOKUP(Vlookup!$B171,'CDCM Volume Forecasts'!$A$27:$AG$123,G$137,FALSE) -> 0
A207: LDNO HV: NHH UMS category D | B207: =VLOOKUP(Vlookup!$B172,'CDCM Volume Forecasts'!$A$27:$AG$123,B$137,FALSE) -> 0 | C207: =VLOOKUP(Vlookup!$B172,'CDCM Volume Forecasts'!$A$27:$AG$123,C$137,FALSE) -> 0 | D207: =VLOOKUP(Vlookup!$B172,'CDCM Volume Forecasts'!$A$27:$AG$123,D$137,FALSE) -> 0 | E207: =VLOOKUP(Vlookup!$B172,'CDCM Volume Forecasts'!$A$27:$AG$123,E$137,FALSE) -> 0 | F207: =VLOOKUP(Vlookup!$B172,'CDCM Volume Forecasts'!$A$27:$AG$123,F$137,FALSE) -> 0 | G207: =VLOOKUP(Vlookup!$B172,'CDCM Volume Forecasts'!$A$27:$AG$123,G$137,FALSE) -> 0
A208: > LV UMS (Pseudo HH Metered) | B208: =VLOOKUP(Vlookup!$B173,'CDCM Volume Forecasts'!$A$27:$AG$123,B$137,FALSE) -> 0 | C208: =VLOOKUP(Vlookup!$B173,'CDCM Volume Forecasts'!$A$27:$AG$123,C$137,FALSE) -> 0 | D208: =VLOOKUP(Vlookup!$B173,'CDCM Volume Forecasts'!$A$27:$AG$123,D$137,FALSE) -> 0 | E208: =VLOOKUP(Vlookup!$B173,'CDCM Volume Forecasts'!$A$27:$AG$123,E$137,FALSE) -> 0 | F208: =VLOOKUP(Vlookup!$B173,'CDCM Volume Forecasts'!$A$27:$AG$123,F$137,FALSE) -> 0 | G208: =VLOOKUP(Vlookup!$B173,'CDCM Volume Forecasts'!$A$27:$AG$123,G$137,FALSE) -> 0
A209: LV UMS (Pseudo HH Metered) | B209: =VLOOKUP(Vlookup!$B174,'CDCM Volume Forecasts'!$A$27:$AG$123,B$137,FALSE) -> 4455.729543 | C209: =VLOOKUP(Vlookup!$B174,'CDCM Volume Forecasts'!$A$27:$AG$123,C$137,FALSE) -> 27997.88905 | D209: =VLOOKUP(Vlookup!$B174,'CDCM Volume Forecasts'!$A$27:$AG$123,D$137,FALSE) -> 96620.92453 | E209: =VLOOKUP(Vlookup!$B174,'CDCM Volume Forecasts'!$A$27:$AG$123,E$137,FALSE) -> 17 | F209: =VLOOKUP(Vlookup!$B174,'CDCM Volume Forecasts'!$A$27:$AG$123,F$137,FALSE) -> 0 | G209: =VLOOKUP(Vlookup!$B174,'CDCM Volume Forecasts'!$A$27:$AG$123,G$137,FALSE) -> 0
A210: LDNO LV: LV UMS (Pseudo HH Metered) | B210: =VLOOKUP(Vlookup!$B175,'CDCM Volume Forecasts'!$A$27:$AG$123,B$137,FALSE) -> 0 | C210: =VLOOKUP(Vlookup!$B175,'CDCM Volume Forecasts'!$A$27:$AG$123,C$137,FALSE) -> 0 | D210: =VLOOKUP(Vlookup!$B175,'CDCM Volume Forecasts'!$A$27:$AG$123,D$137,FALSE) -> 0 | E210: =VLOOKUP(Vlookup!$B175,'CDCM Volume Forecasts'!$A$27:$AG$123,E$137,FALSE) -> 0 | F210: =VLOOKUP(Vlookup!$B175,'CDCM Volume Forecasts'!$A$27:$AG$123,F$137,FALSE) -> 0 | G210: =VLOOKUP(Vlookup!$B175,'CDCM Volume Forecasts'!$A$27:$AG$123,G$137,FALSE) -> 0
A211: LDNO HV: LV UMS (Pseudo HH Metered) | B211: =VLOOKUP(Vlookup!$B176,'CDCM Volume Forecasts'!$A$27:$AG$123,B$137,FALSE) -> 0 | C211: =VLOOKUP(Vlookup!$B176,'CDCM Volume Forecasts'!$A$27:$AG$123,C$137,FALSE) -> 0 | D211: =VLOOKUP(Vlookup!$B176,'CDCM Volume Forecasts'!$A$27:$AG$123,D$137,FALSE) -> 0 | E211: =VLOOKUP(Vlookup!$B176,'CDCM Volume Forecasts'!$A$27:$AG$123,E$137,FALSE) -> 0 | F211: =VLOOKUP(Vlookup!$B176,'CDCM Volume Forecasts'!$A$27:$AG$123,F$137,FALSE) -> 0 | G211: =VLOOKUP(Vlookup!$B176,'CDCM Volume Forecasts'!$A$27:$AG$123,G$137,FALSE) -> 0
A212: > LV Generation NHH or Aggregate HH | B212: =VLOOKUP(Vlookup!$B177,'CDCM Volume Forecasts'!$A$27:$AG$123,B$137,FALSE) -> 0 | C212: =VLOOKUP(Vlookup!$B177,'CDCM Volume Forecasts'!$A$27:$AG$123,C$137,FALSE) -> 0 | D212: =VLOOKUP(Vlookup!$B177,'CDCM Volume Forecasts'!$A$27:$AG$123,D$137,FALSE) -> 0 | E212: =VLOOKUP(Vlookup!$B177,'CDCM Volume Forecasts'!$A$27:$AG$123,E$137,FALSE) -> 0 | F212: =VLOOKUP(Vlookup!$B177,'CDCM Volume Forecasts'!$A$27:$AG$123,F$137,FALSE) -> 0 | G212: =VLOOKUP(Vlookup!$B177,'CDCM Volume Forecasts'!$A$27:$AG$123,G$137,FALSE) -> 0
A213: LV Generation NHH or Aggregate HH | B213: =VLOOKUP(Vlookup!$B178,'CDCM Volume Forecasts'!$A$27:$AG$123,B$137,FALSE) -> 2351.390322 | C213: =VLOOKUP(Vlookup!$B178,'CDCM Volume Forecasts'!$A$27:$AG$123,C$137,FALSE) -> 0 | D213: =VLOOKUP(Vlookup!$B178,'CDCM Volume Forecasts'!$A$27:$AG$123,D$137,FALSE) -> 0 | E213: =VLOOKUP(Vlookup!$B178,'CDCM Volume Forecasts'!$A$27:$AG$123,E$137,FALSE) -> 260 | F213: =VLOOKUP(Vlookup!$B178,'CDCM Volume Forecasts'!$A$27:$AG$123,F$137,FALSE) -> 0 | G213: =VLOOKUP(Vlookup!$B178,'CDCM Volume Forecasts'!$A$27:$AG$123,G$137,FALSE) -> 0
A214: LDNO LV: LV Generation NHH or Aggregate HH | B214: =VLOOKUP(Vlookup!$B179,'CDCM Volume Forecasts'!$A$27:$AG$123,B$137,FALSE) -> 115.0887325 | C214: =VLOOKUP(Vlookup!$B179,'CDCM Volume Forecasts'!$A$27:$AG$123,C$137,FALSE) -> 0 | D214: =VLOOKUP(Vlookup!$B179,'CDCM Volume Forecasts'!$A$27:$AG$123,D$137,FALSE) -> 0 | E214: =VLOOKUP(Vlookup!$B179,'CDCM Volume Forecasts'!$A$27:$AG$123,E$137,FALSE) -> 0 | F214: =VLOOKUP(Vlookup!$B179,'CDCM Volume Forecasts'!$A$27:$AG$123,F$137,FALSE) -> 0 | G214: =VLOOKUP(Vlookup!$B179,'CDCM Volume Forecasts'!$A$27:$AG$123,G$137,FALSE) -> 0
A215: LDNO HV: LV Generation NHH or Aggregate HH | B215: =VLOOKUP(Vlookup!$B180,'CDCM Volume Forecasts'!$A$27:$AG$123,B$137,FALSE) -> 0 | C215: =VLOOKUP(Vlookup!$B180,'CDCM Volume Forecasts'!$A$27:$AG$123,C$137,FALSE) -> 0 | D215: =VLOOKUP(Vlookup!$B180,'CDCM Volume Forecasts'!$A$27:$AG$123,D$137,FALSE) -> 0 | E215: =VLOOKUP(Vlookup!$B180,'CDCM Volume Forecasts'!$A$27:$AG$123,E$137,FALSE) -> 0 | F215: =VLOOKUP(Vlookup!$B180,'CDCM Volume Forecasts'!$A$27:$AG$123,F$137,FALSE) -> 0 | G215: =VLOOKUP(Vlookup!$B180,'CDCM Volume Forecasts'!$A$27:$AG$123,G$137,FALSE) -> 0
A216: > LV Sub Generation NHH | B216: =VLOOKUP(Vlookup!$B181,'CDCM Volume Forecasts'!$A$27:$AG$123,B$137,FALSE) -> 0 | C216: =VLOOKUP(Vlookup!$B181,'CDCM Volume Forecasts'!$A$27:$AG$123,C$137,FALSE) -> 0 | D216: =VLOOKUP(Vlookup!$B181,'CDCM Volume Forecasts'!$A$27:$AG$123,D$137,FALSE) -> 0 | E216: =VLOOKUP(Vlookup!$B181,'CDCM Volume Forecasts'!$A$27:$AG$123,E$137,FALSE) -> 0 | F216: =VLOOKUP(Vlookup!$B181,'CDCM Volume Forecasts'!$A$27:$AG$123,F$137,FALSE) -> 0 | G216: =VLOOKUP(Vlookup!$B181,'CDCM Volume Forecasts'!$A$27:$AG$123,G$137,FALSE) -> 0
A217: LV Sub Generation NHH | B217: =VLOOKUP(Vlookup!$B182,'CDCM Volume Forecasts'!$A$27:$AG$123,B$137,FALSE) -> 0 | C217: =VLOOKUP(Vlookup!$B182,'CDCM Volume Forecasts'!$A$27:$AG$123,C$137,FALSE) -> 0 | D217: =VLOOKUP(Vlookup!$B182,'CDCM Volume Forecasts'!$A$27:$AG$123,D$137,FALSE) -> 0 | E217: =VLOOKUP(Vlookup!$B182,'CDCM Volume Forecasts'!$A$27:$AG$123,E$137,FALSE) -> 0 | F217: =VLOOKUP(Vlookup!$B182,'CDCM Volume Forecasts'!$A$27:$AG$123,F$137,FALSE) -> 0 | G217: =VLOOKUP(Vlookup!$B182,'CDCM Volume Forecasts'!$A$27:$AG$123,G$137,FALSE) -> 0
A218: LDNO HV: LV Sub Generation NHH | B218: =VLOOKUP(Vlookup!$B183,'CDCM Volume Forecasts'!$A$27:$AG$123,B$137,FALSE) -> 0 | C218: =VLOOKUP(Vlookup!$B183,'CDCM Volume Forecasts'!$A$27:$AG$123,C$137,FALSE) -> 0 | D218: =VLOOKUP(Vlookup!$B183,'CDCM Volume Forecasts'!$A$27:$AG$123,D$137,FALSE) -> 0 | E218: =VLOOKUP(Vlookup!$B183,'CDCM Volume Forecasts'!$A$27:$AG$123,E$137,FALSE) -> 0 | F218: =VLOOKUP(Vlookup!$B183,'CDCM Volume Forecasts'!$A$27:$AG$123,F$137,FALSE) -> 0 | G218: =VLOOKUP(Vlookup!$B183,'CDCM Volume Forecasts'!$A$27:$AG$123,G$137,FALSE) -> 0
A219: > LV Generation Intermittent | B219: =VLOOKUP(Vlookup!$B184,'CDCM Volume Forecasts'!$A$27:$AG$123,B$137,FALSE) -> 0 | C219: =VLOOKUP(Vlookup!$B184,'CDCM Volume Forecasts'!$A$27:$AG$123,C$137,FALSE) -> 0 | D219: =VLOOKUP(Vlookup!$B184,'CDCM Volume Forecasts'!$A$27:$AG$123,D$137,FALSE) -> 0 | E219: =VLOOKUP(Vlookup!$B184,'CDCM Volume Forecasts'!$A$27:$AG$123,E$137,FALSE) -> 0 | F219: =VLOOKUP(Vlookup!$B184,'CDCM Volume Forecasts'!$A$27:$AG$123,F$137,FALSE) -> 0 | G219: =VLOOKUP(Vlookup!$B184,'CDCM Volume Forecasts'!$A$27:$AG$123,G$137,FALSE) -> 0
A220: LV Generation Intermittent | B220: =VLOOKUP(Vlookup!$B185,'CDCM Volume Forecasts'!$A$27:$AG$123,B$137,FALSE) -> 38618.94537 | C220: =VLOOKUP(Vlookup!$B185,'CDCM Volume Forecasts'!$A$27:$AG$123,C$137,FALSE) -> 0 | D220: =VLOOKUP(Vlookup!$B185,'CDCM Volume Forecasts'!$A$27:$AG$123,D$137,FALSE) -> 0 | E220: =VLOOKUP(Vlookup!$B185,'CDCM Volume Forecasts'!$A$27:$AG$123,E$137,FALSE) -> 496 | F220: =VLOOKUP(Vlookup!$B185,'CDCM Volume Forecasts'!$A$27:$AG$123,F$137,FALSE) -> 0 | G220: =VLOOKUP(Vlookup!$B185,'CDCM Volume Forecasts'!$A$27:$AG$123,G$137,FALSE) -> 2200.6
A221: LDNO LV: LV Generation Intermittent | B221: =VLOOKUP(Vlookup!$B186,'CDCM Volume Forecasts'!$A$27:$AG$123,B$137,FALSE) -> 0 | C221: =VLOOKUP(Vlookup!$B186,'CDCM Volume Forecasts'!$A$27:$AG$123,C$137,FALSE) -> 0 | D221: =VLOOKUP(Vlookup!$B186,'CDCM Volume Forecasts'!$A$27:$AG$123,D$137,FALSE) -> 0 | E221: =VLOOKUP(Vlookup!$B186,'CDCM Volume Forecasts'!$A$27:$AG$123,E$137,FALSE) -> 0 | F221: =VLOOKUP(Vlookup!$B186,'CDCM Volume Forecasts'!$A$27:$AG$123,F$137,FALSE) -> 0 | G221: =VLOOKUP(Vlookup!$B186,'CDCM Volume Forecasts'!$A$27:$AG$123,G$137,FALSE) -> 0
A222: LDNO HV: LV Generation Intermittent | B222: =VLOOKUP(Vlookup!$B187,'CDCM Volume Forecasts'!$A$27:$AG$123,B$137,FALSE) -> 0 | C222: =VLOOKUP(Vlookup!$B187,'CDCM Volume Forecasts'!$A$27:$AG$123,C$137,FALSE) -> 0 | D222: =VLOOKUP(Vlookup!$B187,'CDCM Volume Forecasts'!$A$27:$AG$123,D$137,FALSE) -> 0 | E222: =VLOOKUP(Vlookup!$B187,'CDCM Volume Forecasts'!$A$27:$AG$123,E$137,FALSE) -> 0 | F222: =VLOOKUP(Vlookup!$B187,'CDCM Volume Forecasts'!$A$27:$AG$123,F$137,FALSE) -> 0 | G222: =VLOOKUP(Vlookup!$B187,'CDCM Volume Forecasts'!$A$27:$AG$123,G$137,FALSE) -> 0
A223: > LV Generation Non-Intermittent | B223: =VLOOKUP(Vlookup!$B188,'CDCM Volume Forecasts'!$A$27:$AG$123,B$137,FALSE) -> 0 | C223: =VLOOKUP(Vlookup!$B188,'CDCM Volume Forecasts'!$A$27:$AG$123,C$137,FALSE) -> 0 | D223: =VLOOKUP(Vlookup!$B188,'CDCM Volume Forecasts'!$A$27:$AG$123,D$137,FALSE) -> 0 | E223: =VLOOKUP(Vlookup!$B188,'CDCM Volume Forecasts'!$A$27:$AG$123,E$137,FALSE) -> 0 | F223: =VLOOKUP(Vlookup!$B188,'CDCM Volume Forecasts'!$A$27:$AG$123,F$137,FALSE) -> 0 | G223: =VLOOKUP(Vlookup!$B188,'CDCM Volume Forecasts'!$A$27:$AG$123,G$137,FALSE) -> 0
A224: LV Generation Non-Intermittent | B224: =VLOOKUP(Vlookup!$B189,'CDCM Volume Forecasts'!$A$27:$AG$123,B$137,FALSE) -> 416.519849 | C224: =VLOOKUP(Vlookup!$B189,'CDCM Volume Forecasts'!$A$27:$AG$123,C$137,FALSE) -> 2168.244323 | D224: =VLOOKUP(Vlookup!$B189,'CDCM Volume Forecasts'!$A$27:$AG$123,D$137,FALSE) -> 1902.921682 | E224: =VLOOKUP(Vlookup!$B189,'CDCM Volume Forecasts'!$A$27:$AG$123,E$137,FALSE) -> 8 | F224: =VLOOKUP(Vlookup!$B189,'CDCM Volume Forecasts'!$A$27:$AG$123,F$137,FALSE) -> 0 | G224: =VLOOKUP(Vlookup!$B189,'CDCM Volume Forecasts'!$A$27:$AG$123,G$137,FALSE) -> 4.002
A225: LDNO LV: LV Generation Non-Intermittent | B225: =VLOOKUP(Vlookup!$B190,'CDCM Volume Forecasts'!$A$27:$AG$123,B$137,FALSE) -> 0 | C225: =VLOOKUP(Vlookup!$B190,'CDCM Volume Forecasts'!$A$27:$AG$123,C$137,FALSE) -> 0 | D225: =VLOOKUP(Vlookup!$B190,'CDCM Volume Forecasts'!$A$27:$AG$123,D$137,FALSE) -> 0 | E225: =VLOOKUP(Vlookup!$B190,'CDCM Volume Forecasts'!$A$27:$AG$123,E$137,FALSE) -> 0 | F225: =VLOOKUP(Vlookup!$B190,'CDCM Volume Forecasts'!$A$27:$AG$123,F$137,FALSE) -> 0 | G225: =VLOOKUP(Vlookup!$B190,'CDCM Volume Forecasts'!$A$27:$AG$123,G$137,FALSE) -> 0
A226: LDNO HV: LV Generation Non-Intermittent | B226: =VLOOKUP(Vlookup!$B191,'CDCM Volume Forecasts'!$A$27:$AG$123,B$137,FALSE) -> 0 | C226: =VLOOKUP(Vlookup!$B191,'CDCM Volume Forecasts'!$A$27:$AG$123,C$137,FALSE) -> 0 | D226: =VLOOKUP(Vlookup!$B191,'CDCM Volume Forecasts'!$A$27:$AG$123,D$137,FALSE) -> 0 | E226: =VLOOKUP(Vlookup!$B191,'CDCM Volume Forecasts'!$A$27:$AG$123,E$137,FALSE) -> 0 | F226: =VLOOKUP(Vlookup!$B191,'CDCM Volume Forecasts'!$A$27:$AG$123,F$137,FALSE) -> 0 | G226: =VLOOKUP(Vlookup!$B191,'CDCM Volume Forecasts'!$A$27:$AG$123,G$137,FALSE) -> 0
A227: > LV Sub Generation Intermittent | B227: =VLOOKUP(Vlookup!$B192,'CDCM Volume Forecasts'!$A$27:$AG$123,B$137,FALSE) -> 0 | C227: =VLOOKUP(Vlookup!$B192,'CDCM Volume Forecasts'!$A$27:$AG$123,C$137,FALSE) -> 0 | D227: =VLOOKUP(Vlookup!$B192,'CDCM Volume Forecasts'!$A$27:$AG$123,D$137,FALSE) -> 0 | E227: =VLOOKUP(Vlookup!$B192,'CDCM Volume Forecasts'!$A$27:$AG$123,E$137,FALSE) -> 0 | F227: =VLOOKUP(Vlookup!$B192,'CDCM Volume Forecasts'!$A$27:$AG$123,F$137,FALSE) -> 0 | G227: =VLOOKUP(Vlookup!$B192,'CDCM Volume Forecasts'!$A$27:$AG$123,G$137,FALSE) -> 0
A228: LV Sub Generation Intermittent | B228: =VLOOKUP(Vlookup!$B193,'CDCM Volume Forecasts'!$A$27:$AG$123,B$137,FALSE) -> 5874.307069 | C228: =VLOOKUP(Vlookup!$B193,'CDCM Volume Forecasts'!$A$27:$AG$123,C$137,FALSE) -> 0 | D228: =VLOOKUP(Vlookup!$B193,'CDCM Volume Forecasts'!$A$27:$AG$123,D$137,FALSE) -> 0 | E228: =VLOOKUP(Vlookup!$B193,'CDCM Volume Forecasts'!$A$27:$AG$123,E$137,FALSE) -> 60 | F228: =VLOOKUP(Vlookup!$B193,'CDCM Volume Forecasts'!$A$27:$AG$123,F$137,FALSE) -> 0 | G228: =VLOOKUP(Vlookup!$B193,'CDCM Volume Forecasts'!$A$27:$AG$123,G$137,FALSE) -> 608.533
... 81 more rows

Sheet (Y+2)
A1: Input data (Y+2)
A4: 1000. Company, charging year, data version
B6: Company | C6: Year | D6: Version
A7: Company, charging year, data version | B7: =VLOOKUP(Vlookup!B7,'CDCM Forecast Data'!$A$14:$I$271,7,FALSE) -> 0 | C7: =VLOOKUP(Vlookup!C7,'CDCM Forecast Data'!$A$14:$I$271,7,FALSE) -> 0 | D7: =VLOOKUP(Vlookup!D7,'CDCM Forecast Data'!$A$14:$I$271,7,FALSE) -> 0
A9: 1010. Financial and general assumptions
A11: Sources: financial assumptions; calendar; network model.
A12: These financial assumptions determine the annuity rate applied to convert the asset values of the network model into an annual charge.
B13: Rate of return | C13: Annualisation period (years) | D13: Annuity proportion for customer-contributed assets | E13: Power factor | F13: Days in the charging period
A14: Financial and general assumptions | B14: =VLOOKUP(Vlookup!B14,'CDCM Forecast Data'!$A$14:$I$271,7,FALSE) -> 0.056 | C14: =VLOOKUP(Vlookup!C14,'CDCM Forecast Data'!$A$14:$I$271,7,FALSE) -> 40 | E14: =VLOOKUP(Vlookup!E14,'CDCM Forecast Data'!$A$14:$I$271,7,FALSE) -> 0.95 | F14: =VLOOKUP(Vlookup!F14,'CDCM Forecast Data'!$A$14:$I$271,7,FALSE) -> 365
A16: 1017. Diversity allowance between top and bottom of network level
A18: Source: operational data analysis and/or network model.
A19: The diversity figure against GSP is the diversity between GSP Group (the whole system) and individual GSPs.
A20: The diversity figure against 132kV is the diversity between GSPs (the top of the 132kV network) and 132kV/EHV bulk supply points (the bottom of the 132kV network).
A21: The diversity figure against EHV is the diversity between 132kV/EHV bulk supply points (the top of the EHV network) and EHV/HV primary substations (the bottom of the EHV network).
A22: The diversity figure against HV is the diversity between EHV/HV primary substations (the top of the HV network) and HV/LV substations (the bottom of the HV network).
B23: Diversity allowance between top and bottom of network level
A24: GSPs | B24: =VLOOKUP(Vlookup!B24,'CDCM Forecast Data'!$A$14:$I$271,7,FALSE) -> 0.022
A25: 132kV | B25: =VLOOKUP(Vlookup!B25,'CDCM Forecast Data'!$A$14:$I$271,7,FALSE) -> 0.031
A26: 132kV/EHV
A27: EHV | B27: =VLOOKUP(Vlookup!B27,'CDCM Forecast Data'!$A$14:$I$271,7,FALSE) -> 0.075
A28: EHV/HV
A29: HV | B29: =VLOOKUP(Vlookup!B29,'CDCM Forecast Data'!$A$14:$I$271,7,FALSE) -> 0.37
A30: HV/LV
A31: LV circuits
A33: 1018. Proportion of relevant load going through 132kV/HV direct transformation
B35: 132kV/HV
A36: EHV/HV | B36: =VLOOKUP(Vlookup!B36,'CDCM Forecast Data'!$A$14:$I$271,7,FALSE) -> 0
A38: 1019. Network model GSP peak demand (MW)
B40: Network model GSP peak demand (MW)
A41: Network model GSP peak demand (MW) | B41: =VLOOKUP(Vlookup!B41,'CDCM Forecast Data'!$A$14:$I$271,7,FALSE) -> 500
A43: 1020. Gross asset cost by network level (£)
B45: Gross assets £
A46: 132kV | B46: =VLOOKUP(Vlookup!B46,'CDCM Forecast Data'!$A$14:$I$271,7,FALSE) -> 115010903.8
A47: 132kV/EHV | B47: =VLOOKUP(Vlookup!B47,'CDCM Forecast Data'!$A$14:$I$271,7,FALSE) -> 16290058.07
A48: EHV | B48: =VLOOKUP(Vlookup!B48,'CDCM Forecast Data'!$A$14:$I$271,7,FALSE) -> 41124202.32
A49: EHV/HV | B49: =VLOOKUP(Vlookup!B49,'CDCM Forecast Data'!$A$14:$I$271,7,FALSE) -> 41331723.28
A50: 132kV/HV | B50: =VLOOKUP(Vlookup!B50,'CDCM Forecast Data'!$A$14:$I$271,7,FALSE) -> 0
A51: HV | B51: =VLOOKUP(Vlookup!B51,'CDCM Forecast Data'!$A$14:$I$271,7,FALSE) -> 147199101.6
A52: HV/LV | B52: =VLOOKUP(Vlookup!B52,'CDCM Forecast Data'!$A$14:$I$271,7,FALSE) -> 62727841.58
A53: LV circuits | B53: =VLOOKUP(Vlookup!B53,'CDCM Forecast Data'!$A$14:$I$271,7,FALSE) -> 134722840.8
A55: 1022. LV service model asset cost (£)
B57: LV service model 1 | C57: LV service model 2 | D57: LV service model 3 | E57: LV service model 4 | F57: LV service model 5 | G57: LV service model 6 | H57: LV service model 7 | I57: LV service model 8
A58: LV service model asset cost (£) | B58: =VLOOKUP(Vlookup!B58,'CDCM Forecast Data'!$A$14:$I$271,7,FALSE) -> 5269.712407 | C58: =VLOOKUP(Vlookup!C58,'CDCM Forecast Data'!$A$14:$I$271,7,FALSE) -> 592.7899597 | D58: =VLOOKUP(Vlookup!D58,'CDCM Forecast Data'!$A$14:$I$271,7,FALSE) -> 721.7175527 | E58: =VLOOKUP(Vlookup!E58,'CDCM Forecast Data'!$A$14:$I$271,7,FALSE) -> 535.2401479 | F58: =VLOOKUP(Vlookup!F58,'CDCM Forecast Data'!$A$14:$I$271,7,FALSE) -> 1216.71997 | G58: =VLOOKUP(Vlookup!G58,'CDCM Forecast Data'!$A$14:$I$271,7,FALSE) -> 937.1336471 | H58: =VLOOKUP(Vlookup!H58,'CDCM Forecast Data'!$A$14:$I$271,7,FALSE) -> 0 | I58: =VLOOKUP(Vlookup!I58,'CDCM Forecast Data'!$A$14:$I$271,7,FALSE) -> 490.1263649
A60: 1023. HV service model asset cost (£)
B62: HV service model 1 | C62: HV service model 2 | D62: HV service model 3 | E62: HV service model 4 | F62: HV service model 5
A63: HV service model asset cost (£) | B63: =VLOOKUP(Vlookup!B63,'CDCM Forecast Data'!$A$14:$I$271,7,FALSE) -> 9297.453198 | C63: =VLOOKUP(Vlookup!C63,'CDCM Forecast Data'!$A$14:$I$271,7,FALSE) -> 4482.616265 | D63: =VLOOKUP(Vlookup!D63,'CDCM Forecast Data'!$A$14:$I$271,7,FALSE) -> 0 | E63: =VLOOKUP(Vlookup!E63,'CDCM Forecast Data'!$A$14:$I$271,7,FALSE) -> 0 | F63: =VLOOKUP(Vlookup!F63,'CDCM Forecast Data'!$A$14:$I$271,7,FALSE) -> 0
A65: 1025. Matrix of applicability of LV service models to tariffs with fixed charges
B66: 18 | C66: =B66+1 -> 19 | D66: 20 | E66: 21 | F66: 22 | G66: 23 | H66: 24 | I66: 25
B67: LV service model 1 | C67: LV service model 2 | D67: LV service model 3 | E67: LV service model 4 | F67: LV service model 5 | G67: LV service model 6 | H67: LV service model 7 | I67: LV service model 8
A68: Domestic Unrestricted | B68: =VLOOKUP($A68,'Mat of App'!$B$7:$AP$37,B$66,FALSE) -> 0.05 | C68: =VLOOKUP($A68,'Mat of App'!$B$7:$AP$37,C$66,FALSE) -> 0 | D68: =VLOOKUP($A68,'Mat of App'!$B$7:$AP$37,D$66,FALSE) -> 0 | E68: =VLOOKUP($A68,'Mat of App'!$B$7:$AP$37,E$66,FALSE) -> 0 | F68: =VLOOKUP($A68,'Mat of App'!$B$7:$AP$37,F$66,FALSE) -> 0 | G68: =VLOOKUP($A68,'Mat of App'!$B$7:$AP$37,G$66,FALSE) -> 0 | H68: =VLOOKUP($A68,'Mat of App'!$B$7:$AP$37,H$66,FALSE) -> 0 | I68: =VLOOKUP($A68,'Mat of App'!$B$7:$AP$37,I$66,FALSE) -> 0
A69: Domestic Two Rate | B69: =VLOOKUP($A69,'Mat of App'!$B$7:$AP$37,B$66,FALSE) -> 0.05 | C69: =VLOOKUP($A69,'Mat of App'!$B$7:$AP$37,C$66,FALSE) -> 0 | D69: =VLOOKUP($A69,'Mat of App'!$B$7:$AP$37,D$66,FALSE) -> 0 | E69: =VLOOKUP($A69,'Mat of App'!$B$7:$AP$37,E$66,FALSE) -> 0 | F69: =VLOOKUP($A69,'Mat of App'!$B$7:$AP$37,F$66,FALSE) -> 0 | G69: =VLOOKUP($A69,'Mat of App'!$B$7:$AP$37,G$66,FALSE) -> 0 | H69: =VLOOKUP($A69,'Mat of App'!$B$7:$AP$37,H$66,FALSE) -> 0 | I69: =VLOOKUP($A69,'Mat of App'!$B$7:$AP$37,I$66,FALSE) -> 0
A70: Small Non Domestic Unrestricted | B70: =VLOOKUP($A70,'Mat of App'!$B$7:$AP$37,B$66,FALSE) -> 0 | C70: =VLOOKUP($A70,'Mat of App'!$B$7:$AP$37,C$66,FALSE) -> 1 | D70: =VLOOKUP($A70,'Mat of App'!$B$7:$AP$37,D$66,FALSE) -> 0 | E70: =VLOOKUP($A70,'Mat of App'!$B$7:$AP$37,E$66,FALSE) -> 0 | F70: =VLOOKUP($A70,'Mat of App'!$B$7:$AP$37,F$66,FALSE) -> 0 | G70: =VLOOKUP($A70,'Mat of App'!$B$7:$AP$37,G$66,FALSE) -> 0 | H70: =VLOOKUP($A70,'Mat of App'!$B$7:$AP$37,H$66,FALSE) -> 0 | I70: =VLOOKUP($A70,'Mat of App'!$B$7:$AP$37,I$66,FALSE) -> 0
A71: Small Non Domestic Two Rate | B71: =VLOOKUP($A71,'Mat of App'!$B$7:$AP$37,B$66,FALSE) -> 0 | C71: =VLOOKUP($A71,'Mat of App'!$B$7:$AP$37,C$66,FALSE) -> 1 | D71: =VLOOKUP($A71,'Mat of App'!$B$7:$AP$37,D$66,FALSE) -> 0 | E71: =VLOOKUP($A71,'Mat of App'!$B$7:$AP$37,E$66,FALSE) -> 0 | F71: =VLOOKUP($A71,'Mat of App'!$B$7:$AP$37,F$66,FALSE) -> 0 | G71: =VLOOKUP($A71,'Mat of App'!$B$7:$AP$37,G$66,FALSE) -> 0 | H71: =VLOOKUP($A71,'Mat of App'!$B$7:$AP$37,H$66,FALSE) -> 0 | I71: =VLOOKUP($A71,'Mat of App'!$B$7:$AP$37,I$66,FALSE) -> 0
A72: LV Medium Non-Domestic | B72: =VLOOKUP($A72,'Mat of App'!$B$7:$AP$37,B$66,FALSE) -> 0 | C72: =VLOOKUP($A72,'Mat of App'!$B$7:$AP$37,C$66,FALSE) -> 0 | D72: =VLOOKUP($A72,'Mat of App'!$B$7:$AP$37,D$66,FALSE) -> 1 | E72: =VLOOKUP($A72,'Mat of App'!$B$7:$AP$37,E$66,FALSE) -> 0 | F72: =VLOOKUP($A72,'Mat of App'!$B$7:$AP$37,F$66,FALSE) -> 0 | G72: =VLOOKUP($A72,'Mat of App'!$B$7:$AP$37,G$66,FALSE) -> 0 | H72: =VLOOKUP($A72,'Mat of App'!$B$7:$AP$37,H$66,FALSE) -> 0 | I72: =VLOOKUP($A72,'Mat of App'!$B$7:$AP$37,I$66,FALSE) -> 0
A73: LV Sub Medium Non-Domestic | B73: =VLOOKUP($A73,'Mat of App'!$B$7:$AP$37,B$66,FALSE) -> 0 | C73: =VLOOKUP($A73,'Mat of App'!$B$7:$AP$37,C$66,FALSE) -> 0 | D73: =VLOOKUP($A73,'Mat of App'!$B$7:$AP$37,D$66,FALSE) -> 0 | E73: =VLOOKUP($A73,'Mat of App'!$B$7:$AP$37,E$66,FALSE) -> 1 | F73: =VLOOKUP($A73,'Mat of App'!$B$7:$AP$37,F$66,FALSE) -> 0 | G73: =VLOOKUP($A73,'Mat of App'!$B$7:$AP$37,G$66,FALSE) -> 0 | H73: =VLOOKUP($A73,'Mat of App'!$B$7:$AP$37,H$66,FALSE) -> 0 | I73: =VLOOKUP($A73,'Mat of App'!$B$7:$AP$37,I$66,FALSE) -> 0
A74: LV Network Domestic | B74: =VLOOKUP($A74,'Mat of App'!$B$7:$AP$37,B$66,FALSE) -> 0.05 | C74: =VLOOKUP($A74,'Mat of App'!$B$7:$AP$37,C$66,FALSE) -> 0 | D74: =VLOOKUP($A74,'Mat of App'!$B$7:$AP$37,D$66,FALSE) -> 0 | E74: =VLOOKUP($A74,'Mat of App'!$B$7:$AP$37,E$66,FALSE) -> 0 | F74: =VLOOKUP($A74,'Mat of App'!$B$7:$AP$37,F$66,FALSE) -> 0 | G74: =VLOOKUP($A74,'Mat of App'!$B$7:$AP$37,G$66,FALSE) -> 0 | H74: =VLOOKUP($A74,'Mat of App'!$B$7:$AP$37,H$66,FALSE) -> 0 | I74: =VLOOKUP($A74,'Mat of App'!$B$7:$AP$37,I$66,FALSE) -> 0
A75: LV Network Non-Domestic Non-CT | B75: =VLOOKUP($A75,'Mat of App'!$B$7:$AP$37,B$66,FALSE) -> 0 | C75: =VLOOKUP($A75,'Mat of App'!$B$7:$AP$37,C$66,FALSE) -> 1 | D75: =VLOOKUP($A75,'Mat of App'!$B$7:$AP$37,D$66,FALSE) -> 0 | E75: =VLOOKUP($A75,'Mat of App'!$B$7:$AP$37,E$66,FALSE) -> 0 | F75: =VLOOKUP($A75,'Mat of App'!$B$7:$AP$37,F$66,FALSE) -> 0 | G75: =VLOOKUP($A75,'Mat of App'!$B$7:$AP$37,G$66,FALSE) -> 0 | H75: =VLOOKUP($A75,'Mat of App'!$B$7:$AP$37,H$66,FALSE) -> 0 | I75: =VLOOKUP($A75,'Mat of App'!$B$7:$AP$37,I$66,FALSE) -> 0
A76: LV HH Metered | B76: =VLOOKUP($A76,'Mat of App'!$B$7:$AP$37,B$66,FALSE) -> 0 | C76: =VLOOKUP($A76,'Mat of App'!$B$7:$AP$37,C$66,FALSE) -> 0 | D76: =VLOOKUP($A76,'Mat of App'!$B$7:$AP$37,D$66,FALSE) -> 0 | E76: =VLOOKUP($A76,'Mat of App'!$B$7:$AP$37,E$66,FALSE) -> 0 | F76: =VLOOKUP($A76,'Mat of App'!$B$7:$AP$37,F$66,FALSE) -> 1 | G76: =VLOOKUP($A76,'Mat of App'!$B$7:$AP$37,G$66,FALSE) -> 0 | H76: =VLOOKUP($A76,'Mat of App'!$B$7:$AP$37,H$66,FALSE) -> 0 | I76: =VLOOKUP($A76,'Mat of App'!$B$7:$AP$37,I$66,FALSE) -> 0
A77: LV Sub HH Metered | B77: =VLOOKUP($A77,'Mat of App'!$B$7:$AP$37,B$66,FALSE) -> 0 | C77: =VLOOKUP($A77,'Mat of App'!$B$7:$AP$37,C$66,FALSE) -> 0 | D77: =VLOOKUP($A77,'Mat of App'!$B$7:$AP$37,D$66,FALSE) -> 0 | E77: =VLOOKUP($A77,'Mat of App'!$B$7:$AP$37,E$66,FALSE) -> 0 | F77: =VLOOKUP($A77,'Mat of App'!$B$7:$AP$37,F$66,FALSE) -> 0 | G77: =VLOOKUP($A77,'Mat of App'!$B$7:$AP$37,G$66,FALSE) -> 1 | H77: =VLOOKUP($A77,'Mat of App'!$B$7:$AP$37,H$66,FALSE) -> 0 | I77: =VLOOKUP($A77,'Mat of App'!$B$7:$AP$37,I$66,FALSE) -> 0
A78: LV Generation NHH or Aggregate HH | B78: =VLOOKUP($A78,'Mat of App'!$B$7:$AP$37,B$66,FALSE) -> 0 | C78: =VLOOKUP($A78,'Mat of App'!$B$7:$AP$37,C$66,FALSE) -> 0 | D78: =VLOOKUP($A78,'Mat of App'!$B$7:$AP$37,D$66,FALSE) -> 0 | E78: =VLOOKUP($A78,'Mat of App'!$B$7:$AP$37,E$66,FALSE) -> 0 | F78: =VLOOKUP($A78,'Mat of App'!$B$7:$AP$37,F$66,FALSE) -> 0 | G78: =VLOOKUP($A78,'Mat of App'!$B$7:$AP$37,G$66,FALSE) -> 0 | H78: =VLOOKUP($A78,'Mat of App'!$B$7:$AP$37,H$66,FALSE) -> 1 | I78: =VLOOKUP($A78,'Mat of App'!$B$7:$AP$37,I$66,FALSE) -> 0
A79: LV Sub Generation NHH | B79: =VLOOKUP($A79,'Mat of App'!$B$7:$AP$37,B$66,FALSE) -> 0 | C79: =VLOOKUP($A79,'Mat of App'!$B$7:$AP$37,C$66,FALSE) -> 0 | D79: =VLOOKUP($A79,'Mat of App'!$B$7:$AP$37,D$66,FALSE) -> 0 | E79: =VLOOKUP($A79,'Mat of App'!$B$7:$AP$37,E$66,FALSE) -> 0 | F79: =VLOOKUP($A79,'Mat of App'!$B$7:$AP$37,F$66,FALSE) -> 0 | G79: =VLOOKUP($A79,'Mat of App'!$B$7:$AP$37,G$66,FALSE) -> 0 | H79: =VLOOKUP($A79,'Mat of App'!$B$7:$AP$37,H$66,FALSE) -> 1 | I79: =VLOOKUP($A79,'Mat of App'!$B$7:$AP$37,I$66,FALSE) -> 0
A80: LV Generation Intermittent | B80: =VLOOKUP($A80,'Mat of App'!$B$7:$AP$37,B$66,FALSE) -> 0 | C80: =VLOOKUP($A80,'Mat of App'!$B$7:$AP$37,C$66,FALSE) -> 0 | D80: =VLOOKUP($A80,'Mat of App'!$B$7:$AP$37,D$66,FALSE) -> 0 | E80: =VLOOKUP($A80,'Mat of App'!$B$7:$AP$37,E$66,FALSE) -> 0 | F80: =VLOOKUP($A80,'Mat of App'!$B$7:$AP$37,F$66,FALSE) -> 0 | G80: =VLOOKUP($A80,'Mat of App'!$B$7:$AP$37,G$66,FALSE) -> 0 | H80: =VLOOKUP($A80,'Mat of App'!$B$7:$AP$37,H$66,FALSE) -> 1 | I80: =VLOOKUP($A80,'Mat of App'!$B$7:$AP$37,I$66,FALSE) -> 0
A81: LV Generation Non-Intermittent | B81: =VLOOKUP($A81,'Mat of App'!$B$7:$AP$37,B$66,FALSE) -> 0 | C81: =VLOOKUP($A81,'Mat of App'!$B$7:$AP$37,C$66,FALSE) -> 0 | D81: =VLOOKUP($A81,'Mat of App'!$B$7:$AP$37,D$66,FALSE) -> 0 | E81: =VLOOKUP($A81,'Mat of App'!$B$7:$AP$37,E$66,FALSE) -> 0 | F81: =VLOOKUP($A81,'Mat of App'!$B$7:$AP$37,F$66,FALSE) -> 0 | G81: =VLOOKUP($A81,'Mat of App'!$B$7:$AP$37,G$66,FALSE) -> 0 | H81: =VLOOKUP($A81,'Mat of App'!$B$7:$AP$37,H$66,FALSE) -> 0 | I81: =VLOOKUP($A81,'Mat of App'!$B$7:$AP$37,I$66,FALSE) -> 0
A82: LV Sub Generation Intermittent | B82: =VLOOKUP($A82,'Mat of App'!$B$7:$AP$37,B$66,FALSE) -> 0 | C82: =VLOOKUP($A82,'Mat of App'!$B$7:$AP$37,C$66,FALSE) -> 0 | D82: =VLOOKUP($A82,'Mat of App'!$B$7:$AP$37,D$66,FALSE) -> 0 | E82: =VLOOKUP($A82,'Mat of App'!$B$7:$AP$37,E$66,FALSE) -> 0 | F82: =VLOOKUP($A82,'Mat of App'!$B$7:$AP$37,F$66,FALSE) -> 0 | G82: =VLOOKUP($A82,'Mat of App'!$B$7:$AP$37,G$66,FALSE) -> 0 | H82: =VLOOKUP($A82,'Mat of App'!$B$7:$AP$37,H$66,FALSE) -> 0 | I82: =VLOOKUP($A82,'Mat of App'!$B$7:$AP$37,I$66,FALSE) -> 0
A83: LV Sub Generation Non-Intermittent | B83: =VLOOKUP($A83,'Mat of App'!$B$7:$AP$37,B$66,FALSE) -> 0 | C83: =VLOOKUP($A83,'Mat of App'!$B$7:$AP$37,C$66,FALSE) -> 0 | D83: =VLOOKUP($A83,'Mat of App'!$B$7:$AP$37,D$66,FALSE) -> 0 | E83: =VLOOKUP($A83,'Mat of App'!$B$7:$AP$37,E$66,FALSE) -> 0 | F83: =VLOOKUP($A83,'Mat of App'!$B$7:$AP$37,F$66,FALSE) -> 0 | G83: =VLOOKUP($A83,'Mat of App'!$B$7:$AP$37,G$66,FALSE) -> 0 | H83: =VLOOKUP($A83,'Mat of App'!$B$7:$AP$37,H$66,FALSE) -> 0 | I83: =VLOOKUP($A83,'Mat of App'!$B$7:$AP$37,I$66,FALSE) -> 0
A85: 1026. Matrix of applicability of LV service models to unmetered tariffs
A87: Source: service models
A88: Proportion of service model involved in connecting load of 1 MWh/year
B89: LV service model 1 | C89: LV service model 2 | D89: LV service model 3 | E89: LV service model 4 | F89: LV service model 5 | G89: LV service model 6 | H89: LV service model 7 | I89: LV service model 8
A90: All LV unmetered tariffs | B90: =VLOOKUP($A90,'Mat of App'!$B$7:$AP$37,B$66,FALSE) -> 0 | C90: =VLOOKUP($A90,'Mat of App'!$B$7:$AP$37,C$66,FALSE) -> 0 | D90: =VLOOKUP($A90,'Mat of App'!$B$7:$AP$37,D$66,FALSE) -> 0 | E90: =VLOOKUP($A90,'Mat of App'!$B$7:$AP$37,E$66,FALSE) -> 0 | F90: =VLOOKUP($A90,'Mat of App'!$B$7:$AP$37,F$66,FALSE) -> 0 | G90: =VLOOKUP($A90,'Mat of App'!$B$7:$AP$37,G$66,FALSE) -> 0 | H90: =VLOOKUP($A90,'Mat of App'!$B$7:$AP$37,H$66,FALSE) -> 0 | I90: =VLOOKUP($A90,'Mat of App'!$B$7:$AP$37,I$66,FALSE) -> 0.4876
A92: 1028. Matrix of applicability of HV service models to tariffs with fixed charges
B93: 12 | C93: =B93+1 -> 13 | D93: =C93+1 -> 14 | E93: =D93+1 -> 15 | F93: =E93+1 -> 16
B94: HV service model 1 | C94: HV service model 2 | D94: HV service model 3 | E94: HV service model 4 | F94: HV service model 5
A95: HV Medium Non-Domestic | B95: =VLOOKUP($A95,'Mat of App'!$B$7:$AP$37,B$93,FALSE) -> 1 | C95: =VLOOKUP($A95,'Mat of App'!$B$7:$AP$37,C$93,FALSE) -> 0 | D95: =VLOOKUP($A95,'Mat of App'!$B$7:$AP$37,D$93,FALSE) -> 0 | E95: =VLOOKUP($A95,'Mat of App'!$B$7:$AP$37,E$93,FALSE) -> 0 | F95: =VLOOKUP($A95,'Mat of App'!$B$7:$AP$37,F$93,FALSE) -> 0
A96: HV HH Metered | B96: =VLOOKUP($A96,'Mat of App'!$B$7:$AP$37,B$93,FALSE) -> 1 | C96: =VLOOKUP($A96,'Mat of App'!$B$7:$AP$37,C$93,FALSE) -> 0 | D96: =VLOOKUP($A96,'Mat of App'!$B$7:$AP$37,D$93,FALSE) -> 0 | E96: =VLOOKUP($A96,'Mat of App'!$B$7:$AP$37,E$93,FALSE) -> 0 | F96: =VLOOKUP($A96,'Mat of App'!$B$7:$AP$37,F$93,FALSE) -> 0
A97: HV Generation Intermittent | B97: =VLOOKUP($A97,'Mat of App'!$B$7:$AP$37,B$93,FALSE) -> 0 | C97: =VLOOKUP($A97,'Mat of App'!$B$7:$AP$37,C$93,FALSE) -> 1 | D97: =VLOOKUP($A97,'Mat of App'!$B$7:$AP$37,D$93,FALSE) -> 0 | E97: =VLOOKUP($A97,'Mat of App'!$B$7:$AP$37,E$93,FALSE) -> 0 | F97: =VLOOKUP($A97,'Mat of App'!$B$7:$AP$37,F$93,FALSE) -> 0
A98: HV Generation Non-Intermittent | B98: =VLOOKUP($A98,'Mat of App'!$B$7:$AP$37,B$93,FALSE) -> 0 | C98: =VLOOKUP($A98,'Mat of App'!$B$7:$AP$37,C$93,FALSE) -> 1 | D98: =VLOOKUP($A98,'Mat of App'!$B$7:$AP$37,D$93,FALSE) -> 0 | E98: =VLOOKUP($A98,'Mat of App'!$B$7:$AP$37,E$93,FALSE) -> 0 | F98: =VLOOKUP($A98,'Mat of App'!$B$7:$AP$37,F$93,FALSE) -> 0
A100: 1032. Loss adjustment factors to transmission
A102: Source: losses model or loss adjustment factors at time of system peak.
B103: 132kV | C103: 132kV/EHV | D103: EHV | E103: EHV/HV | F103: HV | G103: HV/LV | H103: LV circuits
A104: Loss adjustment factor | B104: =VLOOKUP(Vlookup!B69,'CDCM Forecast Data'!$A$14:$I$271,7,FALSE) -> 1.008 | C104: =VLOOKUP(Vlookup!C69,'CDCM Forecast Data'!$A$14:$I$271,7,FALSE) -> 1.011 | D104: =VLOOKUP(Vlookup!D69,'CDCM Forecast Data'!$A$14:$I$271,7,FALSE) -> 1.024 | E104: =VLOOKUP(Vlookup!E69,'CDCM Forecast Data'!$A$14:$I$271,7,FALSE) -> 1.034 | F104: =VLOOKUP(Vlookup!F69,'CDCM Forecast Data'!$A$14:$I$271,7,FALSE) -> 1.057 | G104: =VLOOKUP(Vlookup!G69,'CDCM Forecast Data'!$A$14:$I$271,7,FALSE) -> 1.07 | H104: =VLOOKUP(Vlookup!H69,'CDCM Forecast Data'!$A$14:$I$271,7,FALSE) -> 1.085
A106: 1037. Embedded network (LDNO) discounts
A108: Source: separate price control disaggregation model.
B109: No discount | C109: LDNO LV: LV user | D109: LDNO HV: LV user | E109: LDNO HV: LV sub user | F109: LDNO HV: HV user
A110: LDNO discount | C110: =VLOOKUP(Vlookup!C75,'CDCM Forecast Data'!$A$14:$I$271,7,FALSE) -> 0.3656937215 | D110: =VLOOKUP(Vlookup!D75,'CDCM Forecast Data'!$A$14:$I$271,7,FALSE) -> 0.6245521397 | E110: =VLOOKUP(Vlookup!E75,'CDCM Forecast Data'!$A$14:$I$271,7,FALSE) -> 0.3894166697 | F110: =VLOOKUP(Vlookup!F75,'CDCM Forecast Data'!$A$14:$I$271,7,FALSE) -> 0.2775282659
A112: 1041. Load profile data for demand users
A114: Source: load data analysis.
B115: Coincidence factor | C115: Load factor
A116: Domestic Unrestricted | B116: =VLOOKUP(Vlookup!B81,'CDCM Forecast Data'!$A$14:$I$271,6,FALSE) -> 0.9179184292 | C116: =VLOOKUP(Vlookup!C81,'CDCM Forecast Data'!$A$14:$I$271,6,FALSE) -> 0.415665058
A117: Domestic Two Rate | B117: =VLOOKUP(Vlookup!B82,'CDCM Forecast Data'!$A$14:$I$271,6,FALSE) -> 0.3200962015 | C117: =VLOOKUP(Vlookup!C82,'CDCM Forecast Data'!$A$14:$I$271,6,FALSE) -> 0.2450956802
A118: Domestic Off Peak (related MPAN) | C118: =VLOOKUP(Vlookup!C83,'CDCM Forecast Data'!$A$14:$I$271,6,FALSE) -> 0.136867915
A119: Small Non Domestic Unrestricted | B119: =VLOOKUP(Vlookup!B84,'CDCM Forecast Data'!$A$14:$I$271,6,FALSE) -> 0.616785984 | C119: =VLOOKUP(Vlookup!C84,'CDCM Forecast Data'!$A$14:$I$271,6,FALSE) -> 0.395190376
A120: Small Non Domestic Two Rate | B120: =VLOOKUP(Vlookup!B85,'CDCM Forecast Data'!$A$14:$I$271,6,FALSE) -> 0.565932477 | C120: =VLOOKUP(Vlookup!C85,'CDCM Forecast Data'!$A$14:$I$271,6,FALSE) -> 0.4330374222
A121: Small Non Domestic Off Peak (related MPAN) | C121: =VLOOKUP(Vlookup!C86,'CDCM Forecast Data'!$A$14:$I$271,6,FALSE) -> 0.1971252058
A122: LV Medium Non-Domestic | B122: =VLOOKUP(Vlookup!B87,'CDCM Forecast Data'!$A$14:$I$271,6,FALSE) -> 0.8402833019 | C122: =VLOOKUP(Vlookup!C87,'CDCM Forecast Data'!$A$14:$I$271,6,FALSE) -> 0.5917167714
A123: LV Sub Medium Non-Domestic | B123: =VLOOKUP(Vlookup!B88,'CDCM Forecast Data'!$A$14:$I$271,6,FALSE) -> 0.816438164 | C123: =VLOOKUP(Vlookup!C88,'CDCM Forecast Data'!$A$14:$I$271,6,FALSE) -> 0.5994378117
A124: HV Medium Non-Domestic | B124: =VLOOKUP(Vlookup!B89,'CDCM Forecast Data'!$A$14:$I$271,6,FALSE) -> 0.7355089477 | C124: =VLOOKUP(Vlookup!C89,'CDCM Forecast Data'!$A$14:$I$271,6,FALSE) -> 0.4659507287
A125: LV Network Domestic | B125: =VLOOKUP(Vlookup!B90,'CDCM Forecast Data'!$A$14:$I$271,6,FALSE) -> 0.8239834604 | C125: =VLOOKUP(Vlookup!C90,'CDCM Forecast Data'!$A$14:$I$271,6,FALSE) -> 0.3860236334
A126: LV Network Non-Domestic Non-CT | B126: =VLOOKUP(Vlookup!B91,'CDCM Forecast Data'!$A$14:$I$271,6,FALSE) -> 0.6065619843 | C126: =VLOOKUP(Vlookup!C91,'CDCM Forecast Data'!$A$14:$I$271,6,FALSE) -> 0.3977278379
A127: LV HH Metered | B127: =VLOOKUP(Vlookup!B92,'CDCM Forecast Data'!$A$14:$I$271,6,FALSE) -> 0.8048097412 | C127: =VLOOKUP(Vlookup!C92,'CDCM Forecast Data'!$A$14:$I$271,6,FALSE) -> 0.5859730553
A128: LV Sub HH Metered | B128: =VLOOKUP(Vlookup!B93,'CDCM Forecast Data'!$A$14:$I$271,6,FALSE) -> 0.7678104713 | C128: =VLOOKUP(Vlookup!C93,'CDCM Forecast Data'!$A$14:$I$271,6,FALSE) -> 0.6124288461
A129: HV HH Metered | B129: =VLOOKUP(Vlookup!B94,'CDCM Forecast Data'!$A$14:$I$271,6,FALSE) -> 0.7982801564 | C129: =VLOOKUP(Vlookup!C94,'CDCM Forecast Data'!$A$14:$I$271,6,FALSE) -> 0.720897537
A130: NHH UMS category A | B130: =VLOOKUP(Vlookup!B95,'CDCM Forecast Data'!$A$14:$I$271,6,FALSE) -> 1 | C130: =VLOOKUP(Vlookup!C95,'CDCM Forecast Data'!$A$14:$I$271,6,FALSE) -> 1
A131: NHH UMS category B | B131: =VLOOKUP(Vlookup!B96,'CDCM Forecast Data'!$A$14:$I$271,6,FALSE) -> 1 | C131: =VLOOKUP(Vlookup!C96,'CDCM Forecast Data'!$A$14:$I$271,6,FALSE) -> 0.4728817338
A132: NHH UMS category C | B132: =VLOOKUP(Vlookup!B97,'CDCM Forecast Data'!$A$14:$I$271,6,FALSE) -> 1 | C132: =VLOOKUP(Vlookup!C97,'CDCM Forecast Data'!$A$14:$I$271,6,FALSE) -> 0.2480372467
A133: NHH UMS category D | B133: =VLOOKUP(Vlookup!B98,'CDCM Forecast Data'!$A$14:$I$271,6,FALSE) -> 0 | C133: =VLOOKUP(Vlookup!C98,'CDCM Forecast Data'!$A$14:$I$271,6,FALSE) -> 0.5138551701
A134: LV UMS (Pseudo HH Metered) | B134: =VLOOKUP(Vlookup!B99,'CDCM Forecast Data'!$A$14:$I$271,6,FALSE) -> 0.9767133458 | C134: =VLOOKUP(Vlookup!C99,'CDCM Forecast Data'!$A$14:$I$271,6,FALSE) -> 0.4699498049
A136: 1053. Volume forecasts for the charging year
B137: 16 | C137: 17 | D137: 18 | E137: 19 | F137: 20 | G137: 21
A138: Source: forecast.
A139: Please include MPAN counts for tariffs with no fixed charge (e.g. off-peak tariffs),
A140: but exclude MPANs on tariffs with a fixed charge that are not subject to a fixed charge due to a site grouping arrangement.
B141: Rate 1 units (MWh) | C141: Rate 2 units (MWh) | D141: Rate 3 units (MWh) | E141: MPANs | F141: Import capacity (kVA) | G141: Reactive power units (MVArh)
A142: > Domestic Unrestricted | B142: =VLOOKUP(Vlookup!$B107,'CDCM Volume Forecasts'!$A$27:$AG$123,B$137,FALSE) -> 0 | C142: =VLOOKUP(Vlookup!$B107,'CDCM Volume Forecasts'!$A$27:$AG$123,C$137,FALSE) -> 0 | D142: =VLOOKUP(Vlookup!$B107,'CDCM Volume Forecasts'!$A$27:$AG$123,D$137,FALSE) -> 0 | E142: =VLOOKUP(Vlookup!$B107,'CDCM Volume Forecasts'!$A$27:$AG$123,E$137,FALSE) -> 0 | F142: =VLOOKUP(Vlookup!$B107,'CDCM Volume Forecasts'!$A$27:$AG$123,F$137,FALSE) -> 0 | G142: =VLOOKUP(Vlookup!$B107,'CDCM Volume Forecasts'!$A$27:$AG$123,G$137,FALSE) -> 0
A143: Domestic Unrestricted | B143: =VLOOKUP(Vlookup!$B108,'CDCM Volume Forecasts'!$A$27:$AG$123,B$137,FALSE) -> 4290939.517 | C143: =VLOOKUP(Vlookup!$B108,'CDCM Volume Forecasts'!$A$27:$AG$123,C$137,FALSE) -> 0 | D143: =VLOOKUP(Vlookup!$B108,'CDCM Volume Forecasts'!$A$27:$AG$123,D$137,FALSE) -> 0 | E143: =VLOOKUP(Vlookup!$B108,'CDCM Volume Forecasts'!$A$27:$AG$123,E$137,FALSE) -> 1195490 | F143: =VLOOKUP(Vlookup!$B108,'CDCM Volume Forecasts'!$A$27:$AG$123,F$137,FALSE) -> 0 | G143: =VLOOKUP(Vlookup!$B108,'CDCM Volume Forecasts'!$A$27:$AG$123,G$137,FALSE) -> 0
A144: LDNO LV: Domestic Unrestricted | B144: =VLOOKUP(Vlookup!$B109,'CDCM Volume Forecasts'!$A$27:$AG$123,B$137,FALSE) -> 14926.84831 | C144: =VLOOKUP(Vlookup!$B109,'CDCM Volume Forecasts'!$A$27:$AG$123,C$137,FALSE) -> 0 | D144: =VLOOKUP(Vlookup!$B109,'CDCM Volume Forecasts'!$A$27:$AG$123,D$137,FALSE) -> 0 | E144: =VLOOKUP(Vlookup!$B109,'CDCM Volume Forecasts'!$A$27:$AG$123,E$137,FALSE) -> 4822 | F144: =VLOOKUP(Vlookup!$B109,'CDCM Volume Forecasts'!$A$27:$AG$123,F$137,FALSE) -> 0 | G144: =VLOOKUP(Vlookup!$B109,'CDCM Volume Forecasts'!$A$27:$AG$123,G$137,FALSE) -> 0
A145: LDNO HV: Domestic Unrestricted | B145: =VLOOKUP(Vlookup!$B110,'CDCM Volume Forecasts'!$A$27:$AG$123,B$137,FALSE) -> 19637.86889 | C145: =VLOOKUP(Vlookup!$B110,'CDCM Volume Forecasts'!$A$27:$AG$123,C$137,FALSE) -> 0 | D145: =VLOOKUP(Vlookup!$B110,'CDCM Volume Forecasts'!$A$27:$AG$123,D$137,FALSE) -> 0 | E145: =VLOOKUP(Vlookup!$B110,'CDCM Volume Forecasts'!$A$27:$AG$123,E$137,FALSE) -> 6443 | F145: =VLOOKUP(Vlookup!$B110,'CDCM Volume Forecasts'!$A$27:$AG$123,F$137,FALSE) -> 0 | G145: =VLOOKUP(Vlookup!$B110,'CDCM Volume Forecasts'!$A$27:$AG$123,G$137,FALSE) -> 0
A146: > Domestic Two Rate | B146: =VLOOKUP(Vlookup!$B111,'CDCM Volume Forecasts'!$A$27:$AG$123,B$137,FALSE) -> 0 | C146: =VLOOKUP(Vlookup!$B111,'CDCM Volume Forecasts'!$A$27:$AG$123,C$137,FALSE) -> 0 | D146: =VLOOKUP(Vlookup!$B111,'CDCM Volume Forecasts'!$A$27:$AG$123,D$137,FALSE) -> 0 | E146: =VLOOKUP(Vlookup!$B111,'CDCM Volume Forecasts'!$A$27:$AG$123,E$137,FALSE) -> 0 | F146: =VLOOKUP(Vlookup!$B111,'CDCM Volume Forecasts'!$A$27:$AG$123,F$137,FALSE) -> 0 | G146: =VLOOKUP(Vlookup!$B111,'CDCM Volume Forecasts'!$A$27:$AG$123,G$137,FALSE) -> 0
A147: Domestic Two Rate | B147: =VLOOKUP(Vlookup!$B112,'CDCM Volume Forecasts'!$A$27:$AG$123,B$137,FALSE) -> 705713.8558 | C147: =VLOOKUP(Vlookup!$B112,'CDCM Volume Forecasts'!$A$27:$AG$123,C$137,FALSE) -> 762376.7408 | D147: =VLOOKUP(Vlookup!$B112,'CDCM Volume Forecasts'!$A$27:$AG$123,D$137,FALSE) -> 0 | E147: =VLOOKUP(Vlookup!$B112,'CDCM Volume Forecasts'!$A$27:$AG$123,E$137,FALSE) -> 224253 | F147: =VLOOKUP(Vlookup!$B112,'CDCM Volume Forecasts'!$A$27:$AG$123,F$137,FALSE) -> 0 | G147: =VLOOKUP(Vlookup!$B112,'CDCM Volume Forecasts'!$A$27:$AG$123,G$137,FALSE) -> 0
A148: LDNO LV: Domestic Two Rate | B148: =VLOOKUP(Vlookup!$B113,'CDCM Volume Forecasts'!$A$27:$AG$123,B$137,FALSE) -> 1609.784626 | C148: =VLOOKUP(Vlookup!$B113,'CDCM Volume Forecasts'!$A$27:$AG$123,C$137,FALSE) -> 652.4538035 | D148: =VLOOKUP(Vlookup!$B113,'CDCM Volume Forecasts'!$A$27:$AG$123,D$137,FALSE) -> 0 | E148: =VLOOKUP(Vlookup!$B113,'CDCM Volume Forecasts'!$A$27:$AG$123,E$137,FALSE) -> 438 | F148: =VLOOKUP(Vlookup!$B113,'CDCM Volume Forecasts'!$A$27:$AG$123,F$137,FALSE) -> 0 | G148: =VLOOKUP(Vlookup!$B113,'CDCM Volume Forecasts'!$A$27:$AG$123,G$137,FALSE) -> 0
A149: LDNO HV: Domestic Two Rate | B149: =VLOOKUP(Vlookup!$B114,'CDCM Volume Forecasts'!$A$27:$AG$123,B$137,FALSE) -> 743.8910237 | C149: =VLOOKUP(Vlookup!$B114,'CDCM Volume Forecasts'!$A$27:$AG$123,C$137,FALSE) -> 336.0472317 | D149: =VLOOKUP(Vlookup!$B114,'CDCM Volume Forecasts'!$A$27:$AG$123,D$137,FALSE) -> 0 | E149: =VLOOKUP(Vlookup!$B114,'CDCM Volume Forecasts'!$A$27:$AG$123,E$137,FALSE) -> 273 | F149: =VLOOKUP(Vlookup!$B114,'CDCM Volume Forecasts'!$A$27:$AG$123,F$137,FALSE) -> 0 | G149: =VLOOKUP(Vlookup!$B114,'CDCM Volume Forecasts'!$A$27:$AG$123,G$137,FALSE) -> 0
A150: > Domestic Off Peak (related MPAN) | B150: =VLOOKUP(Vlookup!$B115,'CDCM Volume Forecasts'!$A$27:$AG$123,B$137,FALSE) -> 0 | C150: =VLOOKUP(Vlookup!$B115,'CDCM Volume Forecasts'!$A$27:$AG$123,C$137,FALSE) -> 0 | D150: =VLOOKUP(Vlookup!$B115,'CDCM Volume Forecasts'!$A$27:$AG$123,D$137,FALSE) -> 0 | E150: =VLOOKUP(Vlookup!$B115,'CDCM Volume Forecasts'!$A$27:$AG$123,E$137,FALSE) -> 0 | F150: =VLOOKUP(Vlookup!$B115,'CDCM Volume Forecasts'!$A$27:$AG$123,F$137,FALSE) -> 0 | G150: =VLOOKUP(Vlookup!$B115,'CDCM Volume Forecasts'!$A$27:$AG$123,G$137,FALSE) -> 0
A151: Domestic Off Peak (related MPAN) | B151: =VLOOKUP(Vlookup!$B116,'CDCM Volume Forecasts'!$A$27:$AG$123,B$137,FALSE) -> 73622.90041 | C151: =VLOOKUP(Vlookup!$B116,'CDCM Volume Forecasts'!$A$27:$AG$123,C$137,FALSE) -> 0 | D151: =VLOOKUP(Vlookup!$B116,'CDCM Volume Forecasts'!$A$27:$AG$123,D$137,FALSE) -> 0 | E151: =VLOOKUP(Vlookup!$B116,'CDCM Volume Forecasts'!$A$27:$AG$123,E$137,FALSE) -> 0 | F151: =VLOOKUP(Vlookup!$B116,'CDCM Volume Forecasts'!$A$27:$AG$123,F$137,FALSE) -> 0 | G151: =VLOOKUP(Vlookup!$B116,'CDCM Volume Forecasts'!$A$27:$AG$123,G$137,FALSE) -> 0
A152: LDNO LV: Domestic Off Peak (related MPAN) | B152: =VLOOKUP(Vlookup!$B117,'CDCM Volume Forecasts'!$A$27:$AG$123,B$137,FALSE) -> 0 | C152: =VLOOKUP(Vlookup!$B117,'CDCM Volume Forecasts'!$A$27:$AG$123,C$137,FALSE) -> 0 | D152: =VLOOKUP(Vlookup!$B117,'CDCM Volume Forecasts'!$A$27:$AG$123,D$137,FALSE) -> 0 | E152: =VLOOKUP(Vlookup!$B117,'CDCM Volume Forecasts'!$A$27:$AG$123,E$137,FALSE) -> 0 | F152: =VLOOKUP(Vlookup!$B117,'CDCM Volume Forecasts'!$A$27:$AG$123,F$137,FALSE) -> 0 | G152: =VLOOKUP(Vlookup!$B117,'CDCM Volume Forecasts'!$A$27:$AG$123,G$137,FALSE) -> 0
A153: LDNO HV: Domestic Off Peak (related MPAN) | B153: =VLOOKUP(Vlookup!$B118,'CDCM Volume Forecasts'!$A$27:$AG$123,B$137,FALSE) -> 0 | C153: =VLOOKUP(Vlookup!$B118,'CDCM Volume Forecasts'!$A$27:$AG$123,C$137,FALSE) -> 0 | D153: =VLOOKUP(Vlookup!$B118,'CDCM Volume Forecasts'!$A$27:$AG$123,D$137,FALSE) -> 0 | E153: =VLOOKUP(Vlookup!$B118,'CDCM Volume Forecasts'!$A$27:$AG$123,E$137,FALSE) -> 0 | F153: =VLOOKUP(Vlookup!$B118,'CDCM Volume Forecasts'!$A$27:$AG$123,F$137,FALSE) -> 0 | G153: =VLOOKUP(Vlookup!$B118,'CDCM Volume Forecasts'!$A$27:$AG$123,G$137,FALSE) -> 0
A154: > Small Non Domestic Unrestricted | B154: =VLOOKUP(Vlookup!$B119,'CDCM Volume Forecasts'!$A$27:$AG$123,B$137,FALSE) -> 0 | C154: =VLOOKUP(Vlookup!$B119,'CDCM Volume Forecasts'!$A$27:$AG$123,C$137,FALSE) -> 0 | D154: =VLOOKUP(Vlookup!$B119,'CDCM Volume Forecasts'!$A$27:$AG$123,D$137,FALSE) -> 0 | E154: =VLOOKUP(Vlookup!$B119,'CDCM Volume Forecasts'!$A$27:$AG$123,E$137,FALSE) -> 0 | F154: =VLOOKUP(Vlookup!$B119,'CDCM Volume Forecasts'!$A$27:$AG$123,F$137,FALSE) -> 0 | G154: =VLOOKUP(Vlookup!$B119,'CDCM Volume Forecasts'!$A$27:$AG$123,G$137,FALSE) -> 0
